{"text_format":"1","workbook":"xlsx","n_sheets":1,"sheets":["Administrative Index"],"not_rendered":{"charts":0,"images":0,"macros":1,"external_links":0,"defined_names":1,"comments":0,"pivot_tables":0},"unopened":[],"bounds":{"document_bytes":16777216,"sheet_cells":100000,"rows_first":2000,"rows_last":500,"rows_between":2000,"halvings":0,"cell_chars":16384,"cell_head_chars":4096},"cells_cut":0,"cells_raw":0,"read":"whole","date_system":"1900"}

{"sheet":"Administrative Index","index":0,"n_rows":4246,"n_cols":7,"rows_kept":4246,"cut":false,"hidden":false,"merged":[[343,4,343,5],[475,6,476,6],[481,6,482,6],[483,6,484,6],[454,6,455,6],[452,6,453,6],[466,1,467,1],[468,6,470,6],[466,6,467,6],[409,6,410,6],[412,6,413,6],[421,6,423,6],[441,6,442,6],[446,6,447,6],[253,3,253,6],[266,3,266,6],[267,6,270,6],[196,6,201,6],[204,6,207,6],[211,3,211,6],[219,3,219,6],[228,3,228,6],[236,3,236,6],[243,3,243,6],[159,6,160,6],[161,6,166,6],[167,6,170,6],[172,6,185,6],[190,6,193,6],[138,6,139,6],[140,6,143,6],[145,6,150,6],[153,6,156,6],[157,3,157,6],[105,6,114,6],[136,6,137,6],[115,6,126,6],[1704,1,1705,1],[1706,1,1707,1],[1711,1,1713,1],[481,1,482,1],[468,1,470,1],[452,1,453,1],[153,1,193,1],[196,1,201,1],[454,1,455,1],[1681,1,1682,1],[1683,1,1689,1],[1690,1,1691,1],[1642,1,1643,1],[1610,1,1611,1],[1612,1,1613,1],[1614,1,1615,1],[1616,1,1617,1],[1618,1,1619,1],[1620,1,1623,1],[1624,1,1625,1],[1626,1,1627,1],[1731,1,1732,1],[1736,1,1737,1],[1738,1,1739,1],[1740,1,1744,1],[1747,1,1748,1],[1749,1,1750,1],[1752,1,1753,1],[1754,1,1755,1],[1583,1,1584,1],[1585,1,1587,1],[1591,1,1592,1],[1714,1,1716,1],[1722,1,1723,1],[1724,1,1725,1],[1728,1,1730,1],[1594,1,1595,1],[1597,1,1598,1],[1599,1,1600,1],[1602,1,1607,1],[1629,1,1630,1],[1636,1,1639,1],[1640,1,1641,1],[1645,1,1647,1],[1648,1,1654,1],[1791,1,1793,1],[1797,1,1798,1],[1756,1,1757,1],[1759,1,1760,1],[1761,1,1762,1],[1765,1,1766,1],[1768,1,1769,1],[1771,1,1773,1],[1776,1,1778,1],[1781,1,1783,1],[1788,1,1790,1],[1784,1,1786,1],[1560,1,1561,1],[1565,1,1566,1],[1568,1,1569,1],[1575,1,1576,1],[1578,1,1579,1],[1581,1,1582,1],[1173,1,1174,1],[1175,1,1177,1],[1201,1,1203,1],[1208,1,1209,1],[1217,1,1218,1],[1241,1,1243,1],[1244,1,1245,1],[1246,1,1248,1],[1213,1,1214,1],[1222,1,1223,1],[1220,1,1221,1],[1224,1,1226,1],[1227,1,1228,1],[1231,1,1232,1],[1233,1,1234,1],[1236,1,1238,1],[1239,1,1240,1],[1178,1,1200,1],[928,1,929,1],[933,1,935,1],[937,1,938,1],[939,1,940,1],[941,1,944,1],[946,1,947,1],[950,1,951,1],[952,1,953,1],[1041,1,1043,1],[954,1,955,1],[956,1,957,1],[958,1,960,1],[961,1,963,1],[964,1,965,1],[966,1,967,1],[968,1,969,1],[970,1,971,1],[990,1,991,1],[1012,1,1013,1],[1002,1,1003,1],[1006,1,1007,1],[1009,1,1011,1],[1014,1,1015,1],[1027,1,1028,1],[912,1,913,1],[914,1,915,1],[916,1,917,1],[921,1,922,1],[923,1,924,1],[925,1,927,1],[885,1,887,1],[889,1,890,1],[894,1,895,1],[896,1,899,1],[910,1,911,1],[906,1,907,1],[908,1,909,1],[872,1,873,1],[874,1,875,1],[876,1,877,1],[878,1,880,1],[881,1,883,1],[856,1,857,1],[858,1,859,1],[860,1,862,1],[863,1,864,1],[869,1,870,1],[843,1,844,1],[845,1,846,1],[847,1,848,1],[849,1,850,1],[851,1,852,1],[829,1,831,1],[832,1,835,1],[836,1,837,1],[839,1,840,1],[841,1,842,1],[765,1,766,1],[772,1,773,1],[774,1,775,1],[777,1,778,1],[819,1,820,1],[821,1,822,1],[823,1,824,1],[825,1,826,1],[827,1,828,1],[809,1,810,1],[811,1,812,1],[813,1,814,1],[815,1,816,1],[817,1,818,1],[794,1,796,1],[798,1,799,1],[800,1,801,1],[804,1,808,1],[802,1,803,1],[779,1,780,1],[784,1,785,1],[788,1,789,1],[790,1,791,1],[792,1,793,1],[650,1,652,1],[627,1,628,1],[638,1,639,1],[640,1,641,1],[629,1,630,1],[631,1,632,1],[633,1,634,1],[635,1,636,1],[761,1,762,1],[664,1,665,1],[668,1,671,1],[672,1,674,1],[653,1,654,1],[658,1,659,1],[655,1,657,1],[661,1,663,1],[696,1,697,1],[698,1,699,1],[701,1,703,1],[677,1,678,1],[685,1,686,1],[687,1,688,1],[690,1,692,1],[694,1,695,1],[611,1,613,1],[594,1,595,1],[596,1,597,1],[599,1,600,1],[601,1,602,1],[603,1,604,1],[643,1,644,1],[645,1,646,1],[647,1,648,1],[615,1,616,1],[618,1,620,1],[621,1,622,1],[623,1,624,1],[605,1,606,1],[607,1,608,1],[609,1,610,1],[578,1,579,1],[584,1,585,1],[589,1,590,1],[592,1,593,1],[357,1,387,1],[521,1,526,1],[527,1,528,1],[554,1,555,1],[558,1,559,1],[560,1,561,1],[570,1,573,1],[552,1,553,1],[556,1,557,1],[543,1,544,1],[549,1,550,1],[565,1,566,1],[567,1,568,1],[412,1,413,1],[483,1,484,1],[475,1,476,1],[446,1,447,1],[441,1,442,1],[409,1,410,1],[421,1,423,1],[1,1,1,6],[2,1,2,6],[74,1,152,1],[204,1,207,1],[335,1,356,1],[264,1,334,1],[251,1,252,1],[253,1,260,1],[243,1,250,1],[236,1,242,1],[228,1,235,1],[219,1,227,1],[211,1,218,1],[43,1,50,1],[68,1,69,1],[33,1,41,1],[26,1,32,1],[26,6,32,6],[33,6,41,6],[43,6,50,6],[53,6,67,6],[86,6,93,6],[94,6,104,6],[53,1,67,1],[679,1,684,1],[759,1,760,1],[727,1,728,1],[731,1,732,1],[733,1,734,1],[736,1,737,1],[738,1,740,1],[724,1,725,1],[741,1,742,1],[743,1,744,1],[746,1,749,1],[750,1,751,1],[752,1,753,1],[754,1,755,1],[757,1,758,1],[706,1,707,1],[708,1,709,1],[710,1,711,1],[717,1,718,1],[720,1,722,1],[972,1,973,1],[974,1,975,1],[978,1,979,1],[980,1,981,1],[983,1,984,1],[993,1,997,1],[998,1,999,1],[1000,1,1001,1],[1153,1,1157,1],[1158,1,1159,1],[1161,1,1164,1],[1062,1,1063,1],[1017,1,1018,1],[1019,1,1021,1],[1024,1,1026,1],[1022,1,1023,1],[1037,1,1039,1],[1052,1,1054,1],[1055,1,1056,1],[1045,1,1046,1],[1048,1,1049,1],[1031,1,1033,1],[1057,1,1059,1],[1060,1,1061,1],[1107,1,1108,1],[1112,1,1113,1],[1114,1,1115,1],[1079,1,1080,1],[1299,1,1300,1],[1301,1,1302,1],[1303,1,1304,1],[1305,1,1306,1],[1307,1,1308,1],[1309,1,1310,1],[1064,1,1066,1],[1073,1,1074,1],[1075,1,1076,1],[1077,1,1078,1],[1081,1,1082,1],[1084,1,1085,1],[1094,1,1095,1],[1145,1,1146,1],[1171,1,1172,1],[1169,1,1170,1],[1119,1,1121,1],[1124,1,1125,1],[1127,1,1128,1],[1132,1,1134,1],[1138,1,1139,1],[1141,1,1142,1],[1100,1,1102,1],[1150,1,1152,1],[1267,1,1268,1],[1271,1,1274,1],[1275,1,1277,1],[1278,1,1279,1],[1281,1,1282,1],[1284,1,1285,1],[1286,1,1288,1],[1291,1,1293,1],[1295,1,1296,1],[1332,1,1339,1],[1253,1,1254,1],[1311,1,1312,1],[1313,1,1314,1],[1316,1,1317,1],[1318,1,1319,1],[1320,1,1321,1],[1380,1,1389,1],[1351,1,1352,1],[1353,1,1354,1],[1356,1,1358,1],[1362,1,1363,1],[1367,1,1368,1],[1369,1,1371,1],[1375,1,1376,1],[1377,1,1379,1],[1322,1,1323,1],[1326,1,1331,1],[1340,1,1341,1],[1343,1,1346,1],[1347,1,1348,1],[1256,1,1257,1],[1258,1,1259,1],[1264,1,1265,1],[1416,1,1417,1],[1418,1,1419,1],[1423,1,1438,1],[1420,1,1422,1],[1440,1,1442,1],[1444,1,1446,1],[1454,1,1455,1],[1456,1,1457,1],[1394,1,1395,1],[1396,1,1397,1],[1398,1,1399,1],[1401,1,1402,1],[1403,1,1405,1],[1406,1,1407,1],[1412,1,1413,1],[1448,1,1453,1],[1528,1,1532,1],[1533,1,1535,1],[1536,1,1537,1],[1538,1,1543,1],[1549,1,1556,1],[1557,1,1558,1],[1496,1,1497,1],[1499,1,1500,1],[1501,1,1502,1],[1503,1,1504,1],[1512,1,1513,1],[1514,1,1515,1],[1519,1,1520,1],[1521,1,1526,1],[1545,1,1548,1],[1493,1,1494,1],[1459,1,1460,1],[1461,1,1462,1],[1465,1,1466,1],[1472,1,1473,1],[1474,1,1475,1],[1476,1,1477,1],[1478,1,1481,1],[1482,1,1488,1],[1490,1,1491,1],[1827,1,1830,1],[1817,1,1820,1],[1807,1,1811,1],[1847,1,1848,1],[1850,1,1851,1],[1858,1,1859,1],[1860,1,1861,1],[1862,1,1863,1],[1864,1,1865,1],[1815,1,1816,1],[1825,1,1826,1],[1702,1,1703,1],[1655,1,1656,1],[1657,1,1658,1],[1659,1,1660,1],[1661,1,1662,1],[1664,1,1666,1],[1668,1,1671,1],[1674,1,1676,1],[1679,1,1680,1],[68,6,69,6],[70,6,73,6],[70,1,73,1],[74,6,82,6],[83,3,83,6],[1866,1,1867,1],[271,6,286,6],[380,6,384,6],[287,6,296,6],[292,4,292,5],[297,6,329,6],[330,3,330,6],[358,3,358,6],[362,3,362,6],[363,6,365,6],[366,6,368,6],[372,6,375,6],[337,6,340,6],[341,6,343,6],[344,6,355,6],[1692,1,1693,1],[1695,1,1696,1],[1697,1,1698,1],[1700,1,1701,1]]}
[]
[null," Administrative Record Index "]
[null,"Center for Biological Diversity et al. v. County of Los Angeles et al.; Case No. 19STCP01610"]
[null,null,null,null,null,"Last Updated:","1/8/2020"]
[null,"No.","Document Name","Direct Link","First AR Page","Last AR Page","Number of Pages "]
[null,null,"TABLE OF CONTENTS"]
[null,null,"A. Notice of Determination"]
[null,null,"B. Resolutions and Ordinances"]
[null,null,"C. Findings and Statement of Overriding Considerations"]
[null,null,"D. EIR and CEQA Documents"]
[null,null,"E. Initial Study"]
[null,null,"F. Staff Reports"]
[null,null,"G. Transcripts and Minutes"]
[null,null,"H. Remainder of the Administrative Record"]
[null,null,"a. Project Documents"]
[null,null,"b. Emails"]
[]
[null,null,"(A) NOTICE OF DETERMINATION          "]
[null,"2019-04-04","Notice of Determination for State Clearinghouse Project 2015031080 for Project titled: NorthLake Specific Plan Project approved on 4/2/19 by the Los Angeles County Board of Supervisors, Filed on 4/3/19 and Certified by the Registrar-Recorder/County Clerk, Dean C. Logan",{"$f":"HYPERLINK(\"A. NOD/OCR-2019-04-04 Certified NorthLake NOD_recorded 4-4-19.pdf\", \"Link\")","v":"Link"},1,5,5]
[]
[null,null,"(B) RESOLUTIONS AND ORDINANCES          "]
[]
[]
[]
[null,null,"(C) FINDINGS AND STATEMENT OF OVERRIDING CONSIDERATIONS   "]
[null,"2018-04-19","Findings of the Regional Planning Commission, County of Los Angeles, Project No. R2015-00408-(5), Conditional Use Permit No. 201500019, included as attachment #3 for the 9/25/18 Board of Supervisors meeting",{"$f":"HYPERLINK(\"C. Findings and Statement/OCR-2018-04-19-1-BOS-Findings for 9-25-18 meeting as attachment3.pdf\", \"Link\")","v":"Link"},6,107,102]
[null,"2019-04-02","County of Los Angeles-Office of the County Counsel Letter to the Board of Supervisors regarding Project No. R2015-00408-(5), Vesting Tentative Tract Map No. 073335-(5) Fifth Supervisorial District/Three-Vote Matter and Finding and Conditons, stamped Adopted on 4/2/19 by Celia Zavala, Executive Officer. ",{"$f":"HYPERLINK(\"C. Findings and Statement/OCR-2019-04-02-2-BOS tr073335_Adopted-findings.pdf\", \"Link\")","v":"Link"},8,8,27]
[null,null,"Findings of the Board of Supervisors and Order Project No. R2015-00408-(5), Vesting Tentative Tract Map No. 073335-(5)",null,9,117]
[null,null,"Conditions of Approval-Project No. R2015-00408-(5), Vesting Tentative Tract Map No. 073335-(5)  and attachments below:",null,118,120]
[null,null,"     Attachment 1: Department of Public Works letter dated October 12, 2017",null,21,129]
[null,null,"     Attachment 2: Fire Department letter dated October 10, 2017",null,130,130]
[null,null,"     Attachment 3: Department of Parks and Recreation letter dated October 4, 2017 ",null,131,132]
[null,null,"     Attachment 4: Department of Public Health letter dated October 10, 2017",null,133,134]
[null,"2019-04-02","County of Los Angeles-Office of the County Counsel Letter to the Board of Supervisors regarding Project No. R2015-00408-(5), Vesting Tentative Tract Map No. 073336-(5) Fifth Supervisorial District/Three-Vote Matter and Finding and Conditons.",{"$f":"HYPERLINK(\"C. Findings and Statement/OCR-2019-04-02-4-BOS tr073336_Adopted-findings.pdf\", \"Link\")","v":"Link"},135,135,313]
[null,null,"Findings of the Board of Supervisors and Order Project No. R2015-00408-(5), Vesting Tentative Tract Map No. 073336-(5)",null,136,145]
[null,null,"Conditions of Approval-Project No. R2015-00408-(5), Vesting Tentative Tract Map No. 073336-(5)  and attachments below:",null,146,155]
[null,null,"     Attachment 1: Department of Public Works letter dated 10/11/17",null,156,173]
[null,null,"     Attachment 2: Fire Department letter dated 10/10/17",null,174,178]
[null,null,"     Attachment 3: Department of Parks and Recreation letter dated 10/19/17",null,179,189]
[null,null,"     Attachment 4: Department of Public Health letter dated 9/27/17",null,190,191]
[null,null,"     Attachment 5: Mitigation Monitoring and Reporting Program",null,192,229]
[null,null,"     Attachment 6: Findings of Fact and Statement of Overriding Considerations",null,230,447]
[null,"2019-04-02","County of Los Angeles-Office of the County Counsel Letter to the Board of Supervisors regarding Project No. R2015-00408-(5), Vesting Tentative Tract Map No. 073336-(5) Fifth Supervisorial District/Three-Vote Matter and Finding and Conditons, stamped Adopted on 4/2/19 by Celia Zavala, Executive Officer. ",{"$f":"HYPERLINK(\"C. Findings and Statement/OCR-2019-04-02-4-BOS tr073336_Adopted-findings.pdf\", \"Link\")","v":"Link"},448,760,313]
[null,"2019-04-02","County of Los Angeles-Office of the County Counsel Letter to the Board of Supervisors regarding Project No. R2015-00408-(5), Conditional Use Permit No. 2015-00019-5 Fifth Supervisorial District/Three-Vote Matter and Finding and Conditons.",{"$f":"HYPERLINK(\"C. Findings and Statement/OCR-2019-04-02-5-BOS CUP 2015-00019_approved_findings.pdf\", \"Link\")","v":"Link"},761,761,98]
[null,null,"Findings of the Board of Supervisors and Order Project No. R2015-00408-(5), Conditional Use Permit No. 2015-00019-5",null,762,770]
[null,null,"Conditions of Approval-County of Los Angeles: Project No. R2015-00408-(5), Conditional Use Permit No. 2015-00019-5 and attachments below:",null,771,784]
[null,null,"     Attachment 1: Department of Public Works letter dated 10/11/17",null,785,802]
[null,null,"     Attachment 2: Fire Department letter dated 10/10/17",null,803,807]
[null,null,"     Attachment 3: Department of Parks and Recreation letter dated 10/19/17",null,808,818]
[null,null,"     Attachment 4: Department of Public Health letter dated 9/27/17",null,819,820]
[null,null,"     Attachment 5: Mitigation Monitoring and Reporting Program",null,821,858]
[null,"2019-04-02","County of Los Angeles-Office of the County Counsel Letter to the Board of Supervisors regarding Project No. R2015-00408-(5), Conditional Use Permit No. 2015-00019-5 Fifth Supervisorial District/Three-Vote Matter and Finding and Conditons, stamped Adopted on 4/2/19 by Celia Zavala, Executive Officer. ",{"$f":"HYPERLINK(\"C. Findings and Statement/OCR-2019-04-02-6-BOS CUP 2015-00019_Adopted_findings.pdf\", \"Link\")","v":"Link"},859,956,98]
[null,null,"(D) ENVIRONMENTAL IMPACT REPORTS AND CEQA DOCUMENTS    "]
[null,"1992-06-01","Northlake Specific Plan-Preliminary Draft Environmental Impact Report: County of Los Angeles Department of Regional Planning, County Case Number 87-172",{"$f":"HYPERLINK(\"D. EIR, DEIR and CEQA Related/OCR-1992-06 Northlake Preliminary Draft Environmental Impact Report.pdf\", \"Link\")","v":"Link"},957,1120,409]
[null,null,"Appendix A - Initial Study Determination",null,1121,1152]
[null,null,"Appendix B - County Agency Comments",null,1153,1173]
[null,null,"Appendix C - State Agency Comments",null,1174,1191]
[null,null,"Appendix D - Water Quality Study",null,1192,1200]
[null,null,"       Appendix 1: Letter from Gary L. Faulconer, State of CA. Department of Water Resources,            regarding sample results of a developed spring in Grasshopper Canyon",null,1201,1205]
[null,null,"       Appendix 2: Water Analysis (Mineral)",null,1206,1208]
[null,null,"       Appendix 3: Seasonal Precipitation 1979-1980",null,1209,1210]
[null,null,"       Appendix 4: Waste water effluent",null,1211,1236]
[null,null,"Appendix E - Biota Study",null,1237,1264]
[null,null,"Appendix F - Traffic Study (October 1991)",null,1265,1312]
[null,null,"       Appendix 1: Phase 1: Traffic volumes and Recommended Improvements",null,1313,1322]
[null,null,"       Appendix 2: Phase 2: Traffic volumes and Recommended Improvements",null,1323,1336]
[null,null,"       Appendix 3: Phase 3: Traffic volumes and Recommended Improvements",null,1337,1350]
[null,null,"       Appendix 4: Phase 4: Traffic volumes and Recommended Improvements",null,1351,1365]
[null,"1992-06-01","Northlake Specific Plan-County of Los Angeles Department of Regional Planning, County Case Number 87-172",{"$f":"HYPERLINK(\"D. EIR, DEIR and CEQA Related/OCR-1992-06 Northlake Specific Plan.pdf\", \"Link\")","v":"Link"},1366,1630,267]
[null,null,"Appendix A - Related Projects List",null,1631,1632]
[null,"1992-10-01","Northlake Specific Plan-Preliminary Final Environmental Impact Report: County of Los Angeles Department of Regional Planning, County Case Number 87-172",{"$f":"HYPERLINK(\"D. EIR, DEIR and CEQA Related/OCR-1992-10 Northlake Final Environmental Impact Report.pdf\", \"Link\")","v":"Link"},1633,1692,70]
[null,null,"Appendix A - Notice of Completion of Draft Environmental Impact Report and Request for Comments Project 87172, NorthLake Specific Plan SCH No 88071329, Dated 7/27/92",null,1693,1695]
[null,null,"Appendix B - County Agency Comments dated 9/15/92",null,1696,1698]
[null,null,"Appendix C - State Agency Comments and Potential Policies and Implementation Strategies for a Specific Plan",null,1699,1702]
[null,"2017-05-01","NorthLake Specific Plan Project-Draft Supplemental Environmental Impact Report by Lead Agency: County of Los Angeles",{"$f":"HYPERLINK(\"D. EIR, DEIR and CEQA Related/OCR-2017-05 Draft seir.pdf\", \"Link\")","v":"Link"},1703,1724,742]
[null,null,"Section 1.0 - Executive Summary",null,1725,1794]
[null,null,"Section 2.0 - Introduction",null,1795,1806]
[null,null,"Section 3.0 - Environmental Setting",null,1807,1817]
[null,null,"Section 4.0 - Project Description",null,1818,1852]
[null,null,"Section 5.0 - Environmental Analysis",null,1853,2396]
[null,null,"Section 6.0 - Alternatives to the Proposed Project",null,2397,2424]
[null,null,"Section 7.0 - Other CEQA Topics",null,2425,2440]
[null,null,"Section 8.0 - List of EIR Preparers and Contributors",null,2441,2444]
[null,null,"Appendices:"]
[null,null,"Appendix A - Initial Study and NOP, NOP Comments, and Scoping Items",{"$f":"HYPERLINK(\"D. EIR, DEIR and CEQA Related/OCR-2017-05 Draft seir-appendix-A.pdf\", \"Link\")","v":"Link"},2445,2673,229]
[null,null,"Appendix B - NorthLake Specific Plan",{"$f":"HYPERLINK(\"D. EIR, DEIR and CEQA Related/OCR-2017-05 Draft seir-appendix-B.pdf\", \"Link\")","v":"Link"},2674,2872,199]
[null,null,"Appendix C -Part 1-Air Quality Appendices, dated 3/3/17",{"$f":"HYPERLINK(\"D. EIR, DEIR and CEQA Related/OCR-2017-05 Draft seir-appendix-C.pdf\", \"Link\")","v":"Link"},2873,3540,738]
[null,null," Appendix C-Part 2-Health Risk Assessment (HRA), dated 3/6/17",null,3541,3572]
[null,null,"       HRA Appendix A: AERMOD Model Phase 1 Cancer Risk Printouts",null,3573,3578]
[null,null,"       HRA Appendix B: AERMOD Model Phase 2 Cancer Risk Printouts",null,3579,3583]
[null,null,"       HRA Appendix C: AERMOD Model NO2 Printouts",null,3584,3590]
[null,null,"       HRA Appendix D: AERMOD Model CO Printouts",null,3591,3597]
[null,null,"       HRA Appendix E: AERMOD Model PM10 Printouts",null,3598,3604]
[null,null,"       HRA Appendix F: AERMOD Model PM2.5 Printouts",null,3605,3610]
[null,null,"Appendix D - Biological Technical Report",{"$f":"HYPERLINK(\"D. EIR, DEIR and CEQA Related/OCR-2017-05 Draft seir-appendix-D.pdf\", \"Link\")","v":"Link"},3611,3717,539]
[null,null,"       Attachment A: Plant and Wildlife Compendia",null,3718,3732]
[null,null,"       Attachment B: Special Status Plant Species",null,3733,3814]
[null,null,"       Attachment C: Fairy Shrimp",null,3815,3883]
[null,null,"       Attachment D: Arroyo Toad and Western Spadefoot",null,3884,3911]
[null,null,"       Attachment E: California Red-Legged Frog",null,3912,3939]
[null,null,"       Attachment F: Burrowing Owl",null,3940,3970]
[null,null,"       Attachment G: Southwestern Willo Flycatcher and Least Bell's Vireo ",null,3971,4081]
[null,null,"       Attachment H: Coastal California Gnatcatcher",null,4082,4127]
[null,null,"       Attachment I: Nesting Raptors",null,4128,4139]
[null,null,"       Attachment J: Jurisdictional Delineation",null,4140,4149]
[null,null,"Appendix E - Phase I Cultural Resources Assessment, 2/3/15",{"$f":"HYPERLINK(\"D. EIR, DEIR and CEQA Related/OCR-2017-05 Draft seir-appendix-E.pdf\", \"Link\")","v":"Link"},4150,4183,119]
[null,null,"       Appendix A: Cultural Resources Records Search (SCCIC)",null,4184,4188]
[null,null,"       Appendix B: Native American Consultation (NAHC)",null,4189,4215]
[null,null,"       Appendix C: Historic Resource Evaluation",null,4216,4222]
[null,null,"       Appendix D: Site Records – Confidential (Bound Separately)",null,4223,4223]
[null,null,"       Appendix E: State Historic Preservation Officer Letter",null,4224,4225]
[null,null,"Appendix E - Phase I Paleontological Resources Assessment, dated 10/2014",null,4226,4248]
[null,null,"       Appendix A: Paleontological Resources Records Search (LACM)",null,4249,4251]
[null,null,"       Appendix B: Personnel Qualifications",null,4252,4254]
[null,null,"       Appendix C: Paleontological Site Record Forms",null,4255,4268]
[null,null,"Appendix F - Geotechnical Report",{"$f":"HYPERLINK(\"D. EIR, DEIR and CEQA Related/OCR-2017-05 Draft seir-appendix-F.pdf\", \"Link\")","v":"Link"},4269,4331,835]
[null,null,"       Appendix A: Response to LACDPW Comments",null,4332,4346]
[null,null,"       Appendix B: Geotechnical Boring Logs",null,4347,4578]
[null,null,"       Appendix C: Exploratory Pit and Trench Logs",null,4579,4667]
[null,null,"       Appendix D: Laboratory Test Results by Others",null,4668,4678]
[null,null,"       Appendix E: Preliminary Tie-back Anchor Capacities",null,4679,4681]
[null,null,"       Appendix F: Slope Stability Analyses",null,4682,5014]
[null,null,"       Appendix G: Cross-sections",null,5015,5018]
[null,null,"          Plates 1 through 6-: Geotechnical Maps",null,5019,5024]
[null,null,"          Plates 7.1 through 7.3-: Graphic Boring Logs",null,5025,5027]
[null,null,"          Plate 8 - Seismic Velocity Logs ",null,5028,5103]
[null,null,"Letter from Daniel J. Morikawa, Richard H. Spindler and Adam C. Rich, G3SoilWorks, Inc. to Jeremy Wan and Geir Mathisen, County of Los Angeles-Geotechnical and Materials Engineering Division, regarding Response to Geologic and Soils Engineering Review Sheet-Tentative Tract 73336, Northlake, dated April 18, 2016",null,5029,5034]
[null,null,"             Appendix A: County of Los Angeles Review Comments ",null,5035,5036]
[null,null,"             Appendix B: Slope stability analyses ",null,5037,5080]
[null,null,"             Geotechnical Map Sheets 1 – 6 ",null,5081,5086]
[null,null,"             Geotechnical Cross-Sections 10A-10A’ and 17A-17A’",null,5087]
[null,null,"Letter from Daniel J. Morikawa, Richard H. Spindler and Adam C. Rich, G3SoilWorks, Inc. to Jeremy Wan and Geir Mathisen, County of Los Angeles-Geotechnical and Materials Engineering Division, regarding Response to Geologic and Soils Engineering Review Sheet-Tentative Tract 73336, Northlake, dated May 19, 2016",null,5088,5091]
[null,null,"             Appendix A: County of Los Angeles Review Comments ",null,5092,5093]
[null,null,"             Appendix B: Slope stability analyses ",null,5094,5101]
[null,null,"             Cross-section 1 OA-1 OA' - excerpted from Plate 7",null,5102,5102]
[null,null,"             Plate 2 of the Geotechnical Maps",null,5103,5103]
[null,null,"Appendix G - Greenhouse Gas Report",{"$f":"HYPERLINK(\"D. EIR, DEIR and CEQA Related/OCR-2017-05 Draft seir-appendix-G.pdf\", \"Link\")","v":"Link"},5104,5146,226]
[null,null,"       Appendix A: CalEEModTM Run Outputs",null,5147,5329]
[null,null,"Appendix H1 - Drainage Concept Report",{"$f":"HYPERLINK(\"D. EIR, DEIR and CEQA Related/OCR-2017-05 Draft seir-appendix-H1.pdf\", \"Link\")","v":"Link"},5330,6708,1380]
[null,null,"Appendix: Northlake Specific Plan and VTTM No. 073336 Low Impact Development Plan, by Geosyntec Consultants, Feb. 2016",null,6709,6709]
[null,null,"Appendix H2 - Water Quality Technical Report",{"$f":"HYPERLINK(\"D. EIR, DEIR and CEQA Related/OCR-2017-05 Draft seir-appendix-H2.pdf\", \"Link\")","v":"Link"},6710,6876,341]
[null,null,"     Appendix A: Pollutants of Concern and Significance Criteria",null,6877,6887]
[null,null,"     Appendix B: Modeling Parameters & Methodology",null,6888,6946]
[null,null,"     Appendix C: Hydromodification Control Technical Report",null,6947,7050]
[null,null,"Appendix I - Noise Monitoring Data",{"$f":"HYPERLINK(\"D. EIR, DEIR and CEQA Related/OCR-2017-05 Draft seir-appendix-I.pdf\", \"Link\")","v":"Link"},7051,7058,8]
[null,null,"Appendix J - Traffic Impact Analysis (TIA) and Traffic Memo",{"$f":"HYPERLINK(\"D. EIR, DEIR and CEQA Related/OCR-2017-05 Draft seir-appendix-J.pdf\", \"Link\")","v":"Link"},7059,7148,173]
[null,null,"     TIA Appendix A: ICU Worksheet off Site ",null,7149,7171]
[null,null,"     TIA Appendix B: ICU Worksheet on Site ",null,7172,7176]
[null,null,"     TIA Appendix C: Traffic Count Worksheets",null,7177,7217]
[null,null,"     TIA Appendix D: Concept Mitigation Plan",null,7218,7221]
[null,null,"     TIA Appendix E: HCM Worksheets",null,7222,7231]
[null,null,"Appendix K - Hydraulic Analysis, Water Supply Assessment, Sewer Area Study Report, and Sewer Area Study Map",{"$f":"HYPERLINK(\"D. EIR, DEIR and CEQA Related/OCR-2017-05 Draft seir-appendix-K.pdf\", \"Link\")","v":"Link"},7232,7322,91]
[null,null,"Appendix L - Draft Mitigation Monitoring and Reporting Plan",{"$f":"HYPERLINK(\"D. EIR, DEIR and CEQA Related/OCR-2017-05 Draft seir-appendix-l.pdf\", \"Link\")","v":"Link"},7323,7361,39]
[null,"2018-01-01","NorthLake Specific Plan Project-Final Supplemental Environmental Impact Report by Lead Agency: County of Los Angeles",{"$f":"HYPERLINK(\"D. EIR, DEIR and CEQA Related/OCR-2018-01 Final seir.pdf\", \"Link\")","v":"Link"},7362,7365,387]
[null,null,"Section 1.0 - Introduction",null,7366,7369]
[null,null,"Section 2.0 - Responses to Comments",null,7370,7686]
[null,null,"Section 3.0 - Draft EIR Clarifications and Revisions",null,7687,7748]
[null,null,"Appendices:"]
[null,null,"Appendix A - Oil Line Relocation Plan",{"$f":"HYPERLINK(\"D. EIR, DEIR and CEQA Related/OCR-2018-01 Final seir-appendix A.pdf\", \"Link\")","v":"Link"},7749,7750,2]
[null,null,"Appendix B - Biological Resources Downstream Impacts Assessment",{"$f":"HYPERLINK(\"D. EIR, DEIR and CEQA Related/OCR-2018-01 Final seir-appendix B.pdf\", \"Link\")","v":"Link"},7751,7765,20]
[null,null,"     Attachment A: Site Photographs",null,7766,7770]
[null,null,"Appendix C - Biological Resources Plans",{"$f":"HYPERLINK(\"D. EIR, DEIR and CEQA Related/OCR-2018-01 Final seir-appendix C.pdf\", \"Link\")","v":"Link"},7771,7815,76]
[null,null,"     Exhibit 1: Regional Location Map",null,7776,7776]
[null,null,"     Exhibit 2: Project Location Map",null,7777,7777]
[null,null,"     Exhibit 3: Mitigation Site Map",null,7780,7780]
[null,null,"     Exhibit 4: Photographic Documentation of Proposed Mitigation Site",null,7785,7785]
[null,null,"     Attachment A: Avian Compendium",null,7816,7846]
[null,null,"Appendix D - Wildlife Crossing Assessment Memo",{"$f":"HYPERLINK(\"D. EIR, DEIR and CEQA Related/OCR-2018-01 Final seir-appendix D.pdf\", \"Link\")","v":"Link"},7847,7850,13]
[null,null,"     Exhibit 1: Regional and Local Vicinity Map",null,7851,7851]
[null,null,"     Exhibit 2: Undercrossing Location Map",null,7852,7852]
[null,null,"     Attachment A: Representative Site Photographs",null,7853,7859]
[null,null,"Appendix E - Modified Special Status Biological Resources Exhibit",{"$f":"HYPERLINK(\"D. EIR, DEIR and CEQA Related/OCR-2018-01 Final seir-appendix E.pdf\", \"Link\")","v":"Link"},7860,7861,2]
[null,null,"Appendix F - Phase 1 Environmental Site Assessment",{"$f":"HYPERLINK(\"D. EIR, DEIR and CEQA Related/OCR-2018-01 Final seir-appendix F.pdf\", \"Link\")","v":"Link"},7862,7892,309]
[null,null,"     Appendix A: Site Vicinity Map",null,7893,7894]
[null,null,"     Appendix B: Site Plan",null,7895,7896]
[null,null,"     Appendix C: Site Photographs",null,7897,7904]
[null,null,"     Appendix D: User Provided Documentation",null,7905,7909]
[null,null,"     Appendix E: Regulatory Database Report",null,7910,7999]
[null,null,"     Appendix F: Aerial Photographs",null,8000,8028]
[null,null,"     Appendix G: Historical Research Documentation (Not included)",null,8029,8030]
[null,null,"     Appendix H: Prior Reports",null,8031,8127]
[null,null,"     Appendix I:  Resumes",null,8128,8138]
[null,null,"     Appendix J: Records of Communication",null,8139,8154]
[null,null,"     Appendix K: Laboratory Reports (Not included)",null,8155,8156]
[null,null,"     Appendix L: Other Supporting Documentation",null,8157,8168]
[null,null,"     Appendix M:Terminology",null,8169,8170]
[null,null,"Appendix G - Supplemental Traffic Analysis",{"$f":"HYPERLINK(\"D. EIR, DEIR and CEQA Related/OCR-2018-01 Final seir-appendix G.pdf\", \"Link\")","v":"Link"},8171,8255,85]
[null,null,"Appendix H - View Simulations",{"$f":"HYPERLINK(\"D. EIR, DEIR and CEQA Related/OCR-2018-01 Final seir-appendix H.pdf\", \"Link\")","v":"Link"},8256,8262,7]
[null,null,"Appendix I - Public Transit Section",{"$f":"HYPERLINK(\"D. EIR, DEIR and CEQA Related/OCR-2018-01 Final seir-appendix I.pdf\", \"Link\")","v":"Link"},8263,8265,3]
[null,null,"Appendix J - Supplemental GHG Table",{"$f":"HYPERLINK(\"D. EIR, DEIR and CEQA Related/OCR-2018-01 Final seir-appendix J.pdf\", \"Link\")","v":"Link"},8266,8269,4]
[null,null,"Appendix K- LID Report",{"$f":"HYPERLINK(\"D. EIR, DEIR and CEQA Related/OCR-2018-01 Final seir-appendix K.pdf\", \"Link\")","v":"Link"},8270,8294,59]
[null,null,"Appendix A: Frequency Analysis for Phase 1 of the NorthLake Specific Plan – Grasshopper\nCreek",null,8295,8307]
[null,null,"     Appendix B: NorthLake Basis for Low Flow Threshold in Grasshopper Creek",null,8308,8325]
[null,null,"     Appendix C: Watershed Maps for Marple and Castaic Creeks",null,8326,8328]
[null,"2018-02-15","Errata to the NorthLake Final Supplemental Environmental Impact Report, NorthLake Specific Plan, Los Angeles County, California-SCH No. 2015031080",{"$f":"HYPERLINK(\"D. EIR, DEIR and CEQA Related/OCR-2018-02-15-Errata provided at RPC Meeting.pdf\", \"Link\")","v":"Link"},8329,8331,3]
[null,"2018-04-05","First Errata to the NorthLake Final Supplemental Environmental Impact Report, NorthLake Specific Plan, Los Angeles County, California-SCH No. 2015031080",{"$f":"HYPERLINK(\"D. EIR, DEIR and CEQA Related/OCR-2018-04-05 Errata provided at RPC mtg.pdf\", \"Link\")","v":"Link"},8332,8344,13]
[null,"2018-08-28","Second Errata to the NorthLake Final Supplemental Environmental Impact Report, NorthLake Specific Plan, Los Angeles County, California-SCH No. 2015031080",{"$f":"HYPERLINK(\"D. EIR, DEIR and CEQA Related/OCR-2018-08-28 Second Errata to Supp. EIR.pdf\", \"Link\")","v":"Link"},8345,8350,394]
[null,null,"   Attachment A: 2014-2015 Wet Season Fairy Shrimp Survey Report",null,8351,8383]
[null,null,"   Attachment B: Feasibility Analysis of NorthLake Biological Mitigation Requirements",null,8384,8417]
[null,null,"   Attachment C: Resumes of Senior Biological Resources Contributors",null,8418,8466]
[null,null,"   Attachment D: Recent eBird Record for California Condor",null,8467,8469]
[null,null,"   Attachment E: Health Risk Assessment, dated 8/2018",null,8470,8738]
[]
[null,null,"(E) INITIAL STUDY"]
[null,"2015-03-24","Letter from Kim K. Szalay, Principal Planner-Special Projects Section, to Los Angeles County agencies regarding Notice of Preparation of a Draft Environmental Impact Report in Compliance with Title 14, section 15082(a) of the California Code of Regulations",{"$f":"HYPERLINK(\"E. Initial Study/OCR-2015-03-24 NOP-and Initial Study for tr073336.pdf\", \"Link\")","v":"Link"},8739,8739,87]
[null,null,"NorthLake Project No. R2015-00408-(5): Vesting Tentative Tract Map No. TR073336 , Conditional Use Permit No. 201500019, Environmental Review No. 201500030-Notice of Preparation of a Draft Environmental Impact Report and Public Scoping Meeting",null,8740,8744]
[null,null,"     Attachment A: Expanded Project Description",null,8745,8752]
[null,null,"          Environmental Checklist Form (Initial Study) for Northlake Project, signed 3/18/15",null,8753,8825]
[]
[]
[null,null,"(F) STAFF REPORTS"]
[null,"2015-03-26","County of Los Angeles-Department of Regional Planning: Subdivision Committee Meeting Review"]
[null,null,"Fire Prevention Division Report for Project TR 73336, dated 3/19/15",{"$f":"HYPERLINK(\"F. Staff Reports/OCR-2015-03-26 SCR Fire report.pdf\", \"Link\")","v":"Link"},8826,8827,2]
[null,null,"Department of Parks and Recreation for Project TR 73336, dated 3/17/15",{"$f":"HYPERLINK(\"F. Staff Reports/OCR-2015-03-26 SCR Parks report.pdf\", \"Link\")","v":"Link"},8828,8838,11]
[null,null,"Public Health Report for Project TR 73336, dated 2/27/15",{"$f":"HYPERLINK(\"F. Staff Reports/OCR-2015-03-26 SCR Public Health report.pdf\", \"Link\")","v":"Link"},8839,8839,1]
[null,null,"Department of Public Works-Land Development- Sub Division Report, dated 3/16/15",{"$f":"HYPERLINK(\"F. Staff Reports/OCR-2015-03-26 SCR Public works report.pdf\", \"Link\")","v":"Link"},8840,8867,28]
[null,null,"Regional Planning Report, dated 3/17/15",{"$f":"HYPERLINK(\"F. Staff Reports/OCR-2015-03-26 SCR Regional Planning report.pdf\", \"Link\")","v":"Link"},8868,8873,6]
[null,null,"Major Subdivision: Vesting Tentative Tract Map No. TR 73336, pages 1-12, received by Department of Regional Planning on 2/17/15",{"$f":"HYPERLINK(\"F. Staff Reports/OCR-2015-03-26 SCR TTM.pdf\", \"Link\")","v":"Link"},8874,8885,12]
[null,null,"Vesting Tentative Tract Map No. TR 73336, Exhibit A 2015-0408, pages 1-8, received by Department of Regional Planning on  2/17/15",{"$f":"HYPERLINK(\"F. Staff Reports/OCR-2015-03-26 SCR TTM_Exhibit tr073336.pdf\", \"Link\")","v":"Link"},8886,8893,8]
[null,"2015-07-16","County of Los Angeles-Department of Regional Planning: Subdivision Committee Meeting Review"]
[null,null,"Subdivision Committee Report for Project TR 73336, dated 7/1/15",{"$f":"HYPERLINK(\"F. Staff Reports/OCR-2015-07-16 SCR-1-DRP SCM.pdf\", \"Link\")","v":"Link"},8894,8899,6]
[null,null,"Draft Conditions of Approval-Department of Regional Planning for Vesting Tentative Tract Map No. 73336, (Tentative and Exhibit Map date: 6/2/15) for Project No. R2015-00408-(5) dated 6/25/15",{"$f":"HYPERLINK(\"F. Staff Reports/OCR-2015-07-16 SCR-2-DRP vttm-conditions.pdf\", \"Link\")","v":"Link"},8900,8906,7]
[null,null,"Department of Public Works-Land Development- Sub Division Report, dated 7/2/15",{"$f":"HYPERLINK(\"F. Staff Reports/OCR-2015-07-16 SCR-3-DPW report.pdf\", \"Link\")","v":"Link"},8907,8920,14]
[null,null,"Fire Prevention Division Report for Project TR 73336, dated 7/1/15",{"$f":"HYPERLINK(\"F. Staff Reports/OCR-2015-07-16 SCR-4-Fire report.pdf\", \"Link\")","v":"Link"},8921,8925,5]
[null,null,"Department of Parks and Recreation for Project TR 73336, dated 7/1/15",{"$f":"HYPERLINK(\"F. Staff Reports/OCR-2015-07-16 SCR-5-Parks report.pdf\", \"Link\")","v":"Link"},8926,8934,9]
[null,null,"Public Health Report for Project TR 73336, dated 6/25/15",{"$f":"HYPERLINK(\"F. Staff Reports/OCR-2015-07-16 SCR-6-Public Health report.pdf\", \"Link\")","v":"Link"},8935,8935,1]
[null,null,"Major Subdivision: Vesting Tentative Tract Map No. TR 73336, pages 1-15, received by Department of Regional Planning on 6/2/15, last revised on 6/1/15",{"$f":"HYPERLINK(\"F. Staff Reports/OCR-2015-07-16 SCR-7-TTM.pdf\", \"Link\")","v":"Link"},8936,8950,15]
[null,null,"Vesting Tentative Tract Map No. TR 73336, Exhibit A 2015-0408, pages 1-12, received by Department of Regional Planning on  6/2/15, last revised on 6/1/15",{"$f":"HYPERLINK(\"F. Staff Reports/OCR-2015-07-16 SCR-8- TTM_exhibit 073336.pdf\", \"Link\")","v":"Link"},8951,8960,10]
[null,"2015-10-22","County of Los Angeles-Department of Regional Planning: Subdivision Committee Meeting Review"]
[null,null,"Fire Prevention Division Report for Project TR 73336, dated 10/14/15",{"$f":"HYPERLINK(\"F. Staff Reports/OCR-2015-10-22 SCR Fire report.pdf\", \"Link\")","v":"Link"},8961,8965,5]
[null,null,"Department of Parks and Recreation for Project TR 73336, dated 10/13/15",{"$f":"HYPERLINK(\"F. Staff Reports/OCR-2015-10-22 SCR Parks report.pdf\", \"Link\")","v":"Link"},8966,8975,10]
[null,null,"Public Health Report for Project TR 73336, dated 10/9/15",{"$f":"HYPERLINK(\"F. Staff Reports/OCR-2015-10-22 SCR Public Health report.pdf\", \"Link\")","v":"Link"},8976,8976,1]
[null,null,"Department of Public Works-Land Development- Sub Division Report, dated 10/14/15",{"$f":"HYPERLINK(\"F. Staff Reports/OCR-2015-10-22 SCR Public works report.pdf\", \"Link\")","v":"Link"},8977,9003,27]
[null,null,"Regional Planning Report, dated 10/7/15",{"$f":"HYPERLINK(\"F. Staff Reports/OCR-2015-10-22 SCR Regional Planning report.pdf\", \"Link\")","v":"Link"},9004,9008,5]
[null,null,"Major Subdivision: Vesting Tentative Tract Map No. TR 73336, pages 1-16, received by Department of Regional Planning on 9/15/15, last revised on 9/9/15",{"$f":"HYPERLINK(\"F. Staff Reports/OCR-2015-10-22 SCR TTM 073336-20150915.pdf\", \"Link\")","v":"Link"},9009,9024,16]
[null,null,"Vesting Tentative Tract Map No. TR 73336, Exhibit A 2015-0408, pages 1-10, received by Department of Regional Planning on  9/15/15, last revised on 9/9/15",{"$f":"HYPERLINK(\"F. Staff Reports/OCR-2015-10-22 SCR TTM-Exhibit 073336-20150915.pdf\", \"Link\")","v":"Link"},9025,9034,10]
[null,"2016-07-21","County of Los Angeles-Department of Regional Planning: Subdivision Committee Meeting Review"]
[null,null,"Fire Prevention Division Report for Project TR 73336, dated 7/12/16",{"$f":"HYPERLINK(\"F. Staff Reports/OCR-2016-07-21 SCR Fire report.pdf\", \"Link\")","v":"Link"},9035,9039,5]
[null,null,"Department of Parks and Recreation for Project TR 73336, dated 7/12/16",{"$f":"HYPERLINK(\"F. Staff Reports/OCR-2016-07-21 SCR Parks report.pdf\", \"Link\")","v":"Link"},9040,9048,9]
[null,null,"Public Health Report for Project TR 73336, dated 7/11/16",{"$f":"HYPERLINK(\"F. Staff Reports/OCR-2016-07-21 SCR Public Health report.pdf\", \"Link\")","v":"Link"},9049,9049,1]
[null,null,"Department of Public Works-Land Development- Sub Division Report, dated 7/13/16",{"$f":"HYPERLINK(\"F. Staff Reports/OCR-2016-07-21 SCR Public works report.pdf\", \"Link\")","v":"Link"},9050,9074,25]
[null,null,"Regional Planning Report, dated 7/14/16",{"$f":"HYPERLINK(\"F. Staff Reports/OCR-2016-07-21 SCR Regional Planning report.pdf\", \"Link\")","v":"Link"},9075,9078,4]
[null,null,"Major Subdivision: Vesting Tentative Tract Map No. TR 73336, pages 1-16, received by Department of Regional Planning on 6/15/16, last revised on 6/6/16",{"$f":"HYPERLINK(\"F. Staff Reports/OCR-2016-07-21 SCR TTM 073336-20160615.pdf\", \"Link\")","v":"Link"},9079,9094,16]
[null,"2016-11-03","County of Los Angeles-Department of Regional Planning: Subdivision Committee Meeting Review"]
[null,null,"Subdivision Committee Report for Project TR 73336, dated 10/27/16",{"$f":"HYPERLINK(\"F. Staff Reports/OCR-2016-11-03 SCR-1-SCM-report.pdf\", \"Link\")","v":"Link"},9095,9098,4]
[null,null,"Fire Prevention Division Report for Project TR 73336, dated 10/25/16",{"$f":"HYPERLINK(\"F. Staff Reports/OCR-2016-11-03 SCR-2-Fire Report.pdf\", \"Link\")","v":"Link"},9099,9103,5]
[null,null,"Department of Parks and Recreation for Project TR 73336, dated 10/17/16",{"$f":"HYPERLINK(\"F. Staff Reports/OCR-2016-11-03 SCR-3-Parks Report.pdf\", \"Link\")","v":"Link"},9104,9112,9]
[null,null,"Public Health Report for Project TR 73336, dated 10/24/16",{"$f":"HYPERLINK(\"F. Staff Reports/OCR-2016-11-03 SCR-4-Public Health Report.pdf\", \"Link\")","v":"Link"},9113,9113,1]
[null,null,"Department of Public Works-Land Development- Sub Division Report, dated 10/26/16",{"$f":"HYPERLINK(\"F. Staff Reports/OCR-2016-11-03 SCR-5-Public works Report.pdf\", \"Link\")","v":"Link"},9114,9131,18]
[null,null,"Major Land Division: Vesting Tentative Tract Map No. TR 73336, pages 1-16, received by Department of Regional Planning on 9/28/16, last revised on 9/27/16",{"$f":"HYPERLINK(\"F. Staff Reports/OCR-2016-11-03 SCR-6-TTM 073336 tract-20160928.pdf\", \"Link\")","v":"Link"},9132,9147,16]
[null,null,"Vesting Tentative Tract Map No. TR 73336, Exhibit A 2015-0408, pages 1-12, received by Department of Regional Planning on  9/28/16, last revised on 9/27/16",{"$f":"HYPERLINK(\"F. Staff Reports/OCR-2016-11-03 SCR-7-TTM Exhibit Map 073336-20160928.pdf\", \"Link\")","v":"Link"},9148,9159,12]
[null,"2017-05-24","Los Angeles County-Department of Regional Planning -Hearing Examiner Staff Summary for \"Northlake Specific Plan Project\": Project No. R2015-00408-(5), Vesting Tentative Tract Map No. TR073336, Conditional Use Permit No. 201500019, Environmental Review 201500030, and State Clearinghouse No. 2015031080, dated 5/4/17",{"$f":"HYPERLINK(\"F. Staff Reports/OCR-2017-05-24 RPC-1-staff-report.pdf\", \"Link\")","v":"Link"},9160,9166,7]
[null,null,"Notice of Hearing Examiner Public hearing and Notice of Completion and Availability of Draft Supplemental Environmental Impact Report for Northlake Specific Plan Project: County Project No. R2015-00408-(5), Vesting Tentative Tract Map No. TR073336, Conditional Use Permit No. 201500019, Environmental Review 201500030, and State Clearinghouse No. 2015031080",{"$f":"HYPERLINK(\"F. Staff Reports/OCR-2017-05-24 RPC-2-hearing-notice.pdf\", \"Link\")","v":"Link"},9167,9169,3]
[null,"2017-10-19","County of Los Angeles-Department of Regional Planning: Subdivision Committee Review/Reports Only "]
[null,null,"Subdivision Committee Report for Project TR 73336, dated 10/10/17",{"$f":"HYPERLINK(\"F. Staff Reports/OCR-2017-10-19 SCR -1-SCM-report.pdf\", \"Link\")","v":"Link"},9170,9173,4]
[null,null,"Fire Prevention Division Report for Project TR 73336, dated 10/10/17",{"$f":"HYPERLINK(\"F. Staff Reports/OCR-2017-10-19 SCR -2-Fire Report.pdf\", \"Link\")","v":"Link"},9174,9178,5]
[null,null,"Department of Parks and Recreation for Project TR 73336, dated 10/19/17",{"$f":"HYPERLINK(\"F. Staff Reports/OCR-2017-10-19 SCR -3-Parks Report.pdf\", \"Link\")","v":"Link"},9179,9189,11]
[null,null,"Public Health Report for Project TR 73336, dated 9/27/17",{"$f":"HYPERLINK(\"F. Staff Reports/OCR-2017-10-19 SCR -4-Public Health Report.pdf\", \"Link\")","v":"Link"},9190,9191,2]
[null,null,"Department of Public Works-Land Development- Sub Division Report, dated 10/11/17",{"$f":"HYPERLINK(\"F. Staff Reports/OCR-2017-10-19 SCR -5-Public works Report.pdf\", \"Link\")","v":"Link"},9192,9209,18]
[null,null,"Major Land Division: Vesting Tentative Tract Map No. TR 73336, pages 1-16, received by Department of Regional Planning on 9/13/17, last revised on 6/27/17",{"$f":"HYPERLINK(\"F. Staff Reports/OCR-2017-10-19 SCR -6-TTM 073336 tract 20170913.pdf\", \"Link\")","v":"Link"},9210,9225,16]
[null,null,"Vesting Tentative Tract Map No. TR 73336, Exhibit A 2015-0408, pages 1-12, received by Department of Regional Planning on 9/13/17, last revised on 6/27/17",{"$f":"HYPERLINK(\"F. Staff Reports/OCR-2017-10-19 SCR -7-Exhibit Map 073336-20170913.pdf\", \"Link\")","v":"Link"},9226,9237,12]
[null,"2017-12-13","County of Los Angeles-Regional Planning Commission-Meeting Agenda",{"$f":"HYPERLINK(\"F. Staff Reports/OCR-2017-12-13-RPC-agenda.pdf\", \"Link\")","v":"Link"},9238,9240,3]
[null,"2017-12-13","County of Los Angeles-Regional Planning Commission-Supplemental Meeting Agenda",{"$f":"HYPERLINK(\"F. Staff Reports/OCR-2017-12-13-RPC-agenda-supplemental.pdf\", \"Link\")","v":"Link"},9241,9241,1]
[null,"2017-12-13","County of Los Angeles-Regional Planning Commission-Memo from Jodie D. Sackett, Zoning Permits North Section, to Doug Smith, Chair, and Commissioners regarding project Project No. R2015-00408-(5),  \"Northlake Specific Plan Project\" - RPC Meeting:  December 13, 2017-Agenda Item: 8(x)-Discussion and Possible Action to Schedule a Field Trip to the Northlake Project Site in February 2017, dated 12/7/2017",{"$f":"HYPERLINK(\"F. Staff Reports/OCR-2017-12-13-RPC-memo.pdf\", \"Link\")","v":"Link"},9242,9243,2]
[null,"2018-02-21","County of Los Angeles-Regional Planning Commission- Meeting Agenda and attachments",{"$f":"HYPERLINK(\"F. Staff Reports/OCR-2018-02-21-RPC-1-agenda.pdf\", \"Link\")","v":"Link"},9244,9246,3]
[null,null,"Public Hearing Speaker cards dated 2/21/18",{"$f":"HYPERLINK(\"F. Staff Reports/OCR-2018-02-21-RPC-2-Public hearing speaker-cards.pdf\", \"Link\")","v":"Link"},9247,9265,19]
[null,null,"Correspondence Received during Hearing: "]
[null,null,"Letter from Hannah Bentley, Blum Collins LLP, to Jodie Sackett, Department of Regional Planning regarding Northlake Specific Plan DSEIR Comments, State Clearinghouse No. 2015031080, dated 6/16/17 with Attachments A-C",{"$f":"HYPERLINK(\"F. Staff Reports/OCR-2018-02-21-RPC-3-correspondence.pdf\", \"Link\")","v":"Link"},9266,9274,49]
[null,null,"Attachment A: Letter from Shawn Smallwood to Jodie Sackett, Department of Regional Planning, regarding Northlake Specific Plan Draft SEIR, dated 2/20/18",null,9275,9312]
[null,null,"Castaic Lake State Recreation Area- Wildlife Underpass/Movement for PN R2015-00408-(5) dated 2/22/18 from Santa Monica Mountatins Conservancy",null,9313,9313]
[null,null," Letter from Rudy Ortega, Jr., Tribal President, Fernandeno Tataviam Band of Mission Indians-Sovereign Indian Nation to Los Angeles County Department of Regional Planning regarding Fernandeno Tataviam Band of Mission Indians' Comments on Northlake Specific Plan Project",null,9314,9314]
[null,null,"Supplemental Items Received for Agenda Item No. 5",{"$f":"HYPERLINK(\"F. Staff Reports/OCR-2018-02-21-RPC-4-supplemental.pdf\", \"Link\")","v":"Link"},9315,9315,105]
[null,null,"Letter from Dale Goldsmith, Armbruster Goldsmith & Delvac LLP, to The Honorable  Regional Planning Commission of the County of Los Angeles regarding Northlake Associates LLC/Project Nos. R2015-00408-5(5); VTTM nO. 073336; VPM nO. 073335; and CUP No.   201500019 (Item 5 on the Commisssion's 2/21/18 Agenda), dated 2/20/18 ",null,9316,9319]
[null,null,"Letter from Dan Silver, Endangered Habitats League, to Jodie Sackett regarding Planning Commission, 2/21/18, Item 5, Northlake Specific Plan Project, dated 2/19/18 ",null,9320,9320]
[null,null,"Letter from Jennifer Kilpatrick, Santa Clarita Organization for Planning the Environment (SCOPE), to Jodie Sackett regarding Project No. R2015-00408-(5)/Vesting Tentative Tract Map 073336/Northlake Project, dated 2/19/18 and attachments",null,9321,9323]
[null,null,"Attachment 1: State of California Secretary of State for Northlake Associates, LLC (known as NorthlakeCASecSteFiling.pdf in regards to letter.)",null,9324,9325]
[null,null,"Attachment 2: State of Delaware Secretary of State for Northlake Associates, LLC (known as NorthlakeForeignLLCFiling.pdf in regards to letter.)",null,9326,9326]
[null,null,"Attachment 3: State of California Secretary of State for NLDP Associates, LLC (known as NorthlakeCASecSteFilingNLDP.pdf in regards to letter.)",null,9327,9327]
[null,null,"Attachment 4: State of Delaware Secretary of State for NLDP Associates, LLC (known as NorthlakeForeignLLCFilingNLDP.pdf in regards to letter.)",null,9328,9328]
[null,null,"Attachment 5: San Francisco Bay Conservation and Development Commisssion and Marina Village Associates , LLC- Stipulated Cease and Desist and Civil Penalty Order No. CCD 2016.04, Effective 11/3/16",null,9329,9342]
[null,null,"Attachment A: Additional findings",null,9343,9356]
[null,null,"Letter from Lynne Plambeck, President of SCOPE, to Jodie Sackett, Department of Regional Planning, County of Los Angeles regarding Comments for the 2/21/18 hearing on the FEIR for Northlake Project; Project No. R2015-00408-(5); Permit Case Numbers: Vesting Tentative Tract Map TR073336; Conditional Use Permit No. 201500019; Environmental Review No. 201500030, dated 2/19/20 and attachments",null,9357,9364]
[null,null,"Attachment 1: Newhall Land-Castaic Lake Water Agency Condemnation settlement Agreement Water Solutions, Technical Memorandum, dated Dec. 2014 \"Evaluation of Groundwater Pumping Targets for the Alluvial Aquifer in 2015 Santa Clara River Valley East Subbasin (Santa Clarita Valley, Califronia)\" ",null,9365,9399]
[null,null,"Attachment 2: Historical Water Level Hydrographs at the Whittiker Bermite Facility From AECOM report ",null,9400,9400]
[null,null,"Appendix A: Historical Water Level Hydrographs",null,9401,9407]
[null,null,"Letter from Irma Munoz, Chairperson of Santa Monica Mountains Conservancy, to Jodie Sackett, County of Los Angeles Department of Regional Planning, regarding Draft Supplemental Environmental Impact Report Comments for Northlake Specific Plan Project - SCH No. 2015031080, Vesting Tentative Tract Map TR073336, dated 5/22/17 and attachments",null,9408,9413]
[null,null,"Letter from Richard Weiss, Principal Deputy County Counsel to Honorable Board of Supervisors, regarding Development Agreement 87-172 (5), Fifty Supervisorial District/3-Vote Matter",null,9414,9419]
[null,null,"Supplemental Staff Memo to the RPC with attachments dated 2/15/18 ",{"$f":"HYPERLINK(\"F. Staff Reports/OCR-2018-02-21-RPC-5-1-Supp. Staff memo-20180215.pdf\", \"Link\")","v":"Link"},9420,9420,43]
[null,null,"SEIR errata memo, provided to the EIR consultant",null,9421,9423]
[null,null,"SEIR response to late agency comment, provided to the EIR consultant",null,9424,9428]
[null,null,"Draft CUP conditions of approval (not included in 2/8/18 package) ",null,9429,9438]
[null,null,"CUP Burdens of proof (not included in 2/8/18 package) ",null,9439,9441]
[null,null,"Surrounding zoning and land use maps (not included in 2/8/18 package) ",null,"Not included "]
[null,null,"Draft Tentative Map Findings, Page 4 (correction-highlighting removed)",null,9442,9445]
[null,null,"Developer project outreach list of community groups ",null,9446,9446]
[null,null,"Appendix H: Project view simulation",null,9447,9462]
[null,null,"Developer 2/7/18 field trip handout materials ",{"$f":"HYPERLINK(\"F. Staff Reports/OCR-2018-02-21-RPC-5-2-Pages from RPC Supp Pkg-Dev field trip handout.pdf\", \"Link\")","v":"Link"},9463,9471]
[null,null,"Regional Planning Commission (RPC) Transmittal Checklist for Project Number: R2015-0048-(5), Specific Plan No. 87172  and attachments included below:",{"$f":"HYPERLINK(\"F. Staff Reports/OCR-2018-02-21-RPC-6-package.pdf\", \"Link\")","v":"Link"},9472,9472,107]
[null,null,"Project Summary",null,9473,9474]
[null,null,"Project Vicinity Map",null,9475,9475]
[null,null,"Project No.  R2015-0048-(5), Specific Plan No. 87172 (\"Northlake\") Staff Analysis 11 pages",null,9476,9486]
[null,null,"Draft Findings of the RPC, County of Los Angeles, Project No.  R2015-0048-(5), Vesting Tentative Tract Map No. 073336, dated LD 1-4-18",null,9487,9493]
[null,null,"Draft Conditions of Approval, County of Los Angeles, Project No.  R2015-0048-(5), Vesting Tentative Tract Map No. 073336, dated LD 1-3-18",null,9494,9500]
[null,null,"Draft Findings of the RPC, County of Los Angeles, Project No.  R2015-0048-(5), Vesting Tentative Tract Map No. 073335, dated LD 1-4-18",null,9501,9506]
[null,null,"Draft Conditions of Approval, County of Los Angeles, Project No.  R2015-0048-(5), Vesting Tentative Tract Map No. 073335, dated LD 1-3-18",null,9507,9509]
[null,null,"Draft Findings of the RPC, County of Los Angeles, Project No.  R2015-0048-(5), Vesting Tentative Tract Map No. 073336, dated LD 1-4-18 (Copy?)",null,9510,9515]
[null,null,"Department of Public Works-Land Development-Sub Division Report for Tract No. 073336 (Rev.) dated 9/13/17",null,9516,9519]
[null,null,"Hydrology Unit Conditions of Approval for Track No. 073336, dated 9/13/17 and reviewed on 10/10/17",null,9520,9520]
[null,null,"Department of Public Works-Geologic and Soils Enginerring Review Sheet, dated 9/13/17 (Rev./Exhib.) and notarized 10/3/17",null,9521,9521]
[null,null,"Department of Public Works-Land Development Division-Grading for tract 073336, dated 9/13/17, signed 9/26/17",null,9522,9523]
[null,null,"Department of Public Works-Land Development Division-Road for tract 073336, dated 9/13/17, signed 10/11/17",null,9524,9529]
[null,null,"Department of Public Works-Traffic and Lighting Division: Subdivisiion, Conditional Use Permit (CUP) & R3 Review Street lighting requirements for tract 073336, dated 3/11/15",null,9530,9531]
[null,null,"Department of Public Works-Land Development Division- Sewer for tract 073336 (Rev.), dated 9/13/17, signed 10/11/17",null,9532,9532]
[null,null,"Department of Public Works-Land Development Division- Water for tract 073336 (Rev.), dated 9/13/17, signed 10/10/17",null,9533,9533]
[null,null,"Fire Prevention Division Report for Project TR 73336, Final map Conditions of Approval, dated 9/13/17",null,9534,9538]
[null,null,"Department of Parks and Recreation for Project TR 73336, dated 10/19/17 regarding Park and Trail Conditions of Map Approval-Regional Planning Map dated 9/27/17 and Subdivision Committee meeting on 10/19/17",null,9539,9549]
[null,null,"Public Health Report for Project TR 73336, dated 9/27/17 review of Tentative tract map as of 9/13/17",null,9550,9551]
[null,null,"Department of Public Works-Land Development Division: Subdivision for tract 073335 (Rev.), dated 9/12/17, orginally signed 10/12/16",null,9552,9554]
[null,null,"Hydrology Unit Conditions of Approval for Track No. 073335-Rev 3, dated 9/12/17 and reviewed on 10/3/17",null,9555,9555]
[null,null,"Department of Public Works-Geologic and Soils Enginerring Review Sheet, dated 9/12/17 (Rev.) and notarized 10/3/17",null,9556,9556]
[null,null,"Department of Public Works-Land Development Division-Grading for tract 073335 (Rev.), dated 9/12/17, signed 10/11/17",null,9557,9557]
[null,null,"Department of Public Works-Land Development Division-Road for tract 073335, dated 9/12/17, signed 10/12/17",null,9558,9558]
[null,null,"Department of Public Works-Land Development Division- Sewer for tract 073335 (Rev.), dated 9/12/17, signed 10/5/17",null,9559,9559]
[null,null,"Department of Public Works-Land Development Division- Water for tract 073335 (Rev.), dated 9/12/17, signed 10/5/17",null,9560,9560]
[null,null,"Fire Prevention Division Report for Project TR 73335, Final map Conditions of Approval, dated 10/10/17",null,9561,9561]
[null,null,"Park Obligation Report for 73335 dated 9/12/17 for 10/4/17 Report",null,9562,9563]
[null,null,"Public Health Report for Project TR 73335, dated 10/10/17 review of Tentative tract map as of 9/12/17",null,9564,9565]
[null,null,"Conditional Use Permit Burden of Proof",null,9566,9568]
[null,null,"Developer project outreach list of community groups ",null,9569,9569]
[null,null,"Appendix H- View Simulations",null,9570,9578]
[null,null,"Supplement EIR (Not included here)"," See EIR section lines: 154-194"]
[null,null,"Hearing Notice for \"The Northlake Specificic Plan Project\"",{"$f":"HYPERLINK(\"F. Staff Reports/OCR-2018-02-21-RPC-7-hearing-notice.pdf\", \"Link\")","v":"Link"},9579,9581,3]
[null,null,"Project Summary",{"$f":"HYPERLINK(\"F. Staff Reports/OCR-2018-02-21-RPC-8-project-summary.pdf\", \"Link\")","v":"Link"},9582,9582,1]
[null,null,"Conditional Use Permit Burden of Proof",{"$f":"HYPERLINK(\"F. Staff Reports/OCR-2018-02-21-RPC-9-CUP Burden of Proof.pdf\", \"Link\")","v":"Link"},9583,9585,3]
[null,null,"Specific Plan dated 6/1992",{"$f":"HYPERLINK(\"F. Staff Reports/OCR-2018-02-21-RPC-11-specific-plan.pdf\", \"Link\")","v":"Link"},9586,9852,267]
[null,"2018-04-18","County of Los Angeles- Regional Planning Commission- Meeting Agenda and attachments:",{"$f":"HYPERLINK(\"F. Staff Reports/OCR-2018-04-18 RPC-agenda.pdf\", \"Link\")","v":"Link"},9853,9855,3]
[null,null,"Approval Package for \"Northlake Specific Plan Project\", Project No. R2018-00408-(5): Vesting Tentative Tract Map No. TR073336, Tentative parcel Map No. TR073335, conditional Use Permit No. 201500019-North of Lake Hughes Road and Ridge Route Road, East of Interstate 5 Freeway, Castaic",{"$f":"HYPERLINK(\"F. Staff Reports/OCR-2018-04-18 RPC-tr073336_approval-package.pdf\", \"Link\")","v":"Link"},9856,9997,142]
[null,null,"Correspondence at Public Hearing received after 4/12/18",{"$f":"HYPERLINK(\"F. Staff Reports/OCR-2018-04-18 RPC-tr073336_correspondence.pdf\", \"Link\")","v":"Link"},9998,9999,62]
[null,null,"Attachment A: Letter from Kristeen, Penrod, SC Wildlands, to Jodie Sackett, County of Los Angeles-Dept. of Regional Planning regarding Northlake Specific Plan Project Drafrt Supplemental Environmental Impact Report, dated 4/15/18",null,10000,10004]
[null,null,"Attachment B: Letter from J.P. Rose and Tiffany Yap, Center for Biological Diversity, to Jodie Sackett, County of Los Angeles-Dept. of Regional Planning regarding Northlake Specific Plan, Final Supplemental Environmental Impact Report, dated 4/16/18",null,10005,10049]
[null,null,"Attachment C: Letter from Paul Edelman, Santa Monica Mountains Conservancy, to County of Los Angeles-Dept. of Regional Planning regarding Northlake Project, Final Supplemental Environmental Impact Report comments for R2015-00408-(5)-SCH No. 2015031080-VTT No. TR 073336, dated 4/17/18",null,10050,10059]
[null,null,"Staff Memo to RPC for Additional Information received for Agenda Item 6,  dated 4/12/18",{"$f":"HYPERLINK(\"F. Staff Reports/OCR-2018-04-18 RPC-tr073336_Staff Memo-20180412.pdf\", \"Link\")","v":"Link"},10060,10062,103]
[null,null,"Attachment A: Final SEIR response letter to Shawn Smallwood dated 4/12/18 (to replace the interim draft)",null,10063,10162]
[null,null,"Attachment B: Northlake Design Guidebook, dated April 2018 (Not attached here.  See separate entry below on line 357)",null,"Not included here"]
[null,null,"Supplemental Hearing Package dated 4/5/18",{"$f":"HYPERLINK(\"F. Staff Reports/OCR-2018-04-18 RPC-tr073336_supplemental memo.pdf\", \"Link\")","v":"Link"},10163,10166,307]
[null,null,"Attachment A:  Applicant's update & response letter to the Commission , dated 4/3/18",null,10167,10172]
[null,null,"Attachment B:  SEIR Errata document w/technical attachments and Smallwood letter #2 response",null,10173,10223]
[null,null,"Attachment C:  Revised CEQA Findings/SOC",null,10224,10368]
[null,null,"Attachment D:  Revised draft MMRP",null,10369,10407]
[null,null,"Attachment E:  Revised draft Findings and Conditions (CUP, track map, parcel map), dated     4/5/18",null,10408,10455]
[null,null,"Attachment F:  New village plan exhibit, dated 4/2/18",null,10456,10458]
[null,null,"Attachment G:  Revised site plan exhibit, dated 4/4/18",null,10459,10461]
[null,null,"Attachment H:  Revised land use table",null,10462,10463]
[null,null,"Attachment I:   Revised housing breakdown",null,10464,10465]
[null,null,"Attachment J:  Revised transit exhibit",null,10466,10467]
[null,null,"Attachment K: Wildlife connectivity plan exhibit, dated 3/19/18",null,10468,10469]
[null,null,"Northlake Design Guidebook, dated April 2018 ",{"$f":"HYPERLINK(\"F. Staff Reports/OCR-2018-04-18 RPC-tr073336_z-Northlake-Design.pdf\", \"Link\")","v":"Link"},10470,10545,76]
[null,"2018-09-25","County of Los Angeles-Board of Supervisors-Appeal Hearing on Project No. R2018-00408-(5): Vesting Tentative Tract Map No. TR073336, Tentative parcel Map No. TR073335, conditional Use Permit No. 201500019, Environmental Review No. 201500030 (Supplemental EIR) for Applicant: Northlake Associates LLC (John Arvin), Castaic Canyon Zoned District (Fifth Supervisorial District) ( 3-votes)",{"$f":"HYPERLINK(\"F. Staff Reports/OCR-2018-09-25 BOS.pdf\", \"Link\")","v":"Link"},10546,10553,8]
[null,null,"Attachment 1:   Appeal Letters received on the decision of the RPC. Version 1"]
[null,null,"Appeal application submitted 4/23/18 by Craig M. Collins, Blum Collins LLP for Golden State Environmental & Social Justice Alliance including comment letter submitted by Craig M. Collins to Jodie Sackett, Department of Regional Planning, on 6/16/17 regarding Northlake Specific Plan DSEIR Comments, State Clearinghouse No. 2015031080 and comment letter submitted by Shawn Smallwood on 6/13/17 and 2/20/18.",{"$f":"HYPERLINK(\"F. Staff Reports/OCR-2018-09-25 BOS-attachment1-v1.pdf\", \"Link\")","v":"Link"},10554,10629,115]
[null,null,"Appeal application submitted 4/27/18 by Paul Edelman, Santa Monica Mountains Conservancy including a comment letter submitted to the Department of Regional Planning, on 4/17/18 regarding Northlake Project, (including hand written text for Response)",null,10630,10636]
[null,null,"Appeal application submitted 4/30/18 by John Rose, Center for Biological Diversity, including a comment letter submitted to Jodie Sackett, Department of Regional Planning, on 4/16/18 regarding Northlake Specific Plan, Final Supplemental EIR (including hand written text for Response and only includes pages 1-30)",null,10637,10668]
[null,null,"Attachment 1:   Appeal Letters received on the decision of the RPC. Version 2"]
[null,null,"Appeal application submitted 4/23/18 by Craig M. Collins, Blum Collins LLP for Golden State Environmental & Social Justice Alliance including comment letter submitted by Craig M. Collins to Jodie Sackett, Department of Regional Planning, on 6/16/17 regarding Northlake Specific Plan DSEIR Comments, State Clearinghouse No. 2015031080 and comment letter submitted by Shawn Smallwood on 6/13/17 and 2/20/18.",{"$f":"HYPERLINK(\"F. Staff Reports/OCR-2018-09-25 BOS-attachment1-v2.pdf\", \"Link\")","v":"Link"},10669,10744,160]
[null,null,"Appeal application submitted 4/27/18 by Paul Edelman, Santa Monica Mountains Conservancy including a comment letter submitted to the Department of Regional Planning, on 4/17/18 regarding Northlake Project, (including colored maps)",null,10745,10756]
[null,null,"Appeal application submitted 4/30/18 by John Rose, Center for Biological Diversity, including a comment letter submitted to Jodie Sackett, Department of Regional Planning, on 4/16/18 regarding Northlake Specific Plan, Final Supplemental EIR (longer version including reference and attachments)",null,10757,10828]
[null,null,"Attachment 2: Responses to Appeals of the RPC Action and attachments",{"$f":"HYPERLINK(\"F. Staff Reports/OCR-2018-09-25 BOS-attachment2.pdf\", \"Link\")","v":"Link"},10829,10841,52]
[null,null,"Appeal application submitted 4/30/18 by John Rose, Center for Biological Diversity, including a comment letter submitted to Jodie Sackett, Department of Regional Planning, on 4/16/18 regarding Northlake Specific Plan, Final Supplemental EIR",null,10842,10873]
[null,null,"Appeal application submitted 4/27/18 by Paul Edelman, Santa Monica Mountains Conservancy including a comment letter submitted to the Department of Regional Planning, on 4/17/18 regarding Northlake Project ",null,10874,10880]
[null,null,"Attachment 3:   Findings and Conditions of Approval, dated 4/19/18",{"$f":"HYPERLINK(\"F. Staff Reports/OCR-2018-09-25 BOS-attachment3.pdf\", \"Link\")","v":"Link"},10881,10982,102]
[null,null,"Attachment 4: RPC Approval package for \"Northlake Specific Plan Project\", Project No. R2018-00408-(5): Vesting Tentative Tract Map No. TR073336, Tentative parcel Map No. TR073335, conditional Use Permit No. 201500019-North of Lake Hughes Road and Ridge Route Road, East of Interstate 5 Freeway, Castaic, dated 4/19/18",{"$f":"HYPERLINK(\"F. Staff Reports/OCR-2018-09-25 BOS-attachment4.pdf\", \"Link\")","v":"Link"},10983,11124,142]
[null,null,"Attachment 5:   RPC Speaker cards dated 4/18/18",{"$f":"HYPERLINK(\"F. Staff Reports/OCR-2018-09-25 BOS-attachment5.pdf\", \"Link\")","v":"Link"},11125,11132,8]
[null,null,"Attachment 6:   RPC Additional correspondence received after 4/12 for 4/18/18 RPC Hearing",{"$f":"HYPERLINK(\"F. Staff Reports/OCR-2018-09-25 BOS-attachment6.pdf\", \"Link\")","v":"Link"},11133,11134,62]
[null,null,"Attachment A: Letter from Kristeen, Penrod, SC Wildlands, to Jodie Sackett, County of Los Angeles-Dept. of Regional Planning regarding Northlake Specific Plan Project Drafrt Supplemental Environmental Impact Report, dated 4/15/18",null,11135,11139]
[null,null,"Attachment B: Letter from J.P. Rose and Tiffany Yap, Center for Biological Diversity, to Jodie Sackett, County of Los Angeles-Dept. of Regional Planning regarding Northlake Specific Plan, Final Supplemental Environmental Impact Report, dated 4/16/18",null,11140,11184]
[null,null,"Attachment C: Letter from Paul Edelman, Santa Monica Mountains Conservancy, to County of Los Angeles-Dept. of Regional Planning regarding Northlake Project, Final Supplemental Environmental Impact Report comments for R2015-00408-(5)-SCH No. 2015031080-VTT No. TR 073336, dated 4/17/18",null,11185,11194]
[null,null,"Attachment 7:   RPC Supplemental Memo dated 4/12/18 regarding replacement of interim           draft with final version of Shawn Smallwood dated 2/20/18 in project record",{"$f":"HYPERLINK(\"F. Staff Reports/OCR-2018-09-25 BOS-attachment7.pdf\", \"Link\")","v":"Link"},11195,11297,103]
[null,null,"Attachment 8:   Northlake Design Guidebook dated April 2018",{"$f":"HYPERLINK(\"F. Staff Reports/OCR-2018-09-25 BOS-attachment8.pdf\", \"Link\")","v":"Link"},11298,11373,76]
[null,null,"Attachment 9:   RPC Supplemental Memo for Project Update and Response dated 4/5/18 ",{"$f":"HYPERLINK(\"F. Staff Reports/OCR-2018-09-25 BOS-attachment9.pdf\", \"Link\")","v":"Link"},11374,11680,307]
[null,null,"Attachment 10: RPC Speaker cards dated 2/21/18",{"$f":"HYPERLINK(\"F. Staff Reports/OCR-2018-09-25 BOS-attachment10.pdf\", \"Link\")","v":"Link"},11681,11699,19]
[null,null,"Attachment 11: RPC Additional Correspondence received 2/21/18 before the RPC hearing",{"$f":"HYPERLINK(\"F. Staff Reports/OCR-2018-09-25 BOS-attachment11.pdf\", \"Link\")","v":"Link"},11700,11700,50]
[null,null,"Letter from Hannah Bentley, Blum Collins LLP, to Jodie Sackett, Department of Regional Planning regarding Northlake Specific Plan DSEIR Comments, State Clearinghouse No. 2015031080, dated 6/16/17 with Attachments A-C",null,11701,11709]
[null,null,"Attachment A: Letter from Shawn Smallwood to Jodie Sackett, Department of Regional Planning, regarding Northlake Specific Plan Draft SEIR, dated 2/20/18",null,11710,11747]
[null,null,"Castaic Lake State Recreation Area- Wildlife Underpass/Movement from Santa Monica Mountains Conservancy",null,11748,11748]
[null,null,"Letter from Rudy Ortega, Jr., Tribal President, for Sovereign Indian Nation to Los Angeles County Department of Regional Planning regarding Fernandeno Tataviam Band of Mission Indians' Comments on Northlake Specific Plan Project",null,11749,11749]
[null,null,"Attachment 12: RPC Additional Correspondence dated 2/21/18 (see rows 256-271 above)",{"$f":"HYPERLINK(\"F. Staff Reports/OCR-2018-09-25 BOS-attachment12.pdf\", \"Link\")","v":"Link"},11750,11854,105]
[null,null,"Attachment 13: RPC Supplemental Memo for Additional Project Information dated 2-15-18 (see rows 272-281 above)",{"$f":"HYPERLINK(\"F. Staff Reports/OCR-2018-09-25 BOS-attachment13.pdf\", \"Link\")","v":"Link"},11855,11897,43]
[null,null,"Attachment 14: RPC Hearing Package including Project Summary, Project Vicinity Map, Staff Analysis, Draft Findings 07336, Draft CUP, Draft Findings 07335, Draft CUP 07335 et.  (see rows 282-313 above) ",{"$f":"HYPERLINK(\"F. Staff Reports/OCR-2018-09-25 BOS-attachment14.pdf\", \"Link\")","v":"Link"},11898,12004,107]
[null,"2018-09-25","County of Los Angeles-Board of Supervisors-Appeal Hearing on Project No. R2018-00408-(5): Vesting Tentative Tract Map No. TR073336, Tentative parcel Map No. TR073335, conditional Use Permit No. 201500019, Environmental Review No. 201500030 (Supplemental EIR) for Applicant: Northlake Associates LLC (John Arvin), Castaic Canyon Zoned District (Fifth Supervisorial District) ( 3-votes), stamped Adopted by Celia Zavala, Executive Officer. ",{"$f":"HYPERLINK(\"F. Staff Reports/OCR-2018-09-25 BOS-Final Adopted.pdf\", \"Link\")","v":"Link"},12005,12012,8]
[]
[null,null,"(G) TRANSCRIPTS AND MINUTES"]
[null,"2017-12-13","County of Los Angeles-Regional Planning Commission-Meeting Minutes",{"$f":"HYPERLINK(\"G. Transcripts and Minutes/OCR-2017-12-13-Regional PC-minutes.pdf\", \"Link\")","v":"Link"},12013,2021,9]
[null,"2017-12-13","County of Los Angeles-Regional Planning Commission-Meeting Transcript",{"$f":"HYPERLINK(\"G. Transcripts and Minutes/OCR-2017-12-13-Regional PC-transcript.pdf\", \"Link\")","v":"Link"},12022,12148,127]
[null,"2018-02-21","County of Los Angeles-Regional Planning Commission-Meeting Minutes",{"$f":"HYPERLINK(\"G. Transcripts and Minutes/OCR-2018-02-21-Regional PC-minutes.pdf\", \"Link\")","v":"Link"},12149,12157,9]
[null,"2018-02-21","County of Los Angeles-Regional Planning Commission-Meeting Transcript",{"$f":"HYPERLINK(\"G. Transcripts and Minutes/OCR-2018-02-21-Regional PC-transcript.pdf\", \"Link\")","v":"Link"},12158,12244,87]
[null,"2018-04-18","County of Los Angeles-Regional Planning Commission-Meeting Minutes",{"$f":"HYPERLINK(\"G. Transcripts and Minutes/OCR-2018-04-18-Regional PC-minutes.pdf\", \"Link\")","v":"Link"},12245,12250,6]
[null,"2018-04-18","County of Los Angeles-Regional Planning Commission-Meeting Transcript",{"$f":"HYPERLINK(\"G. Transcripts and Minutes/OCR-2018-04-18-Regional PC-transcript.pdf\", \"Link\")","v":"Link"},12251,12309,59]
[null,"2018-09-25","County of Los Angeles-Board of Supervisors-Meeting Minutes",{"$f":"HYPERLINK(\"G. Transcripts and Minutes/OCR-2018-09-25 Board of Supervisor minutes.pdf\", \"Link\")","v":"Link"},12310,2347,38]
[null,"2018-09-25","County of Los Angeles-Board of Supervisors-Meeting Transcript",{"$f":"HYPERLINK(\"G. Transcripts and Minutes/OCR-2018-09-25 Board of Supervisor transcript.pdf\", \"Link\")","v":"Link"},12348,12554,207]
[null,"2019-04-02","County of Los Angeles-Board of Supervisors-Meeting Minutes",{"$f":"HYPERLINK(\"G. Transcripts and Minutes/OCR-2019-04-02 Board of Supervisor_minutes.pdf\", \"Link\")","v":"Link"},12555,12602,48]
[null,"2019-04-02","County of Los Angeles-Board of Supervisors-Meeting Transcript",{"$f":"HYPERLINK(\"G. Transcripts and Minutes/OCR-2019-04-02 Board of Supervisor_transcript.pdf\", \"Link\")","v":"Link"},12603,12755,153]
[]
[null,null,"(H) REMAINDER OF THE ADMINISTRATIVE RECORD"]
[]
[null,null,"a. Project Documents from Northlake Working files"]
[]
[null,1992,"Pages from Northlake Specific Plan Section II. Development Plan with hand written note \"Land Use Plan\" and highlighted School/Park Site line in Phase 1 with associated conceptual phase maps and Pages from V. Specific Plan Implementation",{"$f":"HYPERLINK(\"H. Remainder/A-Project documents/OCR-1992-Pages from NLSP-Wkg-5.pdf\", \"Link\")","v":"Link"},12756,12763,8]
[null,"2013-12-05","Payment for Title Company (hard copy) of Grant Deed and Title Insurance from Fidelity National Title 23016527 for Northlake Associates, LLC, dated 12/2/13",{"$f":"HYPERLINK(\"H. Remainder/A-Project documents/OCR-2013-12-05 Title Company documents-Wkg-4.pdf\", \"Link\")","v":"Link"},12764,12887,124]
[null,"2014-09-25","Northlake Planning Charette agenda, in working file #2",{"$f":"HYPERLINK(\"H. Remainder/A-Project documents/OCR-2014-09-25 NL Planning Charette agenda-Wkg-1.pdf\", \"Link\")","v":"Link"},12888,12888,1]
[null,"2014-11-05","Appendix A: Processing Schedule for Northlake Specific Plan Project and draft/working  documents of NOP and IS, revised with 2015 dates, in working file #3",{"$f":"HYPERLINK(\"H. Remainder/A-Project documents/OCR-2014-11-05 Appendix A processing schedule Wkg-3.pdf\", \"Link\")","v":"Link"},12889,12899,98]
[null,null,"Attachment: Notice of Preparation of a Draft Environmental Impact Report in Compliance with Title 14, section 15082(a) of the California Code of Regulations, Noted as \"Working copy KKS\"",null,12900,12986]
[null,"2015-02-17","Department of Regional Planning Subdivision Committee Report for 3/26/15 report date, in working file #2",{"$f":"HYPERLINK(\"H. Remainder/A-Project documents/OCR-2015-02-17 Planning Subdivision Report-Pts1&2-Wkg-2.pdf\", \"Link\")","v":"Link"},12987,13002,16]
[null,"2015-03-09","Email from Raman Gaur to Julie Yom RE: Northlake TR073336, in working file #2",{"$f":"HYPERLINK(\"H. Remainder/A-Project documents/OCR-2015-03-09 Gaur email with spreadsheet data-Wkg-1.pdf\", \"Link\")","v":"Link"},13003,13003,3]
[null,null,"Attachment 1: Northlake - Phase 1 Unit for Quimby.xls",null,13004,13005]
[null,"2015-03-17","County of Los Angeles: Northlake Significant Ridgeline-Terraced Park Location, copyright 2013, printed 3/17/15- clean and copy with hand written notes, in working file #2",{"$f":"HYPERLINK(\"H. Remainder/A-Project documents/OCR-2015-03-17 County NL Sig Ridgeline maps.pdf\", \"Link\")","v":"Link"},13006,13007,2]
[null,"2015-03-23","County of Los Angeles: Notice of Preparation of a Draft Environmental Impact Report and Public Scoping Meeting, stamped filed on 3/23/15, and Invoice from Daily Journal including Proof of Publication in The Signal Newspaper,  in working file #3",{"$f":"HYPERLINK(\"H. Remainder/A-Project documents/OCR-2015-03-23 Filed NOP and POP- Wkg-3.pdf\", \"Link\")","v":"Link"},13008,13016,9]
[null,"2015-03-26","Letter from John Arvin to Richard J. Bruckner, Director of Department of Regional Planning, regarding request for time extension and letters regarding notice of incomplets filing dated 2/23/15 and 2/17/15, in working file #2",{"$f":"HYPERLINK(\"H. Remainder/A-Project documents/OCR-2015-03-26 Letter from Arvin and NOIs.pdf\", \"Link\")","v":"Link"},13017,13115,99]
[null,"2015-03-26","Letter from M. Davis, Registrar-Recorder/County Clerk, regarding resubmission of documents with necessary corrections, in working file #6",{"$f":"HYPERLINK(\"H. Remainder/A-Project documents/OCR-2015-03-26 Letter from Davis.pdf\", \"Link\")","v":"Link"},13116,13117,2]
[null,"2015-03-26","Los Angeles County-Department of Regional Planning:  Land Division Application submitted for R2015--00408, TR073336, RENVT201500030 with notes that document was \"updated\" since submittal with associated documents, in working file #4. ",{"$f":"HYPERLINK(\"H. Remainder/A-Project documents/OCR-2015-03-26 Updated Land Div app-1-Wkg-3.pdf\", \"Link\")","v":"Link"},13118,13168,51]
[null,"2015-03-26","Los Angeles County-Department of Regional Planning:  Land Division Application submitted for R2015--00408, TR073336, RCUP201500019 with hand written notes and associated documents. ",{"$f":"HYPERLINK(\"H. Remainder/A-Project documents/OCR-2015-03-26 Updated Land Div app-2-RCUP-Wkg-4.pdf\", \"Link\")","v":"Link"},13169,13249,81]
[null,"2015-03-30","Notice of Preparation of a Draft Environmental Impact Report in Compliance with Title 14, section 15082(a) of the California Code of Regulations, stamped Received and Notice of Preparation of a Draft Environmental Impact Report and Public Scoping Meeting stamped 3/23/15",{"$f":"HYPERLINK(\"H. Remainder/A-Project documents/OCR-2015-03-30 Notices of Prep of DEIR-Wkg-6.pdf\", \"Link\")","v":"Link"},13250,13260,11]
[null,"2015-03-31","Agreement EIR Preparation and Review for \"Northlake\" between Northlake Associates, LLC and BonTerra-Psomas (Consultant), signed.",{"$f":"HYPERLINK(\"H. Remainder/A-Project documents/OCR-2015-03-31 Agreement EIR Prep-Wkg-3.pdf\", \"Link\")","v":"Link"},13261,13268,13]
[null,null," Exhibit A:  EIR Consultant Qualifications Checklist ",null,13269,13269]
[null,null," Exhibit B: Determination of Contractor Non-Responsibility and Contractor Debarment",null,13270,13273]
[null,"2015-03-31","Letter from Jillian Wong, South Coast Air Quality Management District, to Kim Szalay regarding Notice of Preparation of a CEQA Document for the Northlake Specific Plan",{"$f":"HYPERLINK(\"H. Remainder/A-Project documents/OCR-2015-03-31 Letter from Wong-Wkg-6.pdf\", \"Link\")","v":"Link"},13274,13275,2]
[null,"2015-04-08","Public Input and Sign In Forms from -Scoping Meeting Northlake: County Project No. R2015-00408-(5), Environmental Review No. 201500030",{"$f":"HYPERLINK(\"H. Remainder/A-Project documents/OCR-2015-04-08 Public input forms-Wkg-6.pdf\", \"Link\")","v":"Link"},13276,13286,11]
[null,"2015-04-09","Letter from Leroy Ellinghouse, CA Dept. of Water Resources, to Kim Szalay regarding S.B. 2161 Review of LA-15-01 , Development of 1,330 Acres for Residential Commercial, Industrial and Public Facility Uses, and Park and Open Space by Northlake Associates, Community of Castaic, Near Milepost 28.12 West Branch, Southern Field Division. Los Angeles County",{"$f":"HYPERLINK(\"H. Remainder/A-Project documents/OCR-2015-04-09 Letter from Ellinghouse-Wkg-6.pdf\", \"Link\")","v":"Link"},13287,13288,2]
[null,"2015-04-10","Memo from Lloyd Zola, Metis Environmental Group, to Kim Szalay regarding Seeping Meeting Comments for Northlake EIR, in working file #2",{"$f":"HYPERLINK(\"H. Remainder/A-Project documents/OCR-2015-04-10 Memo from Zola-Wkg-1.pdf\", \"Link\")","v":"Link"},13289,13291,3]
[null,"2015-04-14","Letter from Nareh Nazary, Los Angeles County Metropolitan Transportation Authority, to Kim Szalay regarding Northlake Specific Plan",{"$f":"HYPERLINK(\"H. Remainder/A-Project documents/OCR-2015-04-14 Letter from Nazary-Wkg-6.pdf\", \"Link\")","v":"Link"},13292,13300,9]
[null,"2015-04-14","Memo from Jennifer Marks, Bonterra Psomas, to Kim Szalay regarding April 8, 2015 Scoping Meeting Comments, NorthLake Specific Plan EIR, in working file #2",{"$f":"HYPERLINK(\"H. Remainder/A-Project documents/OCR-2015-04-14 Memo from Marks-Wkg-1.pdf\", \"Link\")","v":"Link"},13301,13304,4]
[null,"2015-04-15","Letter from Kevin T. Johnson to Kim Szalay regarding NOP of a DEIR and public scoping meeting, Project No. R2015-00408-(5)",{"$f":"HYPERLINK(\"H. Remainder/A-Project documents/OCR-2015-04-15 Letter from Johnson-Wkg-6.pdf\", \"Link\")","v":"Link"},13305,13308,4]
[null,"2015-04-17","Letter from Betty J. Courtney, CA Dept. of Fish and Wildlife, to Kim Szalay regarding Comments on the Notice of Preparation of a Draft Environmental Impact Report for the Northlake Specific Plan Project in working file #6",{"$f":"HYPERLINK(\"H. Remainder/A-Project documents/OCR-2015-04-17 Letter from Courtney-NL-Wkg-6.pdf\", \"Link\")","v":"Link"},13309,13316,8]
[null,"2015-04-17","Letter from Adriana Raza, County Sanitation Districts of Los Angeles County, to Kim Szalay regarding NorthLake Specific Plan, Project No. R2015-00408-(5), in working file #6",{"$f":"HYPERLINK(\"H. Remainder/A-Project documents/OCR-2015-04-17 Letter from Raza-NL-Wkg-6.pdf\", \"Link\")","v":"Link"},13317,13318,2]
[null,"2015-04-17","Letter from Adriana Raza, County Sanitation Districts of Los Angeles County, to Mari Prutz Feldmeier, Sikand Engineering, regarding Tentative Tract Map No. 73336, in working file #2",{"$f":"HYPERLINK(\"H. Remainder/A-Project documents/OCR-2015-04-17 Letter from Raza-TTM-Wkg-2.pdf\", \"Link\")","v":"Link"},13319,13320,2]
[null,"2015-04-18","Northlake Scoping Meeting transcript by Holland Court Reporters",{"$f":"HYPERLINK(\"H. Remainder/A-Project documents/OCR-2015-04-18 NL Scoping Mtg transcript-Wkg-6.pdf\", \"Link\")","v":"Link"},13321,13388,68]
[null,"2015-04-21","Letter from David M. Samson,CA Dept. of Water Resources, to Kim Szalay regarding Notice of Preparation  of DEIR for the Northlake Specific Plan project",{"$f":"HYPERLINK(\"H. Remainder/A-Project documents/OCR-2015-04-21 Letter from Samson-Wkg-6.pdf\", \"Link\")","v":"Link"},13389,113391,3]
[null,"2015-04-21","Letter from Dianna Watson,CA Dept. of Transportation, to Kim Szalay regarding NorthLake Specific Plan",{"$f":"HYPERLINK(\"H. Remainder/A-Project documents/OCR-2015-04-21 Letter from Watson Wkg-6.pdf\", \"Link\")","v":"Link"},113392,113394,3]
[null,"2015-04-22","Letter from David A. Ford, Southern California Edison, to Kim Szalay regarding NOP of a DEIR for Northlake",{"$f":"HYPERLINK(\"H. Remainder/A-Project documents/OCR-2015-04-22 Letter from Ford-Wkg-6.pdf\", \"Link\")","v":"Link"},113395,113396,2]
[null,"2015-04-22","Letter from John A. Hecht, SESPE Consulting, to Kim Szalay regarding NOP Comments on Northlake, Project No. R2015-00408-(5)",{"$f":"HYPERLINK(\"H. Remainder/A-Project documents/OCR-2015-04-22 Letter from Hecht-Wkg-6.pdf\", \"Link\")","v":"Link"},113397,13401,5]
[null,"2015-04-27","Letter from Linda Parks, SMMC, to Kim Szalay regarding Notice of Preparation Comments: Northlake Specific Plan- Phase One Implementation-Vesting Tentative Tract Map No. TR073336",{"$f":"HYPERLINK(\"H. Remainder/A-Project documents/OCR-2015-04-27 Letter from Parks-Wkg-6.pdf\", \"Link\")","v":"Link"},13402,13405,4]
[null,"2015-05-07","Meeting Sign-in Sheet, TR 73336 Northlake Land Use Plan",{"$f":"HYPERLINK(\"H. Remainder/A-Project documents/OCR-2015-05-07 Mtg Sign in-Wkg-6.pdf\", \"Link\")","v":"Link"},13406,13406,1]
[null,"2015-06-02","Department of Regional Planning Subdivision Committee Report for 7/1/15 report date, in working file #2",{"$f":"HYPERLINK(\"H. Remainder/A-Project documents/OCR-2015-06-02 Planning Subdivision Report-Pts1&2-Wkg-2.pdf\", \"Link\")","v":"Link"},13407,13412,12]
[null,null,"Attachment: Memo from Matt Benveniste, Sikand Engineering, to Sam Dea regarding changes made to Tentative Tract No. 73336 for Northlake Associeates LLC, dated 6/2/15 for 1st Revision",null,13413,13418]
[null,"2015-06-03","Letter from Richard J. Bruckner, Director of Department of Regional Planning, to Matt Benveniste, Sikand Engineering, regarding Revision Tentative Tract Map No. 073336- Notice of Incomplete Filing and associated 1st Revision documents, in working file #2",{"$f":"HYPERLINK(\"H. Remainder/A-Project documents/OCR-2015-06-03 Received NOI Planning Sub Report-Wkg-2.pdf\", \"Link\")","v":"Link"},13419,13428,10]
[null,"2015-06-11","Email from Kim Szalay to John Arvin,no subject line, in working file #2",{"$f":"HYPERLINK(\"H. Remainder/A-Project documents/OCR-2015-06-11 Email from Szalay-Wkg-1.pdf\", \"Link\")","v":"Link"},13429,13430,2]
[null,"2015-06-23","Invoice fom Daily Journal Corporation and Proof of Publication from La Opinion ",{"$f":"HYPERLINK(\"H. Remainder/A-Project documents/OCR-2015-06-23 Inv from Daily Journal-Wkg-3.pdf\", \"Link\")","v":"Link"},13431,13432,2]
[null,"2015-09-15","Department of Regional Planning Subdivision Committee Report for 10/7/15 report date , in working file #2",{"$f":"HYPERLINK(\"H. Remainder/A-Project documents/OCR-2015-09-15 Planning Subdivision Report-Pts1&2-Wkg- 2.pdf\", \"Link\")","v":"Link"},13433,13444,14]
[null,null,"Attachment: Memo from Matt Benveniste, Sikand Engineering, to Sam Dea regarding changes made to Tentative Tract No. 73336 for Northlake Associeates LLC, dated 9/15/15 for 2nd Revision",null,13445,13446]
[null,"2015-09-17","Letter from Richard J. Bruckner, Director of Department of Regional Planning, to Matt Benveniste, Sikand Engineering, regarding Revision Tentative Tract Map No. 073336- Notice of Incomplete Filing and associated 2nd Revision documents, in working file #2",{"$f":"HYPERLINK(\"H. Remainder/A-Project documents/OCR-2015-09-17 Received NOI Planning Sub Report-Wkg-2.pdf\", \"Link\")","v":"Link"},13447,13456,10]
[null,"2015-10-21","Project Maps",{"$f":"HYPERLINK(\"H. Remainder/A-Project documents/OCR-2015-10-21 Project Maps.pdf\", \"Link\")","v":"Link"},13457,13471,15]
[null,"2015-10-27","Environmental Assessment information form for R2015-03677, Permit No. REMV T201500244",{"$f":"HYPERLINK(\"H. Remainder/A-Project documents/OCR-2015-10-27 EA information form.pdf\", \"Link\")","v":"Link"},13472,13497,26]
[null,"2015-10-28","Department of Regional Planning Subdivision Committee Report for 12/10/15 report date for Vesting Tentative Parcel map No. 073335, with hand written notes, and associated documents, in working file #4",{"$f":"HYPERLINK(\"H. Remainder/A-Project documents/OCR-2015-10-28 Planning Sub Report 073335-Wkg-4.pdf\", \"Link\")","v":"Link"},13498,13505,8]
[null,"2015-11-04","Letter from Richard J. Bruckner, Director of Department of Regional Planning, to Raman Gaur, Sikand Engineering, regarding Vesting Tentative parcel Map No. 073335- Notice of Incomplete Filing and associated documents, in working file #4 ",{"$f":"HYPERLINK(\"H. Remainder/A-Project documents/OCR-2015-11-04 Letter re NOI filing-Wkg-4.pdf\", \"Link\")","v":"Link"},13506,13509,21]
[null,null,"Attachment: Memo from Matt Benveniste, Sikand Engineering, to Sam Dea regarding Northlake large lot APN's, in working file #4",null,13510,13526]
[null,"2016-01-20","Letter from Stephen L. Cole, Newhall County Water District, to Samuel z. Dea regarding SB610 Water Supply Assessment Northlake Specific Plan (County Project No. R2015-00408), received on 1/25/16",{"$f":"HYPERLINK(\"H. Remainder/A-Project documents/OCR-2016-01-20 Letter from Newhall County Water-Wk-5.pdf\", \"Link\")","v":"Link"},13527,13527,45]
[null,null,"Attachment: SB610 Water Supply Assessment Northlake Specific Plan dated January 2016",null,13528,13571]
[null,"2016-02-01","Letter from Kevin T. Johnson, Acting Chief, Forestry Division, County of Los Angeles Fire Department to Jodie Sackett regarding First Screencheck Administrative DEIR, \"Northlake Specific Plan\", (FFER 201600130) ",{"$f":"HYPERLINK(\"H. Remainder/A-Project documents/OCR-2016-02-01 Letter from Fire-Wkg-5.pdf\", \"Link\")","v":"Link"},13572,13575,4]
[null,"2016-02-02","Letter from Tracey Jue and Captain Roosevelt, Office of the Sherriff: County of Los Angeles, to Richard J. Bruckner and Jodie Sackett regarding Review Comments: Screencheck DEIR, Northlake Development Project, County Project No. R2015-00408-(5)",{"$f":"HYPERLINK(\"H. Remainder/A-Project documents/OCR-2016-02-02 Letter from Off. Sherriff-Wkg-5.pdf\", \"Link\")","v":"Link"},13576,13579,4]
[null,"2016-02-25","Letter from Yolanda De Ramus, Chief Deputy Director of County of Los Angeles Public Library, to  Jodie Sackett regarding Screencheck EIR, Northlake Development Project",{"$f":"HYPERLINK(\"H. Remainder/A-Project documents/OCR-2016-02-25 Letter from Library-Wkg-5.pdf\", \"Link\")","v":"Link"},13580,13582,3]
[null,"2016-03-16","Letter from Michelle Tsiebos, County of Los Angeles-Department of Public Health, to Jodie Sackett regarding CEQA Consultation/DEIR, Project No. R2015-00408, Northlake Specific Plan",{"$f":"HYPERLINK(\"H. Remainder/A-Project documents/OCR-2016-03-16 Letter from PH-Wkg 5.pdf\", \"Link\")","v":"Link"},13583,13584,2]
[null,"2016-04-11","Letter from Clay Friedman, Friends of the Lake, to Richard Bruckner regarding Northlake Community Development",{"$f":"HYPERLINK(\"H. Remainder/A-Project documents/OCR-2016-04-11 Letter from Friedman-Wkg-5.pdf\", \"Link\")","v":"Link"},13585,13585,1]
[null,"2016-04-15","Letter from Jeff Preach to Richard Bruckner regarding Northlake Community Development",{"$f":"HYPERLINK(\"H. Remainder/A-Project documents/OCR-2016-04-15 Letter from Preach-Wkg-5.pdf\", \"Link\")","v":"Link"},13586,13586,1]
[null,"2016-04-29","Letter from Sandia Ennis, President of Castaic Area Town Council, to Richard Bruckner regarding Northlake",{"$f":"HYPERLINK(\"H. Remainder/A-Project documents/OCR-2016-04-29 Letter from Ennis Castaic Town Council-Wkg-5.pdf\", \"Link\")","v":"Link"},13587,13589,3]
[null,"2016-05-16","Letter from Kevin T. Johnson, Acting Chief, Forestry Division, County of Los Angeles Fire Department to Jodie Sackett regarding Third Screencheck Administrative DEIR, \"Northlake Specific Plan\", (FFER 201600130) ",{"$f":"HYPERLINK(\"H. Remainder/A-Project documents/OCR-2016-05-16 Letter from Fire-Wkg-5.pdf\", \"Link\")","v":"Link"},13590,13592,3]
[null,"2016-06-06","Memo from Matt Benveniste, Sikand Engineering, to Sam Dea regarding resubmission of tentative parcel map 73336 as a first revision to our original filing recevied by the County on 6/15/16. ",{"$f":"HYPERLINK(\"H. Remainder/A-Project documents/OCR-2016-06-06 Memo from Benveniste-Wkg-4.pdf\", \"Link\")","v":"Link"},13593,13598,6]
[null,"2016-06-15","Land Division Application 1st Revision TPM No. 73335",{"$f":"HYPERLINK(\"H. Remainder/A-Project documents/OCR-2016-06-15 TPM073335 Planning Sub Report-Wkg-4.pdf\", \"Link\")","v":"Link"},13599,13604,6]
[null,"2016-06-15","Department of Regional Planning Subdivision Committee Report for 7/14/16 report date for VTPM073336, in working file #2",{"$f":"HYPERLINK(\"H. Remainder/A-Project documents/OCR-2016-06-15 TTM073336 Planning Sub Report-Pt1-Wkg-2.pdf\", \"Link\")","v":"Link"},13605,13606,11]
[null,null,"Attachment: Memo from Matt Benveniste, Sikand Engineering, to Sam Dea regarding changes made to Tentative Tract No. 73336 for Northlake Associeates LLC, dated 6/14/16 for 3rd Revision",null,13607,13615]
[null,"2016-06-15","Department of Regional Planning Subdivision Committee Report for 7/14/16 report date, for 1st revision of Tentative Tract No. 73336, in working file #4",{"$f":"HYPERLINK(\"H. Remainder/A-Project documents/OCR-2016-06-15 TTM073336 Planning Sub Report-Pt2-Wkg- 2.pdf\", \"Link\")","v":"Link"},13616,13659,160]
[null,null,"Attachment: Letter from Richard J. Bruckner, Director of Department of Regional Planning, to Matt Benveniste, Sikand Engineering, regarding Tentative Parcel Map No. 073335-Notice of Incomplete Filing and associated 1st Revision documents, in working file #4 ",null,13660,13662]
[null,null,"Attachment: Memo from Matt Benveniste, Sikand Engineering, to Sam Dea regarding changes made to Tentative Parcel Map No. 73335 for Northlake Associeates LLC, dated 6/2/16 for 1st Revision, in working file #4",null,13663,13775]
[null,"2016-06-16","Letter from Richard J. Bruckner, Director of Department of Regional Planning, to Matt Benveniste, Sikand Engineering, regarding Revision Tentative Tract Map No. 073336- Notice of Incomplete Filing and associated 3rd Revision documents, in working file #2 ",{"$f":"HYPERLINK(\"H. Remainder/A-Project documents/OCR-2016-06-16 Recd NOI for Planning Sub Report-Wkg-2.pdf\", \"Link\")","v":"Link"},13776,13821,46]
[null,"2016-08-29","Letter from Kevin T. Johnson, Acting Chief, Forestry Division, County of Los Angeles Fire Department to Jodie Sackett regarding DEIR Fourth Screencheck, \"Northlake\", FFER 201600130 ",{"$f":"HYPERLINK(\"H. Remainder/A-Project documents/OCR-2016-08-29 Letter from Fire Dept-Wkg-5.pdf\", \"Link\")","v":"Link"},13822,13825,4]
[null,"2016-08-29","Letter from Tracey Jue and Captain Roosevelt, Office of the Sherriff: County of Los Angeles, to Richard J. Bruckner and Jodie Sackett regarding Review Comments: Fourth Screencheck DEIR, Northlake Development Project, County Project No. R2015-00408-(5)",{"$f":"HYPERLINK(\"H. Remainder/A-Project documents/OCR-2016-08-29 Letter from Office of the Sherriff-Wkg-5.pdf\", \"Link\")","v":"Link"},13826,13829,4]
[null,"2016-09-28","Land Division Application 2nd Revision TPM No. 73335 and Memo from Matt Benveniste, Sikand Engineering, to Sam Dea regarding changes made to Tentative Tract No. 73335 for Northlake Associeates LLC, dated 9/29/16 for 2nd revision. ",{"$f":"HYPERLINK(\"H. Remainder/A-Project documents/OCR-2016-09-28 TPM073335-Second revision Report-Wkg-4.pdf\", \"Link\")","v":"Link"},13830,13835,5]
[null,"2016-09-28","Department of Regional Planning Subdivision Committee Report for 10/27/16 report date , in working file #2",{"$f":"HYPERLINK(\"H. Remainder/A-Project documents/OCR-2016-09-28 TTM073336-Planning Sub Report-Wkg- 2.pdf\", \"Link\")","v":"Link"},13836,13841,21]
[null,null,"Attachment: Memo from Matt Benveniste, Sikand Engineering, to Sam Dea regarding changes made to Tentative Tract No. 73336 for Northlake Associeates LLC, dated 9/27/16 for 4th Revision",null,13842,13856]
[null,"2016-09-28","Letter from Richard J. Bruckner, Director of Department of Regional Planning, to Matt Benveniste, Sikand Engineering, regarding Revision Tentative Tract Map No. 073336- Notice of Incomplete Filing and associated 4th Revision documents, in working file #2",{"$f":"HYPERLINK(\"H. Remainder/A-Project documents/OCR-2016-09-28 TTM073336-Recd NOI for Pl Sub Report-Wkg-2.pdf\", \"Link\")","v":"Link"},13857,13869,13]
[null,"2016-09-29","Letter from Richard J. Bruckner, Director of Department of Regional Planning, to Matt Benveniste, Sikand Engineering, regarding Tentative Parcel Map No. 073335- Notice of Incomplete Filing and associated 2nd Revision documents, in working file #4",{"$f":"HYPERLINK(\"H. Remainder/A-Project documents/OCR-2016-09-29 TTM073336-Recd NOI for Pl Sub Report-Wkg-4.pdf\", \"Link\")","v":"Link"},13870,13879,10]
[null,"2017-05-24","Speaker request for Agenda Item No. 2",{"$f":"HYPERLINK(\"H. Remainder/A-Project documents/OCR-2017-05-24 Speaker request cards for Agenda Item 2-Wkg-5.pdf\", \"Link\")","v":"Link"},13880,13895,16]
[null,"2017-06-16","Letter from Hannah Bentley to Jodie Sackett regarding Northlake Specific Plan DSEIR Comments, State Clearinghouse No. 2015031080 and attachments. ",{"$f":"HYPERLINK(\"H. Remainder/A-Project documents/OCR-2017-06-16 Letter from Bentley-Wkg-5.pdf\", \"Link\")","v":"Link"},13896,13946,51]
[null,"2017-09-12","Department of Regional Planning Subdivision Committee Report for 10/19/17 report date: Vesting Tentative Parcel Map No. 073335, 3rd revision in working file #4",{"$f":"HYPERLINK(\"H. Remainder/A-Project documents/OCR-2017-09-12 Dept. Reg PL subdiv Report-Wkg-4.pdf\", \"Link\")","v":"Link"},13947,13954,27]
[null,null,"Attachment: Memo from Matt Benveniste, Sikand Engineering, to Sam Dea regarding changes made to Tentative Tract No. 73336 for Northlake Associeates LLC,dated June 2017 for 3rd Revision of PM073335",null,13955,13973]
[null,"2017-09-13","Department of Regional Planning Subdivision Committee Report for 10/19/17 report date, in working file #2",{"$f":"HYPERLINK(\"H. Remainder/A-Project documents/OCR-2017-09-13 Planning Subdivision Report-Wkg-2.pdf\", \"Link\")","v":"Link"},13974,13977,18]
[null,null,"Attachment: Memo from Matt Benveniste, Sikand Engineering, to Sam Dea regarding changes made to Tentative Tract No. 73336 for Northlake Associeates LLC,dated 8/29/17 for 5th Revision",null,13978,13991]
[null,"2017-09-13","Letter from Dennis Slavin, Acting Director of Department of Regional Planning, to Raman Gaur, Sikand Engineering, regarding Revision Tentative Tract Map No. 073336- Notice of Incomplete Filing and associated 5th Revision documents, in working file #2",{"$f":"HYPERLINK(\"H. Remainder/A-Project documents/OCR-2017-09-13 Recd NOI Planning Sub Report-Wkg-2.pdf\", \"Link\")","v":"Link"},13992,14011,20]
[null,"2018-01-25","Invoice fom Daily Journal Corporation and Proof of Publication from La Opinion on 1/22/18 and La Signal on 1/20/18 for Notice of Hearing ",{"$f":"HYPERLINK(\"H. Remainder/A-Project documents/OCR-2018-01-25 Daily Journal POP-Wkg-5.pdf\", \"Link\")","v":"Link"},14012,14017,6]
[null,"2018-02-21","Letter from Rudy Ortega,Jr. to Los Angeles County Regional Planning Commission Fernandeno Tataviam Band of Mission Indians ' Comments on Northlake Specific Plan Project",{"$f":"HYPERLINK(\"H. Remainder/A-Project documents/OCR-2018-02-21 Letter from Ortega-Wkg-5.pdf\", \"Link\")","v":"Link"},14018,14018,1]
[null,"2018-02-21","titled \"RPC Hearing packet 1 of 3\"",{"$f":"HYPERLINK(\"H. Remainder/A-Project documents/OCR-2018-02-21 RPC Hearing Packet 1 of 3.pdf\", \"Link\")","v":"Link"},14019,14548,530]
[null,"2018-02-21","titled \"RPC Hearing packet 2 of 3\"",{"$f":"HYPERLINK(\"H. Remainder/A-Project documents/OCR-2018-02-21 RPC Hearing Packet 2 of 3.pdf\", \"Link\")","v":"Link"},14549,15071,523]
[null,"2018-02-21","titled \"RPC Hearing packet 3 of 3\"",{"$f":"HYPERLINK(\"H. Remainder/A-Project documents/OCR-2018-02-21 RPC Hearing Packet 3 of 3.pdf\", \"Link\")","v":"Link"},15072,15588,517]
[null,"2018-02-21","Speaker request for Agenda Item No. 5",{"$f":"HYPERLINK(\"H. Remainder/A-Project documents/OCR-2018-02-21 Speaker cards-Wkg-5.pdf\", \"Link\")","v":"Link"},15589,15607,19]
[null,"2018-02-22","2 part map from Santa Monica Mountains Conservancy for PN R2015-00408-(5)",{"$f":"HYPERLINK(\"H. Remainder/A-Project documents/OCR-2018-02-22 Map-SMMC-Wkg-5.pdf\", \"Link\")","v":"Link"},15608,15609,2]
[null,"2018-03-01","Letter from Michael Y. Takeshita to Jodie Sackett regarding FEIR \"Northlake Specific Plan\"",{"$f":"HYPERLINK(\"H. Remainder/A-Project documents/OCR-2018-03-01 Letter from Takeshita-Wkg-5.pdf\", \"Link\")","v":"Link"},15610,15612,3]
[null,"2018-04-05","Letter from Jodie Sackett to Doug Smith and Commissioners re Project No. R2015-00408-(5) \"Northlake Specific Plan\" - RPC Meeting 4/18/18 - Agenda Item 6: - Supplemental Memo for Project Update and Response in working file #5 ",{"$f":"HYPERLINK(\"H. Remainder/A-Project documents/OCR-2018-04-05 Letter re Supp Memo-Wkg-5.pdf\", \"Link\")","v":"Link"},15613,15774,162]
[null,"2018-04-16","Letter from John Rose, Center for Biological Diversity, to Jodie Sackett regarding NorthLake Specific Plan, Final Supplemental Environmental Impact Report",{"$f":"HYPERLINK(\"H. Remainder/A-Project documents/OCR-2018-04-16 Ltr from Rose-Lake Wkg-5.pdf\", \"Link\")","v":"Link"},15775,15818,44]
[null,"2018-04-18","Speaker request for Agenda Item No. 6",{"$f":"HYPERLINK(\"H. Remainder/A-Project documents/OCR-2018-04-18 Speaker cards-Wkg-5.pdf\", \"Link\")","v":"Link"},15819,15826,8]
[null,"2018-04-19","Letter from Amy Bodek to John Arvin regarding approval on April 18, 2018 of the Northlake Specific Plan Project by the Regional Planning Commission and Affidavit of Acceptance and NOD documents",{"$f":"HYPERLINK(\"H. Remainder/A-Project documents/OCR-2018-04-19 Letter from Bodek re approval-Wkg-5.pdf\", \"Link\")","v":"Link"},15827,15971,145]
[null,"2018-08-23","Scan of envelopes sending Notice of Public Hearing to Special Projects, Land Division, Zoning Permits, and LDCC Los Angeles county Dept. of Regional Planning and copy of the Notice of Public Hearing concerning project no. R2015-00408-(5) from the County of Los Angeles Board of Supervisors , stamped received on 8/23/19",{"$f":"HYPERLINK(\"H. Remainder/A-Project documents/OCR-2018-08-23 Notice of Public hearing mailings-Wkg-5.pdf\", \"Link\")","v":"Link"},15972,15983,12]
[null,"2018-08-28","Letter from Gregor Blackburn, FEMA, to Jodie Sackett regarding comments on Notice of Public Hearing for project known as The Northlake Specific Plan Project.",{"$f":"HYPERLINK(\"H. Remainder/A-Project documents/OCR-2018-08-28 Letter from FEMA-Wkg-5.pdf\", \"Link\")","v":"Link"},15984,15986,3]
[null,"2018-08-28","Letter from Joan P. Kelly and Marc Blain, PSOMAS, to Jodie Sackett regarding NotthLake Project-Responses to Appeals of the RPC Action",{"$f":"HYPERLINK(\"H. Remainder/A-Project documents/OCR-2018-08-28 Letter from PSOMAS-Wkg-5.pdf\", \"Link\")","v":"Link"},15987,15998,12]
[null,"2018-09-13","Letters from Tony Bomkamp,Glenn Lukos Associastes, to Damon Mamalakis regarding Independent Review of Biological Resources Assessment by BonTerra Psomas for the Northlake Final Supplemental EIR",{"$f":"HYPERLINK(\"H. Remainder/A-Project documents/OCR-2018-09-13 Letter from Mamalakis-Wkg File 5.pdf\", \"Link\")","v":"Link"},15999,16064,66]
[null,"2018-09-24","Letters from Damon Mamalakis to Los Angeles Board of Supervisors regarding Project No. R2015-00408-(5), in the Unincorporated Community of Castaic. Item No. 11 on the Board Agenda for September 25.2018, dated 9/24/18, 9/24/18 and 9/21/18",{"$f":"HYPERLINK(\"H. Remainder/A-Project documents/OCR-2018-09-24 Letters from Mamalakis-Wkg File 5.pdf\", \"Link\")","v":"Link"},16065,16070,6]
[null,"2019-04-04","Notice of Determination and associated documents including proof of service",{"$f":"HYPERLINK(\"H. Remainder/A-Project documents/OCR-2019-04-04 NOD-Wkg-5.pdf\", \"Link\")","v":"Link"},16071,16089,19]
[null,"undated","Land Use Map",{"$f":"HYPERLINK(\"H. Remainder/A-Project documents/OCR-undated-Land Use Map-Wkg-5.pdf\", \"Link\")","v":"Link"},16090,16090,1]
[null,"undated","Document titled \"Add SP Planning Area (Exhibit 11-1) cross-reference column next to PAD# column such as:\" in working file #1",{"$f":"HYPERLINK(\"H. Remainder/A-Project documents/OCR-undated-Wkg-1-Add SP Planning.pdf\", \"Link\")","v":"Link"},16091,16091,1]
[null,"undated","Document titled \"Castaic Lake State Recreation Area-Lagoon I Lower Lake Rules\" in working file #1",{"$f":"HYPERLINK(\"H. Remainder/A-Project documents/OCR-undated-Wkg-1-Castaic Lake Rules.pdf\", \"Link\")","v":"Link"},16092,16093,2]
[null,"undated","Document titled \"Draft Northlake Design Guidebook\" with hand written notes including Northlake project maps in working file #1",{"$f":"HYPERLINK(\"H. Remainder/A-Project documents/OCR-undated-Wkg-1-Draft NL Design Guidebook and maps.pdf\", \"Link\")","v":"Link"},16094,16174,81]
[null,"undated","Document titled \"Google map for 950 S Flower Street\" in working file #1",{"$f":"HYPERLINK(\"H. Remainder/A-Project documents/OCR-undated-Wkg-1-Google map for 950 S Flower Street.pdf\", \"Link\")","v":"Link"},16175,16175,1]
[null,"undated","Document checklist titled \"NORTHLAKE SEIR\" in working file #1",{"$f":"HYPERLINK(\"H. Remainder/A-Project documents/OCR-undated-Wkg-1-NL SEIR checklist.pdf\", \"Link\")","v":"Link"},16176,16178,3]
[null,null,"b. Emails"]
[null,"2014-03-13","Email from Paul Mc Carthy to Susan Tae regarding NORTHLAKE!!",{"$f":"HYPERLINK(\"H. Remainder/B-Emails/OCR-2014-03-13 Mc Carthy email re NORTHLAKE!!.pdf\", \"Link\")","v":"Link"},16179,16179,1]
[null,"2014-05-21","Email from Samuel Dea to Yanai, Mark regarding SMARA - Areas of An area that contains mineral deposits and is of regional or statewide significance",{"$f":"HYPERLINK(\"H. Remainder/B-Emails/OCR-2014-05-21 Dea email RE_ SMARA - Areas of An area that contains mineral deposits.pdf\", \"Link\")","v":"Link"},16180,16183,4]
[null,"2014-06-17","Email from Susan Tae to Mark Child; Kim Szalay regarding Northlake notes",{"$f":"HYPERLINK(\"H. Remainder/B-Emails/OCR-2014-06-17 Tae email re FW_ Northlake notes.pdf\", \"Link\")","v":"Link"},16184,16185,2]
[null,"2014-08-26","Email from Samuel Dea to Kim Szalay regarding Northlake and DMS",{"$f":"HYPERLINK(\"H. Remainder/B-Emails/OCR-2014-08-26 Dea email string RE_ Northlake and DMS.pdf\", \"Link\")","v":"Link"},16186,16186,1]
[null,"2014-09-03","Email from Kim Szalay to Samuel Dea regarding Northlake Design Session",{"$f":"HYPERLINK(\"H. Remainder/B-Emails/OCR-2014-09-03 Northlake Design Session.pdf\", \"Link\")","v":"Link"},16187,16187,1]
[null,"2014-09-04","Email from Samuel Dea to Norma E. Garcia regarding Northlake ",{"$f":"HYPERLINK(\"H. Remainder/B-Emails/OCR-2014-09-04 Dea email re Northlake.pdf\", \"Link\")","v":"Link"},16188,16188,1]
[null,"2014-09-04","Email from Szalay to Samuel Dea regarding Northlake and Plan of Bikeways",{"$f":"HYPERLINK(\"H. Remainder/B-Emails/OCR-2014-09-04 Szalay email re NOrthlake and Plan of Bikeways.pdf\", \"Link\")","v":"Link"},16189,16191,3]
[null,"2014-09-16","Email from Kim Szalay to Susan Tae regarding Northlake",{"$f":"HYPERLINK(\"H. Remainder/B-Emails/OCR-2014-09-16 Szalay email re Northlake .pdf\", \"Link\")","v":"Link"},16192,16197,6]
[null,"2014-09-16","Email from Kim Szalay to Susan Tae regarding Northlake Flexibility provisions",{"$f":"HYPERLINK(\"H. Remainder/B-Emails/OCR-2014-09-16 Szalay email re Northlake Flexibility provisions.pdf\", \"Link\")","v":"Link"},16198,16199,2]
[null,"2014-09-17","Email from Samuel Dea to Kim Szalay regarding Northlake",{"$f":"HYPERLINK(\"H. Remainder/B-Emails/OCR-2014-09-17 Dea email RE_ Northlake .pdf\", \"Link\")","v":"Link"},16200,16200,1]
[null,"2014-09-23","Email from Ashley Rogers to Kim Szalay at 1:51 pm regarding Entrada South - Cumulative section & revised Energy section and attachments:",{"$f":"HYPERLINK(\"H. Remainder/B-Emails/OCR-2014-09-23 Rogers email 151 re-1-Entrada South-Cumulative section-revised Energy.pdf\", \"Link\")","v":"Link"},16201,16201,1]
[null,null,"Attachment: 4.2 Cumulative Impacts Methodology.doc",{"$f":"HYPERLINK(\"H. Remainder/B-Emails/OCR-2014-09-23 Rogers email 151 re-2-4.2 Cumulative Impacts Methodology.pdf\", \"Link\")","v":"Link"},16202,16217,16]
[null,null,"Attachment: Appendix - TAZ Land Use Database (2012-2024).xlsx (converted to pdf document with labeled tabs 1-3)",{"$f":"HYPERLINK(\"H. Remainder/B-Emails/OCR-2014-09-23 Rogers email 151 re-3-Appendix-TAZ Land Use Database2012-2024-Tabs 1-3.pdf\", \"Link\")","v":"Link"},16218,16283,66]
[null,null,"Attachment: Fig_4.2-1_Cumulative Geography Comparison Map.pdf",{"$f":"HYPERLINK(\"H. Remainder/B-Emails/OCR-2014-09-23 Rogers email 151 re-4-Fig_4.2-1_Cumulative Geography Comparison Map.pdf\", \"Link\")","v":"Link"},16284,16284,1]
[null,null,"Attachment: Fig_4.2-2_Location of Related Projects.pdf;",{"$f":"HYPERLINK(\"H. Remainder/B-Emails/OCR-2014-09-23 Rogers email 151 re-5-Fig_4.2-2_Location of Related Projects.pdf\", \"Link\")","v":"Link"},16285,16285,1]
[null,null,"Attachment: 5.23 Utilities and Service Systems---Energy.doc",{"$f":"HYPERLINK(\"H. Remainder/B-Emails/OCR-2014-09-23 Rogers email 151 re-6-5.23 Utilities and Service Systems---Energy.pdf\", \"Link\")","v":"Link"},16286,16305,20]
[null,"2014-09-23","Email from Ashley Rogers to Kim Szalay at 2:09 pm regarding Entrada South - Cumulative section & revised Energy section and attachments:",{"$f":"HYPERLINK(\"H. Remainder/B-Emails/OCR-2014-09-23 Rogers email 209 RE_A-Entrada South - Cumulative section-revised Energy.pdf\", \"Link\")","v":"Link"},16306,16307,2]
[null,null,"Attachment 1: 4.2 Cumulative Impacts Methodology.doc-(revised)",{"$f":"HYPERLINK(\"H. Remainder/B-Emails/OCR-2014-09-23 Rogers email 209 RE-B-4.2 Cumulative Impacts Methodology.pdf\", \"Link\")","v":"Link"},16308,16323,16]
[null,"2014-09-24","Email string between Steve Burger, Samuel Dea and John Chin regarding B&T",{"$f":"HYPERLINK(\"H. Remainder/B-Emails/OCR-2014-09-24 Burger email string RE_ B&T.pdf\", \"Link\")","v":"Link"},16324,16328,5]
[null,"2014-09-24","Email from Kim Szalay to Samuel Dea regarding Northlake Offisite O.S. site 3244-0140021 and 022",{"$f":"HYPERLINK(\"H. Remainder/B-Emails/OCR-2014-09-24 Szalay email re FW_ Northlake Offisite O.S. site 3244-0140021 and 022.pdf\", \"Link\")","v":"Link"},16329,16332,4]
[null,"2014-09-24","Email from Kim Szalay to Clement Lau regarding Northlake and Parks",{"$f":"HYPERLINK(\"H. Remainder/B-Emails/OCR-2014-09-24 Szalay email RE_ Northlake and Parks.pdf\", \"Link\")","v":"Link"},16333,16334,2]
[null,"2014-09-25","Email from Kim Szalay to Susan Tae regarding Northlake SP and Golf Course",{"$f":"HYPERLINK(\"H. Remainder/B-Emails/OCR-2014-09-25 Szalay email re Northlake SP and Golf Course.pdf\", \"Link\")","v":"Link"},16335,16335,1]
[null,"2014-09-25","Email from Kim Szalay to John Arvin regarding Northlake Trails and CSD, Town Council consultation",{"$f":"HYPERLINK(\"H. Remainder/B-Emails/OCR-2014-09-25 Szalay email re Northlake Trails and CSD, Town Council consultation.pdf\", \"Link\")","v":"Link"},16336,16336,1]
[null,"2014-09-25","Email from Kim Szalay to Randy Jackson regarding Northlake Graphics",{"$f":"HYPERLINK(\"H. Remainder/B-Emails/OCR-2014-09-25 Szalay email string RE_ Northlake Graphics.pdf\", \"Link\")","v":"Link"},16337,16338,2]
[null,"2014-09-29","Email from Samuel Dea to John Arvin regarding NorthLake",{"$f":"HYPERLINK(\"H. Remainder/B-Emails/OCR-2014-09-29 Dea email RE_ NorthLake.pdf\", \"Link\")","v":"Link"},16339,16339,1]
[null,"2014-09-30","Email from Kim Szalay to Susan Tae Northlake SP Consistency regarding ",{"$f":"HYPERLINK(\"H. Remainder/B-Emails/OCR-2014-09-30 Szalay email 2 re Northlake SP Consistency.pdf\", \"Link\")","v":"Link"},16340,16341,2]
[null,"2014-10-01","Email from Richard Bruckner to Kim Szalay regarding Northlake SP consistency",{"$f":"HYPERLINK(\"H. Remainder/B-Emails/OCR-2014-10-01 Bruckner email Re_ Northlake SP consistency.pdf\", \"Link\")","v":"Link"},16342,16342,1]
[null,"2014-10-01","Email from Jennifer Marks to Kim Szalay regarding Northlake: Castaic Area List of Locally Indigenous Plants / CSD regulation",{"$f":"HYPERLINK(\"H. Remainder/B-Emails/OCR-2014-10-01 Marks email RE-Northlake-Castaic Area List of Locally Indigenous Plants.pdf\", \"Link\")","v":"Link"},16343,16344,2]
[null,"2014-10-01","Email from Kim Szalay to john@woodridgecapital.com regarding Northlake SP consistency",{"$f":"HYPERLINK(\"H. Remainder/B-Emails/OCR-2014-10-01 Szalay email re Northlake SP consistency.pdf\", \"Link\")","v":"Link"},16345,16345,1]
[null,"2014-10-01","Email from Kim Szalay to Samuel Dea regarding Northlake SP consistency",{"$f":"HYPERLINK(\"H. Remainder/B-Emails/OCR-2014-10-01 Szalay email string re FW_ Northlake SP consistency.pdf\", \"Link\")","v":"Link"},16346,16347,2]
[null,"2014-10-01","Email from Susan Tae to Kim Szalay regarding Northlake SP Consistency",{"$f":"HYPERLINK(\"H. Remainder/B-Emails/OCR-2014-10-01 Tae email RE_ Northlake SP Consistency.pdf\", \"Link\")","v":"Link"},16348,16349,2]
[null,"2014-10-02","Email from Clement Lau to Kim Szalay regarding Northlake Greenspace",{"$f":"HYPERLINK(\"H. Remainder/B-Emails/OCR-2014-10-02 Lau email A-PM 143 RE_ Northlake Greenspace.pdf\", \"Link\")","v":"Link"},16350,16353,4]
[null,"2014-10-02","Email from Kim Szalay to Clement Lau regarding Northlake Greenspace with attachment:",{"$f":"HYPERLINK(\"H. Remainder/B-Emails/OCR-2014-10-02 Szalay email 808A am re NL Greenspace.pdf\", \"Link\")","v":"Link"},16354,16354,1]
[null,null,"Attachment: titled 2014-09-30 Overall Exhibits_Parks_email.pdf",{"$f":"HYPERLINK(\"H. Remainder/B-Emails/OCR-2014-10-02 Szalay email 808B am re Overall Exhibits_Parks_email.pdf\", \"Link\")","v":"Link"},16355,16355,1]
[null,"2014-10-02","Email from Kim Szalay to Samuel Dea regarding Northlake SP transfers",{"$f":"HYPERLINK(\"H. Remainder/B-Emails/OCR-2014-10-02 Szalay email 830 am re Northlake SP transfers.pdf\", \"Link\")","v":"Link"},16356,16356,1]
[null,"2014-10-02","Email from Kim Szalay to Scott Ashlock regarding Northlake",{"$f":"HYPERLINK(\"H. Remainder/B-Emails/OCR-2014-10-02 Szalay email 834 am re Northlake.pdf\", \"Link\")","v":"Link"},16357,16357,1]
[null,"2014-10-02","Email from Kim Szalay to Samuel Dea regarding Northlake Greenspace",{"$f":"HYPERLINK(\"H. Remainder/B-Emails/OCR-2014-10-02 Szalay email 933 am re FW_ Northlake Greenspace.pdf\", \"Link\")","v":"Link"},16358,16360,3]
[null,"2014-10-02","Email from Kim Szalay to John Arvin; Scott Ashlock; Randy Jackson regarding Northlake Greenspace",{"$f":"HYPERLINK(\"H. Remainder/B-Emails/OCR-2014-10-02 Szalay email B-PM 147 re FW_ Northlake Greenspace.pdf\", \"Link\")","v":"Link"},16361,16361,1]
[null,"2014-10-02","Email from Kim Szalay to Scott Ashlock; Randy Jackson; John Arvin regarding Northlake SP Density Calculation - for next meeting among other things",{"$f":"HYPERLINK(\"H. Remainder/B-Emails/OCR-2014-10-02 Szalay email PM 603A re Northlake Density Calculation.pdf\", \"Link\")","v":"Link"},16362,16363,2]
[null,null,"Attachment: II. Development Plan, Section E. Land Use Plan for 1. Proposed Uses and Intensities titled \"Northlake Density Table DU per AC\"",{"$f":"HYPERLINK(\"H. Remainder/B-Emails/OCR-2014-10-02 Szalay email PM 603B pm re Northlake Density Table DU per AC.pdf\", \"Link\")","v":"Link"},16364,16365,2]
[null,"2014-10-08","Email from Kim Szalay to Samuel Dea regarding Castaic CSD regulations",{"$f":"HYPERLINK(\"H. Remainder/B-Emails/OCR-2014-10-08 Szalay email stirng re FW_ Castaic CSD regulations.pdf\", \"Link\")","v":"Link"},16366,16369,4]
[null,"2014-10-21","Email from Kim Szalay to Joseph Decruyenaere regarding Entrada South - Bio section!",{"$f":"HYPERLINK(\"H. Remainder/B-Emails/OCR-2014-10-21 Szalay email re FW_ Entrada South-Bio.pdf\", \"Link\")","v":"Link"},16370,16371,2]
[null,null,"Attachment: 5.0 Environmental Impact Analysis, section 4. Biological Resources titled \"5.04 Biological Resources.doc\"",{"$f":"HYPERLINK(\"H. Remainder/B-Emails/OCR-2014-10-21 Szalay email re FW_ Entrada South-Bio-5.04 Bio Resources.pdf\", \"Link\")","v":"Link"},16372,16616,245]
[null,"2014-10-27","Email from Kim Szalay to Ashley Rogers regarding Entrada So. Biota Review by DRP",{"$f":"HYPERLINK(\"H. Remainder/B-Emails/OCR-2014-10-27 Szalay email re-A-Entrada So. Biota Review by DRP w att.pdf\", \"Link\")","v":"Link"},16617,16617,1]
[null,null,"Attachment: titled 5.04 Biological Resources KKS Review (partial).doc",{"$f":"HYPERLINK(\"H. Remainder/B-Emails/OCR-2014-10-27 Szalay email re-B-att 5.04 Bio Resources KKS Rev -partial.pdf\", \"Link\")","v":"Link"},16618,16865,248]
[null,"2014-11-05","Email from Jennifer Cerritos to Samuel Dea; Kim Szalay regarding Northlake Bike Path Exhibit",{"$f":"HYPERLINK(\"H. Remainder/B-Emails/OCR-2014-11-05 Cerritos email re NL Bike Path Exhibit.pdf\", \"Link\")","v":"Link"},16866,16866,1]
[null,null,"Attachment: titled \"Northlake Bike Path Exhibit\", dated 4/11/14",{"$f":"HYPERLINK(\"H. Remainder/B-Emails/OCR-2014-11-05 Cerritos email re NL Bike Path Exhibit-att.pdf\", \"Link\")","v":"Link"},16867,16867,1]
[null,"2014-11-05","Email from Joseph Decruyenaere to Kim Szalay regarding Entrada So. Biota Review by DRP",{"$f":"HYPERLINK(\"H. Remainder/B-Emails/OCR-2014-11-05 Decruyenaere email RE-A-Entrada So. Biota Review by DRP.pdf\", \"Link\")","v":"Link"},16868,16869,2]
[null,null,"Attachment: titled \"5 04 Biological Resources_jd comments.doc\"",{"$f":"HYPERLINK(\"H. Remainder/B-Emails/OCR-2014-11-05 Decruyenaere email re-B-att 5 04 Bio Resources_jd.pdf\", \"Link\")","v":"Link"},16870,17117,248]
[null,"2014-11-05","Email from Kim Szalay to Ashley Rogers regarding Entrada So. Biota Review by DRP",{"$f":"HYPERLINK(\"H. Remainder/B-Emails/OCR-2014-11-05 Szalay email FW_A- Entrada So. Biota Review by DRP.pdf\", \"Link\")","v":"Link"},17118,17118,1]
[null,null,"Attachment: titled \"5 04 Biological Resources_jd comments.doc\"",{"$f":"HYPERLINK(\"H. Remainder/B-Emails/OCR-2014-11-05 Szalay email FW_B-5 04 Biological Resources_jd comments.pdf\", \"Link\")","v":"Link"},17119,17366,248]
[null,"2014-11-06","Email from Kim Szalay to Clement Lau regarding Northlake DRP/Parks mtg.",{"$f":"HYPERLINK(\"H. Remainder/B-Emails/OCR-2014-11-06 Szalay email re Northlake DRP_Parks mtg.pdf\", \"Link\")","v":"Link"},17367,17367,1]
[null,"2014-11-12","Email from Kim Szalay to Clement Lau regarding P.S. Northlake DRP/Parks mtg.",{"$f":"HYPERLINK(\"H. Remainder/B-Emails/OCR-2014-11-12 Szalay email RE_ P.S. Northlake DRP_Parks mtg..pdf\", \"Link\")","v":"Link"},17368,17369,2]
[null,"2014-11-17","Email from Kim Szalay to Randy Jackson regarding Northlake ",{"$f":"HYPERLINK(\"H. Remainder/B-Emails/OCR-2014-11-17 Szalay email RE_ North Lake.pdf\", \"Link\")","v":"Link"},17370,17370,1]
["2014-11-17","2014-11-20","Email from Ashley Rogers to Kim Szalay to regarding Cumulative Methodology",{"$f":"HYPERLINK(\"H. Remainder/B-Emails/OCR-2014-11-20 Rogers email re-A-Cumulative Methodology w att.pdf\", \"Link\")","v":"Link"},17371,17371,1]
[null,null,"Attachment: titled \"4.2 Cumulative Impacts Methodology.doc\"",{"$f":"HYPERLINK(\"H. Remainder/B-Emails/OCR-2014-11-20 Rogers email re-B-4.2 Cumulative Impacts Methodology.pdf\", \"Link\")","v":"Link"},17372,17387,16]
[null,"2014-11-20","Email from Kim Szalay to Ashley Rogers regarding ENtrada So. Cumulative Methodology CLEAR",{"$f":"HYPERLINK(\"H. Remainder/B-Emails/OCR-2014-11-20 Szalay-A email ENtrada So. Cumulative MethCLEAR.pdf\", \"Link\")","v":"Link"},17388,17388,1]
[null,null,"Attachment: titled \"4.2 Cumulative Impacts Methodology 2nd review KKS CLEAR.doc\"",{"$f":"HYPERLINK(\"H. Remainder/B-Emails/OCR-2014-11-20 Szalay-B 4.2 Cumulative Impacts Meth 2nd review KKS CLEAR.pdf\", \"Link\")","v":"Link"},17389,17404,16]
[null,"2014-12-10","Email Clement Lau from Kim Szalay to Northlake DRP/Parks mtg. regarding ",{"$f":"HYPERLINK(\"H. Remainder/B-Emails/OCR-2014-12-10 Lau email RE_ Northlake DRP_Parks mtg.pdf\", \"Link\")","v":"Link"},17405,17409,5]
[null,"2014-12-11","Email from Scott Ashlock, Placeworks, to Kim Szalay regarding Electronic Copy from today's meeting and 3 attachments:",{"$f":"HYPERLINK(\"H. Remainder/B-Emails/OCR-2014-12-11 1-Ashlock email re E-Copy from todays mtg.pdf\", \"Link\")","v":"Link"},17410,17410,1]
[null,null,"Attachment 1: titled-Draft Internal Use Only-Conceptual Land Use Plan titled-Gross w DU breakdown_600sc",{"$f":"HYPERLINK(\"H. Remainder/B-Emails/OCR-2014-12-11 2-Gross w DU breakdown_600sc email.pdf\", \"Link\")","v":"Link"},17411,17411,1]
[null,null,"Attachment 2: titled-Draft Internal Use Only-Conceptual Land Use Plan titled-OS isolated_600sc ",{"$f":"HYPERLINK(\"H. Remainder/B-Emails/OCR-2014-12-11 3-OS isolated_600sc email.pdf\", \"Link\")","v":"Link"},17412,17412,1]
[null,null,"Attachment 3: titled-Draft Internal Use Only-Sports Park-Diagram titled-Sports Park email",{"$f":"HYPERLINK(\"H. Remainder/B-Emails/OCR-2014-12-11 4-Sports Park email.pdf\", \"Link\")","v":"Link"},17413,17414,2]
[null,"2014-12-11","Email string between Samuel Dea, Mark Sikand and John Arvin regarding Thursday meeting",{"$f":"HYPERLINK(\"H. Remainder/B-Emails/OCR-2014-12-11 5-Dea email re Thursday.pdf\", \"Link\")","v":"Link"},17415,17415,1]
[null,"2014-12-22","Email from Kim Szalay to John Arvin regarding Northlake and Parks",{"$f":"HYPERLINK(\"H. Remainder/B-Emails/OCR-2014-12-22 Szalay email re Northlake and Parks.pdf\", \"Link\")","v":"Link"},17416,17416,1]
[null,"2014-12-22","Email from Kim Szalay to Clement Lau regarding Northlake DRAFT Concept Plans / Sports Fields Concept",{"$f":"HYPERLINK(\"H. Remainder/B-Emails/OCR-2014-12-22 Szalay email RE_ Northlake DRAFT Concept Plans _ Sports Fields Concept.pdf\", \"Link\")","v":"Link"},17417,17420,4]
[null,"2015-01-07","Email from Jennifer Marks to Kim Szalay regarding NorthLake Initial Study Status",{"$f":"HYPERLINK(\"H. Remainder/B-Emails/OCR-2015-01-07 Marks NorthLake Initial Study Status.pdf\", \"Link\")","v":"Link"},17421,17421,1]
[null,"2015-01-08","Email from Kim Szalay to Mark Sikand regarding Northlake - Westside Private Drive Manual",{"$f":"HYPERLINK(\"H. Remainder/B-Emails/OCR-2015-01-08 Szalay email-A1-NL Westside Private Drive Manual.pdf\", \"Link\")","v":"Link"},17422,17422,1]
[null,null,"Attachment: titled \"Private Drive Manual - LDAC.pdf\"",{"$f":"HYPERLINK(\"H. Remainder/B-Emails/OCR-2015-01-08 Szalay email-A2-Private Drive Manual - LDAC.pdf\", \"Link\")","v":"Link"},17423,17454,32]
[null,"2015-01-13","Email from Matt Benveniste to Gloria Taylor regarding Northlake resubmittal",{"$f":"HYPERLINK(\"H. Remainder/B-Emails/OCR-2015-01-13 Northlake resubmittal.pdf\", \"Link\")","v":"Link"},17455,17455,1]
[null,"2015-01-26","Email from Kimia Fatehi to Mark Child regarding NorthLake Specific Plan Project",{"$f":"HYPERLINK(\"H. Remainder/B-Emails/OCR-2015-01-26 Fatehi NorthLake Specific Plan Project.pdf\", \"Link\")","v":"Link"},17456,17456,1]
[null,"2015-01-27","Email string between John Arvin, Kim Szalay, Samuel Dea and Jennifer Marks from regarding Northlake: Kimia Fatehi Call",{"$f":"HYPERLINK(\"H. Remainder/B-Emails/OCR-2015-01-27 ArvinRE_ Northlake_ Kimia Fatehi Call.pdf\", \"Link\")","v":"Link"},17457,17458,2]
[null,"2015-01-27","Email string between Kim Szalay, Jennifer Marks, David Smith, John Arvin,and Joan Kelly regarding Northlake Specific Plan Project",{"$f":"HYPERLINK(\"H. Remainder/B-Emails/OCR-2015-01-27 Szalay RE_ Northlake Specific Plan Project.pdf\", \"Link\")","v":"Link"},17459,17461,3]
[null,"2015-01-28","Email from Jennifer Marks to Kim Szalay regarding NorthLake Draft Initial Study",{"$f":"HYPERLINK(\"H. Remainder/B-Emails/OCR-2015-01-28 Marks email-A1-NL Draft IS.pdf\", \"Link\")","v":"Link"},17462,17462,1]
[null,null,"Attachment: titled \"NorthLake Initial Study 012815.docx\"",{"$f":"HYPERLINK(\"H. Remainder/B-Emails/OCR-2015-01-28 Marks email-A2-NorthLake Initial Study 012815.pdf\", \"Link\")","v":"Link"},17463,17524,62]
[null,"2015-01-29","Email from Mark Sikand to Kim Szalay regarding NL Fire lanes and VTTM / Exhibit Map",{"$f":"HYPERLINK(\"H. Remainder/B-Emails/OCR-2015-01-29 Sikand RE_ NL Fire lanes and VTTM _ Exhibit Map.pdf\", \"Link\")","v":"Link"},17525,17525,1]
[null,"2015-02-03","Email from Kim Szalay to John Arvin regarding Northlake Recycled Water",{"$f":"HYPERLINK(\"H. Remainder/B-Emails/OCR-2015-02-03 Szalay Northlake Recycled Water.pdf\", \"Link\")","v":"Link"},17526,17526,1]
[null,"2015-02-04","Email from Kim Szalay to Jennifer Marks regarding Northlake I.S. Appendix F sample",{"$f":"HYPERLINK(\"H. Remainder/B-Emails/OCR-2015-02-04 Szalay Northlake I.S. Appendix F sample.pdf\", \"Link\")","v":"Link"},17527,17528,2]
[null,"2015-02-04","Email from Kim Szalay to Jennifer Marks regarding NorthLake Draft Initial Study",{"$f":"HYPERLINK(\"H. Remainder/B-Emails/OCR-2015-02-04 Szalay-A1-RE_453pm NL Draft IS with att.pdf\", \"Link\")","v":"Link"},17529,17530,2]
[null,null,"Attachment: titled \"NorthLake Initial Study 012815 KKS.docx\"",{"$f":"HYPERLINK(\"H. Remainder/B-Emails/OCR-2015-02-04 Szalay-A2-NorthLake Initial StudyKKS.pdf\", \"Link\")","v":"Link"},17531,17599,69]
[null,"2015-02-04","Email from Kim Szalay to Jennifer Marks at 5:06 pm regarding NorthLake Draft Initial Study",{"$f":"HYPERLINK(\"H. Remainder/B-Emails/OCR-2015-02-04 Szalay-B-RE_506pm NorthLake Draft Initial Study .pdf\", \"Link\")","v":"Link"},17600,17602,3]
[null,"2015-02-17","Email from John Arvin to Kim Szalay regarding Northlake Submittal Ownership/Consent form",{"$f":"HYPERLINK(\"H. Remainder/B-Emails/OCR-2015-02-17 Arvin email-A1-RE_ NL Submittal Ownership_form.pdf\", \"Link\")","v":"Link"},17603,17603,1]
[null,null,"Attachment: titled \"NorthLake TM 73336 Ownership and Consent Affidavit.pdf\"",{"$f":"HYPERLINK(\"H. Remainder/B-Emails/OCR-2015-02-17 Arvin email-A2-NL TM 73336 Ownership and Consent Affidavit.pdf\", \"Link\")","v":"Link"},17604,17605,2]
[null,"2015-02-18","Email from Steven Jones to Gloria Taylor et al. regarding Application and Cover Letter for Project No. R2015-00408 / TR073336",{"$f":"HYPERLINK(\"H. Remainder/B-Emails/OCR-2015-02-18 Jones email re-A1-App and Cover Ltr for Project R2015-00408 .pdf\", \"Link\")","v":"Link"},17606,17606,1]
[null,null,"Attachment: titled \"img-218154629-0001.pdf\"",{"$f":"HYPERLINK(\"H. Remainder/B-Emails/OCR-2015-02-18 Jones email re-A2-img-218154629-0001.pdf\", \"Link\")","v":"Link"},17607,17616,10]
[null,"2015-02-23","Email from Mark Sikand to Kim Szalay and Samuel Dea regarding Northlake and HMA",{"$f":"HYPERLINK(\"H. Remainder/B-Emails/OCR-2015-02-23 Sikand email-A1-Northlake and HMA.pdf\", \"Link\")","v":"Link"},17617,17617,1]
[null,null,"Attachment: titled \"hma_revised-draft-feir-201412.pdf\"",{"$f":"HYPERLINK(\"H. Remainder/B-Emails/OCR-2015-02-23 Sikand email-A2-hma_revised-draft-feir-201412.pdf\", \"Link\")","v":"Link"},17618,17679,62]
[null,"2015-02-23","Email from Kim Szalay to Mark Sikand regarding Northlake and HMA Ordinance and DRAFT Ordinance",{"$f":"HYPERLINK(\"H. Remainder/B-Emails/OCR-2015-02-23 Szalay RE_ NL and HMA Ordinance and DRAFT Ordinance.pdf\", \"Link\")","v":"Link"},17680,17681,2]
[null,"2015-02-26","Email from Raman Gaur to Kim Szalay regarding Northlake SCM Date Change",{"$f":"HYPERLINK(\"H. Remainder/B-Emails/OCR-2015-02-26 Gaur-A1-RE_ Northlake SCM Date Change.pdf\", \"Link\")","v":"Link"},17682,17684,3]
[null,null,"Attachment: titled \"Land Div Application - Attachment A - 2-26-15.pdf\"",{"$f":"HYPERLINK(\"H. Remainder/B-Emails/OCR-2015-02-26 Gaur-A2-Land Div Application-Att A- 2-26-15.pdf\", \"Link\")","v":"Link"},17685,17685,1]
[null,"2015-02-26","Email from Kim Szalay to Jennifer Marks regarding Northlake APNs Revised",{"$f":"HYPERLINK(\"H. Remainder/B-Emails/OCR-2015-02-26 Szalay-A1-Northlake APNs Revised.pdf\", \"Link\")","v":"Link"},17686,17686,1]
[null,null,"Attachment: titled \"Land Div Application - Attachment A Revised - 2-26-15 (4).pdf\"",{"$f":"HYPERLINK(\"H. Remainder/B-Emails/OCR-2015-02-26 Szalay-A2-Land Div App - Att A Revised.pdf\", \"Link\")","v":"Link"},17687,17687,1]
[null,"2015-02-27","Email from Michelle Tsiebos to Kim Szalay regarding TR 073336 Report due March 17",{"$f":"HYPERLINK(\"H. Remainder/B-Emails/OCR-2015-02-27 Tsiebos email-A1-TR 073336 Report due Mar 17.pdf\", \"Link\")","v":"Link"},17688,17688,1]
[null,null,"Attachment: titled \"TR 073336 Castaic Canyon-DPH-02272015.pdf\"",{"$f":"HYPERLINK(\"H. Remainder/B-Emails/OCR-2015-02-27 Tsiebos email-A2-TR 073336 Castaic Canyon-DPH-02272015.pdf\", \"Link\")","v":"Link"},17689,17689,1]
[null,"2015-03-07","Email from Kim Szalay to Jennifer Marks regarding Northlake I.S. Cleared",{"$f":"HYPERLINK(\"H. Remainder/B-Emails/OCR-2015-03-07 Szalay email-A1-Northlake I.S. Cleared.pdf\", \"Link\")","v":"Link"},17690,17690,1]
[null,null,"Attachment: titled \"NorthLake Initial Study Final Approval JYM KKS Cleared.docx\"",{"$f":"HYPERLINK(\"H. Remainder/B-Emails/OCR-2015-03-07 Szalay email-A2-NL IS Final Approval JYM KKS Cleared.pdf\", \"Link\")","v":"Link"},17691,17763,73]
[null,"2015-03-09","Email from Raman Gaur to Julie Yom regarding Northlake TR073336",{"$f":"HYPERLINK(\"H. Remainder/B-Emails/OCR-2015-03-09 Gaur email-A1-RE_ NL TR073336.pdf\", \"Link\")","v":"Link"},17764,17766,3]
[null,null,"Attachment: titled \"Northlake - Phase 1 Unit for Quimby.xls\"",{"$f":"HYPERLINK(\"H. Remainder/B-Emails/OCR-2015-03-09 Gaur email-A2-NL - Phase 1 Unit for Quimby.pdf\", \"Link\")","v":"Link"},17767,17767,1]
[null,"2015-03-09","Email from Jennifer Marks to Kim Szalay regarding NorthLake Initial Study Revisions",{"$f":"HYPERLINK(\"H. Remainder/B-Emails/OCR-2015-03-09 Marks email-A1-NL Initial Study Revisions.pdf\", \"Link\")","v":"Link"},17768,17768,1]
[null,null,"Attachment: titled \"NorthLake Initial Study 012815 KKS- JYM.docx\"",{"$f":"HYPERLINK(\"H. Remainder/B-Emails/OCR-2015-03-09 Marks email-A2-NL IS 012815 KKS- JYM.pdf\", \"Link\")","v":"Link"},17769,17839,71]
[null,"2015-03-11","Email from Kim Szalay to Jennifer Marks regarding Northlake I.S.",{"$f":"HYPERLINK(\"H. Remainder/B-Emails/OCR-2015-03-11 Szalay email-A1-Northlake I.S. .pdf\", \"Link\")","v":"Link"},17840,17840,1]
[null,null,"Attachment: titled \"NorthLake Initial Study 012815 KKS- JYM 3-10-15 KKS2.docx\"",{"$f":"HYPERLINK(\"H. Remainder/B-Emails/OCR-2015-03-11 Szalay email-A2-NL IS012815 KKS- JYM 3-10-15 KKS2.pdf\", \"Link\")","v":"Link"},17841,17913,73]
[null,null,"Attachment: titled \"Initial_study_template (25) 2-25-15.docx\"",{"$f":"HYPERLINK(\"H. Remainder/B-Emails/OCR-2015-03-11 Szalay email-A3-IS_template 2-25-15.pdf\", \"Link\")","v":"Link"},17915,17942,29]
[null,"2015-03-11","Email from Kim Szalay to John Arvin, Mark Sikand, and Jennifer Marks regarding Northlake SP and Significant Ridgeline Clarification",{"$f":"HYPERLINK(\"H. Remainder/B-Emails/OCR-2015-03-11 Szalay Northlake SP and Significant Ridgeline Clarification.pdf\", \"Link\")","v":"Link"},17943,17943,1]
[null,"2015-03-12","Email from Jennifer Marks to Kim Szalay regarding Northlake Newspaper NOP",{"$f":"HYPERLINK(\"H. Remainder/B-Emails/OCR-2015-03-12 Marks-A1-RE_ Northlake Newspaper NOP.pdf\", \"Link\")","v":"Link"},17944,17944,1]
[null,null,"Attachment: titled \"NOP_NOS_legal_ad Northlake FINAL.pdf\"",{"$f":"HYPERLINK(\"H. Remainder/B-Emails/OCR-2015-03-12 Marks-A2-NOP_NOS_legal_ad  Northlake FINAL.pdf\", \"Link\")","v":"Link"},17945,17946,2]
[null,"2015-03-12","Email from Kim Szalay to John Arvin, Mark Sikand, and Jennifer Marks regarding Northlake SP and Significant Ridgeline Clarification Northlake SP and Significant Ridgeline Clarification",{"$f":"HYPERLINK(\"H. Remainder/B-Emails/OCR-2015-03-12 Szalay RE_ Northlake SP and Sig Ridgeline Clarification.pdf\", \"Link\")","v":"Link"},17947,17948,2]
[null,"2015-03-12","Email from Kim Szalay to John Arvin regarding Updated Northlake EIR Determination Letter",{"$f":"HYPERLINK(\"H. Remainder/B-Emails/OCR-2015-03-12 Szalay-A1-Updated NL EIR Determination Letter.pdf\", \"Link\")","v":"Link"},17949,17950,2]
[null,null,"Attachment: titled \"EIR Determ. Ltr signed.pdf\"",{"$f":"HYPERLINK(\"H. Remainder/B-Emails/OCR-2015-03-12 Szalay-A2-EIR Determ. Ltr signed.pdf\", \"Link\")","v":"Link"},17951,17952,2]
[null,null,"Attachment: titled \"Northlake Three-Party ENV Agreement 3-30-14.pdf\"",{"$f":"HYPERLINK(\"H. Remainder/B-Emails/OCR-2015-03-12 Szalay-A3-Northlake Three-Party ENV Agreement 3-30-14.pdf\", \"Link\")","v":"Link"},17953,17965,13]
[null,"2015-03-16","Email from Kim Szalay to Samuel Dea regarding Northlake NOP and NAHC correspondence",{"$f":"HYPERLINK(\"H. Remainder/B-Emails/OCR-2015-03-16 Szalay-B1-SCM Report and marked VTTM and Exh Map .pdf\", \"Link\")","v":"Link"},17966,17966,1]
[null,null,"Attachment: titled \"VTTM TR073336 SCM DRP Report 4-02-15.docx\"",{"$f":"HYPERLINK(\"H. Remainder/B-Emails/OCR-2015-03-16 Szalay-B2-VTTM TR073336 SCM DRP Report 4-02-15.pdf\", \"Link\")","v":"Link"},17967,17972,6]
[null,"2015-03-17","Email from Jennifer Marks to Kim Szalay regarding SCM Report and marked up VTTM and Exh Map",{"$f":"HYPERLINK(\"H. Remainder/B-Emails/OCR-2015-03-17 Marks-A1-RE_ Northlake NOP and NAHC corres.pdf\", \"Link\")","v":"Link"},17973,17974,2]
[null,null,"Attachment: titled \"Copy of env_contacts (1) Agency Distribution Northlake Updated JYM.xlsx\"",{"$f":"HYPERLINK(\"H. Remainder/B-Emails/OCR-2015-03-17 Marks-A2-Env_contacts-1 Agency Dist NL Updated JYM.pdf\", \"Link\")","v":"Link"},17975,17979,5]
[null,"2015-03-17","Email from Natalie Mendoza to Kai Lai regarding Confirmation of Order 2730096 for R2015-00408, TR073336, CUP 201500019, ENV 201500030",{"$f":"HYPERLINK(\"H. Remainder/B-Emails/OCR-2015-03-17 Mendoza Conf of Order 2730096 for R2015-00408.pdf\", \"Link\")","v":"Link"},17980,17980,1]
[null,"2015-03-17","Email from Juan Sarda to Kim Szalay and rgaur@sikand.com regarding TR 73336 - New (Map Dated 02-17-2015) - Part b",{"$f":"HYPERLINK(\"H. Remainder/B-Emails/OCR-2015-03-17 Sarda TR 73336 - New Map Dated 02-17-2017-Part b.pdf\", \"Link\")","v":"Link"},17981,17981,1]
[null,"2015-03-17","Email from Kim Szalay to Jennifer Marks regarding NL NOP Expanded Signature Page",{"$f":"HYPERLINK(\"H. Remainder/B-Emails/OCR-2015-03-17 Szalay NL-A1-NOP Expanded Signature Page.pdf\", \"Link\")","v":"Link"},17982,17982,1]
[null,null,"Attachment: titled \"NOP expanded signature page.pdf\"",{"$f":"HYPERLINK(\"H. Remainder/B-Emails/OCR-2015-03-17 Szalay NL-A2-NOP expanded signature page.pdf\", \"Link\")","v":"Link"},17983,17983,1]
[null,"2015-03-17","Email from Kim Szalay to DRP Web Administrator; Angelique Carreon-Quion regarding Northlake R2015-00408-(5) Parks Report",{"$f":"HYPERLINK(\"H. Remainder/B-Emails/OCR-2015-03-17 Szalay Northlake-A1-R2015-00408-5 Parks Report.pdf\", \"Link\")","v":"Link"},17984,17984,1]
[null,null,"Attachment: titled \"TR7336 Park Conditions and Trail Comments 040215.pdf\"",{"$f":"HYPERLINK(\"H. Remainder/B-Emails/OCR-2015-03-17 Szalay Northlake-A2-TR7336 Park Conditions and Trail.pdf\", \"Link\")","v":"Link"},17985,17995,11]
[null,"2015-03-17","Email from Kim Szalay to Clement Lau regarding Northlake Soccer Park sent at 3:36 pm",{"$f":"HYPERLINK(\"H. Remainder/B-Emails/OCR-2015-03-17 Szalay Northlake-B1-Soccer Park.pdf\", \"Link\")","v":"Link"},17996,17996,1]
[null,null,"Attachment: titled \"Terraced Park and Ridgeline.pdf\"",{"$f":"HYPERLINK(\"H. Remainder/B-Emails/OCR-2015-03-17 Szalay Northlake-B2-Soccer Park-Terraced Park.pdf\", \"Link\")","v":"Link"},17997,17997,1]
[null,"2015-03-17","Email from Kim Szalay to Jennifer Marks regarding Northlake NOP expanded, I.S. and expanded PD",{"$f":"HYPERLINK(\"H. Remainder/B-Emails/OCR-2015-03-17 Szalay RE-A1_ NL NOP expanded, I.S. and expanded PD.pdf\", \"Link\")","v":"Link"},17998,17999,2]
[null,null,"Attachment: titled \"ovov_bos-mmp.pdf\"",{"$f":"HYPERLINK(\"H. Remainder/B-Emails/OCR-2015-03-17 Szalay RE-A2-ovov_bos-mmp.pdf\", \"Link\")","v":"Link"},18000,18038,39]
[null,"2015-03-17","Email from Kim Szalay to Clement Lau regarding Northlake Soccer Park sent at 4:11 pm",{"$f":"HYPERLINK(\"H. Remainder/B-Emails/OCR-2015-03-17 Szalay RE-B1-Northlake Soccer Park.pdf\", \"Link\")","v":"Link"},18039,18040,2]
[null,null,"Attachment: titled \"Terraced Park and Ridgeline.pdf\"",{"$f":"HYPERLINK(\"H. Remainder/B-Emails/OCR-2015-03-17 Szalay RE-B2-Terraced Park and Ridgeline.pdf\", \"Link\")","v":"Link"},18041,18041,1]
[null,"2015-03-18","Email from John Arvin to regarding NorthLake NOP",{"$f":"HYPERLINK(\"H. Remainder/B-Emails/OCR-2015-03-18 Arvin Re_ NorthLake NOP.pdf\", \"Link\")","v":"Link"},18042,18043,2]
[null,"2015-03-18","Email from Samuel Dea to Jennifer Marks regarding NL NOP I.S. signature Page",{"$f":"HYPERLINK(\"H. Remainder/B-Emails/OCR-2015-03-18 Dea-A1-RE_ NL NOP I.S. signature Page.pdf\", \"Link\")","v":"Link"},18044,18045,2]
[null,null,"Attachment: titled \"DOC.PDF\"",{"$f":"HYPERLINK(\"H. Remainder/B-Emails/OCR-2015-03-18 Dea-A2-DOC.pdf\", \"Link\")","v":"Link"},18046,18046,1]
[null,"2015-03-18","Email from Kim Szalay to Samuel Dea regarding FW NorthLake Initial Study",{"$f":"HYPERLINK(\"H. Remainder/B-Emails/OCR-2015-03-18 Szalay-A1-Fwd_ NorthLake Initial Study.pdf\", \"Link\")","v":"Link"},18047,18047,1]
[null,null,"Attachment: titled \"NorthLake Initial Study-031815.pdf;\"",{"$f":"HYPERLINK(\"H. Remainder/B-Emails/OCR-2015-03-18 Szalay-A2-NorthLake Initial Study.pdf\", \"Link\")","v":"Link"},18048,18120,73]
[null,"2015-03-18","Email from Kim Szalay to Jennifer Marks regarding NorthLake NOP Attachment A",{"$f":"HYPERLINK(\"H. Remainder/B-Emails/OCR-2015-03-18 Szalay-A3-Re_ NorthLake NOP Attachment A.pdf\", \"Link\")","v":"Link"},18121,18121,1]
[null,"2015-03-19","Email from Juan Padilla to Kim Szalay regarding Web Posting Project No. R2015-00408/ TR073336",{"$f":"HYPERLINK(\"H. Remainder/B-Emails/OCR-2015-03-19 Padilla-A1-FW_ WEB POSTING PROJECT NO. R2015-00408.pdf\", \"Link\")","v":"Link"},18122,18123,2]
[null,null,"Attachment: titled \"73336.dot\"",{"$f":"HYPERLINK(\"H. Remainder/B-Emails/OCR-2015-03-19 Padilla-A2-73336.pdf\", \"Link\")","v":"Link"},18124,18125,2]
[null,"2015-03-23","Email from Jennifer Marks to John Arvin and Kim Szalay regarding NorthLake Posted NOP",{"$f":"HYPERLINK(\"H. Remainder/B-Emails/OCR-2015-03-23 Marks-A1-NorthLake Posted NOP.pdf\", \"Link\")","v":"Link"},18126,18126,1]
[null,null,"Attachment: titled \"20150323141649746.pdf\"",{"$f":"HYPERLINK(\"H. Remainder/B-Emails/OCR-2015-03-23 Marks-A2-20150323141649746.pdf\", \"Link\")","v":"Link"},18127,18132,6]
[null,"2015-03-23","Email from Jennifer Marks to John Arvin; Kim Szalay, Samuel Dea, Joan Kelly, Randy Jackson, and Scott Ashlock regarding Sign Posts",{"$f":"HYPERLINK(\"H. Remainder/B-Emails/OCR-2015-03-23 Marks-B1-RE_ Sign Posts.pdf\", \"Link\")","v":"Link"},18133,18134,2]
[null,null,"Attachment: titled \"IS_NOP Package - March 2015.pdf\"",{"$f":"HYPERLINK(\"H. Remainder/B-Emails/OCR-2015-03-23 Marks-B2-IS_NOP Package - March 2015.pdf\", \"Link\")","v":"Link"},18135,18221,87]
[null,"2015-03-25","Email from Samuel Dea to Kim Szalay regarding Tataviam and not on Federal List",{"$f":"HYPERLINK(\"H. Remainder/B-Emails/OCR-2015-03-25 Dea RE_ Tataviam and not on Federal List.pdf\", \"Link\")","v":"Link"},18222,18225,4]
[null,"2015-03-25","Email from Jennifer Marks to Kim Szalay regarding Native American Scoping Letters",{"$f":"HYPERLINK(\"H. Remainder/B-Emails/OCR-2015-03-25 Marks-A1-Native American Scoping Letters.pdf\", \"Link\")","v":"Link"},18226,18226,1]
[null,null,"Attachment: titled \"NorthLake NA Scoping-052014.pdf\"",{"$f":"HYPERLINK(\"H. Remainder/B-Emails/OCR-2015-03-25 Marks-A2-NorthLake NA Scoping-052014.pdf\", \"Link\")","v":"Link"},18227,18243,17]
[null,null,"Attachment: titled \"NorthLake NAHC Response.pdf\"",{"$f":"HYPERLINK(\"H. Remainder/B-Emails/OCR-2015-03-25 Marks-A3-NorthLake NAHC Response.pdf\", \"Link\")","v":"Link"},18244,18246,3]
[null,"2015-03-25","Email from Jennifer Marks to Kim Szalay  and John Arvin regarding NorthLake NOP Distribution",{"$f":"HYPERLINK(\"H. Remainder/B-Emails/OCR-2015-03-25 Marks-B1-NorthLake NOP Distribution.pdf\", \"Link\")","v":"Link"},18247,18247,1]
[null,null,"Attachment: titled \"!Full Distribution List (categorized).xlsx\"",{"$f":"HYPERLINK(\"H. Remainder/B-Emails/OCR-2015-03-25 Marks-B2-!Full Distribution List.pdf\", \"Link\")","v":"Link"},18248,18257,10]
[null,"2015-03-25","Email from Kim Szalay to Jennifer Marks regarding NorthLake Project: NOP Comment",{"$f":"HYPERLINK(\"H. Remainder/B-Emails/OCR-2015-03-25 Szalay-A1-FW_ NorthLake Project_ NOP Comment.pdf\", \"Link\")","v":"Link"},18258,18260,3]
[null,null,"Attachment: titled \"Cultural Resource Permit-2015.pdf\"",{"$f":"HYPERLINK(\"H. Remainder/B-Emails/OCR-2015-03-25 Szalay-A2-Cultural Resource Permit-2015.pdf\", \"Link\")","v":"Link"},18261,18265,5]
[null,null,"Attachment: titled \"Tataviam Tribal Territory Map 2015.pdf\"",{"$f":"HYPERLINK(\"H. Remainder/B-Emails/OCR-2015-03-25 Szalay-A3-Tataviam Tribal Territory Map 2015.pdf\", \"Link\")","v":"Link"},18266,18266,1]
[null,"2015-03-25","Email from Kim Szalay to Jennifer Marks regarding NL NOP Comment",{"$f":"HYPERLINK(\"H. Remainder/B-Emails/OCR-2015-03-25 Szalay-B1-NL NOP Comment.pdf\", \"Link\")","v":"Link"},18267,18267,1]
[null,null,"Attachment: titled \"AP LU Commission letter.pdf\"",{"$f":"HYPERLINK(\"H. Remainder/B-Emails/OCR-2015-03-25 Szalay-B2-AP LU Commission letter.pdf\", \"Link\")","v":"Link"},18268,18268,1]
[null,"2015-03-26","Email from Randy Jackson to Kim Szalay and Jennifer Marks regarding Northlake April 2 Mtg. DRP 10 a.m.",{"$f":"HYPERLINK(\"H. Remainder/B-Emails/OCR-2015-03-26 Jackson RE_ NL 4-2 Mtg. DRP 10 a.m..pdf\", \"Link\")","v":"Link"},18269,18269,1]
[null,"2015-03-26","Email from Kim Szalay to Jennifer Marks regarding Northlake SP BOS Approval/Consent including DMS Finding",{"$f":"HYPERLINK(\"H. Remainder/B-Emails/OCR-2015-03-26 Szalay-A-NL SP BOS Approval_Consent incl DMS Finding.pdf\", \"Link\")","v":"Link"},18270,18270,1]
[null,null,"Attachment: titled \"BOS SP DA Approval 12-17-92 (DMS FF 18).pdf\"",{"$f":"HYPERLINK(\"H. Remainder/B-Emails/OCR-2015-03-26 Szalay-B-BOS SP DA Approval 12-17-92-DMS FF 18.pdf\", \"Link\")","v":"Link"},18271,18320,50]
[null,null,"Attachment: titled \"BOS SP DA Final Consent 2-09-93.pdf\"",{"$f":"HYPERLINK(\"H. Remainder/B-Emails/OCR-2015-03-26 Szalay-C-BOS SP DA Final Consent 2-09-93.pdf\", \"Link\")","v":"Link"},18321,18323,3]
[null,"2015-03-30","Email from Kim Szalay to John Arvin and Mark Sikand regarding NL and Adjacent BLM Land sent at 4:16 pm",{"$f":"HYPERLINK(\"H. Remainder/B-Emails/OCR-2015-03-30 Szalay-A-NL and Adjacent BLM Land 416.pdf\", \"Link\")","v":"Link"},18324,18324,1]
[null,null,"Attachment: titled \"BLM Land adjacent to NL.pdf\"",{"$f":"HYPERLINK(\"H. Remainder/B-Emails/OCR-2015-03-30 Szalay-B-BLM Land adjacent to NL.pdf\", \"Link\")","v":"Link"},18325,18325,1]
[null,"2015-03-30","Email from Kim Szalay to prodriqu@blm.gov regarding Northlake website",{"$f":"HYPERLINK(\"H. Remainder/B-Emails/OCR-2015-03-30 Szalay-C-Northlake website.pdf\", \"Link\")","v":"Link"},18326,18326,1]
[null,"2015-03-30","Email from Kim Szalay to Robert Ettleman regarding NL and Adjacent BLM Land sent at 4:41 pm",{"$f":"HYPERLINK(\"H. Remainder/B-Emails/OCR-2015-03-30 Szalay-D-RE_ NL and Adjacent BLM 441.pdf\", \"Link\")","v":"Link"},18327,18328,2]
[null,"2015-03-30","Email from Lloyd Zola to Kim Szalay regarding NorthLake PowerPoint, Agenda/Comment Form, and Sign-in Sheet",{"$f":"HYPERLINK(\"H. Remainder/B-Emails/OCR-2015-03-30 Zola email-A-NL PPT-Agenda-Comment and Sign-in.pdf\", \"Link\")","v":"Link"},18329,18329,1]
[null,null,"Attachment: titled \"Northlake Scoping Meeting Sign In Form.doc\"",{"$f":"HYPERLINK(\"H. Remainder/B-Emails/OCR-2015-03-30 Zola email-B-NL Scoping Mtg Sign In Form.pdf\", \"Link\")","v":"Link"},18330,18330,1]
[null,null,"Attachment: titled \"Northlake Scoping Meeting Public Input Form.doc\"",{"$f":"HYPERLINK(\"H. Remainder/B-Emails/OCR-2015-03-30 Zola email-C-2015-03-30 NL Scoping Mtg Public Input Form.pdf\", \"Link\")","v":"Link"},18331,18332,2]
[null,null,"Attachment: titled \"Northlake Scoping Meeting Presentation.pptx\"",{"$f":"HYPERLINK(\"H. Remainder/B-Emails/OCR-2015-03-30 Zola email-D-NL Scoping Mtg Pres.pdf\", \"Link\")","v":"Link"},18333,18359,27]
[null,"2015-03-31","Email from Robert Ettleman to prodriqu@blm.gov regarding FW: NL and Adjacent BLM Land",{"$f":"HYPERLINK(\"H. Remainder/B-Emails/OCR-2015-03-31 Ettleman email-A-FW_ NL and Adjacent BLM.pdf\", \"Link\")","v":"Link"},18360,18361,2]
[null,null,"Attachment: titled \"BLM Land adjacent to NL.pdf\"",{"$f":"HYPERLINK(\"H. Remainder/B-Emails/OCR-2015-03-31 Ettleman email-B-BLM Land adjacent to NL.pdf\", \"Link\")","v":"Link"},18362,18362,1]
[null,null,"Attachment: titled \"VTTM#73336 Trail Map.pdf\"",{"$f":"HYPERLINK(\"H. Remainder/B-Emails/OCR-2015-03-31 Ettleman email-C-VTTM73336 Trail Map.pdf\", \"Link\")","v":"Link"},18363,18363,1]
[null,"2015-03-31","Email from Dan Silver to DRP Special Projects regarding Northlake Project; Project No. R2015-00408-(5)",{"$f":"HYPERLINK(\"H. Remainder/B-Emails/OCR-2015-03-31 Silver NL Project; Project R2015-00408.pdf\", \"Link\")","v":"Link"},18364,18364,1]
[null,"2015-03-31","Email from Kim Szalay to Jennifer Marks regarding FW: Northlake Project; Project No. R2015-00408-(5) NOP Comment",{"$f":"HYPERLINK(\"H. Remainder/B-Emails/OCR-2015-03-31 Szalay FW_ NL Project R2015-00408-NOP Comment.pdf\", \"Link\")","v":"Link"},18365,18366,2]
[null,"2015-04-07","Email from Samuel Dea to Mitch Glaser regarding Northlake",{"$f":"HYPERLINK(\"H. Remainder/B-Emails/OCR-2015-04-07 Dea-A-Northlake.pdf\", \"Link\")","v":"Link"},18367,18367,1]
[null,null,"Attachment: titled \"IS_NOP Package - March 2015.pdf\"",{"$f":"HYPERLINK(\"H. Remainder/B-Emails/OCR-2015-04-07 Dea-B-IS_NOP Package - March 2015.pdf\", \"Link\")","v":"Link"},18368,18454,87]
[null,"2015-04-07","Email from Kim Szalay to Samuel Dea regarding NOP consultation letter to tribes sent at 1:13 pm",{"$f":"HYPERLINK(\"H. Remainder/B-Emails/OCR-2015-04-07 Szalay-A-NOP consultation letter to tribes.pdf\", \"Link\")","v":"Link"},18455,18459,5]
[null,null,"Attachment: titled \"1 NOP (Expanded for Agencies) signed.pdff\"",{"$f":"HYPERLINK(\"H. Remainder/B-Emails/OCR-2015-04-07 Szalay-B-1 NOP-Expanded for Agencies-signed.pdf\", \"Link\")","v":"Link"},18460,18466,7]
[null,null,"Attachment: titled \"3 Initial Study signed.pdf\"",{"$f":"HYPERLINK(\"H. Remainder/B-Emails/OCR-2015-04-07 Szalay-C-3 Initial Study signed.pdf\", \"Link\")","v":"Link"},18467,18509,43]
[null,null,"Attachment: titled \"tr071377_nop-attachmentA complete.pdf\"",{"$f":"HYPERLINK(\"H. Remainder/B-Emails/OCR-2015-04-07 Szalay-D- tr071377_nop-attachmentA complete.pdf\", \"Link\")","v":"Link"},18510,18525,16]
[null,null,"Attachment: titled \"0. Cover.doc\"",{"$f":"HYPERLINK(\"H. Remainder/B-Emails/OCR-2015-04-07 Szalay-E-0. Cover.pdf\", \"Link\")","v":"Link"},18526,18526,1]
[null,null,"Attachment: titled \"NOP_agency_cover_ltr Revised.docx\"",{"$f":"HYPERLINK(\"H. Remainder/B-Emails/OCR-2015-04-07 Szalay-F-NOP_agency_cover_ltr Revised.pdf\", \"Link\")","v":"Link"},18527,18527,1]
[null,"2015-04-07","Email from Kim Szalay to Samuel Dea regarding NOP consultation letter to tribes sent at 1:20 pm",{"$f":"HYPERLINK(\"H. Remainder/B-Emails/OCR-2015-04-07 Szalay-G-RE_ NOP consultation letter to tribes.pdf\", \"Link\")","v":"Link"},18528,18532,5]
[null,null,"Attachment: titled \"IS_NOP Package - March 2015.pdf\"",{"$f":"HYPERLINK(\"H. Remainder/B-Emails/OCR-2015-04-07 Szalay-H-IS_NOP Package - March 2015.pdf\", \"Link\")","v":"Link"},18533,18619,87]
[null,"2015-04-08","Email from Kim Szalay to Jennifer Marks regarding Northlake SCAQMD NOP comment",{"$f":"HYPERLINK(\"H. Remainder/B-Emails/OCR-2015-04-08 Szalay-A-Northlake SCAQMD NOP comment.pdf\", \"Link\")","v":"Link"},18620,18620,1]
[null,null,"Attachment: titled \"SCAQMD NOP comment.pdf\"",{"$f":"HYPERLINK(\"H. Remainder/B-Emails/OCR-2015-04-08 Szalay-B-SCAQMD NOP comment.pdf\", \"Link\")","v":"Link"},18621,18622,2]
[null,"2015-04-09","Email from Richard Bruckner to Samuel Dea regarding Northlake",{"$f":"HYPERLINK(\"H. Remainder/B-Emails/OCR-2015-04-09 Bruckner Re_ Northlake-1.pdf\", \"Link\")","v":"Link"},18623,18623,1]
[null,"2015-04-09","Email from Raman Gaur to Kim Szalay regarding Northlake 1992 adopted EIR and EIR appendices",{"$f":"HYPERLINK(\"H. Remainder/B-Emails/OCR-2015-04-09 Gaur-A-RE_ Northlake 1992 adopted EIR and EIR app.pdf\", \"Link\")","v":"Link"},18624,18624,1]
[null,null,"Attachment: titled \"Draft Environmental Impact Report.pdf\"",{"$f":"HYPERLINK(\"H. Remainder/B-Emails/OCR-2015-04-09 Gaur-B-Draft Environmental Impact Report.pdf\", \"Link\")","v":"Link"},18625,19033,409]
[null,null,"Attachment: titled \"Final Environmental Impact Report.pdf\"",{"$f":"HYPERLINK(\"H. Remainder/B-Emails/OCR-2015-04-09 Gaur-C-Final Environmental Impact Report.pdf\", \"Link\")","v":"Link"},19034,19103,70]
[null,"2015-04-09","Email from Kim Szalay to Jennifer Marks regarding Northlake 1992 EIR and SP and scoping",{"$f":"HYPERLINK(\"H. Remainder/B-Emails/OCR-2015-04-09 Szalay Northlake 1992 EIR and SP and scoping.pdf\", \"Link\")","v":"Link"},19104,19104,1]
[null,"2015-04-10","Email from SCVTV <info@scvtv.com> to DRP Special Projects regarding Attn: Kim Szalay to confirm receipt of the Comments on the NorthLake NOP/Initial Study, from Santa Clarita Valley Historical Society",{"$f":"HYPERLINK(\"H. Remainder/B-Emails/OCR-2015-04-10 SCVTV-A-Attn_ Kim Szalay.pdf\", \"Link\")","v":"Link"},19105,19105,1]
[null,null,"Attachment: titled \"scvhs_northlake041015.docx\"",{"$f":"HYPERLINK(\"H. Remainder/B-Emails/OCR-2015-04-10 SCVTV-B-scvhs_northlake041015.pdf\", \"Link\")","v":"Link"},19106,19108,3]
[null,"2015-04-10","Email from Lloyd Zola to Kim Szalay regarding NorthLake Meeting Notes",{"$f":"HYPERLINK(\"H. Remainder/B-Emails/OCR-2015-04-10 Zola-A-NorthLake Meeting Notes.pdf\", \"Link\")","v":"Link"},19109,19109,1]
[null,null,"Attachment: titled \"NorthLake Scoping Meeting Notes.docx\"",{"$f":"HYPERLINK(\"H. Remainder/B-Emails/OCR-2015-04-10 Zola-B-NorthLake Scoping Meeting Notes.pdf\", \"Link\")","v":"Link"},19110,19112,3]
[null,"2015-04-13","Email from DRP Special Projects to Jennifer Marks regarding FW: Attn: Kim Szalay",{"$f":"HYPERLINK(\"H. Remainder/B-Emails/OCR-2015-04-13 DRP Special Projects email-A-FW_ Attn_ Kim Szalay.pdf\", \"Link\")","v":"Link"},19113,19113,1]
[null,null,"Attachment: titled \"scvhs_northlake041015.docx\" ",{"$f":"HYPERLINK(\"H. Remainder/B-Emails/OCR-2015-04-13 DRP Special Projects email-B-scvhs_northlake041015.pdf\", \"Link\")","v":"Link"},19114,19116,3]
[null,"2015-04-13","Email from DRP Special Projects to srodmrod@sbcglobal.net et al regarding Northlake Project - 1992 Documents",{"$f":"HYPERLINK(\"H. Remainder/B-Emails/OCR-2015-04-13 DRP Special Projects Northlake Project-1992 Docs.pdf\", \"Link\")","v":"Link"},19117,19117,1]
[null,"2015-04-13","Email from Jennifer Marks to Kim Szalay regarding Northlake 1992 EIR and SP and scoping",{"$f":"HYPERLINK(\"H. Remainder/B-Emails/OCR-2015-04-13 Marks RE_Northlake-A1-1992 EIR and SP and scoping.pdf\", \"Link\")","v":"Link"},19118,19119,2]
[null,null,"Attachment: titled \"Scoping Meeting Comment Cards.pdf\"",{"$f":"HYPERLINK(\"H. Remainder/B-Emails/OCR-2015-04-13 Marks RE_Northlake-A2-Scoping Meeting Comment Cards.pdf\", \"Link\")","v":"Link"},19120,19123,4]
[null,null,"Attachment: titled \"Scoping Sign In Sheets.pdf\"",{"$f":"HYPERLINK(\"H. Remainder/B-Emails/OCR-2015-04-13 Marks RE_Northlake-A3-Scoping Sign In Sheets.pdf\", \"Link\")","v":"Link"},19124,19129,6]
[null,"2015-04-13","Email from Jennifer Marks to Kim Szalay regarding NorthLake Meeting Notes - Lloyd Zola",{"$f":"HYPERLINK(\"H. Remainder/B-Emails/OCR-2015-04-13 Marks RE_NorthLake-B-Meeting Notes - Lloyd Zola.pdf\", \"Link\")","v":"Link"},19130,19131,2]
[null,"2015-04-13","Email from Kim Szalay to Jennifer Marks regarding FW: Northlake Project - 1992 Documents",{"$f":"HYPERLINK(\"H. Remainder/B-Emails/OCR-2015-04-13 Szalay FW_ Northlake Project - 1992 Documents.pdf\", \"Link\")","v":"Link"},19132,19133,2]
[null,"2015-04-14","Email from DevReview to DRP Special Projects regarding NorthLake Specific Plan",{"$f":"HYPERLINK(\"H. Remainder/B-Emails/OCR-2015-04-14 DevReview-A1-NorthLake Specific Plan .pdf\", \"Link\")","v":"Link"},19134,19134,1]
[null,null,"Attachment: titled \"NorthLake Specific Plan_LACMTA Comments.pdf\" ",{"$f":"HYPERLINK(\"H. Remainder/B-Emails/OCR-2015-04-14 DevReview-A2-NorthLake Specific Plan_LACMTA Comments.pdf\", \"Link\")","v":"Link"},19135,19143,9]
[null,"2015-04-14","Email from Kim Szalay to Jennifer Marks regarding FW: Calif. Government Code Section 66455.1: CA DWR Comment on NorthLake Project - NOP",{"$f":"HYPERLINK(\"H. Remainder/B-Emails/OCR-2015-04-14 Szalay-A1-FW_ CA G Code 66455.1_ CA DWR NOP Comment.pdf\", \"Link\")","v":"Link"},19144,19144,1]
[null,null,"Attachment: titled \"CA DepartmentOfWaterResources LA-15-01.doc\" ",{"$f":"HYPERLINK(\"H. Remainder/B-Emails/OCR-2015-04-14 Szalay-A2-CA DWR LA-15-01.pdf\", \"Link\")","v":"Link"},19145,19146,2]
[null,"2015-04-14","Email from Kim Szalay to Jennifer Marks regarding Northlake NOP/Scoping comment",{"$f":"HYPERLINK(\"H. Remainder/B-Emails/OCR-2015-04-14 Szalay-B1-Northlake NOP_Scoping comment.pdf\", \"Link\")","v":"Link"},19147,19147,1]
[null,null,"Attachment: titled \"mail in comment.pdf\" ",{"$f":"HYPERLINK(\"H. Remainder/B-Emails/OCR-2015-04-14 Szalay-B2-mail in comment.pdf\", \"Link\")","v":"Link"},19148,19148,1]
[null,"2015-04-14","Email from Kim Szalay to John Arvin, Mark Sikand, Randy Jackson, and Jennifer Marks regarding Northlake Thurs. 10 am standing meeting - DRP Library",{"$f":"HYPERLINK(\"H. Remainder/B-Emails/OCR-2015-04-14 Szalay-C-Northlake Thurs. 10 am standing meeting - DRP Library.pdf\", \"Link\")","v":"Link"},19149,19149,1]
[null,"2015-04-15","Email from Kim Szalay to Jennifer Marks regarding FW: Northlake Project e-mail address correction",{"$f":"HYPERLINK(\"H. Remainder/B-Emails/OCR-2015-04-15 Szalay FW_ Northlake Project  e-mail address correction.pdf\", \"Link\")","v":"Link"},19150,19151,2]
[null,"2015-04-15","Email from Kim Szalay to Clement Lau regarding RE: Northlake 1st SCM County Reports and Map Markups",{"$f":"HYPERLINK(\"H. Remainder/B-Emails/OCR-2015-04-15 Szalay RE_ Northlake 1st SCM County Reports and Map Markups.pdf\", \"Link\")","v":"Link"},19152,19157,6]
[null,"2015-04-16","Email from John Arvin to Kim Szalay regarding NorthLake Schedule",{"$f":"HYPERLINK(\"H. Remainder/B-Emails/OCR-2015-04-16 Arvin RE_ NorthLake Schedule.pdf\", \"Link\")","v":"Link"},19158,19159,2]
[null,"2015-04-16","Email from Jennifer Marks to Kim Szalay regarding General Plan 2035",{"$f":"HYPERLINK(\"H. Remainder/B-Emails/OCR-2015-04-16 Marks General Plan 2035.pdf\", \"Link\")","v":"Link"},19160,19160,1]
[null,"2015-04-16","Email from Kim Szalay to Jennifer Marks regarding Northlake NOP comment",{"$f":"HYPERLINK(\"H. Remainder/B-Emails/OCR-2015-04-16 Szalay Northlake-A1-NOP comment.pdf\", \"Link\")","v":"Link"},19161,19161,1]
[null,null,"Attachment: titled \"MTA NOP comment.pdf\" ",{"$f":"HYPERLINK(\"H. Remainder/B-Emails/OCR-2015-04-16 Szalay Northlake-A2-MTA NOP comment.pdf\", \"Link\")","v":"Link"},19162,19171,10]
[null,"2015-04-16","Email from Kim Szalay to Mark Sikand regarding Northlake Significant Ridgeline LU consistency and several vantage points",{"$f":"HYPERLINK(\"H. Remainder/B-Emails/OCR-2015-04-16 Szalay Northlake-B-Sig-Ridgeline-LU-consistency.pdf\", \"Link\")","v":"Link"},19172,19172,1]
[null,"2015-04-16","Email from Kim Szalay to Jennifer Marks regarding FW: Northlake Specific Follow-up",{"$f":"HYPERLINK(\"H. Remainder/B-Emails/OCR-2015-04-16 Szalay-C1-FW_ Northlake Specific Follow-up.pdf\", \"Link\")","v":"Link"},19173,19174,2]
[null,null,"Attachment: titled \"Cultural Resource Permit-2015.pdf\"",{"$f":"HYPERLINK(\"H. Remainder/B-Emails/OCR-2015-04-16 Szalay-C2-Cultural Resource Permit-2015.pdf\", \"Link\")","v":"Link"},19175,19179,5]
[null,null,"Attachment: titled \"Tataviam Tribal Territory Map 2015.pdf\"",{"$f":"HYPERLINK(\"H. Remainder/B-Emails/OCR-2015-04-16 Szalay-C3-Tataviam Tribal Territory Map 2015.pdf\", \"Link\")","v":"Link"},19180,19180,1]
[null,"2015-04-20","Email from Jennifer Marks to Kim Szalay and John Arvin regarding NorthLake GHG Analysis",{"$f":"HYPERLINK(\"H. Remainder/B-Emails/OCR-2015-04-20 Marks NorthLake GHG Analysis.pdf\", \"Link\")","v":"Link"},19181,19181,1]
[null,"2015-04-20","Email from Kim Szalay to Jennifer Marks regarding F & W NOP comments: Northlake Specific Plan-Unincorporated Comm-Castaic/SCH 2015031080/LA Co",{"$f":"HYPERLINK(\"H. Remainder/B-Emails/OCR-2015-04-20 Szalay F-W-A1-NOP comments.pdf\", \"Link\")","v":"Link"},19182,19182,1]
[null,null,"Attachment: titled \"Northlake Specific Plan-Castaic.pdf\" ",{"$f":"HYPERLINK(\"H. Remainder/B-Emails/OCR-2015-04-20 Szalay F-W-A2-Northlake Specific Plan-Castaic.pdf\", \"Link\")","v":"Link"},19183,19190,8]
[null,"2015-04-20","Email from Kim Szalay to Julie Yom regarding NOP for Northlake Specific Plan - Parks",{"$f":"HYPERLINK(\"H. Remainder/B-Emails/OCR-2015-04-20 Szalay RE_ NOP for Northlake Specific Plan - Parks.pdf\", \"Link\")","v":"Link"},19191,19191,1]
[null,"2015-04-20","Email from Kim Szalay to Jennifer Marks regarding SCG Co. NOP Comments on NorthLake Project",{"$f":"HYPERLINK(\"H. Remainder/B-Emails/OCR-2015-04-20 Szalay SCG-A1-Co. NOP Comments on NorthLake Project.pdf\", \"Link\")","v":"Link"},19192,19192,1]
[null,null,"Attachment: titled \"NorthLake Project (042015).pdf\" ",{"$f":"HYPERLINK(\"H. Remainder/B-Emails/OCR-2015-04-20 Szalay SCG-A2-NorthLake Project 042015.pdf\", \"Link\")","v":"Link"},19193,19193,1]
[null,"2015-04-21","Email from John Arvin to Kim Szalay and Jennifer Marks regarding NorthLake",{"$f":"HYPERLINK(\"H. Remainder/B-Emails/OCR-2015-04-21 Arvin NorthLake.pdf\", \"Link\")","v":"Link"},19194,19194,1]
[null,"2015-04-21","Email from Jerry Hidalgo to DRP Special Projects regarding Northlake Project No. R2015-0048-(5)",{"$f":"HYPERLINK(\"H. Remainder/B-Emails/OCR-2015-04-21 Hidalgo Northlake Project No. R2015-0048-5.pdf\", \"Link\")","v":"Link"},19195,19195,1]
[null,"2015-04-21","Email from Kim Szalay to Jennifer Marks regarding FW: NorthLake NOP Comment Letter - Ventura County",{"$f":"HYPERLINK(\"H. Remainder/B-Emails/OCR-2015-04-21 Szalay-A1-FW_ NL NOP Comment- Ventura County.pdf\", \"Link\")","v":"Link"},19196,19196,1]
[null,null,"Attachment: titled \"15-007 Castaic (Plng-WW).pdf\" ",{"$f":"HYPERLINK(\"H. Remainder/B-Emails/OCR-2015-04-21 Szalay-A2-15-007 Castaic-Plng-WW.pdf\", \"Link\")","v":"Link"},19197,19199,3]
[null,"2015-04-21","Email from Kim Szalay to Jennifer Marks regarding FW: NorthLake NOP Comment Letter - Ventura County",{"$f":"HYPERLINK(\"H. Remainder/B-Emails/OCR-2015-04-21 Szalay-B2-FW_ NorthLake City of SC NOP Comments.pdf\", \"Link\")","v":"Link"},19200,19200,1]
[null,null,"Attachment: titled \"Northlake NOP comments 4 20 15.pdf\" ",{"$f":"HYPERLINK(\"H. Remainder/B-Emails/OCR-2015-04-21 Szalay-B2-Northlake NOP comments 4 20 15.pdf\", \"Link\")","v":"Link"},19201,19202,2]
[null,"2015-04-22","Email from Caitlin Gulley to Mitch Glaser regarding Re: FW: Meeting Request",{"$f":"HYPERLINK(\"H. Remainder/B-Emails/OCR-2015-04-22 Gulley Re_ FW_ Meeting Request.pdf\", \"Link\")","v":"Link"},19203,19216,14]
[null,"2015-04-22","Email from John Hecht to DRP Special Projects regarding NOP Comments on NorthLake, Project No. R2015-00408-(5)",{"$f":"HYPERLINK(\"H. Remainder/B-Emails/OCR-2015-04-22 Hecht-A1-NOP Comments on NorthLake, Project No. R2015-00408-5.pdf\", \"Link\")","v":"Link"},19217,19217,1]
[null,null,"Attachment: titled \"Pac-Clay-Northlake NOP Letter (4-22-15).pdf\" ",{"$f":"HYPERLINK(\"H. Remainder/B-Emails/OCR-2015-04-22 Hecht-A2-Pac-Clay-Northlake NOP Letter 4-22-15.pdf\", \"Link\")","v":"Link"},19218,19219,2]
[null,"2015-04-22","Email from Kim Szalay to Jennifer Marks regarding FW: Northlake NOP Agency Comments",{"$f":"HYPERLINK(\"H. Remainder/B-Emails/OCR-2015-04-22 Szalay FW_ Northlake-A1-NOP Agency Comments.pdf\", \"Link\")","v":"Link"},19220,19221,2]
[null,null,"Attachment: titled \"Sanitation District NOP letter.pdf\"",{"$f":"HYPERLINK(\"H. Remainder/B-Emails/OCR-2015-04-22 Szalay FW_ Northlake-A2-Sanitation District NOP letter.pdf\", \"Link\")","v":"Link"},19222,19223,2]
[null,null,"Attachment: titled \"FD NOP letter.pdf\"",{"$f":"HYPERLINK(\"H. Remainder/B-Emails/OCR-2015-04-22 Szalay FW_ Northlake-A3-FD NOP letter.pdf\", \"Link\")","v":"Link"},19224,19227,4]
[null,"2015-04-22","Email from Kim Szalay to Jennifer Marks regarding FW: SCAG Comments on the NOP of a Draft EIR for the NorthLake Specific Plan [SCAG NO. IGR 8415]",{"$f":"HYPERLINK(\"H. Remainder/B-Emails/OCR-2015-04-22 Szalay FW_ SCAG-A1-Comments on NOP of DEIR for the NLSP.pdf\", \"Link\")","v":"Link"},19228,19228,1]
[null,null,"Attachment: titled \"IGR8145 NOP NorthLake Specific Plan.pdf\" ",{"$f":"HYPERLINK(\"H. Remainder/B-Emails/OCR-2015-04-22 Szalay FW_ SCAG-A2- IGR8145 NOP NorthLake Specific Plan.pdf\", \"Link\")","v":"Link"},19229,19231,3]
[null,"2015-04-22","Email from Kim Szalay to Jennifer Marks regarding FW: SCH2015031080: NorthLake Specific Plan Project",{"$f":"HYPERLINK(\"H. Remainder/B-Emails/OCR-2015-04-22 Szalay FW_ SCH2015031080-A1-NorthLake Specific Plan Project.pdf\", \"Link\")","v":"Link"},19232,19232,1]
[null,null,"Attachment: titled \"CA DWR SCH2015031080.pdf\" ",{"$f":"HYPERLINK(\"H. Remainder/B-Emails/OCR-2015-04-22 Szalay FW_ SCH2015031080-A2-CA DWR SCH2015031080.pdf\", \"Link\")","v":"Link"},19233,19234,2]
[null,"2015-04-22","Email from Kim Szalay to Jennifer Marks regarding Northlake 1992/1993 EIR Appendices",{"$f":"HYPERLINK(\"H. Remainder/B-Emails/OCR-2015-04-22 Szalay Northlake 1992_1993 EIR Appendices.pdf\", \"Link\")","v":"Link"},19235,19235,1]
[null,"2015-04-23","Email from Kim Szalay to Jennifer Marks regarding FW: Comments on North Lake NOP R2015-00408-(5",{"$f":"HYPERLINK(\"H. Remainder/B-Emails/OCR-2015-04-23 Szalay FW_A1-Comments on North Lake NOP R2015-00408-5.pdf\", \"Link\")","v":"Link"},19236,19236,1]
[null,null,"Attachment: titled \"Comments on Northlake NOP.pdf\"",{"$f":"HYPERLINK(\"H. Remainder/B-Emails/OCR-2015-04-23 Szalay FW_A2-Comments on Northlake NOP.pdf\", \"Link\")","v":"Link"},19237,19242,6]
[null,null,"Attachment: titled \"1 - CLWA - Newhall Agreement 12-19-12.pdf\"",{"$f":"HYPERLINK(\"H. Remainder/B-Emails/OCR-2015-04-23 Szalay FW_A3 - CLWA - Newhall Agreement 12-19--12.pdf\", \"Link\")","v":"Link"},19243,19286,44]
[null,null,"Attachment: titled \"3 - Civ Asso Agreement in files with notes.pdf\"",{"$f":"HYPERLINK(\"H. Remainder/B-Emails/OCR-2015-04-23 Szalay FW_A4 - Civ Asso Agreement in files with notes.pdf\", \"Link\")","v":"Link"},19287,19304,18]
[null,"2015-04-23","Email from Kim Szalay to Jennifer Marks regarding FW: NOP Comments on NorthLake, Project No. R2015-00408-(5)",{"$f":"HYPERLINK(\"H. Remainder/B-Emails/OCR-2015-04-23 Szalay FW_NOP-A1-Comments on NorthLake, Project No. R2015-00408-5.pdf\", \"Link\")","v":"Link"},19305,19305,1]
[null,null,"Attachment: titled \"Pac-Clay-Northlake NOP Letter (4-22-15).pdf\" ",{"$f":"HYPERLINK(\"H. Remainder/B-Emails/OCR-2015-04-23 Szalay FW_NOP-A2-Pac-Clay-Northlake NOP Letter 4-22-15.pdf\", \"Link\")","v":"Link"},19306,19307,2]
[null,"2015-04-23","Email from Kim Szalay to Jennifer Marks regarding FW: SCE Comment Letter on NorthLake NOP",{"$f":"HYPERLINK(\"H. Remainder/B-Emails/OCR-2015-04-23 Szalay FW_SCE-A1-Comment Letter on NorthLake NOP.pdf\", \"Link\")","v":"Link"},19308,19308,1]
[null,null,"Attachment: titled \"SCE_LA_County_NorthLake_SP_2015-04-22.pdf\" ",{"$f":"HYPERLINK(\"H. Remainder/B-Emails/OCR-2015-04-23 Szalay FW_SCE-A2-SCE_LA_County_NorthLake_SP_2015-04-22.pdf\", \"Link\")","v":"Link"},19309,19310,2]
[null,"2015-04-23","Email from Kim Szalay to Chau, Victoria@Wildlife regarding Northlake Biological Site Visit",{"$f":"HYPERLINK(\"H. Remainder/B-Emails/OCR-2015-04-23 Szalay RE_A1-Northlake Biological Site Visit.pdf\", \"Link\")","v":"Link"},19311,19313,3]
[null,null,"Attachment: titled \"IS_NOP Package - March 2015.pdf\" ",{"$f":"HYPERLINK(\"H. Remainder/B-Emails/OCR-2015-04-23 Szalay RE_A2-IS_NOP Package - March 2015.pdf\", \"Link\")","v":"Link"},19313,19400,87]
[null,"2015-04-27","Email from Sorin Alexanian to Samuel Dea regarding Monday Morning Update",{"$f":"HYPERLINK(\"H. Remainder/B-Emails/OCR-2015-04-27 Alexanian RE_ Monday Morning Update.pdf\", \"Link\")","v":"Link"},19401,19401,1]
[null,"2015-04-28","Email from Jerry Hidalgo to Kim Szalay regarding RE: Northlake Project No. R2015-0048-(5)",{"$f":"HYPERLINK(\"H. Remainder/B-Emails/OCR-2015-04-28 Hidalgo-A1-RE_ Northlake Project No. R2015-0048-5.pdf\", \"Link\")","v":"Link"},19402,19403,2]
[null,null,"Attachment: titled \"4-27-15 Item 9 Northlake Project Comment Letter.pdf\" ",{"$f":"HYPERLINK(\"H. Remainder/B-Emails/OCR-2015-04-28 Hidalgo-A2-4-27-15 Item 9 NL Project Comment Ltr.pdf\", \"Link\")","v":"Link"},19404,19407,4]
[null,"2015-04-28","Email from Kim Szalay to Samuel Dea regarding FW: Northlake Project No. R2015-0048-(5)",{"$f":"HYPERLINK(\"H. Remainder/B-Emails/OCR-2015-04-28 Szalay FW_A1-Northlake Project No. R2015-0048-5.pdf\", \"Link\")","v":"Link"},19408,19409,2]
[null,null,"Attachment: titled \"4-27-15 Item 9 Northlake Project Comment Letter.pdf\" ",{"$f":"HYPERLINK(\"H. Remainder/B-Emails/OCR-2015-04-28 Szalay FW_A2-4-27-15 Item 9 Northlake Project Comment Letter.pdf\", \"Link\")","v":"Link"},19410,19413,4]
[null,"2015-04-30","Email from Kim Szalay to Randy Jackson, Scott Ashloc, and John Arvin regarding Northlake Draft Design Gidebook DRP Comments",{"$f":"HYPERLINK(\"H. Remainder/B-Emails/OCR-2015-04-30 Szalay NL-A1-Draft Design Gidebook DRP Comments.pdf\", \"Link\")","v":"Link"},19414,19414,1]
[null,null,"Attachment: titled \"Northlake Design Guidebook KKS Comments 4-30-15 Revised.docx\" ",{"$f":"HYPERLINK(\"H. Remainder/B-Emails/OCR-2015-04-30 Szalay NL-A2-Design Guidebook KKS Comments 4-30-15 Rev.pdf\", \"Link\")","v":"Link"},19415,19417,3]
[null,"2015-05-04","Email from Kim Szalay to Jennifer Marks regarding NorthLake GHG Analysis",{"$f":"HYPERLINK(\"H. Remainder/B-Emails/OCR-2015-05-04 Szalay RE_ NorthLake GHG Analysis.pdf\", \"Link\")","v":"Link"},19418,19419,2]
[null,"2015-05-07","Email from Kim Szalay to Mark Sikand and John Arvin regarding Northlake Parks Meeting today",{"$f":"HYPERLINK(\"H. Remainder/B-Emails/OCR-2015-05-07 Szalay RE_ Northlake Parks Meeting today.pdf\", \"Link\")","v":"Link"},19420,19421,2]
[null,"2015-05-11","Email from Sheela Mathai to Mark Sikan and Kim Szalay regarding Northlake Meeting with Parks May 7 10 am",{"$f":"HYPERLINK(\"H. Remainder/B-Emails/OCR-2015-05-11 Mathai-A1-RE_ Northlake Meeting with Parks May 7 10 am.pdf\", \"Link\")","v":"Link"},19422,19425,4]
[null,null,"Attachment: titled \"2015-05-07_TR73336 Northlake Land Use Mtg_Sign In.pdf\" ",{"$f":"HYPERLINK(\"H. Remainder/B-Emails/OCR-2015-05-11 Mathai-A2-TR73336 Northlake Land Use Mtg_Sign In.pdf\", \"Link\")","v":"Link"},19426,19426,1]
[null,"2015-05-11","Email from Mark Sikand to Jonathan Gargan, Jim McCarthy, Jim Smith, Kathline J. King, Julie Yom, Sheela Mathai, and Clement Lau regarding Northlake Tent Tr. 73336 Parks and Rec Meeting",{"$f":"HYPERLINK(\"H. Remainder/B-Emails/OCR-2015-05-11 Sikand Northlake Tent Tr. 73336 Parks and Rec Meeting.pdf\", \"Link\")","v":"Link"},19427,19427,1]
[null,"2015-05-11","Email from Kim Szalay to John Arvin regarding Northlake VTTM and Parcel Map Submittal",{"$f":"HYPERLINK(\"H. Remainder/B-Emails/OCR-2015-05-11 Szalay Northlake VTTM and Parcel Map Submittal.pdf\", \"Link\")","v":"Link"},19428,19428,1]
[null,"2015-05-20","Email from Susan Tae to Nooshin Paidar regarding FW: Development Agreement 98047",{"$f":"HYPERLINK(\"H. Remainder/B-Emails/OCR-2015-05-20 Tae FW_ Development Agreement  98047.pdf\", \"Link\")","v":"Link"},19429,19430,2]
[null,"2015-05-28","Email from Daryl Koutnik to Hsiao-Ching Chen regarding NorthLake EIR",{"$f":"HYPERLINK(\"H. Remainder/B-Emails/OCR-2015-05-28 Koutnik RE_ NorthLake EIR.pdf\", \"Link\")","v":"Link"},19431,19433,3]
[null,"2015-06-02","Email from Kim Szalay to Robert Ettleman regarding NL and Adjacent BLM Land (TR73336)",{"$f":"HYPERLINK(\"H. Remainder/B-Emails/OCR-2015-06-02 Szalay RE_ NL and Adjacent BLM Land TR73336.pdf\", \"Link\")","v":"Link"},19434,19436,3]
[null,"2015-06-03","Email from Jennifer Marks to Kim Szalay regarding NorthLake SEIR Section Overview",{"$f":"HYPERLINK(\"H. Remainder/B-Emails/OCR-2015-06-03 Marks-A1-NorthLake SEIR Section Overview.pdf\", \"Link\")","v":"Link"},19437,19437,1]
[null,null,"Attachment: titled \"NorthLake SEIR Sections.docx\" ",{"$f":"HYPERLINK(\"H. Remainder/B-Emails/OCR-2015-06-03 Marks-A2-NorthLake SEIR Sections.pdf\", \"Link\")","v":"Link"},19438,19440,3]
[null,"2015-06-03","Email from Kim Szalay to Jennifer Marks regarding CUP 87172 Findings and Conditions",{"$f":"HYPERLINK(\"H. Remainder/B-Emails/OCR-2015-06-03 Szalay-A1-CUP 87172 Findings and Conditions.pdf\", \"Link\")","v":"Link"},19441,19441,1]
[null,null,"Attachment: titled \"CUP 87172 FFs and FCs.pdf\" ",{"$f":"HYPERLINK(\"H. Remainder/B-Emails/OCR-2015-06-03 Szalay-A2-CUP 87172 FFs and FCs.pdf\", \"Link\")","v":"Link"},19442,19459,18]
[null,"2015-06-03","Email from Kim Szalay to Jennifer Marks regarding NorthLake SEIR Section Overview",{"$f":"HYPERLINK(\"H. Remainder/B-Emails/OCR-2015-06-03 Szalay-B-RE_ NorthLake SEIR Section Overview.pdf\", \"Link\")","v":"Link"},19460,19461,2]
[null,"2015-06-08","Email from John Musella to Kim Szalay regarding Northlake Scoping Meeting Notes 4-8-15",{"$f":"HYPERLINK(\"H. Remainder/B-Emails/OCR-2015-06-08 Musella-A1-Northlake Scoping Meeting Notes 4-8-15.pdf\", \"Link\")","v":"Link"},19462,19462,1]
[null,null,"Attachment: titled \"040815 Northlake Scoping Meeting PDF.pdf\" ",{"$f":"HYPERLINK(\"H. Remainder/B-Emails/OCR-2015-06-08 Musella-A2-Northlake Scoping Meeting PDF.pdf\", \"Link\")","v":"Link"},19463,19530,68]
[null,"2015-06-09","Email from Kim Szalay to Jennifer Marks regarding FW: Northlake Scoping Meeting Notes 4-8-15",{"$f":"HYPERLINK(\"H. Remainder/B-Emails/OCR-2015-06-09 Szalay-A1-FW_ Northlake Scoping Meeting Notes 4-8-15.pdf\", \"Link\")","v":"Link"},19531,19532,2]
[null,null,"Attachment: titled \"040815 Northlake Scoping Meeting PDF.pdf\" ",{"$f":"HYPERLINK(\"H. Remainder/B-Emails/OCR-2015-06-09 Szalay-A2-Northlake Scoping Meeting PDF.pdf\", \"Link\")","v":"Link"},19533,19600,68]
[null,"2015-06-15","Email from Kim Szalay to Sheela Mathai regarding NorthLake site walk June 9th",{"$f":"HYPERLINK(\"H. Remainder/B-Emails/OCR-2015-06-15 Szalay RE_ NorthLake site walk June 9th.pdf\", \"Link\")","v":"Link"},19601,19612,12]
[null,"2015-06-15","Email from Kim Szalay to John Arvin regarding NorthLake ",{"$f":"HYPERLINK(\"H. Remainder/B-Emails/OCR-2015-06-15 Szalay RE_ NorthLake.pdf\", \"Link\")","v":"Link"},19613,19613,1]
[null,"2015-06-16","Email from Kim Szalay to Samuel Dea regarding NL SCDEIR 1st Submittal ",{"$f":"HYPERLINK(\"H. Remainder/B-Emails/OCR-2015-06-16 NL SCDEIR 1st Submittal.pdf\", \"Link\")","v":"Link"},19614,19614,1]
[null,"2015-06-29","Email from Joan Kelly to Kim Szalay and Jennifer Marks regarding SCH Number 2015031080",{"$f":"HYPERLINK(\"H. Remainder/B-Emails/OCR-2015-06-29 Kelly-A1-RE_ SCH Number 2015031080.pdf\", \"Link\")","v":"Link"},19615,19617,3]
[null,null,"Attachment: titled \"CA DWR SCH2015031080.pdf\" ",{"$f":"HYPERLINK(\"H. Remainder/B-Emails/OCR-2015-06-29 Kelly-A2-CA DWR SCH2015031080.pdf\", \"Link\")","v":"Link"},19618,19619,2]
[null,"2015-06-29","Email from Kim Szalay to Raman Gaur regarding Northlake off-site/external map improvements acreage",{"$f":"HYPERLINK(\"H. Remainder/B-Emails/OCR-2015-06-29 Szalay NL off-site_ext map improvements.pdf\", \"Link\")","v":"Link"},19620,19620,1]
[null,"2015-06-30","Email from Kim Szalay to Sheela Mathai regarding VTTM 73336 Northlake-Park Conditions",{"$f":"HYPERLINK(\"H. Remainder/B-Emails/OCR-2015-06-30 Szalay RE_ VTTM 73336 NL-Park Conditions.pdf\", \"Link\")","v":"Link"},19621,19621,1]
[null,"2015-06-30","Email from Kim Szalay to Angelique Carreon-Quion and DRP Web Administrator regarding TR073336",{"$f":"HYPERLINK(\"H. Remainder/B-Emails/OCR-2015-06-30 Szalay TR073336-A1.pdf\", \"Link\")","v":"Link"},19622,19622,1]
[null,null,"Attachment: titled \"TR 073336 Castaic Canyon-DPH-HOLD-06262015.pdf\" ",{"$f":"HYPERLINK(\"H. Remainder/B-Emails/OCR-2015-06-30 Szalay TR073336-A2-Castaic Canyon.pdf\", \"Link\")","v":"Link"},19623,19623,1]
[null,"2015-07-01","Email from Sheela Mathai to Kim Szalay regarding VTTM 73336 Northlake-Park and Trails Conditions",{"$f":"HYPERLINK(\"H. Remainder/B-Emails/OCR-2015-07-01 Mathai email-A1-VTTM 73336 NL-Park and Trails.pdf\", \"Link\")","v":"Link"},19624,19624,1]
[null,null,"Attachment: titled \"VTTM 73336 Northlake Park and Trails Conditions_07.16.15.pdf\" ",{"$f":"HYPERLINK(\"H. Remainder/B-Emails/OCR-2015-07-01 Mathai email-A2-VTTM 73336 NL Park and Trails.pdf\", \"Link\")","v":"Link"},19625,19633,9]
[null,"2015-07-01","Email from Kim Szalay to DRP Web Administrator regarding FW: VTTM 73336 Northlake-Park and Trails Conditions",{"$f":"HYPERLINK(\"H. Remainder/B-Emails/OCR-2015-07-01 Szalay email-A1-FW_ VTTM 73336 NL-Park and Trails.pdf\", \"Link\")","v":"Link"},19634,19634,1]
[null,null,"Attachment: titled \"VTTM 73336 Northlake Park and Trails Conditions_07.16.15.pdf\" ",{"$f":"HYPERLINK(\"H. Remainder/B-Emails/OCR-2015-07-01 Szalay email-A2-FW VTTM 73336 NL Park and Trails.pdf\", \"Link\")","v":"Link"},19635,19643,9]
[null,"2015-07-01","Email from Kim Szalay to DRP Web Administrator and Angelique Carreon-Quion regarding Northlake TR073336 DRP posting",{"$f":"HYPERLINK(\"H. Remainder/B-Emails/OCR-2015-07-01 Szalay NL-A1-TR073336 DRP posting.pdf\", \"Link\")","v":"Link"},19644,19644,1]
[null,null,"Attachment: titled \"VTTM TR073336 1st Revision DRP 7-16-15 SCM.docx\"",{"$f":"HYPERLINK(\"H. Remainder/B-Emails/OCR-2015-07-01 Szalay NL-A2-VTTM TR073336 1st Revision.pdf\", \"Link\")","v":"Link"},19645,19650,6]
[null,null,"Attachment: titled \"Northlake VTTM DRAFT Conditions.docx\"",{"$f":"HYPERLINK(\"H. Remainder/B-Emails/OCR-2015-07-01 Szalay NL-A3-NL VTTM DRAFT Conditions.pdf\", \"Link\")","v":"Link"},19651,19657,7]
[null,"2015-07-02","Email from John Arvin to Kim Szalay and Samuel Dea regarding Fire at NorthLake",{"$f":"HYPERLINK(\"H. Remainder/B-Emails/OCR-2015-07-02 Arvin Fire at NorthLake .pdf\", \"Link\")","v":"Link"},19658,19662,5]
[null,"2015-07-02","Email from Raman Gaur to Kim Szalay regarding Northlake off-site/external map improvements acreage",{"$f":"HYPERLINK(\"H. Remainder/B-Emails/OCR-2015-07-02 Gaur-A1-RE_ Northlake off-site_ext map improve acre.pdf\", \"Link\")","v":"Link"},19663,19664,2]
[null,null,"Attachment: titled \"Grading Outside VTTM Bdry.pdf\" ",{"$f":"HYPERLINK(\"H. Remainder/B-Emails/OCR-2015-07-02 Gaur-A2-Grading Outside VTTM Bdry.pdf\", \"Link\")","v":"Link"},19665,19665,1]
[null,"2015-07-02","Email from Kim Szalay to John Arvin, Mark Sikand, and Raman Gaur regarding TR073336 Web posting change DPW",{"$f":"HYPERLINK(\"H. Remainder/B-Emails/OCR-2015-07-02 Szalay-A1-TR073336 Web posting change DPW.pdf\", \"Link\")","v":"Link"},19666,19666,1]
[null,null,"Attachment: titled \"DPW w-o map REVISED p1-2 and Road p.pdf\" ",{"$f":"HYPERLINK(\"H. Remainder/B-Emails/OCR-2015-07-02 Szalay-A2-TDPW w-o map REVISED p1-2 and Road.pdf\", \"Link\")","v":"Link"},19667,19680,14]
[null,"2015-07-06","Email from Kim Szalay to DRP Web Administrator regarding Northlake VTTM TR073336 Marked up Maps",{"$f":"HYPERLINK(\"H. Remainder/B-Emails/OCR-2015-07-06 Szalay NL-A1-VTTM TR073336 Marked up Maps.pdf\", \"Link\")","v":"Link"},19681,19681,1]
[null,null,"Attachment: titled \"NorthLake TM 73336 20150602 1st Revision KKS.pdf\" ",{"$f":"HYPERLINK(\"H. Remainder/B-Emails/OCR-2015-07-06 Szalay NL-A2-NL TM 73336 20150602 1st Rev KKS.pdf\", \"Link\")","v":"Link"},19682,19696,15]
[null,"2015-07-06","Email from Kim Szalay to Jennifer Marks regarding Northlake SCDSEIR TOC, Intro, Env. Setting, PD DRP 1st SC",{"$f":"HYPERLINK(\"H. Remainder/B-Emails/OCR-2015-07-06 Szalay Northlake-A1-SCDSEIR TOC Intro, Env. Setting.pdf\", \"Link\")","v":"Link"},19697,19697,1]
[null,null,"Attachment: titled \"1 0_Intro-061515 KKS 1st SC.docx\"",{"$f":"HYPERLINK(\"H. Remainder/B-Emails/OCR-2015-07-06 Szalay Northlake-B-1 0_Intro-061515 KKS 1st.pdf\", \"Link\")","v":"Link"},19698,19711,14]
[null,null,"Attachment: titled \"2 0_Env Setting-061515 KKS 1st SC.docx\"",{"$f":"HYPERLINK(\"H. Remainder/B-Emails/OCR-2015-07-06 Szalay Northlake-C-2 0_Env Setting-061515 KKS 1st.pdf\", \"Link\")","v":"Link"},19712,19717,6]
[null,null,"Attachment: titled \"3 0_Proj Desc-061515 KKS 1st SC.docx\"",{"$f":"HYPERLINK(\"H. Remainder/B-Emails/OCR-2015-07-06 Szalay Northlake-D-3 0_Proj Desc-061515 KKS 1st.pdf\", \"Link\")","v":"Link"},19718,19747,30]
[null,null,"Attachment: titled \"TOC-061615 KKS 1st SC.docx\"",{"$f":"HYPERLINK(\"H. Remainder/B-Emails/OCR-2015-07-06 Szalay Northlake-E-TOC-061615 KKS 1st SC.pdf\", \"Link\")","v":"Link"},19748,19751,4]
[null,"2015-07-06","Email from Kim Szalay to John Arvin, Mark Sikand, and Raman Gaur regarding Northlake Exhibit Map TR07333 DRP 1",{"$f":"HYPERLINK(\"H. Remainder/B-Emails/OCR-2015-07-06 Szalay RE_NL-A1-Ex Map DRP 1.pdf\", \"Link\")","v":"Link"},19752,19752,1]
[null,null,"Attachment: titled \"NorthLake TM 73336 Exhibit A 20150602 1st Revision KKS_Part1.pdf\" ",{"$f":"HYPERLINK(\"H. Remainder/B-Emails/OCR-2015-07-06 Szalay RE_NL-A2-Ex A 1st Rev KKS_Pt1.pdf\", \"Link\")","v":"Link"},19753,19755,3]
[null,"2015-07-06","Email from Kim Szalay to John Arvin, Mark Sikand, and Raman Gaur regarding Northlake Exhibit Map TR07333 DRP 2",{"$f":"HYPERLINK(\"H. Remainder/B-Emails/OCR-2015-07-06 Szalay RE_NL-B1-Ex Map DRP 2.pdf\", \"Link\")","v":"Link"},19756,19756,1]
[null,null,"Attachment: titled \"NorthLake TM 73336 Exhibit A 20150602 1st Revision KKS_Part2.pdf\" ",{"$f":"HYPERLINK(\"H. Remainder/B-Emails/OCR-2015-07-06 Szalay RE_NL-B2-Ex A 1st Rev KKS_Pt2.pdf\", \"Link\")","v":"Link"},19757,19759,3]
[null,"2015-07-06","Email from Kim Szalay to John Arvin, Mark Sikand, and Raman Gaur regarding Northlake Exhibit Map TR07333 DRP 3",{"$f":"HYPERLINK(\"H. Remainder/B-Emails/OCR-2015-07-06 Szalay RE_NL-C1-Ex Map DRP 3.pdf\", \"Link\")","v":"Link"},19760,19760,1]
[null,null,"Attachment: titled \"NorthLake TM 73336 Exhibit A 20150602 1st Revision KKS_Part3.pdf\" ",{"$f":"HYPERLINK(\"H. Remainder/B-Emails/OCR-2015-07-06 Szalay RE_NL-C2-Ex A 1st Rev KKS_Pt3.pdf\", \"Link\")","v":"Link"},19761,19762,2]
[null,"2015-07-06","Email from Kim Szalay to John Arvin, Mark Sikand, and Raman Gaur regarding Northlake Exhibit Map TR07333 DRP 4",{"$f":"HYPERLINK(\"H. Remainder/B-Emails/OCR-2015-07-06 Szalay RE_NL-D1-Ex Map DRP 4.pdf\", \"Link\")","v":"Link"},19763,19763,1]
[null,null,"Attachment: titled \"NorthLake TM 73336 Exhibit A 20150602 1st Revision KKS_Part4.pdf\" ",{"$f":"HYPERLINK(\"H. Remainder/B-Emails/OCR-2015-07-06 Szalay RE_NL-D2-Ex A 1st Rev KKS_Pt4.pdf\", \"Link\")","v":"Link"},19764,19765,2]
[null,"2015-07-06","Email from Kim Szalay to John Arvin, Mark Sikand, and Raman Gaur regarding Northlake VTTM TR07333 DRP 1",{"$f":"HYPERLINK(\"H. Remainder/B-Emails/OCR-2015-07-06 Szalay RE_NL-E1- VTTM TR07333 DRP 1.pdf\", \"Link\")","v":"Link"},19766,19766,1]
[null,null,"Attachment: titled \"NorthLake TM 73336 20150602 1st Revision KKS_Part1.pdf\" ",{"$f":"HYPERLINK(\"H. Remainder/B-Emails/OCR-2015-07-06 Szalay RE_NL-E2-1st Rev KKS_Pt1.pdf\", \"Link\")","v":"Link"},19767,19769,3]
[null,"2015-07-06","Email from Kim Szalay to John Arvin, Mark Sikand, and Raman Gaur regarding Northlake VTTM TR07333 DRP 2",{"$f":"HYPERLINK(\"H. Remainder/B-Emails/OCR-2015-07-06 Szalay RE_NL-F1-VTTM TR07333 DRP 2.pdf\", \"Link\")","v":"Link"},19770,19770,1]
[null,null,"Attachment: titled \"NorthLake TM 73336 20150602 1st Revision KKS_Part2.pdf\" ",{"$f":"HYPERLINK(\"H. Remainder/B-Emails/OCR-2015-07-06 Szalay RE_NL-F2-1st Rev KKS_Pt2.pdf\", \"Link\")","v":"Link"},19771,19771,1]
[null,"2015-07-06","Email from Kim Szalay to John Arvin, Mark Sikand, and Raman Gaur regarding Northlake VTTM TR07333 DRP 3",{"$f":"HYPERLINK(\"H. Remainder/B-Emails/OCR-2015-07-06 Szalay RE_NL-G1-VTTM TR07333 DRP 3.pdf\", \"Link\")","v":"Link"},19772,19772,1]
[null,null,"Attachment: titled \"NorthLake TM 73336 20150602 1st Revision KKS_Part3.pdf\" ",{"$f":"HYPERLINK(\"H. Remainder/B-Emails/OCR-2015-07-06 Szalay RE_NL-G2-1st Rev KKS_Pt3.pdf\", \"Link\")","v":"Link"},19773,19773,1]
[null,"2015-07-06","Email from Kim Szalay to John Arvin, Mark Sikand, and Raman Gaur regarding Northlake VTTM TR07333 DRP 4",{"$f":"HYPERLINK(\"H. Remainder/B-Emails/OCR-2015-07-06 Szalay RE_NL-H1-VTTM TR07333 DRP 4.pdf\", \"Link\")","v":"Link"},19774,19774,1]
[null,null,"Attachment: titled \"NorthLake TM 73336 20150602 1st Revision KKS_Part4.pdf\" ",{"$f":"HYPERLINK(\"H. Remainder/B-Emails/OCR-2015-07-06 Szalay RE_NL-H2-1st Rev KKS_Pt4.pdf\", \"Link\")","v":"Link"},19775,19775,1]
[null,"2015-07-06","Email from Kim Szalay to John Arvin, Mark Sikand, and Raman Gaur regarding Northlake VTTM TR07333 DRP 5",{"$f":"HYPERLINK(\"H. Remainder/B-Emails/OCR-2015-07-06 Szalay RE_NL-I1-VTTM TR07333 DRP 5.pdf\", \"Link\")","v":"Link"},19776,19776,1]
[null,null,"Attachment: titled \"NorthLake TM 73336 20150602 1st Revision KKS_Part5.pdf\" ",{"$f":"HYPERLINK(\"H. Remainder/B-Emails/OCR-2015-07-06 Szalay RE_NL-I2-1st Rev KKS_Pt5.pdf\", \"Link\")","v":"Link"},19777,19778,2]
[null,"2015-07-06","Email from Kim Szalay to John Arvin, Mark Sikand, and Raman Gaur regarding Northlake VTTM TR07333 DRP 6",{"$f":"HYPERLINK(\"H. Remainder/B-Emails/OCR-2015-07-06 Szalay RE_NL-J1-VTTM TR07333 DRP 6.pdf\", \"Link\")","v":"Link"},19779,19779,1]
[null,null,"Attachment: titled \"NorthLake TM 73336 20150602 1st Revision KKS_Part6.pdf\" ",{"$f":"HYPERLINK(\"H. Remainder/B-Emails/OCR-2015-07-06 Szalay RE_NL-J2-1st Rev KKS_Pt6.pdf\", \"Link\")","v":"Link"},19780,19786,7]
[null,"2015-07-07","Email from Kim Szalay to Jennifer Marks regarding NL ENV Setting and AQ 1st SC KKS",{"$f":"HYPERLINK(\"H. Remainder/B-Emails/OCR-2015-07-07 Szalay-A1-NL ENV Setting and AQ 1st SC KKS.pdf\", \"Link\")","v":"Link"},19787,19787,1]
[null,null,"Attachment: titled \"4 0_EnvAnlys-061515 KKS 1st SC.docx\"",{"$f":"HYPERLINK(\"H. Remainder/B-Emails/OCR-2015-07-07 Szalay-A2-4 0_EnvAnlys-061515 KKS 1st SC.pdf\", \"Link\")","v":"Link"},19788,19791,4]
[null,null,"Attachment: titled \"4 1_Air Quality-061515 KKS 1st SC.docx\"",{"$f":"HYPERLINK(\"H. Remainder/B-Emails/OCR-2015-07-07 Szalay-A3-4 1_Air Quality-061515 KKS 1st SC.pdf\", \"Link\")","v":"Link"},19792,19827,36]
[null,"2015-07-08","Email from Kim Szalay to Jennifer Marks regarding NL SCDSEIR Cultural, Energy, Fire 1st SC KKS",{"$f":"HYPERLINK(\"H. Remainder/B-Emails/OCR-2015-07-08 Szalay NL SCDSEIR-A-Cultural, Energy, Fire 1st SC KKS.pdf\", \"Link\")","v":"Link"},19828,19828,1]
[null,null,"Attachment: titled \"4 3_Cultural Resources-061515 KKS.docx\"",{"$f":"HYPERLINK(\"H. Remainder/B-Emails/OCR-2015-07-08 Szalay NL SCDSEIR-B-4 3_Cultural Resources-061515 KKS.pdf\", \"Link\")","v":"Link"},19829,19847,19]
[null,null,"Attachment: titled \"4 4_Energy-061515 KKS.docx\"",{"$f":"HYPERLINK(\"H. Remainder/B-Emails/OCR-2015-07-08 Szalay NL SCDSEIR-C-4 4_Energy-061515 KKS.pdf\", \"Link\")","v":"Link"},19848,19859,12]
[null,null,"Attachment: titled \"4 5_Fire Hazards-061515 KKS.docx\"",{"$f":"HYPERLINK(\"H. Remainder/B-Emails/OCR-2015-07-08 Szalay NL SCDSEIR-D-4 5_Fire Hazards-061515 KKS.pdf\", \"Link\")","v":"Link"},19860,19877,18]
[null,"2015-07-08","Email from Kim Szalay to Jennifer Marks regarding NL SCDSEIR Geotech 1st Review DRP",{"$f":"HYPERLINK(\"H. Remainder/B-Emails/OCR-2015-07-08 Szalay NL SCDSEIR-E-Geotech 1st Review DRP.pdf\", \"Link\")","v":"Link"},19878,19878,1]
[null,null,"Attachment: titled \"4 6_Geo and Soils-061515 KKS.docx\" ",{"$f":"HYPERLINK(\"H. Remainder/B-Emails/OCR-2015-07-08 Szalay NL SCDSEIR-F-4 6_Geo and Soils-061515 KKS.pdf\", \"Link\")","v":"Link"},19878,19894,16]
[null,"2015-07-08","Email from Kim Szalay to Jennifer Marks regarding RE: NL SCDSEIR Cultural, Energy, Fire 1st SC KKS",{"$f":"HYPERLINK(\"H. Remainder/B-Emails/OCR-2015-07-08 Szalay RE NL SCDSEIR Cultural, Energy, Fire 1st SC KKS.pdf\", \"Link\")","v":"Link"},19895,19896,2]
[null,"2015-07-28","Email from Kim Szalay to John Arvin, Mark Sikand, and Raman Gaur regarding NL SCSEIR Hydro-WQ KKS",{"$f":"HYPERLINK(\"H. Remainder/B-Emails/OCR-2015-07-28 Szalay-A1-NL SCSEIR Hydro-WQ KKS.pdf\", \"Link\")","v":"Link"},19897,19897,1]
[null,null,"Attachment: titled \"4 8_Hydro WQ-061515 KKS.docx\" ",{"$f":"HYPERLINK(\"H. Remainder/B-Emails/OCR-2015-07-28 Szalay-A2-4 8_Hydro WQ-061515 KKS.pdf\", \"Link\")","v":"Link"},19898,19949,52]
[null,"2015-07-30","Email from Kim Szalay to Jennifer Marks regarding NL SCSEIR LU and Planning",{"$f":"HYPERLINK(\"H. Remainder/B-Emails/OCR-2015-07-30 Szalay-A-NL SCSEIR LU and Planning.pdf\", \"Link\")","v":"Link"},199450,199450,1]
[null,null,"Attachment: titled \"4 9_Land Use-061515 KKS.docx\" ",{"$f":"HYPERLINK(\"H. Remainder/B-Emails/OCR-2015-07-30 Szalay-B-4 9_Land Use-061515 KKS.pdf\", \"Link\")","v":"Link"},199451,19996,46]
[null,"2015-08-03","Email from Jennifer Marks to Kim Szalay regarding NorthLake Screencheck DRAFT Supplemental EIR Biota",{"$f":"HYPERLINK(\"H. Remainder/B-Emails/OCR-2015-08-03 Marks-A1-RE_ NorthLake Screencheck DRAFT Supplemental EIR Biota.pdf\", \"Link\")","v":"Link"},19997,19998,2]
[null,null,"Attachment: titled \"NorthLake Bio Tech-073015.docx\" ",{"$f":"HYPERLINK(\"H. Remainder/B-Emails/OCR-2015-08-03 Marks-A2-NorthLake Bio Tech-073015.pdf\", \"Link\")","v":"Link"},19999,20112,114]
[null,"2015-08-03","Email from Kim Szalay to Jennifer Marks regarding NL SCDSEIR Traffic",{"$f":"HYPERLINK(\"H. Remainder/B-Emails/OCR-2015-08-03 Szalay-A-NL SCDSEIR Traffic.pdf\", \"Link\")","v":"Link"},20113,20113,1]
[null,null,"Attachment: titled \"4 11_Traffic-061515 KKS.docx\" ",{"$f":"HYPERLINK(\"H. Remainder/B-Emails/OCR-2015-08-03 Szalay-B-4 11_Traffic-061515 KKS.pdf\", \"Link\")","v":"Link"},20114,20159,46]
[null,"2015-08-04","Email from Kim Szalay to Jennifer Marks regarding NL SCDSEIR Alternatives Section",{"$f":"HYPERLINK(\"H. Remainder/B-Emails/OCR-2015-08-04 Szalay NL SCDSEIR-A-Alternatives Section.pdf\", \"Link\")","v":"Link"},20160,20160,1]
[null,null,"Attachment: titled \"5 0 Alternatives-061515 KKS.docx\" ",{"$f":"HYPERLINK(\"H. Remainder/B-Emails/OCR-2015-08-04 Szalay NL SCDSEIR-B-5 0 Alternatives-061515 KKS.pdf\", \"Link\")","v":"Link"},20161,20182,22]
[null,"2015-08-04","Email from Kim Szalay to Jennifer Marks regarding NL SCDSEIR Other CEQA",{"$f":"HYPERLINK(\"H. Remainder/B-Emails/OCR-2015-08-04 Szalay NL SCDSEIR-C-Other CEQA.pdf\", \"Link\")","v":"Link"},20183,20183,1]
[null,null,"Attachment: titled \"6 0_Other CEQA Topics-061515 KKS.docx\" ",{"$f":"HYPERLINK(\"H. Remainder/B-Emails/OCR-2015-08-04 Szalay NL SCDSEIR-D-6 0_Other CEQA Topics-061515 KKS.pdf\", \"Link\")","v":"Link"},20184,20199,16]
[null,"2015-08-04","Email from Kim Szalay to Jennifer Marks regarding NL SCDSEIR Utilities",{"$f":"HYPERLINK(\"H. Remainder/B-Emails/OCR-2015-08-04 Szalay NL SCDSEIR-E-Utilities.pdf\", \"Link\")","v":"Link"},20200,20200,1]
[null,null,"Attachment: titled \"4 12_Utilities-061515 KKS.docx\" ",{"$f":"HYPERLINK(\"H. Remainder/B-Emails/OCR-2015-08-04 Szalay NL SCDSEIR-F-12_Utilities-061515 KKS.pdf\", \"Link\")","v":"Link"},20201,20236,36]
[null,"2015-08-05","Email from Jennifer Marks to Kim Szalay regarding NL SCDSEIR 1st Round of Review completed",{"$f":"HYPERLINK(\"H. Remainder/B-Emails/OCR-2015-08-05 Marks RE_ NL SCDSEIR 1st Round of Review completed.pdf\", \"Link\")","v":"Link"},20237,20238,2]
[null,"2015-08-05","Email from Jennifer Marks to Kim Szalay regarding NL SCDSEIR GHG Resend",{"$f":"HYPERLINK(\"H. Remainder/B-Emails/OCR-2015-08-05 Marks RE_ NL SCDSEIR GHG Resend.pdf\", \"Link\")","v":"Link"},20239,20241,3]
[null,"2015-08-05","Email from Kim Szalay to Jennifer Marks regarding NL SCDSEIR GHG",{"$f":"HYPERLINK(\"H. Remainder/B-Emails/OCR-2015-08-05 Szalay NL SCDSEIR GHG.pdf\", \"Link\")","v":"Link"},20242,20244,3]
[null,"2015-08-05","Email from Kim Szalay to Jennifer Marks regarding NL SCDSEIR GHG Resend",{"$f":"HYPERLINK(\"H. Remainder/B-Emails/OCR-2015-08-05 Szalay RE-A-NL SCDSEIR GHG Resend.pdf\", \"Link\")","v":"Link"},20245,20247,3]
[null,null,"Attachment: titled \"4 7_GHG-061515 KKS 1st.docx\" ",{"$f":"HYPERLINK(\"H. Remainder/B-Emails/OCR-2015-08-05 Szalay RE-B-4 7_GHG-061515 KKS 1st.pdf\", \"Link\")","v":"Link"},20248,20288,41]
[null,"2015-08-10","Email from Joseph Decruyenaere to joedecruyenaere@gmail.com regarding NorthLake Screencheck DRAFT Supplemental EIR Biota",{"$f":"HYPERLINK(\"H. Remainder/B-Emails/OCR-2015-08-10 Decruyenaere-A-Fwd_ NL Screencheck DRAFT SuppEIR Biota.pdf\", \"Link\")","v":"Link"},20289,20290,2]
[null,null,"Attachment: titled \"4 2_Bio Reoursces-061515.docx\" ",{"$f":"HYPERLINK(\"H. Remainder/B-Emails/OCR-2015-08-10 Decruyenaere-B-4 2_Bio Reoursces-061515.pdf\", \"Link\")","v":"Link"},20291,20342,52]
[null,"2015-08-11","Email from Kim Szalay to cgulley@tataviam-nsn.us and kfatehi@tataviam-nsn.us regarding NorthLake Project and Notice of Preparation of an EIR / AB 52 Consultation Request",{"$f":"HYPERLINK(\"H. Remainder/B-Emails/OCR-2015-08-11 Szalay-A-NL Project and NOP of an EIR _ AB 52 Consultation.pdf\", \"Link\")","v":"Link"},20343,20346,4]
[null,null,"Attachment: titled \"Cultural Resource Permit-2015.pdf\"",{"$f":"HYPERLINK(\"H. Remainder/B-Emails/OCR-2015-08-11 Szalay-B-Cultural Resource Permit.pdf\", \"Link\")","v":"Link"},20347,20351,5]
[null,null,"Attachment: titled \"Tataviam Tribal Territory Map 2015.pdf\"",{"$f":"HYPERLINK(\"H. Remainder/B-Emails/OCR-2015-08-11 Szalay-C-Tataviam Tribal Territory Map.pdf\", \"Link\")","v":"Link"},20352,20352,1]
[null,"2015-08-12","Email from Joseph Decruyenaere to joedecruyenaere@gmail.com regarding Untitled",{"$f":"HYPERLINK(\"H. Remainder/B-Emails/OCR-2015-08-12 Decruyenaere-A-Untitled.pdf\", \"Link\")","v":"Link"},20353,20353,1]
[null,null,"Attachment: titled \"NorthLake Bio Tech-073015_jd comments.docx\" ",{"$f":"HYPERLINK(\"H. Remainder/B-Emails/OCR-2015-08-12 Decruyenaere-B-NL Bio Tech_jd comments.pdf\", \"Link\")","v":"Link"},20354,20469,116]
[null,"2015-08-12","Email from Kim Szalay to Jennifer Marks regarding NL Biota Technical and Section",{"$f":"HYPERLINK(\"H. Remainder/B-Emails/OCR-2015-08-12 Szalay NL Biota Technical and Section.pdf\", \"Link\")","v":"Link"},20470,20470,1]
[null,"2015-08-12","Email from Kim Szalay to Jennifer Marks regarding NL SCDSEIR Cultural Native American - related Mitigation Measures samples",{"$f":"HYPERLINK(\"H. Remainder/B-Emails/OCR-2015-08-12 Szalay NL SCDSEIR Cultural Native American-related Mitigation.pdf\", \"Link\")","v":"Link"},20471,20472,2]
[null,"2015-08-13","Email from Caitlin Gulley to Kim Szalay regarding NorthLake Project and Notice of Preparation of an EIR Consultation Request",{"$f":"HYPERLINK(\"H. Remainder/B-Emails/OCR-2015-08-13 Gulley Re_ NorthLake Project and NOP of an EIR Consultation.pdf\", \"Link\")","v":"Link"},20473,20480,8]
[null,"2015-08-18","Email from Diane Aranda to Samuel Dea and Kim Szalay regarding Park and Rec Maeter Trail Plan",{"$f":"HYPERLINK(\"H. Remainder/B-Emails/OCR-2015-08-18 Aranda Park and Rec Maeter Trail Plan.pdf\", \"Link\")","v":"Link"},20481,20481,1]
[null,"2015-08-18","Email from Joseph Decruyenaere to Kim Szalay regarding NorthLake Bio Tech-073015_jd comments",{"$f":"HYPERLINK(\"H. Remainder/B-Emails/OCR-2015-08-18 Decruyenaere email re-A-NorthLake Bio Tech-073015_jd comments.pdf\", \"Link\")","v":"Link"},20482,20482,1]
[null,null,"Attachment: titled \"NorthLake Bio Tech-073015_jd comments.docx\" ",{"$f":"HYPERLINK(\"H. Remainder/B-Emails/OCR-2015-08-18 Decruyenaere email re-BNorthLake Bio Tech.pdf\", \"Link\")","v":"Link"},20483,20598,116]
[null,"2015-08-18","Email from Kim Szalay to Diane Aranda regarding Park and Rec Maeter Trail Plan",{"$f":"HYPERLINK(\"H. Remainder/B-Emails/OCR-2015-08-18 Szalay RE_ Park and Rec Maeter Trail Plan.pdf\", \"Link\")","v":"Link"},20599,20599,1]
[null,"2015-08-19","Email from Kim Szalay to John Arvin and Mark Sikand regarding Castaic Area Trails Public Meeting",{"$f":"HYPERLINK(\"H. Remainder/B-Emails/OCR-2015-08-19 Szalay email re-A-Castaic Area Trails Public Meeting.pdf\", \"Link\")","v":"Link"},20600,20600,1]
[null,null,"Attachment: titled \"Community Outreach Meeting Flyer.pdf\" ",{"$f":"HYPERLINK(\"H. Remainder/B-Emails/OCR-2015-08-19 Szalay email re-B-Community Outreach Meeting Flyer.pdf\", \"Link\")","v":"Link"},20601,20601,1]
[null,"2015-08-25","Email from Jennifer Marks to Kim Szalay regarding Sample NorthLake Section for Formatting",{"$f":"HYPERLINK(\"H. Remainder/B-Emails/OCR-2015-08-25 Marks-A-Sample NorthLake Section for Formatting.pdf\", \"Link\")","v":"Link"},20602,20602,1]
[null,null,"Attachment: titled \"4 3_Cultural Resources-061515 KKS JYM.docx\" ",{"$f":"HYPERLINK(\"H. Remainder/B-Emails/OCR-2015-08-25 Marks-B-4 3_Cultural Resources-061515 KKS JYM.pdf\", \"Link\")","v":"Link"},20603,20622,20]
[null,"2015-08-25","Email from Kim Szalay to Jennifer Marks regarding RE: Sample NorthLake Section for Formatting",{"$f":"HYPERLINK(\"H. Remainder/B-Emails/OCR-2015-08-25 Szalay-A-RE_ Sample NorthLake Section for Formatting.pdf\", \"Link\")","v":"Link"},20623,20624,2]
[null,null,"Attachment: titled \"4 3_Cultural Resources-061515 KKS JYM KKS2.docx\" ",{"$f":"HYPERLINK(\"H. Remainder/B-Emails/OCR-2015-08-25 Szalay-B-4 3_Cultural Resources-061515 KKS JYM KKS2.pdf\", \"Link\")","v":"Link"},20625,20644,20]
[null,"2015-08-31","Email from Raman Gaur to Kim Szalay regarding Northlake - Right of Way question",{"$f":"HYPERLINK(\"H. Remainder/B-Emails/OCR-2015-08-31 Gaur email-A-Northlake - Right of Way question.pdf\", \"Link\")","v":"Link"},20645,20645,1]
[null,null,"Attachment: titled \"Single Family.pdf\"",{"$f":"HYPERLINK(\"H. Remainder/B-Emails/OCR-2015-08-31 Gaur email-B-Single Family.pdf\", \"Link\")","v":"Link"},20646,20646,1]
[null,null,"Attachment: titled \"NorthLake TM 73336 Trail Section.pdf\"",{"$f":"HYPERLINK(\"H. Remainder/B-Emails/OCR-2015-08-31 Gaur email-C-NorthLake TM 73336 Trail Section.pdf\", \"Link\")","v":"Link"},20647,20647,1]
[null,"2015-09-01","Email from Kim Szalay to Samuel Dea regarding FW: Northlake - Right of Way question",{"$f":"HYPERLINK(\"H. Remainder/B-Emails/OCR-2015-09-01 Szalay email-A-FW_ Northlake-Right of Way.pdf\", \"Link\")","v":"Link"},20648,20648,1]
[null,null,"Attachment: titled \"Single Family.pdf\"",{"$f":"HYPERLINK(\"H. Remainder/B-Emails/OCR-2015-09-01 Szalay email-B-Single Family.pdf\", \"Link\")","v":"Link"},20649,20649,1]
[null,null,"Attachment: titled \"NorthLake TM 73336 Trail Section.pdf\"",{"$f":"HYPERLINK(\"H. Remainder/B-Emails/OCR-2015-09-01 Szalay email-C-NorthLake TM 73336 Trail Section.pdf\", \"Link\")","v":"Link"},20650,20650,1]
[null,"2015-09-01","Email from Kim Szalay to Raman Gaur regarding RE: Northlake - Right of Way question",{"$f":"HYPERLINK(\"H. Remainder/B-Emails/OCR-2015-09-01 Szalay RE_ Northlake - Right of Way question.pdf\", \"Link\")","v":"Link"},20651,20651,1]
[null,"2015-09-09","Email from Raman Gaur to Samuel Dea regarding Northlake - Road Cross-Section",{"$f":"HYPERLINK(\"H. Remainder/B-Emails/OCR-2015-09-09 Gaur-A-NL-Road Cross-Section .pdf\", \"Link\")","v":"Link"},20652,20652,1]
[null,null,"Attachment: titled \"Northlake Street A B cross section.pdf\"",{"$f":"HYPERLINK(\"H. Remainder/B-Emails/OCR-2015-09-09 Gaur-B-NL Str A and B cross section.pdf\", \"Link\")","v":"Link"},20653,20653,1]
[null,null,"Attachment: titled \"Phase 1 2 LU-A and B street.pdf\"",{"$f":"HYPERLINK(\"H. Remainder/B-Emails/OCR-2015-09-09 Gaur-C-Phase 1  2 LU-A and B street.pdf\", \"Link\")","v":"Link"},20654,20654,1]
[null,"2015-09-09","Email from Kim Szalay to Samuel Dea regarding FW: SB 18 Consultation: Northlake",{"$f":"HYPERLINK(\"H. Remainder/B-Emails/OCR-2015-09-09 Szalay FW_ SB 18 Consultation_ Northlake.pdf\", \"Link\")","v":"Link"},20655,20660,6]
[null,"2015-09-17","Email from Gloria Taylor to Andrew Ross et al. regarding Application and Cover Letter for Project No. R2015-00408 / TR073336",{"$f":"HYPERLINK(\"H. Remainder/B-Emails/OCR-2015-09-17 Taylor email re-A-App and Cover Ltr for Project R2015-00408.pdf\", \"Link\")","v":"Link"},20661,20661,1]
[null,null,"Attachment: titled \"img-917100508-0001.pdf\" ",{"$f":"HYPERLINK(\"H. Remainder/B-Emails/OCR-2015-09-17 Taylor email re-B-img-917100508-0001.pdf\", \"Link\")","v":"Link"},20662,20669,8]
[null,"2015-09-18","Email from John Arvin to Dale Goldsmith, Jennifer Marks, and Samuel Dea regarding NorthLake EIR Meeting",{"$f":"HYPERLINK(\"H. Remainder/B-Emails/OCR-2015-09-18 Arvin NorthLake EIR Meeting.pdf\", \"Link\")","v":"Link"},20670,20670,1]
[null,"2015-09-30","Email from Jennifer Marks to Samuel Dea regarding Tataviam Follow-up",{"$f":"HYPERLINK(\"H. Remainder/B-Emails/OCR-2015-09-30 Marks Tataviam Follow-up.pdf\", \"Link\")","v":"Link"},20671,20671,1]
[null,"2015-10-08","Email from Caitlin Gulley to Samuel Dea regarding Centennial Project - No. 02-232",{"$f":"HYPERLINK(\"H. Remainder/B-Emails/OCR-2015-10-08 Gulley Re_ Centennial Project - No. 02-232.pdf\", \"Link\")","v":"Link"},20672,20673,2]
[null,"2015-10-14","Email from Samuel Dea to Jodie Sackett regarding FW: Web Posting for Project No. R2015-00408 / TR073336",{"$f":"HYPERLINK(\"H. Remainder/B-Emails/OCR-2015-10-14 Dea-A-FW_ WEB POSTING FOR PROJECT NO.  R2015-00408 _ TR073336.pdf\", \"Link\")","v":"Link"},20674,20675,2]
[null,null,"Attachment: titled \"73336r2.dot\" ",{"$f":"HYPERLINK(\"H. Remainder/B-Emails/OCR-2015-10-14 Dea-B-73336r2.pdf\", \"Link\")","v":"Link"},20676,20680,5]
[null,"2015-10-14","Email from Kim Szalay to Samuel Dea regarding FW: NorthLake PowerPoint, Agenda/Comment Form, and Sign-in Sheet",{"$f":"HYPERLINK(\"H. Remainder/B-Emails/OCR-2015-10-14 Szalay email-A-NL PPT-Agenda-Comment and Sign-in Sheet.pdf\", \"Link\")","v":"Link"},20681,20681,1]
[null,null,"Attachment: titled \"Northlake Scoping Meeting Sign In Form.doc\"",{"$f":"HYPERLINK(\"H. Remainder/B-Emails/OCR-2015-10-14 Szalay email-B-NL Scoping Mtg Sign In Form.pdf\", \"Link\")","v":"Link"},20682,20682,1]
[null,null,"Attachment: titled \"Northlake Scoping Meeting Public Input Form.doc\"",{"$f":"HYPERLINK(\"H. Remainder/B-Emails/OCR-2015-10-14 Szalay email-C-NL Scoping Mtg Public Input Form.pdf\", \"Link\")","v":"Link"},20683,20684,2]
[null,null,"Attachment: titled \"Northlake Scoping Meeting Presentation.pptx\"",{"$f":"HYPERLINK(\"H. Remainder/B-Emails/OCR-2015-10-14 Szalay email-D-NL Scoping Mtg Presentation.pdf\", \"Link\")","v":"Link"},20685,20711,27]
[null,"2015-10-15","Email from Jodie Sackett to john@woodridgecapital.com regarding FW: DWR request for Map consultation",{"$f":"HYPERLINK(\"H. Remainder/B-Emails/OCR-2015-10-15 Sackett FW_ DWR request for Map consultation.pdf\", \"Link\")","v":"Link"},20712,20714,3]
[null,"2015-10-15","Email from Jodie Sackett to john@woodridgecapital.com and rgaur@sikand.com regarding FW: Northlake - DWR request for Map consultation",{"$f":"HYPERLINK(\"H. Remainder/B-Emails/OCR-2015-10-15 Sackett FW_ Northlake - DWR request for Map consultation.pdf\", \"Link\")","v":"Link"},20715,20717,3]
[null,"2015-10-15","Email from Jodie Sackett to Clement Lau regarding Park Conditions and Trail Comments Letter for TR 073336 (Northlake)",{"$f":"HYPERLINK(\"H. Remainder/B-Emails/OCR-2015-10-15 Sackett RE_ Park-ConditionsAndTrailComments.pdf\", \"Link\")","v":"Link"},20718,20719,2]
[null,"2015-10-15","Email from Jodie Sackett to Michelle Tsiebos regarding TR 073336 Report due 10/13/2015",{"$f":"HYPERLINK(\"H. Remainder/B-Emails/OCR-2015-10-15 Sackett RE_ TR 073336 Report due 10_13_2015.pdf\", \"Link\")","v":"Link"},20720,20720,1]
[null,"2015-10-15","Email from Jodie Sackett to Samuel Dea regarding TR 073336-Rev2 (map dated 09-15-2015), Subdivsion Comments",{"$f":"HYPERLINK(\"H. Remainder/B-Emails/OCR-2015-10-15 Sackett RE_ TR 073336-Rev2 map dated 09-15-2015 Subdivsion Comments .pdf\", \"Link\")","v":"Link"},20721,20722,1]
[null,"2015-10-19","Email from Joseph Decruyenaere to Marc Blain regarding vireo at northlake",{"$f":"HYPERLINK(\"H. Remainder/B-Emails/OCR-2015-10-19 Decruyenaere vireo at northlake.pdf\", \"Link\")","v":"Link"},20723,20723,1]
[null,"2015-10-22","Email from Jodie Sackett to Raman Gaur and john@woodridgecapital.com regarding Northlake Subdivision Committee Reports",{"$f":"HYPERLINK(\"H. Remainder/B-Emails/OCR-2015-10-22 Sackett-A-RE_ Northlake Subdivision Committee Reports.pdf\", \"Link\")","v":"Link"},20724,20725,2]
[null,null,"Attachment: titled \"tr73336L-rev2-subdivision report.pdf\" ",{"$f":"HYPERLINK(\"H. Remainder/B-Emails/OCR-2015-10-22 Sackett-B-Link to tr73336L-rev2-subdivision report.pdf\", \"Link\")","v":"Link"},20726,20752,27]
[null,"2015-11-23","Email from Aissa Carrillo to Jodie Sackett and rgaur@sikand.com regarding PM 073335-New (Map Dated 10-28-2015)",{"$f":"HYPERLINK(\"H. Remainder/B-Emails/OCR-2015-11-23 Carrillo-A1-PM 073335-New Map Dated 10-28-2015.pdf\", \"Link\")","v":"Link"},20753,20753,1]
[null,null,"Attachment: titled \"pm073335-new-subdivision report\" ",{"$f":"HYPERLINK(\"H. Remainder/B-Emails/OCR-2015-11-23 Carrillo-A2-pm073335-new-subdiv.pdf\", \"Link\")","v":"Link"},20754,20765,12]
[null,"2015-11-23","Email from Clement Lau to Jodie Sackett regarding Park Obligation Report for PM 073335",{"$f":"HYPERLINK(\"H. Remainder/B-Emails/OCR-2015-11-23 Lau-A-Park Obligation Report for PM 073335.pdf\", \"Link\")","v":"Link"},20766,20767,2]
[null,null,"Attachment: titled \"73335 Park Obligation Report 121015.PDF\" ",{"$f":"HYPERLINK(\"H. Remainder/B-Emails/OCR-2015-11-23 Lau-B-73335 Park Obligation Report 121015.pdf\", \"Link\")","v":"Link"},20768,20769,2]
[null,"2015-11-24","Email from Juan Padilla to Jodie Sackett regarding FW: Web Posting for Project No.R2015-03677 / PM073335 sent at 11:17 am",{"$f":"HYPERLINK(\"H. Remainder/B-Emails/OCR-2015-11-24 Padilla FW_A-WEB POSTING FOR PROJECT NO. R2015-03677-1117.pdf\", \"Link\")","v":"Link"},20770,20771,2]
[null,null,"Attachment: titled \"73335 - Large Lot Map.dot\" ",{"$f":"HYPERLINK(\"H. Remainder/B-Emails/OCR-2015-11-24 Padilla FW_B-73335 - Large Lot Map.pdf\", \"Link\")","v":"Link"},20772,20772,1]
[null,"2015-11-24","Email from Juan Padilla to Jodie Sackett regarding FW: Web Posting for Project No.R2015-03677 / PM073335 sent at 11:20 am",{"$f":"HYPERLINK(\"H. Remainder/B-Emails/OCR-2015-11-24 Padilla FW_C-WEB POSTING FOR PROJECT NO. R2015-03677-1120.pdf\", \"Link\")","v":"Link"},20773,20774,2]
[null,null,"Attachment: titled \"73335 - Large Lot Map.dot\" ",{"$f":"HYPERLINK(\"H. Remainder/B-Emails/OCR-2015-11-24 Padilla FW_D.pdf\", \"Link\")","v":"Link"},20775,20775,1]
[null,"2015-11-25","Email from Vicente Banada to Jodie Sackett regarding PM 073335 112515",{"$f":"HYPERLINK(\"H. Remainder/B-Emails/OCR-2015-11-25 Banada-A-PM 073335  112515.pdf\", \"Link\")","v":"Link"},20776,20776,1]
[null,null,"Attachment: titled \"PM 073335 112515.pdf\" ",{"$f":"HYPERLINK(\"H. Remainder/B-Emails/OCR-2015-11-25 Banada-B-PM 073335 112515.pdf\", \"Link\")","v":"Link"},20777,20777,1]
[null,"2015-11-30","Email from Matthew Benveniste to Jodie Sackett regarding TT 73336",{"$f":"HYPERLINK(\"H. Remainder/B-Emails/OCR-2015-11-30 Benveniste RE_ TT 73336.pdf\", \"Link\")","v":"Link"},20778,20779,2]
[null,"2015-12-08","Email from Jodie Sackett to Raman Gaur regarding Reports for upcoming SCM 12/10/15",{"$f":"HYPERLINK(\"H. Remainder/B-Emails/OCR-2015-12-08 Sackett Reports for upcoming SCM 12_10_15.pdf\", \"Link\")","v":"Link"},20780,20780,1]
[null,"2015-12-16","Email from John Arvin to Samuel Dea regarding Tataviam",{"$f":"HYPERLINK(\"H. Remainder/B-Emails/OCR-2015-12-16 Arvin Re_ Tataviam.pdf\", \"Link\")","v":"Link"},20781,20782,2]
[null,"2015-12-17","Email from John Arvin to Caitlin Gulley regarding Northlake Consultation: Draft Agreement",{"$f":"HYPERLINK(\"H. Remainder/B-Emails/OCR-2015-12-17 Arvin RE_ Northlake Consultation_ Draft Agreement.pdf\", \"Link\")","v":"Link"},20783,20785,3]
[null,null,"Attachment: titled \"Northlake Tataviam Confidentiality Agreement Draft.docx\" ",{"$f":"HYPERLINK(\"H. Remainder/B-Emails/OCR-2015-12-17 Arvin-B-NL Tataviam Confidentiality Agreement Draft.pdf\", \"Link\")","v":"Link"},20786,20786,1]
[null,"2015-12-23","Email from Jennifer Marks to Samuel Dea and Jodie Sackett regarding NorthLake Specific Plan Second Screencheck SEIR",{"$f":"HYPERLINK(\"H. Remainder/B-Emails/OCR-2015-12-23 Marks-A-NorthLake Specific Plan Second Screencheck SEIR.pdf\", \"Link\")","v":"Link"},20787,20787,1]
[null,null,"Attachment: titled \"Northlake Response Matrix.docx\" ",{"$f":"HYPERLINK(\"H. Remainder/B-Emails/OCR-2015-12-23 Marks-B-Northlake Response Matrix.pdf\", \"Link\")","v":"Link"},20788,20810,23]
[null,"undated 2015","Email from Kim Szalay to John Arvin and Jennifer Marks regarding Northlake SP DA DMS Finding",{"$f":"HYPERLINK(\"H. Remainder/B-Emails/OCR-2015-undated-Szalay-A-Northlake SP DA DMS Finding .pdf\", \"Link\")","v":"Link"},20811,20811,1]
[null,null,"Attachment: titled \"BOS SP DA Approval 12-17-92 (DMS FF 18).pdf\"",{"$f":"HYPERLINK(\"H. Remainder/B-Emails/OCR-2015-undated-Szalay-B-BOS SP DA Approval 12-17-92 DMS FF 18.pdf\", \"Link\")","v":"Link"},20812,20861,50]
[null,null,"Attachment: titled \"BOS SP DA Final Consent 2-09-93.pdf\"",{"$f":"HYPERLINK(\"H. Remainder/B-Emails/OCR-2015-undated-Szalay-C-BOS SP DA Final Consent 2-09-93.pdf\", \"Link\")","v":"Link"},20862,20864,3]
[null,"2016-01-07","Email from Samuel Dea to scole@ncwd.org regarding Northlake WSA",{"$f":"HYPERLINK(\"H. Remainder/B-Emails/OCR-2016-01-07-A-Northlake WSA.pdf\", \"Link\")","v":"Link"},20865,20865,1]
[null,null,"Attachment: titled \"WSA request letter-signed.pdf\" ",{"$f":"HYPERLINK(\"H. Remainder/B-Emails/OCR-2016-01-07-B-WSA request letter-signed.pdf\", \"Link\")","v":"Link"},20866,20866,1]
[null,"2016-01-13","Email from Jodie Sackett to Matthew Dubiel regarding Northlake project ADEIR screencheck - geotech report",{"$f":"HYPERLINK(\"H. Remainder/B-Emails/OCR-2016-01-13 Sackett NL ADEIR screencheck - geotech report.pdf\", \"Link\")","v":"Link"},20867,20867,1]
[null,"2016-01-13","Email from Jodie Sackett to John Arvin regarding Northlake screencheck ADEIR posted for internal consult today (30 day review period)",{"$f":"HYPERLINK(\"H. Remainder/B-Emails/OCR-2016-01-13 Sackett NL screencheck ADEIR posted for internal consult.pdf\", \"Link\")","v":"Link"},20868,20868,1]
[null,"2016-01-13","Email from Jodie Sackett to Matthew Dubiel and Michelle Tsiebos regarding Project No. R2015-00408 \"Northlake Specific Plan\" 1st Screencheck ADEIR CEQA Consultation - **DUE February 15, 2016**",{"$f":"HYPERLINK(\"H. Remainder/B-Emails/OCR-2016-01-13 Sackett Project No. R2015-00408 _NLSP_ 1st Screen.pdf\", \"Link\")","v":"Link"},20869,20869,1]
[null,"2016-01-26","Email from Richard Mukai to Samuel Dea regarding Letter and Attachment from S. Cole_01-20-16",{"$f":"HYPERLINK(\"H. Remainder/B-Emails/OCR-2016-01-26-A-Letter and Attachment from S. Cole.pdf\", \"Link\")","v":"Link"},20870,20870,1]
[null,null,"Attachment: titled \"S_Cole Letter_01-20-16.pdf\"",{"$f":"HYPERLINK(\"H. Remainder/B-Emails/OCR-2016-01-26-B-S_Cole Letter_01-20-16.pdf\", \"Link\")","v":"Link"},20871,20871,1]
[null,null,"Attachment: titled \"S_Cole Attachment_01-20-16.pdf\"",{"$f":"HYPERLINK(\"H. Remainder/B-Emails/OCR-2016-01-26-C-S_Cole Attachment_01-20-16.pdf\", \"Link\")","v":"Link"},20872,20915,44]
[null,"2016-02-03","Email from Jodie Sackett to Jeremy Wan regarding Northlake Specific Plan (TR 73335 and 73336) - 1st Screencheck ADEIR",{"$f":"HYPERLINK(\"H. Remainder/B-Emails/OCR-2016-02-03 Sackett RE_A-NLSP TR 73335 and 73336-1st Screenc ADEIR.pdf\", \"Link\")","v":"Link"},20916,20916,1]
[null,"2016-02-03","Email from Jodie Sackett to Matthew Dubiel regarding Project No. R2015-00408 \"Northlake Specific Plan\" 1st Screencheck ADEIR CEQA Consultation - **DUE February 15, 2016**",{"$f":"HYPERLINK(\"H. Remainder/B-Emails/OCR-2016-02-03 Sackett RE_B1-Project-NLSP__1st Screenck ADEIR.pdf\", \"Link\")","v":"Link"},20917,20919,3]
[null,null,"Attachment: titled \"RC 15-01523.pdf\"",{"$f":"HYPERLINK(\"H. Remainder/B-Emails/OCR-2016-02-03 Sackett RE_B2-RC 15-01523.pdf\", \"Link\")","v":"Link"},20920,20920,1]
[null,"2016-02-11","Email from Julie Yom to Jodie Sackett regarding Project No. R2015-00408 \"Northlake Specific Plan\" 1st Screencheck ADEIR CEQA Consultation - **DUE February 15, 2016**",{"$f":"HYPERLINK(\"H. Remainder/B-Emails/OCR-2016-02-11 Yom-A1-RE_ Projec _NLSP_1st Screen ADEIR CEQA.pdf\", \"Link\")","v":"Link"},20921,20922,2]
[null,null,"Attachment: titled \"Response- Northlake ADEIR.PDF\"  ",{"$f":"HYPERLINK(\"H. Remainder/B-Emails/OCR-2016-02-11 Yom-A2-Response- Northlake ADEIR.pdf\", \"Link\")","v":"Link"},20923,20923,1]
[null,"2016-02-16","Email from Jodie Sackett to Jennifer Marks regarding Northlake ADEIR Screencheck Comments",{"$f":"HYPERLINK(\"H. Remainder/B-Emails/OCR-2016-02-16-A-Nl ADEIR Screencheck Comments.pdf\", \"Link\")","v":"Link"},20924,20924,1]
[null,null,"Attachment: Letter from Julie Yom, County of Los Angeles Department of Parks and Recreation-Planning and CEQA Section, to Jodie Sackett, dated 2/11/16, titled \"Response- Northlake ADEIR.PDF\"",{"$f":"HYPERLINK(\"H. Remainder/B-Emails/OCR-2016-02-16-B-Response- Northlake ADEIR.pdf\", \"Link\")","v":"Link"},20925,20925,1]
[null,null,"Attachment: Letter from County of Los Angeles-Sheriff's Department Headquaters to Richard Bruckerner and Jodie Sackett, dated 2/2/16 titled \"img-216105551-0001.pdf\"",{"$f":"HYPERLINK(\"H. Remainder/B-Emails/OCR-2016-02-16-C-img-216105551-0001.pdf\", \"Link\")","v":"Link"},20926,20929,4]
[null,null,"Attachment: Letter from County of Los Angeles-Fire Department to Jodie Sackett, dated 2/1/16 titled \"img-216105601-0001.pdf\"",{"$f":"HYPERLINK(\"H. Remainder/B-Emails/OCR-2016-02-16-D-img-216105601-0001.pdf\", \"Link\")","v":"Link"},20930,20933,4]
[null,"2016-02-18","Email from Samuel Dea to Jodie Sackett  regarding RE: Screencheck Environmental Impact Report - NorthLake development project",{"$f":"HYPERLINK(\"H. Remainder/B-Emails/OCR-2016-02-18 Dea RE_ Screencheck EIR-NL devt project.pdf\", \"Link\")","v":"Link"},20934,20935,2]
[null,"2016-02-25","Email from Sherry Su, County of Los Angeles Public Library, to Jodie Sackett regarding Screencheck Environmental Impact Report - NorthLake development project",{"$f":"HYPERLINK(\"H. Remainder/B-Emails/OCR-2016-02-25 Su Screencheck-A-Eir- NL dev project.pdf\", \"Link\")","v":"Link"},20936,20936,1]
[null,null,"Attachment: titled \"Response to Regional Planning.pdf\"",{"$f":"HYPERLINK(\"H. Remainder/B-Emails/OCR-2016-02-25 Su Screencheck-B-Response to Reg Planning.pdf\", \"Link\")","v":"Link"},20937,20938,2]
[null,"2016-02-26","Email from John Arvin to Samuel Dea and Jodie Sackett regarding NorthLake EIR Screencheck Comments",{"$f":"HYPERLINK(\"H. Remainder/B-Emails/OCR-2016-02-26 Arvin NorthLake EIR Screencheck Comments.pdf\", \"Link\")","v":"Link"},20939,20939,1]
[null,"2016-03-01","Email from Michelle Tsiebos to Jodie Sackett regarding Northlake project EIR screencheck review",{"$f":"HYPERLINK(\"H. Remainder/B-Emails/OCR-2016-03-01 Tsiebos RE_ Northlake project EIR screencheck review.pdf\", \"Link\")","v":"Link"},20940,20940,1]
[null,"2016-03-02","Email from Jodie Sackett to John Arvin and Samuel Dea regarding RE: NorthLake Screencheck Comments",{"$f":"HYPERLINK(\"H. Remainder/B-Emails/OCR-2016-03-02 Sackett-A-RE_ NorthLake Screencheck Comments.pdf\", \"Link\")","v":"Link"},20941,20941,1]
[null,null,"Attachment: titled \"Response to Regional Planning.pdf\"",{"$f":"HYPERLINK(\"H. Remainder/B-Emails/OCR-2016-03-02 Sackett-B-Response to Regional Planning.pdf\", \"Link\")","v":"Link"},20942,20943,2]
[null,"2016-03-08","Email from John Arvin to Jodie Sackett regarding Library response for Northlake ADEIR",{"$f":"HYPERLINK(\"H. Remainder/B-Emails/OCR-2016-03-08 Sackett-A-Library response for Northlake ADEIR.pdf\", \"Link\")","v":"Link"},20944,20944,1]
[null,null,"Attachment: Letter from Yolanda De Ramus, County of Los Angeles Public Library to Jodie Sackett, dated 2/25/16 titled \"img-308095214-0001.pdf\"",{"$f":"HYPERLINK(\"H. Remainder/B-Emails/OCR-2016-03-08 Sackett-B-img-308095214-0001.pdf\", \"Link\")","v":"Link"},20945,20946,2]
[null,"2016-03-15","Email from Samuel Dea to Andrew Ngumba and Jeff Pletyak regarding Northlake",{"$f":"HYPERLINK(\"H. Remainder/B-Emails/OCR-2016-03-15 Northlake-A.pdf\", \"Link\")","v":"Link"},20947,20947,1]
[null,null,"Attachment: titled \"2016-02-18 Northlake Specific Plan ADEIR, DPW Comments.pdf\"",{"$f":"HYPERLINK(\"H. Remainder/B-Emails/OCR-2016-03-15 Northlake-B-NLSP ADEIR, DPW COMMENTS.pdf\", \"Link\")","v":"Link"},20948,20954,7]
[null,"2016-03-17","Email from Jodie Sackett to John Arvin and Jennifer Marks regarding Northlake project EIR screencheck review",{"$f":"HYPERLINK(\"H. Remainder/B-Emails/OCR-2016-03-17 Sackett FW-A_ Nl project EIR screencheck review.pdf\", \"Link\")","v":"Link"},20955,20959,5]
[null,null,"Attachment: titled \"R2015-00408-Northlake specific plan-DEIR-DPH-03162016.pdf\"",{"$f":"HYPERLINK(\"H. Remainder/B-Emails/OCR-2016-03-17 Sackett FW-B_R2015-00408-NLSP-DEIR-DPH.pdf\", \"Link\")","v":"Link"},20960,20961,2]
[null,"2016-03-17","Email from Jodie Sackett to Joseph Decruyenaere regarding Northlake 2nd screencheck DEIR - Bio comments",{"$f":"HYPERLINK(\"H. Remainder/B-Emails/OCR-2016-03-17 Sackett NL-A-2nd screencheck DEIR - Bio comments.pdf\", \"Link\")","v":"Link"},20962,20962,1]
[null,null,"Attachment: titled \"5.2 Bio-122315.docx\"",{"$f":"HYPERLINK(\"H. Remainder/B-Emails/OCR-2016-03-17 Sackett NL-B-5.2 Bio-122315.pdf\", \"Link\")","v":"Link"},20963,21026,64]
[null,null,"Attachment: titled \"Northlake MMRP-122315.docx\"",{"$f":"HYPERLINK(\"H. Remainder/B-Emails/OCR-2016-03-17 Sackett NL-C-Northlake MMRP-122315.pdf\", \"Link\")","v":"Link"},21026,21086,60]
[null,"2016-03-21","Email from Andrew Ngumba to Michele Chimienti and Matthew Dubiel regarding FW: Northlake - TR 73336",{"$f":"HYPERLINK(\"H. Remainder/B-Emails/OCR-2016-03-21 Ngumba-A-FW_ Northlake - TR 73336.pdf\", \"Link\")","v":"Link"},21087,21088,2]
[null,null,"Attachment: titled \"2016-02-18 Northlake Specific Plan ADEIR, DPW Comments.pdf\"",{"$f":"HYPERLINK(\"H. Remainder/B-Emails/OCR-2016-03-21 Ngumba-B-NLSP ADEIR, DPW Comments.pdf\", \"Link\")","v":"Link"},21089,21095,7]
[null,null,"Attachment: titled \"Pages from 5.11 Traffic-122315.pdf\"",{"$f":"HYPERLINK(\"H. Remainder/B-Emails/OCR-2016-03-21 Ngumba-C-Pages from 5.11 Traffic-122315.pdf\", \"Link\")","v":"Link"},21096,21098,3]
[null,"2016-04-18","Email from Samuel Dea to Jodie Sackett regarding FW: Northlake",{"$f":"HYPERLINK(\"H. Remainder/B-Emails/OCR-2016-04-18 Dea-A-FW_ Northlake.pdf\", \"Link\")","v":"Link"},21099,21099,1]
[null,null,"Attachment: Letter from Jeff Preach to Richard Bruckner re: Northlake Communtiy Development, dated 4/15/16, titled \"KMBT20020160415134555.pdf\"",{"$f":"HYPERLINK(\"H. Remainder/B-Emails/OCR-2016-04-18 Dea-B-KMBT20020160415134555.pdf\", \"Link\")","v":"Link"},21100,21100,1]
[null,"2016-04-19","Email from Samuel Dea to John Arvin regarding Support Letter",{"$f":"HYPERLINK(\"H. Remainder/B-Emails/OCR-2016-04-19 Dea-A-Support Letter.pdf\", \"Link\")","v":"Link"},21101,21101,1]
[null,null,"Attachment: Letter from Jeff Preach to Richard Bruckner re: Northlake Communtiy Development, dated 4/15/16, titled \"KMBT20020160415134555.pdf\"",{"$f":"HYPERLINK(\"H. Remainder/B-Emails/OCR-2016-04-19 Dea-B-KMBT20020160415134555.pdf\", \"Link\")","v":"Link"},21102,21102,1]
[null,"2016-04-20","Email from Richard Bruckner to Samuel Dea regarding FW: Northlake Letter of Support - Flo Lawrence: Castaic Area Town Council",{"$f":"HYPERLINK(\"H. Remainder/B-Emails/OCR-2016-04-20 Bruckner-A-FW_ NL Ltr-Flo Lawrence_ Castaic Town Council.pdf\", \"Link\")","v":"Link"},21103,21103,1]
[null,null,"Attachment: titled \"northlake support letter 2016 flo.pdf\"",{"$f":"HYPERLINK(\"H. Remainder/B-Emails/OCR-2016-04-20 Bruckner-B-NL support letter 2016.pdf\", \"Link\")","v":"Link"},21104,21104,1]
[null,"2016-04-26","Email from Jodie Sackett to Randy Jackson regarding Attached-DRP comments on the Northlake design guidebook",{"$f":"HYPERLINK(\"H. Remainder/B-Emails/OCR-2016-04-26 Sackett-A-Att DRP comments on the Nl design guidebook.pdf\", \"Link\")","v":"Link"},21105,21105,1]
[null,null,"Attachment: titled \"Northlake design guidebook_DRP comments 4-26-16.pdf\"",{"$f":"HYPERLINK(\"H. Remainder/B-Emails/OCR-2016-04-26 Sackett-B-Nl design guidebook_DRP comments.pdf\", \"Link\")","v":"Link"},21106,21137,32]
[null,"2016-05-09","Email from Richard Bruckner to Samuel Dea regarding Fwd: Northlake Support Letter",{"$f":"HYPERLINK(\"H. Remainder/B-Emails/OCR-2016-05-09 Bruckner-A-Fwd_ Northlake Support Letter.pdf\", \"Link\")","v":"Link"},21138,21138,1]
[null,null,"Attachment: titled \"Bruckner Letter WRTC.pdf\"",{"$f":"HYPERLINK(\"H. Remainder/B-Emails/OCR-2016-05-09 Bruckner-B-Letter WRTC.pdf\", \"Link\")","v":"Link"},21139,21139,1]
[null,"2016-05-09","Email from Jodie Sackett to Samuel Dea regarding FW: Northlake Specific Plan Draft Supplemental EIR",{"$f":"HYPERLINK(\"H. Remainder/B-Emails/OCR-2016-05-09 Sackett-A-FW_ Northlake Specific Plan Draft Supp EIR.pdf\", \"Link\")","v":"Link"},21140,21140,1]
[null,null,"Attachment: titled \"Fire Station Exhibit 9-25-15-Exhibit.pdf\"",{"$f":"HYPERLINK(\"H. Remainder/B-Emails/OCR-2016-05-09 Sackett-B-Fire Station Exhibit 9-25-15-Exhibit.pdf\", \"Link\")","v":"Link"},21141,21141,1]
[null,"2016-05-10","Email from Samuel Dea to Jodie Sackett regarding FW: Northlake Support Letter from the Castaic Area Town Council",{"$f":"HYPERLINK(\"H. Remainder/B-Emails/OCR-2016-05-10 Dea FW_ NL Ltr from the Castaic Town Council.pdf\", \"Link\")","v":"Link"},21142,21145,4]
[null,"2016-05-10","Email from Jodie Sackett to John Arvin and Jennifer Marks regarding FW: Project No. R2015-00408 \"Northlake Specific Plan ADEIR 3rd Screencheck\": CEQA Consultation - **DUE May 12, 2016**",{"$f":"HYPERLINK(\"H. Remainder/B-Emails/OCR-2016-05-10 Sackett FW_ Project _NLSP ADEIR 3rd.pdf\", \"Link\")","v":"Link"},21146,21146,1]
[null,"2016-05-12","Email from Lorraine Buck to Jodie Sackett regarding Northlake EIR",{"$f":"HYPERLINK(\"H. Remainder/B-Emails/OCR-2016-05-12 Buck-A-Northlake EIR.pdf\", \"Link\")","v":"Link"},21147,21147,1]
[null,null,"Attachment: titled \"Northlake EIR.pdf\"",{"$f":"HYPERLINK(\"H. Remainder/B-Emails/OCR-2016-05-12 Buck-B-Northlake EIR.pdf\", \"Link\")","v":"Link"},21148,21149,2]
[null,"2016-05-16","Email from Jodie Sackett to Jennifer Marks and John Arvin regarding FW: Northlake EIR",{"$f":"HYPERLINK(\"H. Remainder/B-Emails/OCR-2016-05-16 Sackett-A-FW_ Northlake EIR.pdf\", \"Link\")","v":"Link"},21150,21150,1]
[null,null,"Attachment: titled \"Northlake EIR.pdf\"",{"$f":"HYPERLINK(\"H. Remainder/B-Emails/OCR-2016-05-16 Sackett-B-Northlake EIR.pdf\", \"Link\")","v":"Link"},21151,21152,2]
[null,"2016-05-18","Email from Jodie Sackett to Michelle Tsiebos regarding RE: Project No. R2015-00408 \"Northlake Specific Plan ADEIR 3rd Screencheck\": CEQA Consultation - **DUE May 12, 2016**",{"$f":"HYPERLINK(\"H. Remainder/B-Emails/OCR-2016-05-18 Sackett RE_R2015-00408 _NLSP_ ADEIR 3rd.pdf\", \"Link\")","v":"Link"},21153,21154,2]
[null,"2016-05-25","Email from Jodie Sackett to Jennifer Marks and John Arvin regarding Northlake fire comments - inclusive",{"$f":"HYPERLINK(\"H. Remainder/B-Emails/OCR-2016-05-25 -A-Sackett Northlake fire comments - inclusive.pdf\", \"Link\")","v":"Link"},21155,21155,1]
[null,null,"Attachment: titled \"Northlake DEIR fire comments_5-16-16.pdf\"",{"$f":"HYPERLINK(\"H. Remainder/B-Emails/OCR-2016-05-25 -B-Northlake DEIR fire comments_5-16-16.pdf\", \"Link\")","v":"Link"},21156,21157,2]
[null,"2016-05-25","Email from Jennifer Marks to Jodie Sackett and John Arvin regarding RE: Northlake fire comments - inclusive",{"$f":"HYPERLINK(\"H. Remainder/B-Emails/OCR-2016-05-25 -C-Marks RE_ Northlake fire comments - inclusive.pdf\", \"Link\")","v":"Link"},21158,21158,1]
[null,"2016-05-26","Email from John Arvin to Samuel Dea regarding NorthLake Responses",{"$f":"HYPERLINK(\"H. Remainder/B-Emails/OCR-2016-05-26 Arvin NorthLake Responses.pdf\", \"Link\")","v":"Link"},21159,21159,1]
[null,"2016-06-01","Email from Samuel Dea to Jodie Sackett regarding RE: Project No. R2015-00408 / \"Northlake Specific Plan\" ADEIR 3rd Screencheck / DSEIR / DPW Review Comments",{"$f":"HYPERLINK(\"H. Remainder/B-Emails/OCR-2016-06-01 Dea RE_ Project _ NLSP_ ADEIR 3rd.pdf\", \"Link\")","v":"Link"},21160,21162,3]
[null,"2016-06-02","Email from Jennifer Marks to Jodie Sackett and Samuel Dea\\ regarding NorthLake Public Review Process",{"$f":"HYPERLINK(\"H. Remainder/B-Emails/OCR-2016-06-02 Marks NorthLake Public Review Process.pdf\", \"Link\")","v":"Link"},21163,21163,1]
[null,"2016-06-07","Email from Jennifer Marks to Jodie Sackett regarding RE: Project No. R2015-00408 / \"Northlake Specific Plan\" ADEIR 3rd Screencheck / DSEIR / DPW Review Comments",{"$f":"HYPERLINK(\"H. Remainder/B-Emails/OCR-2016-06-07 Marks RE_ Project _ NLSP__ ADEIR 3rd.pdf\", \"Link\")","v":"Link"},21164,21166,3]
[null,"2016-06-07","Email from Henry Wong to Samuel Dea, Raman Gaur, and Jodie Sackett regarding FW: TR 073336-Rev2 (map dated 09-15-2015), Subdivsion Comments",{"$f":"HYPERLINK(\"H. Remainder/B-Emails/OCR-2016-06-07 Wong-A1-FW_ TR 073336-Rev2 Sub Comments .pdf\", \"Link\")","v":"Link"},21167,21168,2]
[null,null,"Attachment: titled \"073336 Castaic TM-8_A 5-25-16.pdf\"",{"$f":"HYPERLINK(\"H. Remainder/B-Emails/OCR-2016-06-07 Wong-A2-073336 Castaic TM-8_A 5-25-16.pdf\", \"Link\")","v":"Link"},21169,21169,1]
[null,"2016-06-09","Email from Jodie Sackett to Matthew Dubiel regarding RE: Project No. R2015-00408: CEQA Consultation - Northlake DEIR 3rd Screencheck review- comments due 5-23-16",{"$f":"HYPERLINK(\"H. Remainder/B-Emails/OCR-2016-06-09 Sackett RE_ Project CEQA Consult - NL DEIR 3rd.pdf\", \"Link\")","v":"Link"},21170,21171,2]
[null,"2016-06-14","Email from Jodie Sackett to Sherry Su regarding RE: Project No. R2015-00408: CEQA Consultation - Northlake DEIR 3rd Screencheck review- comments due 5-23-16",{"$f":"HYPERLINK(\"H. Remainder/B-Emails/OCR-2016-06-14 Sackett-A1-RE_ Project_CEQA Consult - NL DEIR 3rd.pdf\", \"Link\")","v":"Link"},21172,21174,3]
[null,null,"Attachment: titled \"7.0 Other CEQA Topics-040616.pdf\"",{"$f":"HYPERLINK(\"H. Remainder/B-Emails/OCR-2016-06-14 Sackett-A2-7.0 Other CEQA Topics-040616.pdf\", \"Link\")","v":"Link"},21175,21188,14]
[null,null,"Attachment: titled \"7.0 Other CEQA Topics_Redline.pdf\"",{"$f":"HYPERLINK(\"H. Remainder/B-Emails/OCR-2016-06-14 Sackett-A3-7.0 Other CEQA Topics_Redline.pdf\", \"Link\")","v":"Link"},21189,21202,14]
[null,null,"Attachment: titled \"Northlake MMRP_Redline.pdf\"",{"$f":"HYPERLINK(\"H. Remainder/B-Emails/OCR-2016-06-14 Sackett-A4-Northlake MMRP_Redline.pdf\", \"Link\")","v":"Link"},21203,21263,61]
[null,null,"Attachment: titled \"Northlake MMRP-040616.pdf\"",{"$f":"HYPERLINK(\"H. Remainder/B-Emails/OCR-2016-06-14 Sackett-A5-Northlake MMRP-040616.pdf\", \"Link\")","v":"Link"},21264,21322,59]
[null,"2016-06-15","Email from Jodie Sackett to Sherry Su regarding RE: Project No. R2015-00408: CEQA Consultation - Northlake DEIR 3rd Screencheck review- comments due 5-23-16",{"$f":"HYPERLINK(\"H. Remainder/B-Emails/OCR-2016-06-15 Sackett-A1-RE_Project_CEQA ConsulT-NL DEIR 3rd.pdf\", \"Link\")","v":"Link"},21323,21325,3]
[null,null,"Attachment: titled \"7.0 Other CEQA Topics-040616.docx\"",{"$f":"HYPERLINK(\"H. Remainder/B-Emails/OCR-2016-06-15 Sackett-A2-7.0 Other CEQA Topics-040616.pdf\", \"Link\")","v":"Link"},21326,21341,16]
[null,"2016-06-20","Email from Doyle to Aissa Carrillo et al. sent at 339 pm regarding Application and Cover Letter for Project No. R2015-00408/ TR073336",{"$f":"HYPERLINK(\"H. Remainder/B-Emails/OCR-2016-06-20 Doyle 339-A-App and cover ltr FOR PROJECT_ TR073336.pdf\", \"Link\")","v":"Link"},21342,21342,1]
[null,null,"Attachment: titled \"Application and cover letter.pdf\"",{"$f":"HYPERLINK(\"H. Remainder/B-Emails/OCR-2016-06-20 Doyle 339-B-App and cover ltr.pdf\", \"Link\")","v":"Link"},21343,21351,9]
[null,"2016-06-20","Email from Doyle to Aissa Carrillo et al. sent at 422 pm regarding Application and Cover Letter for Project No. R2015-00408/ TR073335",{"$f":"HYPERLINK(\"H. Remainder/B-Emails/OCR-2016-06-20 Doyle 422-C-App and cover ltr FOR PROJECT_ PM073335.pdf\", \"Link\")","v":"Link"},21352,21352,1]
[null,null,"Attachment: titled \"Application and cover letter.pdf\"",{"$f":"HYPERLINK(\"H. Remainder/B-Emails/OCR-2016-06-20 Doyle 422-D-App and cover ltr.pdf\", \"Link\")","v":"Link"},21353,21358,6]
[null,"2016-06-27","Email from Samuel Dea to John Arvin regarding RE: NorthLake School",{"$f":"HYPERLINK(\"H. Remainder/B-Emails/OCR-2016-06-27 Dea RE_ NorthLake School.pdf\", \"Link\")","v":"Link"},21359,21359,1]
[null,"2016-06-29","Email from John Arvin to Samuel Dea and Jodie Sackett regarding NorthLake Mtg",{"$f":"HYPERLINK(\"H. Remainder/B-Emails/OCR-2016-06-29 Arvin NorthLake Mtg.pdf\", \"Link\")","v":"Link"},21360,21360,1]
[null,"2016-06-29","Email from Clement Lau to Jodie Sackett regarding Park Obligation Report for PM 073335",{"$f":"HYPERLINK(\"H. Remainder/B-Emails/OCR-2016-06-29 Lau-A-Park Obligation Report for PM 073335.pdf\", \"Link\")","v":"Link"},21361,21362,2]
[null,null,"Attachment: titled \"73335 Park Obligation Report 072116.PDF\"",{"$f":"HYPERLINK(\"H. Remainder/B-Emails/OCR-2016-06-29 Lau-B-73335 Park Obligation Report 072116.pdf\", \"Link\")","v":"Link"},21363,21364,2]
[null,"2016-07-07","Email from Jennifer Marks to Samuel Dea and Jodie Sackett regarding NorthLake Fourth Screencheck SEIR",{"$f":"HYPERLINK(\"H. Remainder/B-Emails/OCR-2016-07-07 Marks NorthLake Fourth Screencheck SEIR.pdf\", \"Link\")","v":"Link"},21365,21365,1]
[null,"2016-07-12","Email from Juan Padilla to Jodie Sackett regarding FW: Web Posting for Project No. R2015-00408 /TR073336",{"$f":"HYPERLINK(\"H. Remainder/B-Emails/OCR-2016-07-12 Padilla-A-FW_ WEB POSTING FOR PROJECT_TR073336.pdf\", \"Link\")","v":"Link"},21366,21367,2]
[null,null,"Attachment: Fire Department Report, dated 6/15/16 titled \"73335r1 - Large Lot Map.dot\"",{"$f":"HYPERLINK(\"H. Remainder/B-Emails/OCR-2016-07-12 Padilla-B-73335r1 - Large Lot Map.pdf\", \"Link\")","v":"Link"},21368,21368,1]
[null,null,"Attachment: Fire Department Report, dated 6/15/16 titled \"73336r3.dot\"",{"$f":"HYPERLINK(\"H. Remainder/B-Emails/OCR-2016-07-12 Padilla-C-73336r3.pdf\", \"Link\")","v":"Link"},21369,21373,5]
[null,"2016-07-13","Email from Aissa Carrillo to Jodie Sackett and rgaur@sikand.com regarding PM 073335-Rev1 (Map Dated 06-15-2016) - Public Works' Subdivision Report sent at 7:50 am",{"$f":"HYPERLINK(\"H. Remainder/B-Emails/OCR-2016-07-13 Carrillo-A1-PM 073335-Rev1-PWReport.pdf\", \"Link\")","v":"Link"},21374,21374,1]
[null,null,"Attachment: PM 073335-Rev1 (Map Dated 06-15-2016)\"",{"$f":"HYPERLINK(\"H. Remainder/B-Emails/OCR-2016-07-13 Carrillo-A2-pm073335-rev1-subdiv report.pdf\", \"Link\")","v":"Link"},21375,21387,13]
[null,"2016-07-13","Email from Aissa Carrillo to Jodie Sackett and rgaur@sikand.com regarding TR 073336-Rev3 (Map Dated 06-15-2016) - Public Works' Subdivision Report sent at 4:23 pm",{"$f":"HYPERLINK(\"H. Remainder/B-Emails/OCR-2016-07-13 Carrillo-B1-TR 073336-Rev3-PW Report.pdf\", \"Link\")","v":"Link"},21388,21388,1]
[null,null,"Attachment: TR 073335-Rev3 (Map Dated 06-15-2016)\"",{"$f":"HYPERLINK(\"H. Remainder/B-Emails/OCR-2016-07-13 Carrillo-B2-tr73336-rev3-subdiv report.pdf\", \"Link\")","v":"Link"},21389,21413,25]
[null,"2016-07-13","Email from Jodie Sackett to Samuel Dea regarding Northlake 3rd Screencheck - DPW comments",{"$f":"HYPERLINK(\"H. Remainder/B-Emails/OCR-2016-07-13 Sackett Northlake 3rd Screencheck - DPW comments.pdf\", \"Link\")","v":"Link"},21414,21414,1]
[null,"2016-07-14","Email from Sheela Mathai to Jodie Sackett regarding FW: Park Obligation Report for PM73335",{"$f":"HYPERLINK(\"H. Remainder/B-Emails/OCR-2016-07-14 Mathai-A-FW_ Park Obligation Report for PM73335.pdf\", \"Link\")","v":"Link"},21415,21416,2]
[null,null,"Attachment: titled \"TR 73336 Park Conditions and Trail Comments 07 21 16.pdf\"",{"$f":"HYPERLINK(\"H. Remainder/B-Emails/OCR-2016-07-14 Mathai-B-TR 73336 Park Conditions and Trail 07 21 16.pdf\", \"Link\")","v":"Link"},21417,21425,9]
[null,"2016-07-14","Email from Jodie Sackett to John Arvin and Raman Gaur regarding 7-21-16 Subdivision Committee Meeting Report Posting - Northlake Maps",{"$f":"HYPERLINK(\"H. Remainder/B-Emails/OCR-2016-07-14 Sackett-A-7-21-16 Sub Comm Mtg Report- NL Maps.pdf\", \"Link\")","v":"Link"},21426,21426,1]
[null,null,"Attachment: titled \"TR073336 Regional Planning Report.pdf\"",{"$f":"HYPERLINK(\"H. Remainder/B-Emails/OCR-2016-07-14 Sackett-B-TR073336 Reg Pl Report.pdf\", \"Link\")","v":"Link"},21427,21430,4]
[null,null,"Attachment: titled \"PM073335 Regional Planning Report.pdf\"",{"$f":"HYPERLINK(\"H. Remainder/B-Emails/OCR-2016-07-14 Sackett-C-PM073335 Reg Pl Report.pdf\", \"Link\")","v":"Link"},21431,21432,2]
[null,"2016-08-03","Email from Matthew Benveniste to Jodie Sackett regarding TT 73336 (Northlake)",{"$f":"HYPERLINK(\"H. Remainder/B-Emails/OCR-2016-08-03 Benveniste-A-TT 73336 Northlake.pdf\", \"Link\")","v":"Link"},21433,21433,1]
[null,null,"Attachment: titled \"4580_001.pdf\"",{"$f":"HYPERLINK(\"H. Remainder/B-Emails/OCR-2016-08-03 Benveniste-B-4580_001.pdf\", \"Link\")","v":"Link"},21434,21434,1]
[null,"2016-08-03","Email from Raman Gaur to Samuel Dea regarding FW: Policy memo -- ref. TT73335 Large Lot Subdivision",{"$f":"HYPERLINK(\"H. Remainder/B-Emails/OCR-2016-08-03 Gaur-A-FW_ Policy memo -ref. TT73335 Large Lot Sub.pdf\", \"Link\")","v":"Link"},21435,21436,2]
[null,null,"Attachment: titled \"GS001.0 2013-04-22 rev - Ungraded Site Lots.pdf\"",{"$f":"HYPERLINK(\"H. Remainder/B-Emails/OCR-2016-08-03 Gaur-B-GS001.0 2013-04-22 rev-Ungraded.pdf\", \"Link\")","v":"Link"},21437,21438,2]
[null,null,"Attachment: titled \"4587_001.pdf\"",{"$f":"HYPERLINK(\"H. Remainder/B-Emails/OCR-2016-08-03 Gaur-C-4587_001.pdf\", \"Link\")","v":"Link"},21439,21439,1]
[null,"2016-08-04","Email from Jennifer Marks to Samuel Dea and Jodie Sackett regarding RE: NorthLake Fourth Screencheck SEIR",{"$f":"HYPERLINK(\"H. Remainder/B-Emails/OCR-2016-08-04 Marks-A-RE_NL Fourth Screencheck SEIR.pdf\", \"Link\")","v":"Link"},21440,21441,2]
[null,null,"Attachment: titled \"NorthLake Public Review Process\" ",{"$f":"HYPERLINK(\"H. Remainder/B-Emails/OCR-2016-08-04 Marks-B-NL Public Review Process-6-02-16.pdf\", \"Link\")","v":"Link"},21442,21442,1]
[null,"2016-08-08","Email from Matthew Dubiel to Jodie Sackett regarding RE: Northlake 3rd DEIR screencheck",{"$f":"HYPERLINK(\"H. Remainder/B-Emails/OCR-2016-08-08 Dubiel RE_ Northlake 3rd DEIR screencheck.pdf\", \"Link\")","v":"Link"},21443,21445,3]
[null,"2016-08-09","Email from Jodie Sackett to Jennifer Marks regarding RE: NorthLake Fourth Screencheck SEIR",{"$f":"HYPERLINK(\"H. Remainder/B-Emails/OCR-2016-08-09 Sackett RE_ NorthLake Fourth Screencheck SEIR.pdf\", \"Link\")","v":"Link"},21446,21448,3]
[null,"2016-08-09","Email from Henry Wong to Jodie Sackett regarding FW: Project No. R2015-00408: CEQA Consultation - Northlake DEIR 4th Screencheck **DUE 9/8/16**",{"$f":"HYPERLINK(\"H. Remainder/B-Emails/OCR-2016-08-09 Wong-A1-FW_ Project CEQA Consult-NL DEIR 4th.pdf\", \"Link\")","v":"Link"},21449,21451,3]
[null,null,"Attachment: Email from Henry Wong to Samuel Dea and Jodie Sackett titled \"Project No. R2015-00408 / \"Northlake Specific Plan\" ADEIR 3rd Screencheck / DSEIR / DPW Review Comments.msg\"",{"$f":"HYPERLINK(\"H. Remainder/B-Emails/OCR-2016-08-09 Wong-A2-attached email.pdf\", \"Link\")","v":"Link"},21452,21452,1]
[null,null,"   Attachment: titled \"2016-05-25 Northlake Specific Plan ADEIR DP Comments.pdf\"",{"$f":"HYPERLINK(\"H. Remainder/B-Emails/OCR-2016-08-09 Wong-A3-2016-05-25 NLSP ADEIR DPW.pdf\", \"Link\")","v":"Link"},21453,21459,7]
[null,"2016-08-10","Email from Jodie Sackett to Raman Gaur and Matthew Benveniste regarding RE: Northlake (TR 073336)",{"$f":"HYPERLINK(\"H. Remainder/B-Emails/OCR-2016-08-10 Sackett RE_ Northlake TR 073336.pdf\", \"Link\")","v":"Link"},21460,21461,2]
[null,"2016-08-10","Email from Michelle Tsiebos to Jodie Sackett regarding RE: Project No. R2015-00408: CEQA Consultation - Northlake DEIR 4th Screencheck **DUE 9/8/16**",{"$f":"HYPERLINK(\"H. Remainder/B-Emails/OCR-2016-08-10 Tsiebos RE_ CEQA Consult -NL DEIR 4th Screen.pdf\", \"Link\")","v":"Link"},21462,21463,2]
[null,"2016-08-24","Email from Jodie Sackett to Matthew Benveniste regarding RE: Northlake",{"$f":"HYPERLINK(\"H. Remainder/B-Emails/OCR-2016-08-24 Sackett RE_ Northlake1.pdf\", \"Link\")","v":"Link"},21464,21465,2]
[null,"2016-09-06","Email from Sherry Su to Jodie Sackett regarding RE: Project No. R2015-00408: CEQA Consultation - Northlake DEIR 4th Screencheck **DUE 9/8/16**",{"$f":"HYPERLINK(\"H. Remainder/B-Emails/OCR-2016-09-06 Su-A1-RE_ Project_CEQA Consult-Nl DEIR 4th.pdf\", \"Link\")","v":"Link"},21466,21466,1]
[null,null,"Attachment: titled \"Northlake 7.0 Other CEQA Topic - R1 redline.docx\"",{"$f":"HYPERLINK(\"H. Remainder/B-Emails/OCR-2016-09-06 Su-A2-NL 7.0 Other CEQA Topic-R1 red.pdf\", \"Link\")","v":"Link"},21467,21482,16]
[null,null,"Attachment: titled \"Northlake MMRP-122315 redline.docx\"",{"$f":"HYPERLINK(\"H. Remainder/B-Emails/OCR-2016-09-06 SU-A3-NL MMRP-122315 red.pdf\", \"Link\")","v":"Link"},21483,21542,60]
[null,"2016-09-12","Email from Matthew Benveniste to Jodie Sackett regarding RE: TT 73336 (Northlake)",{"$f":"HYPERLINK(\"H. Remainder/B-Emails/OCR-2016-09-12 Benveniste RE_ TT 73336 Northlake.pdf\", \"Link\")","v":"Link"},21543,21543,1]
[null,"2016-09-13","Email from Jodie Sackett to Jennifer Marks regarding FW: Project No. R2015-00408: CEQA Consultation - Northlake DEIR 4th Screencheck **DUE 9/8/16**",{"$f":"HYPERLINK(\"H. Remainder/B-Emails/OCR-2016-09-13 1024-A1-Sackett FW_ Project CEQA Consult-NL DEIR 4th.pdf\", \"Link\")","v":"Link"},21544,21545,2]
[null,null,"Attachment: titled \"Northlake 7.0 Other CEQA Topic - R1 redline.docx\"",{"$f":"HYPERLINK(\"H. Remainder/B-Emails/OCR-2016-09-13 1024-A2-NL 7.0 Other CEQA Topic-R1redline.pdf\", \"Link\")","v":"Link"},21546,21561,16]
[null,null,"Attachment: titled \"Northlake MMRP-122315 redline.docx\"",{"$f":"HYPERLINK(\"H. Remainder/B-Emails/OCR-2016-09-13 1024-A3-NL MMRP-122315 redline.pdf\", \"Link\")","v":"Link"},21562,21621,60]
[null,"2016-09-13","Email from Jennifer Marks to Jodie Sackett regarding RE: Project No. R2015-00408: CEQA Consultation - Northlake DEIR 4th Screencheck **DUE 9/8/16**",{"$f":"HYPERLINK(\"H. Remainder/B-Emails/OCR-2016-09-13 1045 Marks RE_ CEQA Consult - NL DEIR 4th.pdf\", \"Link\")","v":"Link"},21622,21623,2]
[null,"2016-09-13","Email from Jennifer Marks to Jodie Sackett regarding FW: Northlake TIA Revisions - mitigation change",{"$f":"HYPERLINK(\"H. Remainder/B-Emails/OCR-2016-09-13 1344 pm-A-Marks FW_ NL TIA Rev - mitigation.pdf\", \"Link\")","v":"Link"},21624,21624,1]
[null,null,"Attachment: titled \"changes_to_traffic_study_20160906.pdf\"",{"$f":"HYPERLINK(\"H. Remainder/B-Emails/OCR-2016-09-13 1344 pm-B-changes_to_traffic_20160906.pdf\", \"Link\")","v":"Link"},21625,21629,5]
[null,"2016-09-21","Email from Samuel Dea to Jodie Sackett regarding RE: Meet to discuss Northlake MMRP comments",{"$f":"HYPERLINK(\"H. Remainder/B-Emails/OCR-2016-09-21 Dea RE_ Meet to discuss Northlake MMRP comments.pdf\", \"Link\")","v":"Link"},21630,21631,2]
[null,"2016-09-21","Email from Jagadeesh Jyothi to Jodie Sackett regarding RE: TT 73336 Northlake ",{"$f":"HYPERLINK(\"H. Remainder/B-Emails/OCR-2016-09-21 Jyothi-A1-RE_ TT  73336 Northlake.pdf\", \"Link\")","v":"Link"},21632,21633,2]
[null,null,"Attachment: titled \"Unit Phasing Breakdown.pdf\"",{"$f":"HYPERLINK(\"H. Remainder/B-Emails/OCR-2016-09-21 Jyothi-A2-Unit Phasing Breakdown.pdf\", \"Link\")","v":"Link"},21634,21634,1]
[null,"2016-09-21","Email from Jodie Sackett to Evenor Masis regarding RE: DPH mitigation monitoring",{"$f":"HYPERLINK(\"H. Remainder/B-Emails/OCR-2016-09-21 Sackett RE_ DPH mitigation monitoring.pdf\", \"Link\")","v":"Link"},21635,21636,2]
[null,"2016-09-26","Email from Jodie Sackett to Jagadeesh Jyothi regarding RE: TT 73336 Northlake",{"$f":"HYPERLINK(\"H. Remainder/B-Emails/OCR-2016-09-26 Sackett RE_ TT  73336 Northlake.pdf\", \"Link\")","v":"Link"},21637,21639,3]
[null,"2016-09-27","Email from Jodie Sackett to Jennifer Marks regarding Northlake 4th SC comments",{"$f":"HYPERLINK(\"H. Remainder/B-Emails/OCR-2016-09-27 Sackett-A-Northlake 4th SC comments.pdf\", \"Link\")","v":"Link"},21640,21640,1]
[null,null,"Attachment: titled \"Northlake 4th SC comments_Fire.pdf\"",{"$f":"HYPERLINK(\"H. Remainder/B-Emails/OCR-2016-09-27 Sackett-B-Northlake 4th SC comments_Fire.pdf\", \"Link\")","v":"Link"},21641,21643,3]
[null,null,"Attachment: titled \"Northlake 4th SC comments_Sheriff.pdf\"",{"$f":"HYPERLINK(\"H. Remainder/B-Emails/OCR-2016-09-27 Sackett-C-Northlake 4th SC comments_Sheriff.pdf\", \"Link\")","v":"Link"},21644,21646,3]
[null,"2016-10-03","Email from Scott Ashlock to Jodie Sackett and Samuel Dea regarding RE: Northlake Design Guidebook - Transit Insert",{"$f":"HYPERLINK(\"H. Remainder/B-Emails/OCR-2016-10-03 Ashlock-A-RE_ Northlake Design Guidebook - Transit Insert.pdf\", \"Link\")","v":"Link"},21647,21648,2]
[null,null,"Attachment: titled \"20161003 PublicTransit Page.pdf\"",{"$f":"HYPERLINK(\"H. Remainder/B-Emails/OCR-2016-10-03 Ashlock-B-PublicTransit Page.pdf\", \"Link\")","v":"Link"},21649,21649,1]
[null,"2016-10-06","Email from Samuel Dea to Jodie Sackett regarding FW: Northlake memo letters",{"$f":"HYPERLINK(\"H. Remainder/B-Emails/OCR-2016-10-06 Dea-A-FW_ Northlake memo letters.pdf\", \"Link\")","v":"Link"},21650,21650,1]
[null,null,"Attachment: titled \"5090-033-035-MB-SDea-2nd Revision Summary-9-29-2016.pdf\"",{"$f":"HYPERLINK(\"H. Remainder/B-Emails/OCR-2016-10-06 Dea-B-MB-SDea-2nd Rev Summary-9-29-2016.pdf\", \"Link\")","v":"Link"},21651,21651,1]
[null,null,"Attachment: titled \"5090-033-35 - MB - SDea - 4th revision summary - 9-27-16.pdf\"",{"$f":"HYPERLINK(\"H. Remainder/B-Emails/OCR-2016-10-06 Dea-C-MB-SDea-4th rev summary 9-27-16.pdf\", \"Link\")","v":"Link"},21652,21652,1]
[null,"2016-10-06","Email from Jodie Sackett to Scott Ashlock regarding Northlake draft transit plan comments",{"$f":"HYPERLINK(\"H. Remainder/B-Emails/OCR-2016-10-06 Sackett-A-Northlake draft transit plan comments.pdf\", \"Link\")","v":"Link"},21653,21653,1]
[null,null,"Attachment: titled \"Northlake transit insert comments_jodie 10-6-16.pdf\"",{"$f":"HYPERLINK(\"H. Remainder/B-Emails/OCR-2016-10-06 Sackett-B-NL transit insert comments_jodie 10-6-16.pdf\", \"Link\")","v":"Link"},21654,21654,1]
[null,"2016-10-10","Email from Scott Ashlock to Jodie Sackett regarding RE: Northlake draft transit plan comments",{"$f":"HYPERLINK(\"H. Remainder/B-Emails/OCR-2016-10-10 Ashlock-A-RE_ Northlake draft transit plan comments3.pdf\", \"Link\")","v":"Link"},21655,21656,2]
[null,null,"Attachment: titled \"20161010 PublicTransit Page.pdf\"",{"$f":"HYPERLINK(\"H. Remainder/B-Emails/OCR-2016-10-10 Ashlock-B-PublicTransit Page.pdf\", \"Link\")","v":"Link"},21657,21657,1]
[null,"2016-10-13","Email from Jodie Sackett to Evenor Masis regarding FW: DPH mitigation monitoring",{"$f":"HYPERLINK(\"H. Remainder/B-Emails/OCR-2016-10-13 Sackett-A-FW_ DPH mitigation monitoring.pdf\", \"Link\")","v":"Link"},21658,21659,1]
[null,null,"Attachment: titled \"Northlake MMRP-080416.docx\"",{"$f":"HYPERLINK(\"H. Remainder/B-Emails/OCR-2016-10-13 Sackett-B-Northlake MMRP-converted from Word.pdf\", \"Link\")","v":"Link"},21660,21718,59]
[null,null,"Attachment: titled \"Northlake MMRP-080416.pdf\"",{"$f":"HYPERLINK(\"H. Remainder/B-Emails/OCR-2016-10-13 Sackett-C-Northlake MMRP-080416.pdf\", \"Link\")","v":"Link"},21719,21777,59]
[null,"2016-10-19","Email from John Arvin to Jodie Sackett regarding Re: Northlake project status",{"$f":"HYPERLINK(\"H. Remainder/B-Emails/OCR-2016-10-19 Arvin Re_ Northlake project status1.pdf\", \"Link\")","v":"Link"},21778,21778,1]
[null,"2016-10-19","Email from Raman Gaur to Nazem Said regarding RE: TTM 073336 (Northlake) - SCM Nov. 3",{"$f":"HYPERLINK(\"H. Remainder/B-Emails/OCR-2016-10-19 Gaur RE_ TTM 073336 Northlake-SCM Nov. 3.pdf\", \"Link\")","v":"Link"},21779,21780,2]
[null,"2016-10-19","Email from Jennifer Marks to Samuel Dea and Jodie Sackett regarding NorthLake Mitigation Measures",{"$f":"HYPERLINK(\"H. Remainder/B-Emails/OCR-2016-10-19 Marks NorthLake Mitigation Measures.pdf\", \"Link\")","v":"Link"},21781,21781,1]
[null,"2016-10-19","Email from Loretta Quach to Jodie Sackett and Henry Wong regarding RE: TM73336 - Northlake holds",{"$f":"HYPERLINK(\"H. Remainder/B-Emails/OCR-2016-10-19 Quach RE_ TM73336 - Northlake holds.pdf\", \"Link\")","v":"Link"},21782,21783,2]
[null,"2016-10-21","Email from Jennifer Marks to Jodie Sackett regarding Proofcheck NorthLake Draft SEIR Sections",{"$f":"HYPERLINK(\"H. Remainder/B-Emails/OCR-2016-10-21 Marks Proofcheck NorthLake Draft SEIR Sections.pdf\", \"Link\")","v":"Link"},21784,21784,1]
[null,"2016-10-21","Email from Michelle Tsiebos to John Arvin, Vincent Gallegos, and Vicente Banada regarding RE: Tr 073336 Drinking Water Program Comments",{"$f":"HYPERLINK(\"H. Remainder/B-Emails/OCR-2016-10-21 Tsiebos RE_ Tr 073336 Drinking Water Program Comments.pdf\", \"Link\")","v":"Link"},21785,21788,4]
[null,"2016-10-24","Email from John Arvin to Samuel Dea and Jodie Sackett regarding FW: Northlake Traffic",{"$f":"HYPERLINK(\"H. Remainder/B-Emails/OCR-2016-10-24 Arvin-A-FW_ Northlake Traffic.pdf\", \"Link\")","v":"Link"},21789,21790,2]
[null,null,"Attachment: titled \"Northlake TNL Letter - October 3, 2016.pdf\"",{"$f":"HYPERLINK(\"H. Remainder/B-Emails/OCR-2016-10-24 Arvin-B-Northlake TNL Letter - October 3, 2016.pdf\", \"Link\")","v":"Link"},21791,21797,7]
[null,"2016-10-24","Email from Vicente Banada to Jodie Sackett regarding PM 073335 10242016 Castaic Canyon (Final Map)",{"$f":"HYPERLINK(\"H. Remainder/B-Emails/OCR-2016-10-24 Banada-A-PM 073335 10242016 Castaic Canyon Final Map.pdf\", \"Link\")","v":"Link"},21798,21798,1]
[null,null,"Attachment: titled \"PM 073335 10242016 Castaic Canyon (Final Map).pdf\"",{"$f":"HYPERLINK(\"H. Remainder/B-Emails/OCR-2016-10-24 Banada-B-Castaic Canyon Final Map.pdf\", \"Link\")","v":"Link"},21799,21799,1]
[null,"2016-10-25","Email from Juan Padilla to Jodie Sackett regarding FW: Web Posting Project No. R2015-00408/ TR073336",{"$f":"HYPERLINK(\"H. Remainder/B-Emails/OCR-2016-10-25 Padilla-A-FW_ WEB POSTING-R2015-00408_ TR073336.pdf\", \"Link\")","v":"Link"},21800,21801,2]
[null,null,"Attachment: titled \"73336r4.dot\"",{"$f":"HYPERLINK(\"H. Remainder/B-Emails/OCR-2016-10-25 Padilla-B-73336r4.pdf\", \"Link\")","v":"Link"},21802,21806,5]
[null,"2016-10-26","Email from Aissa Carrillo to Jodie Sackett and rgaur@sikand.com regarding TR 073336-Rev4 (Map Dated 09-28-2016) - Public Works' Subdivision Report",{"$f":"HYPERLINK(\"H. Remainder/B-Emails/OCR-2016-10-26 Carrillo-A1-TR 073336-Rev4-PW Report.pdf\", \"Link\")","v":"Link"},21807,21807,1]
[null,null,"Attachment: titled \"TR 073336-Rev4 (Map Dated 09-28-2016) - Public Works' Subdivision Report\"",{"$f":"HYPERLINK(\"H. Remainder/B-Emails/OCR-2016-10-26 Carrillo-A2-tr073336-rev4-subdiv report.pdf\", \"Link\")","v":"Link"},21808,21825,18]
[null,"2016-10-26","Email from Raman Gaur to Tony Khalkhali regarding FW: TR 073336 Northlake WSA",{"$f":"HYPERLINK(\"H. Remainder/B-Emails/OCR-2016-10-26 Gaur FW_ TR 073336 Northlake WSA.pdf\", \"Link\")","v":"Link"},21826,21826,1]
[null,null,"Attachment: titled \"Northlake WSA 1-7-16 Final.pdf\"",{"$f":"HYPERLINK(\"H. Remainder/B-Emails/OCR-2016-10-26 Gaur FW-B-Northlake WSA 1-7-16 Final.pdf\", \"Link\")","v":"Link"},21827,21870,44]
[null,"2016-10-26","Email from Raman Gaur to Aissa Carrillo, Geir Mathisen; and Jeremy Wan regarding RE: PM 073335-Rev2 (Map Dated 09-28-2016) - Public Works' Subdivision Report",{"$f":"HYPERLINK(\"H. Remainder/B-Emails/OCR-2016-10-26 Gaur RE_ PM 073335-Rev2- PW Sub Report.pdf\", \"Link\")","v":"Link"},21871,21872,2]
[null,"2016-10-26","Email from Jodie Sackett to Jaime Garcia and Samuel Dea regarding RE: Newhall Ranch planning",{"$f":"HYPERLINK(\"H. Remainder/B-Emails/OCR-2016-10-26 Sackett RE-A-Newhall Ranch planning.pdf\", \"Link\")","v":"Link"},21873,21875,3]
[null,null,"Attachment: titled \"Application and proj description_Northlake.pdf\"",{"$f":"HYPERLINK(\"H. Remainder/B-Emails/OCR-2016-10-26 Sackett RE-B-Application and proj description_Northlake.pdf\", \"Link\")","v":"Link"},21876,21881,6]
[null,"2016-10-26","Email from Jodie Sackett to Scott Ashlock regarding RE: Northlake draft transit plan comments",{"$f":"HYPERLINK(\"H. Remainder/B-Emails/OCR-2016-10-26 Sackett RE-C-Northlake draft transit plan comments2.pdf\", \"Link\")","v":"Link"},21882,21883,2]
[null,"2016-10-26","Email from Jodie Sackett to John Arvin and Samuel Dea regarding RE: Northlake EIR",{"$f":"HYPERLINK(\"H. Remainder/B-Emails/OCR-2016-10-26 Sackett RE-D-Northlake EIR.pdf\", \"Link\")","v":"Link"},21884,21884,1]
[null,"2016-10-26","Email from Jodie Sackett to Joseph Decruyenaere regarding RE: Northlake plant palette",{"$f":"HYPERLINK(\"H. Remainder/B-Emails/OCR-2016-10-26 Sackett RE-E-Northlake plant palette.pdf\", \"Link\")","v":"Link"},21885,21886,2]
[null,"2016-10-26","Email from Jodie Sackett to Henry Wong regarding RE: Northlake project status",{"$f":"HYPERLINK(\"H. Remainder/B-Emails/OCR-2016-10-26 Sackett RE-F-Northlake project status.pdf\", \"Link\")","v":"Link"},21887,21889,3]
[null,"2016-10-26","Email from Jodie Sackett to John Arvin regarding RE: Northlake Traffic",{"$f":"HYPERLINK(\"H. Remainder/B-Emails/OCR-2016-10-26 Sackett RE-G-Northlake Traffic.pdf\", \"Link\")","v":"Link"},21890,21891,2]
[null,"2016-10-26","Email from Jodie Sackett to Vicente Banada regarding RE: TR 073336 10242016 Castaic Canyon (FM)",{"$f":"HYPERLINK(\"H. Remainder/B-Emails/OCR-2016-10-26 Sackett RE-H-TR 073336 10242016 Castaic Canyon FM.pdf\", \"Link\")","v":"Link"},21892,21892,1]
[null,"2016-10-27","Email from Jodie Sackett to Evenor Masis regarding Comment on health-related mitigation measures for the Northlake project",{"$f":"HYPERLINK(\"H. Remainder/B-Emails/OCR-2016-10-27 Sackett Comment on health-related mitigation for the NL project.pdf\", \"Link\")","v":"Link"},21893,21893,1]
[null,"2016-10-27","Email from Jodie Sackettt to Matthew Dubiel et al. regarding Project No. R2015-00408-(5) \"Northlake\": CEQA Consultation - **DUE 11-27-16**",{"$f":"HYPERLINK(\"H. Remainder/B-Emails/OCR-2016-10-27 Sackett Project R2015-00408-5 NL_CEQA Consult DUE 11-27-16.pdf\", \"Link\")","v":"Link"},21894,21894,1]
[null,"2016-11-01","Email from Scott Ashlock to Jodie Sackett and Samuel Dea regarding RE: Northlake draft transit plan comments",{"$f":"HYPERLINK(\"H. Remainder/B-Emails/OCR-2016-11-01 Ashlock-A1-RE_ NL draft transit plan comm.pdf\", \"Link\")","v":"Link"},21895,21897,3]
[null,null,"Attachment: titled \"20161101 PublicTransit Page.pdf\"",{"$f":"HYPERLINK(\"H. Remainder/B-Emails/OCR-2016-11-01 Ashlock-A2 PublicTransit Page.pdf\", \"Link\")","v":"Link"},21898,21898,1]
[null,"2016-11-02","Email from Jodie Sackett to Samuel Dea regarding Briefing on NorthLake map holds for tomorrow",{"$f":"HYPERLINK(\"H. Remainder/B-Emails/OCR-2016-11-02 Sackett Briefing on NorthLake map holds for tomorrow.pdf\", \"Link\")","v":"Link"},21899,21899,1]
[null,"2016-11-02","Email from Jodie Sackett to Matthew Benveniste regarding Northlake reports for tomorrow's SCM at 10:00 AM",{"$f":"HYPERLINK(\"H. Remainder/B-Emails/OCR-2016-11-02 Sackett Northlake reports for tomorrow's SCM at 10_00 AM.pdf\", \"Link\")","v":"Link"},21900,21900,1]
[null,"2016-11-03","Email from Jodie Sackett to Scott Ashlock regarding RE: Northlake draft transit plan comments",{"$f":"HYPERLINK(\"H. Remainder/B-Emails/OCR-2016-11-03 Sackett RE_ Northlake draft transit plan comments.pdf\", \"Link\")","v":"Link"},21901,21903,2]
[null,"2016-11-14","Email from Jodie Sackett to Sherry Su regarding RE: Project No. R2015-00408-(5) \"Northlake\": CEQA Consultation - **DUE 11-27-16**",{"$f":"HYPERLINK(\"H. Remainder/B-Emails/OCR-2016-11-14 Sackett RE_ Project No. R2015-00408-5_NL__CEQA Consult.pdf\", \"Link\")","v":"Link"},21904,21905,2]
[null,"2016-11-15","Email from Jennifer Marks to Jodie Sackett regarding RE: Project No. R2015-00408-(5) \"Northlake\": CEQA Consultation - **DUE 11-27-16**",{"$f":"HYPERLINK(\"H. Remainder/B-Emails/OCR-2016-11-15 Marks-A-RE_ Project No. R2015-00408-5_NL__CEQA Consult.pdf\", \"Link\")","v":"Link"},21906,21908,3]
[null,null,"Attachment: titled \"Northlake 4th SC SEIR Response Matrix.pdf\"",{"$f":"HYPERLINK(\"H. Remainder/B-Emails/OCR-2016-11-15 Marks-B-NL 4th SC SEIR Res Matrix.pdf\", \"Link\")","v":"Link"},21909,21910,2]
[null,null,"Attachment: titled \"Proofcheck Submittal 111516.pdf\"",{"$f":"HYPERLINK(\"H. Remainder/B-Emails/OCR-2016-11-15 Marks-C-Proofcheck Submittal 111516.pdf\", \"Link\")","v":"Link"},21911,22022,112]
[null,"2016-11-16","Email from Jodie Sackett to Samuel Dea regarding RE: Leave at 4:30 today",{"$f":"HYPERLINK(\"H. Remainder/B-Emails/OCR-2016-11-16 Sackett RE_ Leave at 4_30 today.pdf\", \"Link\")","v":"Link"},22023,22023,1]
[null,"2016-11-16","Email from Jodie Sackett to Jennifer Marks regarding RE: Project No. R2015-00408-(5) \"Northlake\": CEQA Consultation - **DUE 11-27-16**",{"$f":"HYPERLINK(\"H. Remainder/B-Emails/OCR-2016-11-16 Sackett RE_ Project R2015-00408-5_NL CEQA Consult.pdf\", \"Link\")","v":"Link"},22024,22026,3]
[null,"2016-11-17","Email from Jodie Sackett to Jennifer Marks regarding RE: Project No. R2015-00408-(5) \"Northlake\": CEQA Consultation - **DUE 11-27-16**",{"$f":"HYPERLINK(\"H. Remainder/B-Emails/OCR-2016-11-17 Sackett RE_ Project R2015-00408-5_NL CEQA Consult.pdf\", \"Link\")","v":"Link"},22027,22029,3]
[null,"2016-11-17","Email from Jodie Sackett to Judith Leslie-Thomas regarding RE: Project No. R2015-00408-(5): Northlake ADEIR 5th Screencheck (PART 2 of 2) CEQA Consultation - **DUE 12/19/16**",{"$f":"HYPERLINK(\"H. Remainder/B-Emails/OCR-2016-11-17 Sackett RE_ Project R2015-00408-5_ NL ADEIR 5th Screen PT 2.pdf\", \"Link\")","v":"Link"},22030,22031,2]
[null,"2016-11-22","Email from Jodie Sackett to Jennifer Marks regarding Fire comments on Northlake",{"$f":"HYPERLINK(\"H. Remainder/B-Emails/OCR-2016-11-22 Sackett-A-Fire comments on Northlake.pdf\", \"Link\")","v":"Link"},22032,22032,1]
[null,null,"Attachment: titled \"Fire comment ltr_5th SC pt1_11-18-16.pdf\"",{"$f":"HYPERLINK(\"H. Remainder/B-Emails/OCR-2016-11-22 Sackett-B-Fire comment ltr_5th SC pt1_11-18-16.pdf\", \"Link\")","v":"Link"},22033,22034,2]
[null,"2016-11-30","Email from Jodie Sackett to John Arvin regarding RE: Northlake",{"$f":"HYPERLINK(\"H. Remainder/B-Emails/OCR-2016-11-30 Sackett RE_ Northlake.pdf\", \"Link\")","v":"Link"},22035,22035,1]
[null,"2016-12-05","Email from Sherry Su to Jodie Sackett regarding RE: Project No. R2015-00408-(5): Northlake ADEIR 5th Screencheck (PART 2 of 2) CEQA Consultation - **DUE 12/19/16**",{"$f":"HYPERLINK(\"H. Remainder/B-Emails/OCR-2016-12-05 Su RE_ Project R2015-00408-5_NL ADEIR 5th Screen PART 2.pdf\", \"Link\")","v":"Link"},22036,22037,2]
[null,"2016-12-07","Email from Matthew Benveniste to Jodie Sackett regarding TT 73336- Northlake",{"$f":"HYPERLINK(\"H. Remainder/B-Emails/OCR-2016-12-07 Benveniste TT 73336- Northlake.pdf\", \"Link\")","v":"Link"},22038,22038,1]
[null,"2016-12-07","Email from Robert Vasquez to Jodie Sackett, Evenor Masis and Michelle Tsiebos regarding RE: Comment on health-related mitigation measures for the Northlake project",{"$f":"HYPERLINK(\"H. Remainder/B-Emails/OCR-2016-12-07 Vasquez-A-RE_ Comm on health-related mitigation for the NL project.pdf\", \"Link\")","v":"Link"},22039,22040,2]
[null,null,"Attachment: titled \"Northlake MMRP 102116 with comments.pdf\"",{"$f":"HYPERLINK(\"H. Remainder/B-Emails/OCR-2016-12-07 Vasquez-B-NL MMRP 102116 with comments.pdf\", \"Link\")","v":"Link"},22040,22078,38]
[null,"2016-12-08","Email from Jodie Sackett to Jennifer Marks regarding FW: Comment on health-related mitigation measures for the Northlake project",{"$f":"HYPERLINK(\"H. Remainder/B-Emails/OCR-2016-12-08 Sackett FW-A-Comment on health-related mitigation measures.pdf\", \"Link\")","v":"Link"},22079,22079,1]
[null,null,"Attachment: titled \"Northlake MMRP 102116 with comments.pdf\"",{"$f":"HYPERLINK(\"H. Remainder/B-Emails/OCR-2016-12-08 Sackett FW-B-NL MMRP 102116 with comments.pdf\", \"Link\")","v":"Link"},22080,22117,38]
[null,"2016-12-08","Email from Jodie Sackett to Jennifer Marks regarding FW: Project No. R2015-00408-(5): Northlake ADEIR 5th Screencheck (PART 2 of 2) CEQA Consultation - **DUE 12/19/16**",{"$f":"HYPERLINK(\"H. Remainder/B-Emails/OCR-2016-12-08 Sackett FW-C-Project NL ADEIR 5th.pdf\", \"Link\")","v":"Link"},22118,22118,1]
[null,"2016-12-08","Email from Jodie Sackett to Henry Wong regarding RE: Project No. R2015-00408 / \"Northlake Specific Plan\" ADEIR 5th Screencheck / MMRP / 2016-11-28 DPW Review Comments",{"$f":"HYPERLINK(\"H. Remainder/B-Emails/OCR-2016-12-08 Sackett RE_NLSP__ ADEIR 5th _MMRP.pdf\", \"Link\")","v":"Link"},22119,22119,1]
[null,"2016-12-12","Email from Matthew Benveniste to Jodie Sackett regarding northlake 73336",{"$f":"HYPERLINK(\"H. Remainder/B-Emails/OCR-2016-12-12 Benveniste northlake 73336.pdf\", \"Link\")","v":"Link"},22120,22120,1]
[null,"2017-01-03","Email from Jennifer Marks to Samuel Dea regarding RE: Northlake GHG",{"$f":"HYPERLINK(\"H. Remainder/B-Emails/OCR-2017-01-03 Marks-A-RE_ Northlake GHG1.pdf\", \"Link\")","v":"Link"},22121,22121,1]
[null,null,"Attachment: titled \"5.7 GHG-111516.pdf\"",{"$f":"HYPERLINK(\"H. Remainder/B-Emails/OCR-2017-01-03 Marks-B-2017-01-03 5.7 GHG-111516.pdf\", \"Link\")","v":"Link"},22122,22170,49]
[null,null,"Attachment: titled \"5.7 GHG-111516.docx\"",{"$f":"HYPERLINK(\"H. Remainder/B-Emails/OCR-2017-01-03 Marks-C-5.7 GHG-111516-Converted.pdf\", \"Link\")","v":"Link"},22171,22219,49]
[null,"2017-01-04","Email from Dea to Jennifer Marks regarding RE: Northlake GHG",{"$f":"HYPERLINK(\"H. Remainder/B-Emails/OCR-2017-01-04 Dea RE_ Northlake GHG.pdf\", \"Link\")","v":"Link"},22220,22221,2]
[null,"2017-01-04","Email from Dea to Jennifer Marks regarding RE: NorthLake Response to County Comments on Proofcheck EIR",{"$f":"HYPERLINK(\"H. Remainder/B-Emails/OCR-2017-01-04 Dea RE_ NorthLake Response to County Comments on Proofcheck EIR.pdf\", \"Link\")","v":"Link"},22222,22222,1]
[null,"2017-01-04","Email from Jennifer Marks to Samuel Dea regarding NorthLake Response to County Comments on Proofcheck EIR",{"$f":"HYPERLINK(\"H. Remainder/B-Emails/OCR-2017-01-04 Marks NorthLake Response to County Comments on Proofcheck EIR.pdf\", \"Link\")","v":"Link"},22223,22223,1]
[null,null,"Attachment: titled \"Northlake 5th SC SEIR Response Matrix.pdf\"",{"$f":"HYPERLINK(\"H. Remainder/B-Emails/OCR-2017-01-04 Marks-B-NL 5th SC SEIR Response Matrix.pdf\", \"Link\")","v":"Link"},22224,22229,6]
[null,"2017-01-11","Email from John Arvin to Samuel Dea regarding Northlake",{"$f":"HYPERLINK(\"H. Remainder/B-Emails/OCR-2017-01-11 Arvin Northlake1.pdf\", \"Link\")","v":"Link"},22230,22230,1]
[null,"2017-01-11","Email from Jodie Sackett to Jennifer Marks regarding Northlake ADEIR- County Library comments",{"$f":"HYPERLINK(\"H. Remainder/B-Emails/OCR-2017-01-11 Sackett-A-Northlake ADEIR- County Library comments.pdf\", \"Link\")","v":"Link"},22231,22231,1]
[null,null,"Attachment: titled \"Northlake MMRP-122315 redline.docx\"",{"$f":"HYPERLINK(\"H. Remainder/B-Emails/OCR-2017-01-11 Sackett-B-Northlake MMRP-122315 redline.pdf\", \"Link\")","v":"Link"},22232,22291,60]
[null,"2017-01-11","Email from Jodie Sackett to Scott Ashlock regarding RE: NorthLake Design Guidebook",{"$f":"HYPERLINK(\"H. Remainder/B-Emails/OCR-2017-01-11 Sackett-C-RE_ NorthLake Design Guidebook1.pdf\", \"Link\")","v":"Link"},22292,22292,1]
[null,"2017-01-11","Email from Sherry Su to Jodie Sackett regarding RE: Project No. R2015-00408-(5): Northlake ADEIR CEQA Consultation - **DUE February 13, 2017**",{"$f":"HYPERLINK(\"H. Remainder/B-Emails/OCR-2017-01-11 Su RE_Project R2015-00408-5_Northlake ADEIR CEQA Consultation.pdf\", \"Link\")","v":"Link"},22293,22294,2]
[null,"2017-01-12","Email from Samuel Dea to John Arvin regarding RE: Northlake",{"$f":"HYPERLINK(\"H. Remainder/B-Emails/OCR-2017-01-12 Dea RE_ Northlake2.pdf\", \"Link\")","v":"Link"},22295,22295,1]
[null,"2017-01-12","Email from Jodie Sackett to Sherry Su regarding FW: Northlake ADEIR- County Library comments",{"$f":"HYPERLINK(\"H. Remainder/B-Emails/OCR-2017-01-12 sackett FW_ Northlake ADEIR- County Library comments.pdf\", \"Link\")","v":"Link"},22296,22296,1]
[null,null,"Attachment: titled \"MMRP-011217.docx\"",{"$f":"HYPERLINK(\"H. Remainder/B-Emails/OCR-2017-01-12 Sackett-B-MMRP-011217-Converted.pdf\", \"Link\")","v":"Link"},22297,22333,37]
[null,null,"Attachment: titled \"MMRP-011217.pdf\"",{"$f":"HYPERLINK(\"H. Remainder/B-Emails/OCR-2017-01-12 Sackett-C-MMRP-011217.pdf\", \"Link\")","v":"Link"},22334,22370,37]
[null,"2017-01-23","Email from Jodie Sackett to Jennifer Marks regarding FW: Project No. R2015-00408-(5): Northlake ADEIR CEQA Consultation - **DUE February 13, 2017**",{"$f":"HYPERLINK(\"H. Remainder/B-Emails/OCR-2017-01-23 Sackett FW_ Project R2015-00408-5_Northlake ADEIR CEQA Consultation.pdf\", \"Link\")","v":"Link"},22371,22372,2]
[null,"2017-02-01","Email from Matthew Benveniste to Jodie Sackett regarding Northlake-site plan review",{"$f":"HYPERLINK(\"H. Remainder/B-Emails/OCR-2017-02-01 Benveniste Northlake-site plan review.pdf\", \"Link\")","v":"Link"},22373,22373,1]
[null,"2017-02-06","Email from Samuel Dea to Jodie Sackett regarding FW: NorthLake TM",{"$f":"HYPERLINK(\"H. Remainder/B-Emails/OCR-2017-02-06 Dea FW_ NorthLake TM.pdf\", \"Link\")","v":"Link"},22374,22374,1]
[null,"2017-02-06","Email from Jodie Sackett to Samuel Dea regarding RE: NorthLake TM",{"$f":"HYPERLINK(\"H. Remainder/B-Emails/OCR-2017-02-06 Sackett-A-RE_ NorthLake TM1.pdf\", \"Link\")","v":"Link"},22375,22375,1]
[null,null,"Attachment: titled \"Parks & Trails Report.pdf\"",{"$f":"HYPERLINK(\"H. Remainder/B-Emails/OCR-2017-02-06 Sackett-B-Parks and Trails Report.pdf\", \"Link\")","v":"Link"},22376,22384,9]
[null,"2017-02-07","Email from Samuel Dea to John Arvin regarding RE: NorthLake TM",{"$f":"HYPERLINK(\"H. Remainder/B-Emails/OCR-2017-02-07 Dea RE_ NorthLake TM.pdf\", \"Link\")","v":"Link"},22385,22385,1]
[null,"2017-02-07","Email from Juan Padilla to Jodie Sackett and Henry Wong regarding Northlake Project",{"$f":"HYPERLINK(\"H. Remainder/B-Emails/OCR-2017-02-07 Padilla-A-Northlake Project.pdf\", \"Link\")","v":"Link"},22386,22389,4]
[null,null,"Attachment: titled \"NorthLake TM 73336 - Sht 09 (Unit Phasing).pdf\"",{"$f":"HYPERLINK(\"H. Remainder/B-Emails/OCR-2017-02-07 Padilla-B-NorthLake TM 73336 - Sht 09 Unit Phasing.pdf\", \"Link\")","v":"Link"},22390,22390,1]
[null,"2017-02-08","Email from James Gustin to Jodie Sackett regarding RE: Comment on Northlake ADEIR screencheck review",{"$f":"HYPERLINK(\"H. Remainder/B-Emails/OCR-2017-02-08 Gustin RE_ Comment on Northlake ADEIR screencheck review.pdf\", \"Link\")","v":"Link"},22391,22392,2]
[null,"2017-02-09","Email from Michelle Tsiebos to Jodie Sackett regarding TR 073336 - Northlake",{"$f":"HYPERLINK(\"H. Remainder/B-Emails/OCR-2017-02-09 Tsiebos TR 073336 - Northlake.pdf\", \"Link\")","v":"Link"},22393,22393,1]
[null,"2017-02-13","Email from Jodie Sackett to Jennifer Marks regarding NorthLake ADEIR 6th SC comments (due 2-13-17)",{"$f":"HYPERLINK(\"H. Remainder/B-Emails/OCR-2017-02-13 Sackett-A-NorthLake ADEIR 6th SC comments due 2-13-17.pdf\", \"Link\")","v":"Link"},22394,22394,1]
[null,null,"Attachment: titled \"Northlake ADEIR 6th SC comments_Fire 2-1-17.pdf\"",{"$f":"HYPERLINK(\"H. Remainder/B-Emails/OCR-2017-02-13 Sackett-B-Northlake ADEIR 6th SC comments_Fire 2-1-17.pdf\", \"Link\")","v":"Link"},22395,22396,2]
[null,"2017-02-13","Email from Jodie Sackett to Matthew Benveniste regarding RE: Northlake-site plan review",{"$f":"HYPERLINK(\"H. Remainder/B-Emails/OCR-2017-02-13 Sackett-C-RE_ Northlake-site plan review.pdf\", \"Link\")","v":"Link"},22397,22398,2]
[null,"2017-02-15","Email from Samuel Dea to Jodie Sackett regarding RE: TR 073336 - Northlake (and screencheck EIR comments due 2-13-17)",{"$f":"HYPERLINK(\"H. Remainder/B-Emails/OCR-2017-02-15 Dea RE_ TR 073336 - Northlake and screencheck EIR comments due 2-13-17.pdf\", \"Link\")","v":"Link"},22399,22400,2]
[null,"2017-02-15","Email from Clement Lau to Jodie Sackett regarding RE: Northlake ADEIR 6th screencheck submittal (comments due 2-13-17)",{"$f":"HYPERLINK(\"H. Remainder/B-Emails/OCR-2017-02-15 Lau RE_ Northlake ADEIR 6th screencheck submittal comments due 2-13-17.pdf\", \"Link\")","v":"Link"},22401,22402,2]
[null,"2017-02-15","Email from Jennifer Marks to Marie A. Pavlovic regarding RE: Tesoro del Valle Phases B & C First Screencheck Draft Supplemental EIR",{"$f":"HYPERLINK(\"H. Remainder/B-Emails/OCR-2017-02-15 Marks-A-RE_ Tesoro del Valle Phases B and C First Screen DSEIR.pdf\", \"Link\")","v":"Link"},22403,22404,2]
[null,null,"Attachment: titled \"5.16 Recreation-021417.docx\"",{"$f":"HYPERLINK(\"H. Remainder/B-Emails/OCR-2017-02-15 Marks-B-5.16 Recreation-021417-converted.pdf\", \"Link\")","v":"Link"},22405,22412,8]
[null,null,"Attachment: titled \"5.16 Recreation-021417.pdf\"",{"$f":"HYPERLINK(\"H. Remainder/B-Emails/OCR-2017-02-15 Marks-C-5.16 Recreation-021417.pdf\", \"Link\")","v":"Link"},22413,22420,8]
[null,"2017-02-15","Email from Jodie Sackett to Jennifer Marks regarding Northlake ADEIR 6th screencheck comments - DPW",{"$f":"HYPERLINK(\"H. Remainder/B-Emails/OCR-2017-02-15 Sackett-A1-Northlake ADEIR 6th screencheck comments - DPW.pdf\", \"Link\")","v":"Link"},22421,22421,1]
[null,null,"Attachment: titled \"2017-02-14 NORTHLAKE SPECIFIC PLAN MMRP 6th Screencheck DPW COMMENTS.PDF\"",{"$f":"HYPERLINK(\"H. Remainder/B-Emails/OCR-2017-02-15 Sackett-A2-NLSP MMRP 6th Screen DPW COMMENTS.pdf\", \"Link\")","v":"Link"},22422,22422,1]
[null,null,"Attachment: titled \"1.0 Exec Summary-010417.pdf\"",{"$f":"HYPERLINK(\"H. Remainder/B-Emails/OCR-2017-02-15 Sackett-A3-1.0 Exec Summary-010417.pdf\", \"Link\")","v":"Link"},22423,22492,70]
[null,null,"Attachment: titled \"5.8 Hydro WQ-010417.pdf\"",{"$f":"HYPERLINK(\"H. Remainder/B-Emails/OCR-2017-02-15 Sackett-A4-5.8 Hydro WQ-010417.pdf\", \"Link\")","v":"Link"},22493,22577,85]
[null,null,"Attachment: titled \"2017-02-14 NORTHLAKE SPECIFIC PLAN ADEIR 6th Screencheck DPW COMMENTS.PDF\"",{"$f":"HYPERLINK(\"H. Remainder/B-Emails/OCR-2017-02-15 Sackett-A5-NLSP ADEIR 6th Screen DPW COMMENTS.pdf\", \"Link\")","v":"Link"},22578,22580,3]
[null,"2017-02-15","Email from Jodie Sackett to Raman Gaur and Matthew Benveniste regarding FW: TR 073336 - Northlake (and screencheck EIR comments due 2-13-17)",{"$f":"HYPERLINK(\"H. Remainder/B-Emails/OCR-2017-02-15 Sackett-B1-FW-TR73336-Northlake and screencheck EIR comments.pdf\", \"Link\")","v":"Link"},22581,22581,1]
[null,null,"Attachment: titled \"TR 073336 10242016 EH clearance of Tent TR 2-14-17.pdf\"",{"$f":"HYPERLINK(\"H. Remainder/B-Emails/OCR-2017-02-15 Sackett-B2-TR 073336 EH clear of Tent.pdf\", \"Link\")","v":"Link"},22582,22583,2]
[null,"2017-02-15","Email from Jodie Sackett to Matthew Dubiel regarding Northlake ADEIR screencheck clearance",{"$f":"HYPERLINK(\"H. Remainder/B-Emails/OCR-2017-02-15 Sackett-C-Northlake ADEIR screencheck clearance.pdf\", \"Link\")","v":"Link"},22584,22584,1]
[null,"2017-02-15","Email from Henry Wong to Samuel Dea and Jodie Sackett regarding RE: Project No. R2015-00408-(5): Northlake ADEIR CEQA Consultation / 6th Screencheck / - **DUE February 13, 2017**",{"$f":"HYPERLINK(\"H. Remainder/B-Emails/OCR-2017-02-15 Wong-A1-RE_NLADEIR CEQA Consult.pdf\", \"Link\")","v":"Link"},22585,22586,2]
[null,null,"Attachment: titled \"1.0 Exec Summary-010417.pdf\"",{"$f":"HYPERLINK(\"H. Remainder/B-Emails/OCR-2017-02-15 Wong-A2-1.0 Exec Summary.pdf\", \"Link\")","v":"Link"},22587,22656,70]
[null,null,"Attachment: titled \"5.8 Hydro WQ-010417.pdf\"",{"$f":"HYPERLINK(\"H. Remainder/B-Emails/OCR-2017-02-15 Wong-A3-5.8 Hydro WQ.pdf\", \"Link\")","v":"Link"},22657,22741,85]
[null,null,"Attachment: titled \"2017-02-14 NORTHLAKE SPECIFIC PLAN ADEIR 6th Screencheck DPW COMMENTS.pdf\"",{"$f":"HYPERLINK(\"H. Remainder/B-Emails/OCR-2017-02-15 Wong-A4-2017-02-14 NLSP ADEIR 6th Screen.pdf\", \"Link\")","v":"Link"},22742,22744,3]
[null,"2017-02-22","Email from Jodie Sackett to Jennifer Marks regarding FW: Northlake ADEIR 6th screencheck submittal (comments due 2-13-17)",{"$f":"HYPERLINK(\"H. Remainder/B-Emails/OCR-2017-02-22 Sackett-A1-FW_Northlake ADEIR sixth screencheck submittal comments.pdf\", \"Link\")","v":"Link"},22745,22745,1]
[null,null,"Attachment: titled \"FW Northlake ADEIR- County Library comments.msg\" and referenced as \"FW: Northlake ADEIR- County Library comments\" in the email. ",{"$f":"HYPERLINK(\"H. Remainder/B-Emails/OCR-2017-02-22 Sackett-A2-Sackett to Su email.pdf\", \"Link\")","v":"Link"},22746,22746,1]
[null,null,"Attachment: titled \"MMRP 011217.docx\" ",{"$f":"HYPERLINK(\"H. Remainder/B-Emails/OCR-2017-02-22 Sackett-A3-MMRP-011217-converted.pdf\", \"Link\")","v":"Link"},22747,22783,37]
[null,null,"Attachment: titled \"MMRP 011217.pdf\" ",{"$f":"HYPERLINK(\"H. Remainder/B-Emails/OCR-2017-02-22 Sackett-A4-MMRP-011217.pdf\", \"Link\")","v":"Link"},22784,22820,37]
[null,"2017-02-28","Email from Yee-Mei (Imelda) Ng to Jodie Sackett regarding RE: Project No. R2015-00408-(5): Northlake ADEIR CEQA Consultation / 6th Screencheck / - **DUE February 13, 2017**",{"$f":"HYPERLINK(\"H. Remainder/B-Emails/OCR-2017-02-28 Ng-A1-RE_NL ADEIR CEQA Consult.pdf\", \"Link\")","v":"Link"},22821,22822,2]
[null,null,"Attachment: titled \"1.0 Exec Summary-010417.pdf\"",{"$f":"HYPERLINK(\"H. Remainder/B-Emails/OCR-2017-02-28 Ng-A2-1.0 Exec Summary.pdf\", \"Link\")","v":"Link"},22823,22824,2]
[null,"2017-02-28","Email from Jodie Sackett to Jennifer Marks regarding FW: Project No. R2015-00408-(5): Northlake ADEIR CEQA Consultation / 6th Screencheck / - **DUE February 13, 2017**",{"$f":"HYPERLINK(\"H. Remainder/B-Emails/OCR-2017-02-28 Sackett-A1-FW_ProjectR2015-00408-5_Northlake ADEIR CEQA Consultation.pdf\", \"Link\")","v":"Link"},22825,22825,1]
[null,null,"Attachment: titled \"1.0 Exec Summary-010417.pdf\"",{"$f":"HYPERLINK(\"H. Remainder/B-Emails/OCR-2017-02-28 Sackett-A2-1.0 Exec Summary-010417.pdf\", \"Link\")","v":"Link"},22826,22827,2]
[null,"2017-03-02","Email from Matthew Benveniste to Jodie Sackett regarding FW: Attached Image",{"$f":"HYPERLINK(\"H. Remainder/B-Emails/OCR-2017-03-02 Benveniste-A-FW_ Attached Image.pdf\", \"Link\")","v":"Link"},22828,22828,1]
[null,null,"Attachment: titled \"2073_001.pdf\"",{"$f":"HYPERLINK(\"H. Remainder/B-Emails/OCR-2017-03-02 Benveniste-B-2073_001.pdf\", \"Link\")","v":"Link"},22829,22829,1]
[null,"2017-03-07","Email from Raman Gaur to Jodie Sackett regarding FW: Northlake WSA",{"$f":"HYPERLINK(\"H. Remainder/B-Emails/OCR-2017-03-07 Gaur-A-FW_ Northlake WSA.pdf\", \"Link\")","v":"Link"},228230,228231,2]
[null,null,"Attachment: titled \"Minutes 01-14-16.pdf\"",{"$f":"HYPERLINK(\"H. Remainder/B-Emails/OCR-2017-03-07 Gaur-B-Minutes 01-14-16.pdf\", \"Link\")","v":"Link"},228232,228235,4]
[null,null,"Attachment: titled \"Northlake WSA 01-14-16.pdf\"",{"$f":"HYPERLINK(\"H. Remainder/B-Emails/OCR-2017-03-07 Gaur-C-Northlake WSA 01-14-16.pdf\", \"Link\")","v":"Link"},228236,22881,46]
[null,"2017-03-09","Email from Jennifer Marks to John Arvin, Samuel Dea, and Jodie Sackett regarding RE: Northlake Greenhouse Gas Analysis",{"$f":"HYPERLINK(\"H. Remainder/B-Emails/OCR-2017-03-09 Marks email-A1-RE_ Northlake Greenhouse Gas Analysis.pdf\", \"Link\")","v":"Link"},22882,22883,2]
[null,null,"Attachment per email link titled \"1.0 Exec Summary-030917.pdf\"",{"$f":"HYPERLINK(\"H. Remainder/B-Emails/OCR-2017-03-09 Marks email-A2-1.0 Exec Summary-030917.pdf\", \"Link\")","v":"Link"},22884,22954,71]
[null,null,"Attachment per email link titled \"2.0 Intro-030817.pdf\"",{"$f":"HYPERLINK(\"H. Remainder/B-Emails/OCR-2017-03-09 Marks email-A3-2.0 Intro-030817.pdf\", \"Link\")","v":"Link"},22955,22966,12]
[null,null,"Attachment per email link titled \"3.0 Env Setting-030817.pdf\"",{"$f":"HYPERLINK(\"H. Remainder/B-Emails/OCR-2017-03-09 Marks email-A4-3.0 Env Setting-030817.pdf\", \"Link\")","v":"Link"},22967,22976,10]
[null,null,"Attachment per email link titled \"4.0 Proj Desc-030817.pdf\"",{"$f":"HYPERLINK(\"H. Remainder/B-Emails/OCR-2017-03-09 Marks email-A5-4.0 Proj Desc-030817.pdf\", \"Link\")","v":"Link"},22977,23011,35]
[null,null,"Attachment per email link titled \"5.0 EnvAnlys-030817.pdf\"",{"$f":"HYPERLINK(\"H. Remainder/B-Emails/OCR-2017-03-09 Marks email-A6-5.0 EnvAnlys-030817.pdf\", \"Link\")","v":"Link"},23012,23014,3]
[null,null,"Attachment per email link titled \"5.1 Air Quality-030917.pdf\"",{"$f":"HYPERLINK(\"H. Remainder/B-Emails/OCR-2017-03-09 Marks email-A7-5.1 Air Quality-030917.pdf\", \"Link\")","v":"Link"},23015,23063,49]
[null,null,"Attachment per email link titled \"5.2 Bio-030817.pdf\"",{"$f":"HYPERLINK(\"H. Remainder/B-Emails/OCR-2017-03-09 Marks email-A8-5.2 Bio-030817.pdf\", \"Link\")","v":"Link"},23064,23130,67]
[null,null,"Attachment per email link titled \"5.3 Cultural Resources-030817.pdf\"",{"$f":"HYPERLINK(\"H. Remainder/B-Emails/OCR-2017-03-09 Marks email-A9-5.3 Cultural Resources-030817.pdf\", \"Link\")","v":"Link"},23131,23147,17]
[null,null,"Attachment per email link titled \"5.4 Energy-030817.pdf\"",{"$f":"HYPERLINK(\"H. Remainder/B-Emails/OCR-2017-03-09 Marks email-A10-5.4 Energy-030817.pdf\", \"Link\")","v":"Link"},23148,23160,13]
[null,null,"Attachment per email link titled \"5.5 Hazards-030817.pdf\"",{"$f":"HYPERLINK(\"H. Remainder/B-Emails/OCR-2017-03-09 Marks email-A11-5.5 Hazards-030817.pdf\", \"Link\")","v":"Link"},23161,23182,22]
[null,null,"Attachment per email link titled \"5.6 Geo and Soils-030817.pdf\"",{"$f":"HYPERLINK(\"H. Remainder/B-Emails/OCR-2017-03-09 Marks email-A12-5.6 Geo and Soils-030817.pdf\", \"Link\")","v":"Link"},23183,23196,14]
[null,null,"Attachment per email link titled \"5.7 GHG-030917.pdf\"",{"$f":"HYPERLINK(\"H. Remainder/B-Emails/OCR-2017-03-09 Marks email-A13-5.7 GHG-030917.pdf\", \"Link\")","v":"Link"},23197,23253,57]
[null,null,"Attachment per email link titled \"5.8 Hydro WQ-030817.pdf\"",{"$f":"HYPERLINK(\"H. Remainder/B-Emails/OCR-2017-03-09 Marks email-A14-5.8 Hydro WQ-030817.pdf\", \"Link\")","v":"Link"},23254,23335,82]
[null,null,"Attachment per email link titled \"5.9 Land Use-030917.pdf\"",{"$f":"HYPERLINK(\"H. Remainder/B-Emails/OCR-2017-03-09 Marks email-A15-5.9 Land Use-030917.pdf\", \"Link\")","v":"Link"},23336,23395,60]
[null,null,"Attachment per email link titled \"5.10 Noise-030817.pdf\"",{"$f":"HYPERLINK(\"H. Remainder/B-Emails/OCR-2017-03-09 Marks email-A16-5.10 Noise-030817.pdf\", \"Link\")","v":"Link"},23396,23434,39]
[null,null,"Attachment per email link titled \"5.11 Traffic-030817.pdf\"",{"$f":"HYPERLINK(\"H. Remainder/B-Emails/OCR-2017-03-09 Marks email-A17-5.11 Traffic-030817.pdf\", \"Link\")","v":"Link"},23435,23512,78]
[null,null,"Attachment per email link titled \"5.12 Utilities-030817.pdf\"",{"$f":"HYPERLINK(\"H. Remainder/B-Emails/OCR-2017-03-09 Marks email-A18-5.12 Utilities-030817.pdf\", \"Link\")","v":"Link"},23513,23559,47]
[null,null,"Attachment per email link titled \"6.0 Alternatives-030817.pdf\"",{"$f":"HYPERLINK(\"H. Remainder/B-Emails/OCR-2017-03-09 Marks email-A19-6.0 Alternatives-030817.pdf\", \"Link\")","v":"Link"},235560,23587,28]
[null,null,"Attachment per email link titled \"7.0 Other CEQA Topics-030817.pdf\"",{"$f":"HYPERLINK(\"H. Remainder/B-Emails/OCR-2017-03-09 Marks email-A20-7.0 Other CEQA Topics-030817.pdf\", \"Link\")","v":"Link"},23588,23602,15]
[null,null,"Attachment per email link titled \"8.0 Preparers-030817.pdf\"",{"$f":"HYPERLINK(\"H. Remainder/B-Emails/OCR-2017-03-09 Marks email-A21-8.0 Preparers-030817.pdf\", \"Link\")","v":"Link"},23603,23605,3]
[null,null,"Attachment per email link titled \"App G_GHG Study.pdf\"",{"$f":"HYPERLINK(\"H. Remainder/B-Emails/OCR-2017-03-09 Marks email-A22-App G_GHG Study.pdf\", \"Link\")","v":"Link"},23606,23830,225]
[null,null,"Attachment titled \"Northlake 6th SC SEIR Response Matrix.docx\"",{"$f":"HYPERLINK(\"H. Remainder/B-Emails/OCR-2017-03-09 Marks email-B-Northlake 6th SC SEIR Response Matrix.pdf\", \"Link\")","v":"Link"},23831,23835,5]
[null,"2017-03-09","Email from Jodie Sackett to Sherry Su regarding 7th Screencheck ADEIR for the Northlake Project (R2015-00408-5) (comments due on April 10, 2017)",{"$f":"HYPERLINK(\"H. Remainder/B-Emails/OCR-2017-03-09 Sackett-A1-7th Screencheck ADEIR for the NL Project.pdf\", \"Link\")","v":"Link"},23836,23836,1]
[null,null,"Attachment: titled \"Northlake 6th SC SEIR Response Matrix.pdf\"",{"$f":"HYPERLINK(\"H. Remainder/B-Emails/OCR-2017-03-09 Sackett-A2-NL 6th SC SEIR Res Matrix.pdf\", \"Link\")","v":"Link"},23837,23841,5]
[null,null,"Attachment: titled \"7.0 Other CEQA Topics-030817.pdf\"",{"$f":"HYPERLINK(\"H. Remainder/B-Emails/OCR-2017-03-09 Sackett-A3-7.0 Other CEQA Topics-030817.pdf\", \"Link\")","v":"Link"},23842,23856,15]
[null,"2017-03-09","Email from Jodie Sackett to John Arvin and Samuel Dea regarding RE: Northlake Greenhouse Gas Analysis",{"$f":"HYPERLINK(\"H. Remainder/B-Emails/OCR-2017-03-09 Sackett-D-RE_ Northlake Greenhouse Gas Analysis1.pdf\", \"Link\")","v":"Link"},23857,23858,2]
[null,"2017-03-16","Email from Jodie Sackett to Raman Gaur regarding RE: Northlake WSA",{"$f":"HYPERLINK(\"H. Remainder/B-Emails/OCR-2017-03-16 Sackett RE_ Northlake WSA.pdf\", \"Link\")","v":"Link"},23859,23860,2]
[null,"2017-03-20","Email from Jodie Sackett to Jennifer Marks regarding FW: 7th Screencheck ADEIR for the Northlake Project (R2015-00408-5) (comments due on April 10, 2017)",{"$f":"HYPERLINK(\"H. Remainder/B-Emails/OCR-2017-03-20 Sackett FW_ 7th Screencheck ADEIR for the NL Project.pdf\", \"Link\")","v":"Link"},23861,23862,2]
[null,"2017-03-21","Email from Jodie Sackett to Clement Lau regarding RE: NorthLake TM 73336 Request for Easement",{"$f":"HYPERLINK(\"H. Remainder/B-Emails/OCR-2017-03-21 Sackett RE_ NorthLake TM 73336 Request for Easement.pdf\", \"Link\")","v":"Link"},23863,23864,2]
[null,"2017-03-22","Email from Matthew Benveniste to Jodie Sackett regarding TT 73336-Northlake",{"$f":"HYPERLINK(\"H. Remainder/B-Emails/OCR-2017-03-22 Benveniste-A-TT 73336-Northlake.pdf\", \"Link\")","v":"Link"},23865,23865,1]
[null,null,"Attachment: titled \"2283_001.pdf\"",{"$f":"HYPERLINK(\"H. Remainder/B-Emails/OCR-2017-03-22 Benveniste-B-2283_001.pdf\", \"Link\")","v":"Link"},23866,23867,2]
[null,"2017-03-24","Email from Scott Ashlock to Jodie Sackett and Samuel Dea regardingNorthLake Design Guidebook",{"$f":"HYPERLINK(\"H. Remainder/B-Emails/OCR-2017-03-24 Ashlock NorthLake Design Guidebook.pdf\", \"Link\")","v":"Link"},23868,23868,1]
[null,"2017-03-29","Email from Matthew Benveniste to Jodie Sackett regarding RE: TT 73336-Northlake",{"$f":"HYPERLINK(\"H. Remainder/B-Emails/OCR-2017-03-29 Benveniste RE_ TT 73336-Northlake.pdf\", \"Link\")","v":"Link"},23869,23869,1]
[null,"2017-03-29","Email from Jodie Sackett to John Arvin regarding RE: NorthLake Drainage Report",{"$f":"HYPERLINK(\"H. Remainder/B-Emails/OCR-2017-03-29 Sackett RE_ NorthLake Drainage Report.pdf\", \"Link\")","v":"Link"},23870,23870,1]
[null,"2017-04-05","Email from Henry Wong to Jodie Sackett regarding FW: NorthLake TM 73336 Request for Easement",{"$f":"HYPERLINK(\"H. Remainder/B-Emails/OCR-2017-04-05 Wong-A1-FW_ NorthLake TM 73336 Request for Easement1.pdf\", \"Link\")","v":"Link"},23871,23875,5]
[null,null,"Attachment: titled \"NorthLake Letter to County Requesting Easement Sent 2017-02-27.pdf\"",{"$f":"HYPERLINK(\"H. Remainder/B-Emails/OCR-2017-04-05 Wong-A2-NL Ltr to County Req Easement Sent 2-27-17.pdf\", \"Link\")","v":"Link"},23876,23887,12]
[null,"2017-04-11","Email from Samuel Dea to John Arvin regarding Northlake PH",{"$f":"HYPERLINK(\"H. Remainder/B-Emails/OCR-2017-04-11 Dea Northlake PH.pdf\", \"Link\")","v":"Link"},23888,23888,1]
[null,"2017-04-18","Email from John Arvin to Samuel Dea regarding Re: Northlake PH",{"$f":"HYPERLINK(\"H. Remainder/B-Emails/OCR-2017-04-18 Arvin Re_ Northlake PH.pdf\", \"Link\")","v":"Link"},23889,23890,2]
[null,"2017-04-18","Email from Jodie Sackett to Roger Hernandez regarding FW: NorthLake TM 73336 Request for Easement",{"$f":"HYPERLINK(\"H. Remainder/B-Emails/OCR-2017-04-18 Sackett-A-FW_ NorthLake TM 73336 Request for Easement.pdf\", \"Link\")","v":"Link"},23891,23896,6]
[null,null,"Attachment: titled \"NorthLake Letter to County Requesting Easement Sent 2017-02-27.pdf\"",{"$f":"HYPERLINK(\"H. Remainder/B-Emails/OCR-2017-04-18 Sackett-B-NL LTr to County Req Easement.pdf\", \"Link\")","v":"Link"},23897,23908,12]
[null,"2017-04-19","Email from Marie A. Pavlovic to Jodie Sackett regarding Northlake",{"$f":"HYPERLINK(\"H. Remainder/B-Emails/OCR-2017-04-19 Pavlovic Northlake.pdf\", \"Link\")","v":"Link"},23909,23909,1]
[null,"2017-04-24","Email from Jaime Garcia to Rosie Ruiz regarding Re: FW: NorthLake Public Hearing at Northlake Hills Elementary School",{"$f":"HYPERLINK(\"H. Remainder/B-Emails/OCR-2017-04-24 Garcia-A-Re-FW-NL Public Hearing at NL Hills Elementary School.pdf\", \"Link\")","v":"Link"},23910,23915,6]
[null,null,"Attachment: titled \"Northlake MPR .pdf\"",{"$f":"HYPERLINK(\"H. Remainder/B-Emails/OCR-2017-04-24 Garcia-B-Northlake MPR.pdf\", \"Link\")","v":"Link"},23916,23916,1]
[null,"2017-04-24","Email from Jennifer Marks to Jodie Sackett regarding Missing (?) NOP Letter for NorthLake",{"$f":"HYPERLINK(\"H. Remainder/B-Emails/OCR-2017-04-24 Marks-A-Missing NOP Letter for NorthLake.pdf\", \"Link\")","v":"Link"},23917,23917,1]
[null,null,"Attachment: titled \"2.0 Intro-030817.docx\"",{"$f":"HYPERLINK(\"H. Remainder/B-Emails/OCR-2017-04-24 Marks-B-2.0 Intro-030817.pdf\", \"Link\")","v":"Link"},23918,23930,13]
[null,"2017-04-26","Email from Jennifer Marks to Jodie Sackett regarding Distribution List, NOP Letter",{"$f":"HYPERLINK(\"H. Remainder/B-Emails/OCR-2017-04-26 Marks-A-Distribution List, NOP Letter.pdf\", \"Link\")","v":"Link"},23931,23931,1]
[null,null,"Attachment: titled \"NorthLake NOA_draft 4-26-17.docx\"",{"$f":"HYPERLINK(\"H. Remainder/B-Emails/OCR-2017-04-26 Marks-B-NorthLake NOA_draft 4-26-17.pdf\", \"Link\")","v":"Link"},23932,23934,3]
[null,null,"Attachment: titled \"Sign Notice of Hearing Examiner Public Hearing.docx\"",{"$f":"HYPERLINK(\"H. Remainder/B-Emails/OCR-2017-04-26 Marks-C-Sign Notice of Hearing Examiner Public Hearing.pdf\", \"Link\")","v":"Link"},23935,23935,1]
[null,"2017-04-26","Email from Jodie Sackett to Jennifer Marks regarding RE: DRP NOA-NOC sample",{"$f":"HYPERLINK(\"H. Remainder/B-Emails/OCR-2017-04-26 Sackett-A-RE_ DRP NOA-NOC sample1.pdf\", \"Link\")","v":"Link"},23936,23939,4]
[null,null,"Attachment: titled \"Scanned from a Xerox Multifunction Printer.pdf\"",{"$f":"HYPERLINK(\"H. Remainder/B-Emails/OCR-2017-04-26 Sackett-B-Scanned from a Xerox.pdf\", \"Link\")","v":"Link"},23940,23940,1]
[null,"2017-04-27","Email from Michele Chimienti to Samuel Dea and Raman Gaur regarding RE: DRP NOA-NOC sample",{"$f":"HYPERLINK(\"H. Remainder/B-Emails/OCR-2017-04-27 Chimienti RE_ DRP NOA-NOC sample.pdf\", \"Link\")","v":"Link"},23941,23943,3]
[null,"2017-04-27","Email from Samuel Dea to Jodie Sackett regarding FW: 20170427 - TR 073336 (Northlake) – HY 073336 – Hydrology Study Approval",{"$f":"HYPERLINK(\"H. Remainder/B-Emails/OCR-2017-04-27 Dea FW-Hydro Study approval.pdf\", \"Link\")","v":"Link"},23944,23944,1]
[null,"2017-05-01","Email from John Arvin to Jennifer Marks, Samuel Dea, and Jodie Sackett regarding Northlake Posting",{"$f":"HYPERLINK(\"H. Remainder/B-Emails/OCR-2017-05-01 Arvin-A-Northlake Posting.pdf\", \"Link\")","v":"Link"},23945,23945,1]
[null,null,"Attachment: titled \"Northlake EIR Certificate of Posting for Public Hearing 2017-05-01.pdf\"",{"$f":"HYPERLINK(\"H. Remainder/B-Emails/OCR-2017-05-01 Arvin-B-Northlake EIR Certificate of Posting for Public Hearing.pdf\", \"Link\")","v":"Link"},23946,23948,3]
[null,"2017-05-02","Email from Jennifer Marks to Samuel Dea, Jodie Sackett and John Arvin regarding Northlake Filed NOC/NOA",{"$f":"HYPERLINK(\"H. Remainder/B-Emails/OCR-2017-05-02 Marks-A-Northlake Filed NOC_NOA.pdf\", \"Link\")","v":"Link"},23949,23949,1]
[null,null,"Attachment: titled \"Filed NOA-NOC 050217.pdf\"",{"$f":"HYPERLINK(\"H. Remainder/B-Emails/OCR-2017-05-02 Marks-B-Filed NOA-NOC 050217.pdf\", \"Link\")","v":"Link"},23950,23954,5]
[null,"2017-05-02","Email from Jennifer Marks to Marie A. Pavlovic, Michael Schlesinger, Tin Cheung, Kim Szalay regarding RE: NorthLake GHG Discussion",{"$f":"HYPERLINK(\"H. Remainder/B-Emails/OCR-2017-05-02 Marks-C-RE_ NorthLake GHG Discussion.pdf\", \"Link\")","v":"Link"},23955,23956,2]
[null,"2017-05-02","Email from Jennifer Marks to Jodie Sackett regarding RE: Northlake MMRP clearance for Fire Dept.",{"$f":"HYPERLINK(\"H. Remainder/B-Emails/OCR-2017-05-02 Marks-D-RE_ Northlake MMRP clearance for Fire Dept..pdf\", \"Link\")","v":"Link"},23957,23957,1]
[null,null,"Attachment: titled \"2017-04-03 NORTHLAKE SPECIFIC PLAN ADEIR 7th Screencheck DPW COMMENTS.PDF\"",{"$f":"HYPERLINK(\"H. Remainder/B-Emails/OCR-2017-05-02 Marks-E-NL SP ADEIR 7th Screencheck DPW COMMENTS.pdf\", \"Link\")","v":"Link"},23958,23958,1]
[null,null,"Attachment: titled \"Northlake ADEIR 6th SC comments_Fire 2-1-17.pdf\"",{"$f":"HYPERLINK(\"H. Remainder/B-Emails/OCR-2017-05-02 Marks-F-Northlake ADEIR 6th SC comments_Fire 2-1-17.pdf\", \"Link\")","v":"Link"},23959,23960,2]
[null,"2017-05-02","Email from Jodie Sackett to Robert Walton regarding FW: Northlake DSEIR review upload",{"$f":"HYPERLINK(\"H. Remainder/B-Emails/OCR-2017-05-02 Sackett-A-FW_ Northlake DSEIR review upload.pdf\", \"Link\")","v":"Link"},23961,23962,2]
[null,null,"Attachment: titled \"Northlake 6th SC SEIR Response Matrix.pdf\"",{"$f":"HYPERLINK(\"H. Remainder/B-Emails/OCR-2017-05-02 Sackett-B-Northlake 6th SC SEIR Response Matrix.pdf\", \"Link\")","v":"Link"},23963,23967,5]
[null,"2017-05-04","Email from Jennifer Marks to Jodie Sackett regarding RE: CD copies needed by noon tomorrow",{"$f":"HYPERLINK(\"H. Remainder/B-Emails/OCR-2017-05-04 Marks RE_A-CD copies needed by noon tomorrow.pdf\", \"Link\")","v":"Link"},23968,23970,3]
[null,null,"Attachment: titled \"Notice of Completion.pdf\"",{"$f":"HYPERLINK(\"H. Remainder/B-Emails/OCR-2017-05-04 Marks RE_B-Notice of Completion.pdf\", \"Link\")","v":"Link"},23971,23972,2]
[null,null,"Attachment: titled \"NorthLake NOA_draft 4-26-17.pdf\"",{"$f":"HYPERLINK(\"H. Remainder/B-Emails/OCR-2017-05-04 Marks RE_C-NorthLake NOA_draft 4-26-17.pdf\", \"Link\")","v":"Link"},23973,23975,3]
[null,"2017-05-04","Email from Jennifer Marks to Jodie Sackett regarding RE: Hearing examiner staff report language - DEIR",{"$f":"HYPERLINK(\"H. Remainder/B-Emails/OCR-2017-05-04 Marks RE_D-Hearing examiner staff report language - DEIR.pdf\", \"Link\")","v":"Link"},23976,23978,3]
[null,null,"Attachment: titled \"NorthLake Impacts Overview.docx\"",{"$f":"HYPERLINK(\"H. Remainder/B-Emails/OCR-2017-05-04 Marks RE_E-NorthLake Impacts Overview.pdf\", \"Link\")","v":"Link"},23979,23981,3]
[null,"2017-05-04","Email from Jodie Sackett to Frank Vidales regarding FW: Northlake DSEIR review and EnerGov upload",{"$f":"HYPERLINK(\"H. Remainder/B-Emails/OCR-2017-05-04 Sackett-A-FW_ Northlake DSEIR review and EnerGov upload.pdf\", \"Link\")","v":"Link"},23982,23984,3]
[null,null,"Attachment: titled \"Northlake ADEIR 6th SC comments_Fire 2-1-17.pdf\"",{"$f":"HYPERLINK(\"H. Remainder/B-Emails/OCR-2017-05-04 Sackett-B-Northlake ADEIR 6th SC comments_Fire 2-1-17.pdf\", \"Link\")","v":"Link"},23985,23986,2]
[null,null,"Attachment: titled \"Northlake 6th SC SEIR Response Matrix.pdf\"",{"$f":"HYPERLINK(\"H. Remainder/B-Emails/OCR-2017-05-04 Sackett-C-Northlake 6th SC SEIR Response Matrix.pdf\", \"Link\")","v":"Link"},23987,23991,5]
[null,"2017-05-04","Email from Jodie Sackett to Robert Walton regarding RE: Northlake DSEIR review upload",{"$f":"HYPERLINK(\"H. Remainder/B-Emails/OCR-2017-05-04 Sackett-D-RE_ Northlake DSEIR review upload.pdf\", \"Link\")","v":"Link"},23992,23993,2]
[null,"2017-05-05","Email from Diane Versaggi to Jodie Sackett regarding DEIR for Northlake Specific Plan Project, County Project No. R2015-00408-(5)",{"$f":"HYPERLINK(\"H. Remainder/B-Emails/OCR-2017-05-05 Versaggi DEIR for NLSP Project R2015-00408-5.pdf\", \"Link\")","v":"Link"},23994,23995,2]
[null,"2017-05-15","Email from Jodie Sackett to Mitch Glaser regarding RE: help understanding the Northlake Speific Plan Project",{"$f":"HYPERLINK(\"H. Remainder/B-Emails/OCR-2017-05-15 Sackett RE_ help understanding the NORTHLAKE SPECIFIC PLAN PROJECT.pdf\", \"Link\")","v":"Link"},23996,23998,3]
[null,"2017-05-15","Email from Jodie Sackett to John Arvin and Samuel Dea regarding RE: NorthLake Design Guidebook",{"$f":"HYPERLINK(\"H. Remainder/B-Emails/OCR-2017-05-15 Sackett RE_ NorthLake Design Guidebook.pdf\", \"Link\")","v":"Link"},23999,24000,2]
[null,"2017-05-17","Email from Marie A. Pavlovic to Christina Tran regarding FW: Northlake",{"$f":"HYPERLINK(\"H. Remainder/B-Emails/OCR-2017-05-17 Pavlovic-A-FW_ Northlake.pdf\", \"Link\")","v":"Link"},24001,24002,2]
[null,null,"Attachment: titled \"5.7 GHG-030917.pdf\"",{"$f":"HYPERLINK(\"H. Remainder/B-Emails/OCR-2017-05-17 Pavlovic-B-5.7 GHG-030917.pdf\", \"Link\")","v":"Link"},24003,24059,57]
[null,"2017-05-17","Email from Jodie Sackett to Diane Versaggi regarding RE: DEIR for Northlake Specific Plan Project, County Project No. R2015-00408-(5)",{"$f":"HYPERLINK(\"H. Remainder/B-Emails/OCR-2017-05-17 Sackett RE_A-DEIR for Northlake Specific Plan Project R2015-00408-5.pdf\", \"Link\")","v":"Link"},24060,24061,2]
[null,"2017-05-17","Email from Jodie Sackett to Joe Bourgeois regarding RE: NorthLake Specific Plan Project",{"$f":"HYPERLINK(\"H. Remainder/B-Emails/OCR-2017-05-17 Sackett RE_B-NorthLake Specific Plan Project2.pdf\", \"Link\")","v":"Link"},24062,24062,1]
[null,null,"Attachment: titled \"Notice of Hearing Examiner and NOC-NOA_4-27-17.pdf\"",{"$f":"HYPERLINK(\"H. Remainder/B-Emails/OCR-2017-05-17 Sackett RE_C-Notice of Hearing Examiner and NOC-NOA_4-27-17.pdf\", \"Link\")","v":"Link"},24063,24065,3]
[null,"2017-05-17","Email from Jodie Sackett to Jeanne Biehler regarding RE: RENV-201500030 R2015-00408 - Northlake EA - DPH Due 6/2/17",{"$f":"HYPERLINK(\"H. Remainder/B-Emails/OCR-2017-05-17 Sackett RE_D-RENV-201500030 R2015-00408 - Northlake EA - DPH Due 6_2_17.pdf\", \"Link\")","v":"Link"},24066,24067,2]
[null,null,"Attachment: titled \"Notice of Hearing Examiner and NOC-NOA_4-27-17.pdf\"",{"$f":"HYPERLINK(\"H. Remainder/B-Emails/OCR-2017-05-17 Sackett-E-Notice Hearing Examiner and NOC-NOA.pdf\", \"Link\")","v":"Link"},24068,24070,2]
[null,"2017-05-18","Email from Joe Bourgeois to Jodie Sackett regarding Re: NorthLake Specific Plan Project",{"$f":"HYPERLINK(\"H. Remainder/B-Emails/OCR-2017-05-18 Bourgeois Re_ NorthLake Specific Plan Project1.pdf\", \"Link\")","v":"Link"},24071,24072,2]
[null,"2017-05-18","Email from Samuel Dea to Jodie Sackett regarding Tasks",{"$f":"HYPERLINK(\"H. Remainder/B-Emails/OCR-2017-05-18 Dea Tasks .pdf\", \"Link\")","v":"Link"},24073,24073,1]
[null,"2017-05-18","Email from Jodie Sackett to karen coch regarding RE: Single Story House in Northlake",{"$f":"HYPERLINK(\"H. Remainder/B-Emails/OCR-2017-05-18 Sackett RE_ Single Story House in Northlake.pdf\", \"Link\")","v":"Link"},24074,24074,1]
[null,"2017-05-22","Email from John Arvin to Jodie Sackett and Samuel Dea regarding NorthLake Signs",{"$f":"HYPERLINK(\"H. Remainder/B-Emails/OCR-2017-05-22 Arvin NorthLake Signs.pdf\", \"Link\")","v":"Link"},24075,24076,2]
[null,"2017-05-22","Email from Jodie Sackett to Samuel Dea regarding NorthLake PowerPoint",{"$f":"HYPERLINK(\"H. Remainder/B-Emails/OCR-2017-05-22 Sackett-A-NorthLake PowerPoint.pdf\", \"Link\")","v":"Link"},24077,24077,1]
[null,null,"Attachment: titled \"HE PP Pres_northlake_5-24-17.pptx\"",{"$f":"HYPERLINK(\"H. Remainder/B-Emails/OCR-2017-05-22 Sackett-B-HE PP Pres_northlake_5-24-17.pdf\", \"Link\")","v":"Link"},24078,24091,14]
[null,"2017-05-22","Email from Jodie Sackett to John Arvin regarding RE: Future Northlake Housing Project - SIGN DOWN?",{"$f":"HYPERLINK(\"H. Remainder/B-Emails/OCR-2017-05-22 Sackett-C-RE_ Future Northlake Housing Project - SIGN DOWN_.pdf\", \"Link\")","v":"Link"},24092,24092,1]
[null,"2017-05-25","Email from John Arvin to Jodie Sackett and Samuel Dea regarding Northlake TM Hold from Planning Department",{"$f":"HYPERLINK(\"H. Remainder/B-Emails/OCR-2017-05-25 Arvin-A-Northlake TM Hold from Planning Department.pdf\", \"Link\")","v":"Link"},24093,24093,1]
[null,null,"Attachment: titled \"Northlake Water Tank Exhibit for Planning Department.pdf\"",{"$f":"HYPERLINK(\"H. Remainder/B-Emails/OCR-2017-05-25 Arvin-B-Northlake Water Tank Exhibit for Planning Department.pdf\", \"Link\")","v":"Link"},24094,24094,1]
[null,"2017-05-25","Email from Jodie Sackett to John Arvin regarding RE: NorthLake Hearing",{"$f":"HYPERLINK(\"H. Remainder/B-Emails/OCR-2017-05-25 Sackett RE_ NorthLake Hearing.pdf\", \"Link\")","v":"Link"},24095,24095,1]
[null,"2017-05-31","Email from Matthew Benveniste to Jodie Sackett regarding TPM 73335 Northlake large lot map",{"$f":"HYPERLINK(\"H. Remainder/B-Emails/OCR-2017-05-31 Benveniste TPM 73335 Northlake large lot map.pdf\", \"Link\")","v":"Link"},24096,24096,1]
[null,"2017-05-31","Email from Jennifer Marks to Jodie Sackett and John Arvin regarding RE: NorthLake Comments",{"$f":"HYPERLINK(\"H. Remainder/B-Emails/OCR-2017-05-31 Marks-A-RE_ NorthLake Comments2.pdf\", \"Link\")","v":"Link"},24097,24098,2]
[null,null,"Attachment: titled \"JBourgeois 051417.pdf\"",{"$f":"HYPERLINK(\"H. Remainder/B-Emails/OCR-2017-05-31 Marks-B-JBourgeois 051417.pdf\", \"Link\")","v":"Link"},24099,24099,1]
[null,null,"Attachment: titled \"Koch 051717.pdf\"",{"$f":"HYPERLINK(\"H. Remainder/B-Emails/OCR-2017-05-31 Marks-C-Koch 051717.pdf\", \"Link\")","v":"Link"},24100,24100,1]
[null,null,"Attachment: titled \"San Manuel Comment 050517.pdf\"",{"$f":"HYPERLINK(\"H. Remainder/B-Emails/OCR-2017-05-31 Marks-D-San Manuel Comment 050517.pdf\", \"Link\")","v":"Link"},24101,24101,2]
[null,"2017-05-31","Email from Jodie Sackett to Jennifer Marks and John Arvin regarding FW: SMMC Comments on NorthLake SDEIR",{"$f":"HYPERLINK(\"H. Remainder/B-Emails/OCR-2017-05-31 Sackett-A-FW_ SMMC Comments on NorthLake SDEIR.pdf\", \"Link\")","v":"Link"},24102,24103,2]
[null,null,"Attachment: titled \"NorthLake SDEIR 2017 SMMC Comment letter.pdf\"",{"$f":"HYPERLINK(\"H. Remainder/B-Emails/OCR-2017-05-31 Sackett-B-NorthLake SDEIR 2017 SMMC Comment letter.pdf\", \"Link\")","v":"Link"},24104,24108,5]
[null,null,"Attachment: titled \"SMMC NorthLake SDEIR Comments Attached Map.pdf\"",{"$f":"HYPERLINK(\"H. Remainder/B-Emails/OCR-2017-05-31 Sackett-C-SMMC NorthLake SDEIR Comments Attached Map.pdf\", \"Link\")","v":"Link"},24109,24109,1]
[null,"2017-05-31","Email from Jodie Sackett to Jennifer Marks and John Arvin regarding RE: NorthLake Comments",{"$f":"HYPERLINK(\"H. Remainder/B-Emails/OCR-2017-05-31 Sackett-D-RE_ NorthLake Comments1.pdf\", \"Link\")","v":"Link"},24110,24111,2]
[null,null,"Attachment: titled \"diane slauson_5-20-17.pdf\"",{"$f":"HYPERLINK(\"H. Remainder/B-Emails/OCR-2017-05-31 Sackett-E-diane slauson_5-20-17.pdf\", \"Link\")","v":"Link"},24112,24112]
[null,"2017-06-01","Email from John Arvin to Jodie Sackett regarding RE: Northlake TM Hold from Planning Department",{"$f":"HYPERLINK(\"H. Remainder/B-Emails/OCR-2017-06-01 Arvin RE_ Northlake TM Hold from Planning Department.pdf\", \"Link\")","v":"Link"},24113,24116,4]
[null,"2017-06-01","Email from Jodie Sackett to Jennifer Marks regarding FW: ALUC response letter on Northlake Specific Plan Project",{"$f":"HYPERLINK(\"H. Remainder/B-Emails/OCR-2017-06-01 Sackett-A-FW_ ALUC response letter on Northlake Specific Plan Project.pdf\", \"Link\")","v":"Link"},24117,24117,1]
[null,null,"Attachment: titled \"ALUC Response letter to DRP - Northlake Specific Plan.PDF\"",{"$f":"HYPERLINK(\"H. Remainder/B-Emails/OCR-2017-06-01 Sackett-B-ALUC Response letter to DRP - NLSP.pdf\", \"Link\")","v":"Link"},24118,24118,1]
[null,"2017-06-01","Email from Michelle Tsiebos to Jodie Sackett regarding RE: SEIR Northlake",{"$f":"HYPERLINK(\"H. Remainder/B-Emails/OCR-2017-06-01 Tsiebos RE_ SEIR Northlake.pdf\", \"Link\")","v":"Link"},24119,24121,3]
[null,"2017-06-05","Email from Jodie Sackett to Jennifer Marks regarding Northlake DEIR - Fire Dept. comments",{"$f":"HYPERLINK(\"H. Remainder/B-Emails/OCR-2017-06-05 Sackett-A-Northlake DEIR - Fire Dept. comments.pdf\", \"Link\")","v":"Link"},24122,24122,1]
[null,null,"Attachment: titled \"LACOFD_northlake DEIR ltr_5-25-17.pdf\"",{"$f":"HYPERLINK(\"H. Remainder/B-Emails/OCR-2017-06-05 Sackett-B-LACOFD_northlake DEIR ltr_5-25-17.pdf\", \"Link\")","v":"Link"},24123,24125,3]
[null,"2017-06-06","Email from Juan Padilla to Jodie Sackett regarding RE: Northlake tentative maps status - TR073336, PM073335",{"$f":"HYPERLINK(\"H. Remainder/B-Emails/OCR-2017-06-06 Padilla-A-RE_ NL tentative maps status.pdf\", \"Link\")","v":"Link"},24126,24126,1]
[null,null,"Attachment: titled \"73335r2 - Large Lot Map.pdf\"",{"$f":"HYPERLINK(\"H. Remainder/B-Emails/OCR-2017-06-06 Padilla-B-73335r2 - Large Lot Map.pdf\", \"Link\")","v":"Link"},24127,24127,1]
[null,null,"Attachment: titled \"73336r5.pdf\"",{"$f":"HYPERLINK(\"H. Remainder/B-Emails/OCR-2017-06-06 Padilla-C-73336r5.pdf\", \"Link\")","v":"Link"},24128,24132,5]
[null,"2017-06-06","Email from Jodie Sackett to Henry Wong, Padilla, Juan, Clement Lau, Michelle Tsiebos, and Jeanne Biehler regarding Northlake tentative maps status - TR073336, PM073335",{"$f":"HYPERLINK(\"H. Remainder/B-Emails/OCR-2017-06-06 Sackett Northlake tentative maps status - TR073336-PM073335.pdf\", \"Link\")","v":"Link"},24133,24133,1]
[null,"2017-06-06","Email from Jodie Sackett to John Arvin regarding RE: Northlake - Tentative Maps, status as of today",{"$f":"HYPERLINK(\"H. Remainder/B-Emails/OCR-2017-06-06 Sackett RE_ NL - Tentative Maps status as of today.pdf\", \"Link\")","v":"Link"},24134,24135,2]
[null,"2017-06-06","Email from Michelle Tsiebos to Jodie Sackett regarding RE: Northlake tentative maps status - TR073336, PM073335",{"$f":"HYPERLINK(\"H. Remainder/B-Emails/OCR-2017-06-06 Tsiebos-A-RE_ NL tentative maps status - TR073336, PM073335.pdf\", \"Link\")","v":"Link"},24136,24137,2]
[null,null,"Attachment: titled \"PM 073335 10242016 CASTAIC CANYON (FINAL MAP).pdf\"",{"$f":"HYPERLINK(\"H. Remainder/B-Emails/OCR-2017-06-06 Tsiebos-B-PM 073335 10242016 CASTAIC CANYON FINAL MAP.pdf\", \"Link\")","v":"Link"},24138,24138,1]
[null,null,"Attachment: titled \"TR 073336 10242016 EH clearance of Tent TR 2-14-17.pdf\"",{"$f":"HYPERLINK(\"H. Remainder/B-Emails/OCR-2017-06-06 Tsiebos-C-TR 073336 10242016 EH clearance of Tent TR 2-14-17.pdf\", \"Link\")","v":"Link"},24139,24140,2]
[null,"2017-06-07","Email from Kimia Fatehi to Samuel Dea regarding Northlake DSEIR",{"$f":"HYPERLINK(\"H. Remainder/B-Emails/OCR-2017-06-07 Fatehi Northlake DSEIR.pdf\", \"Link\")","v":"Link"},24141,24141,1]
[null,"2017-06-07","Email from Jodie Sackett to Samuel Dea regarding FW: NorthLake- Comments from CDFW",{"$f":"HYPERLINK(\"H. Remainder/B-Emails/OCR-2017-06-07 Sackett FW_A1-NL-Comments from CDFW.pdf\", \"Link\")","v":"Link"},24142,24142,1]
[null,null,"Attachment: titled \"I-5 Undercrossing.kmz\"",{"$f":"HYPERLINK(\"H. Remainder/B-Emails/OCR-2017-06-07 Sackett FW_A2-I-5 Undercrossing-converted for record from kmz to.pdf\", \"Link\")","v":"Link"},24143,24143,1]
[null,"2017-06-08","Email from Jennifer Marks to Jodie Sackett regarding Re: Northlake EIR-- existing vs proposed trails",{"$f":"HYPERLINK(\"H. Remainder/B-Emails/OCR-2017-06-08 Marks Re_ Northlake EIR-existing vs proposed trails.pdf\", \"Link\")","v":"Link"},24144,24144,1]
[null,"2017-06-08","Email from Jodie Sackett to 'Schmoker, Kelly@Wildlife' regarding RE: NorthLake- Project Proponent information",{"$f":"HYPERLINK(\"H. Remainder/B-Emails/OCR-2017-06-08 Sackett RE_ NorthLake- Project Proponent information.pdf\", \"Link\")","v":"Link"},24145,24148,4]
[null,"2017-06-13","Email from Jodie Sackett to Jennifer Marks regarding FW: Transcripts - Northlake",{"$f":"HYPERLINK(\"H. Remainder/B-Emails/OCR-2017-06-13 Sackett FW_A-Transcripts - Northlake.pdf\", \"Link\")","v":"Link"},24149,24149,1]
[null,null,"Attachment: titled \"Northlake. Jodie.txt\"",{"$f":"HYPERLINK(\"H. Remainder/B-Emails/OCR-2017-06-13 Sackett FW_B-Northlake. Jodie.pdf\", \"Link\")","v":"Link"},24150,24174,25]
[null,"2017-06-13","Email from Jodie Sackett to John Arvin regarding RE: Northlake",{"$f":"HYPERLINK(\"H. Remainder/B-Emails/OCR-2017-06-13 Sackett RE_A-Northlake1.pdf\", \"Link\")","v":"Link"},24175,24175,1]
[null,null,"Attachment: titled \"Santa Clarita_Northlake NOA DEIR Comments 6-15-17.pdf\"",{"$f":"HYPERLINK(\"H. Remainder/B-Emails/OCR-2017-06-13 Sackett RE_B-Santa Clarita_Northlake NOA DEIR Comments 6-15-17.pdf\", \"Link\")","v":"Link"},24176,24177,2]
[null,"2017-06-13","Email from Kim Szalay to Fabrizio Pachano regarding FW: Northlake offsite owners - TR 73336",{"$f":"HYPERLINK(\"H. Remainder/B-Emails/OCR-2017-06-13 Szalay-A-FW_ Northlake offsite owners - TR 73336.pdf\", \"Link\")","v":"Link"},24178,24179,2]
[null,null,"Attachment: titled \"Offsite Ownership Exhibit 20160801-Model.pdf\"",{"$f":"HYPERLINK(\"H. Remainder/B-Emails/OCR-2017-06-13 Szalay-B-Offsite Ownership Exhibit 20160801-Model.pdf\", \"Link\")","v":"Link"},24180,24180,1]
[null,"2017-06-14","Email from Jodie Sackett to Jennifer Marks regarding FW: No. R2015-00408-(5): FTBMI Comments on DSEIR for Northlake Specific Plan Project (Project)",{"$f":"HYPERLINK(\"H. Remainder/B-Emails/OCR-2017-06-14 Sackett-A-FW_ R2015-00408-5_FTBMI on DSEIR for NLSP.pdf\", \"Link\")","v":"Link"},24181,24182,2]
[null,null,"Attachment: titled \"Northlake_FTB Comments_ june 14 2017.pdf\"",{"$f":"HYPERLINK(\"H. Remainder/B-Emails/OCR-2017-06-14 Sackett-B-NL_FTB Comm_ 6 14 17.pdf\", \"Link\")","v":"Link"},24183,24184,2]
[null,"2017-06-15","Email from Charles Benson to Jodie Sackett regarding Northlake DEIR R2015-00408",{"$f":"HYPERLINK(\"H. Remainder/B-Emails/OCR-2017-06-15 Benson Northlake DEIR R2015-00408.pdf\", \"Link\")","v":"Link"},24185,24185,1]
[null,null,"Attachment: titled \"Northlake EIR letter 6-15-17.pdf\"",{"$f":"HYPERLINK(\"H. Remainder/B-Emails/OCR-2017-06-15 Benson-B-Northlake EIR letter 6-15-17.pdf\", \"Link\")","v":"Link"},24186,24186,1]
[null,"2017-06-15","Email from Dolores Duarte to Jodie Sackett regarding Copy of letter Re-Northlake Specific Plan Project DSEIR-SCH2015031080",{"$f":"HYPERLINK(\"H. Remainder/B-Emails/OCR-2017-06-15 Duarte Copy of letter Re-NLSP DSEIR.pdf\", \"Link\")","v":"Link"},24187,24187,1]
[null,null,"Attachment: titled \" pdf Northlake Specific Plan Project.pdf\"",{"$f":"HYPERLINK(\"H. Remainder/B-Emails/OCR-2017-06-15 Duarte-B-Northlake Specific Plan Project.pdf\", \"Link\")","v":"Link"},24188,24203,16]
[null,"2017-06-15","Email from Danielle LeFer to Jodie Sackett regarding Fw: NorthLake Specific Plan Comment Letter (State Clearinghouse No. 2015031080)",{"$f":"HYPERLINK(\"H. Remainder/B-Emails/OCR-2017-06-15 LeFer-A-Fw_NorthLake Specific Plan Comment Letter.pdf\", \"Link\")","v":"Link"},24204,24204,1]
[null,null,"Attachment: titled \"Northlake EIR letter 6-15-17.pdf\"",{"$f":"HYPERLINK(\"H. Remainder/B-Emails/OCR-2017-06-15 lefer-B-NorthLake SDEIR Response letter.pdf\", \"Link\")","v":"Link"},24205,24208,4]
[null,"2017-06-15","Email from Alan Lin to OPR State Clearinghouse, Jodie Sackett, and Kent Tsujii regarding SCH # 2015031080 Northlake Specific Plan",{"$f":"HYPERLINK(\"H. Remainder/B-Emails/OCR-2017-06-15 Lin SCH for Northlake Specific Plan.pdf\", \"Link\")","v":"Link"},24209,24209,1]
[null,null,"Attachment: titled \"LA-2017-00897-DEIR Northlake SP.pdf\"",{"$f":"HYPERLINK(\"H. Remainder/B-Emails/OCR-2017-06-15 Lin-B-LA-2017-00897-DEIR Northlake SP.pdf\", \"Link\")","v":"Link"},24210,24216,7]
[null,"2017-06-15","Email from Jas A Poore to Jodie Sackett regarding DEIR for Northlake",{"$f":"HYPERLINK(\"H. Remainder/B-Emails/OCR-2017-06-15 Poore DEIR for Northlake.pdf\", \"Link\")","v":"Link"},24217,24217,1]
[null,"2017-06-15","Email from John Rose to Jodie Sackett regarding Comment Letter on Draft EIR for NorthLake Specific Plan",{"$f":"HYPERLINK(\"H. Remainder/B-Emails/OCR-2017-06-15 Rose Comment Letter on Draft EIR for NorthLake Specific Plan.pdf\", \"Link\")","v":"Link"},24218,24218,1]
[null,null,"Attachment: titled \"Northlake DEIR Letter 6-15-17.pdf\"",{"$f":"HYPERLINK(\"H. Remainder/B-Emails/OCR-2017-06-15 Rose-B-Northlake DEIR Letter 6-15-17.pdf\", \"Link\")","v":"Link"},24219,24240,22]
[null,"2017-06-15","Email from Jodie Sackett to Samuel Dea regarding FW: CALTRANS COMMENTS - SCH # 2015031080 Northlake Specific Plan",{"$f":"HYPERLINK(\"H. Remainder/B-Emails/OCR-2017-06-15 Sackett FW_A-Caltrans Comments-Northlake Specific Plan.pdf\", \"Link\")","v":"Link"},24241,24241,1]
[null,null,"Attachment: titled \"LA-2017-00897-DEIR Northlake SP.pdf\"",{"$f":"HYPERLINK(\"H. Remainder/B-Emails/OCR-2017-06-15 Sackett FW_B-LA-2017-00897-DEIR Northlake SP.pdf\", \"Link\")","v":"Link"},24242,24248,7]
[null,"2017-06-15","Email from Jodie Sackett to Jennifer Marks regarding FW: SCH # 2015031080 Northlake Specific Plan",{"$f":"HYPERLINK(\"H. Remainder/B-Emails/OCR-2017-06-15 Sackett FW_C-Northlake Specific Plan.pdf\", \"Link\")","v":"Link"},24249,24249,1]
[null,null,"Attachment: titled \"LA-2017-00897-DEIR Northlake SP.pdf\"",{"$f":"HYPERLINK(\"H. Remainder/B-Emails/OCR-2017-06-15 Sackett FW_D-LA-2017-00897-DEIR Northlake SP.pdf\", \"Link\")","v":"Link"},24250,24256,7]
[null,"2017-06-15","Email from Jodie Sackett to Jennifer Marks regarding Northlake DEIR correspondence",{"$f":"HYPERLINK(\"H. Remainder/B-Emails/OCR-2017-06-15 Sackett-E-Northlake DEIR correspondence1.pdf\", \"Link\")","v":"Link"},24257,24257,1]
[null,null,"Attachment: titled \"SC planning dept_6-8-17.pdf\"",{"$f":"HYPERLINK(\"H. Remainder/B-Emails/OCR-2017-06-15 Sackett-F-SC planning dept_6-8-17.pdf\", \"Link\")","v":"Link"},24258,24259,2]
[null,"2017-06-15","Email from Jodie Sackett to Lin, Alan S@DOT regarding RE: SCH # 2015031080 Northlake Specific Plan",{"$f":"HYPERLINK(\"H. Remainder/B-Emails/OCR-2017-06-15 Sackett-G-RE_Northlake Specific Plan.pdf\", \"Link\")","v":"Link"},24260,24260,1]
[null,"2017-06-15","Email from Jodie Sackett to Sean Ryan regarding RE: TR73336 - Northlake Village Questions",{"$f":"HYPERLINK(\"H. Remainder/B-Emails/OCR-2017-06-15 Sackett-H-RE_ TR73336 - Northlake Village Questions.pdf\", \"Link\")","v":"Link"},24261,24262,2]
[null,"2017-06-16","Email from Hannah Bentley to Jodie Sackett regarding Comments on NorthLake Specific Plan DSEIR",{"$f":"HYPERLINK(\"H. Remainder/B-Emails/OCR-2017-06-16 Bentley-A1-Comments on NorthLake Specific Plan DSEIR.pdf\", \"Link\")","v":"Link"},24263,24263,1]
[null,null,"Attachment: titled \"L 2017-06-16 Comment Letter.docx\"",{"$f":"HYPERLINK(\"H. Remainder/B-Emails/OCR-2017-06-16 Bentley-A2-L 2017-06-16 Comment Letter.pdf\", \"Link\")","v":"Link"},24264,24272,9]
[null,null,"Attachment: titled \"Smallwood comments on Northlake SEIR_061317.pdf\"",{"$f":"HYPERLINK(\"H. Remainder/B-Emails/OCR-2017-06-16 Bentley-A3-Smallwood comments on Northlake SEIR_061317.pdf\", \"Link\")","v":"Link"},24273,24299,27]
[null,null,"Attachment: titled \"Attachment A.pdf\"",{"$f":"HYPERLINK(\"H. Remainder/B-Emails/OCR-2017-06-16 Bentley-A4-Attachment A-1.pdf\", \"Link\")","v":"Link"},24300,24317,18]
[null,null,"Attachment: titled \"Attachment B.pdf\"",{"$f":"HYPERLINK(\"H. Remainder/B-Emails/OCR-2017-06-16 Bentley-A5-Attachment B.pdf\", \"Link\")","v":"Link"},24317,24334,17]
[null,null,"Attachment: titled \"Attachment C.pdf\"",{"$f":"HYPERLINK(\"H. Remainder/B-Emails/OCR-2017-06-16 Bentley-A6-Attachment C.pdf\", \"Link\")","v":"Link"},24335,24403,69]
[null,"2017-06-19","Email from Jodie Sackett to John Arvin regarding RE: Northlake DEIR - Deadline correspondence",{"$f":"HYPERLINK(\"H. Remainder/B-Emails/OCR-2017-06-19 Sackett-A1-EMAIL RE_ Northlake DEIR - Deadline correspondence.pdf\", \"Link\")","v":"Link"},24404,24405,2]
[null,null,"Attachment: titled \"Comments on NorthLake Specific Plan DSEIR\"",{"$f":"HYPERLINK(\"H. Remainder/B-Emails/OCR-2017-06-19 Sackett-B1-Comments on NorthLake Specific Plan DSEIR.msg.pdf\", \"Link\")","v":"Link"},24406,24406,1]
[null,null,"   Attachment: titled \"L 2017-06-16 Comment Letter.docx\"",{"$f":"HYPERLINK(\"H. Remainder/B-Emails/OCR-2017-06-19 Sackett-B2-L 2017-06-16 Comment Letter.pdf\", \"Link\")","v":"Link"},24407,24415,9]
[null,null,"   Attachment: titled \"Smallwood comments on Northlake SEIR_061317.pdf\"",{"$f":"HYPERLINK(\"H. Remainder/B-Emails/OCR-2017-06-19 Sackett-B3-Smallwood comments on Northlake SEIR_061317.pdf\", \"Link\")","v":"Link"},24416,24442,27]
[null,null,"   Attachment: titled \"Attachment A.pdf\"",{"$f":"HYPERLINK(\"H. Remainder/B-Emails/OCR-2017-06-19 Sackett-B4-Attachment A.pdf\", \"Link\")","v":"Link"},24443,24460,18]
[null,null,"   Attachment: titled \"Attachment B.pdf\"",{"$f":"HYPERLINK(\"H. Remainder/B-Emails/OCR-2017-06-19 Sackett-B5-Attachment B.pdf\", \"Link\")","v":"Link"},24461,24477,17]
[null,null,"   Attachment: titled \"Attachment C.pdf\"",{"$f":"HYPERLINK(\"H. Remainder/B-Emails/OCR-2017-06-19 Sackett-B6-Attachment C.pdf\", \"Link\")","v":"Link"},24478,24546,69]
[null,null,"Attachment: titled \"NorthLake Specific Plan Project\"",{"$f":"HYPERLINK(\"H. Remainder/B-Emails/OCR-2017-06-19 Sackett-C3-Northlake Specific Plan Project.pdf\", \"Link\")","v":"Link"},24547,24548,2]
[null,"2017-06-20","Email from Jodie Sackett to Jennifer Marks regarding Northlake DEIR comments",{"$f":"HYPERLINK(\"H. Remainder/B-Emails/OCR-2017-06-20 Sackett-A-Northlake DEIR comments2.pdf\", \"Link\")","v":"Link"},24549,24549,1]
[null,null,"Attachment: titled \"DPH - TEP comments 6-16-17.pdf\"",{"$f":"HYPERLINK(\"H. Remainder/B-Emails/OCR-2017-06-20 Sackett-B-DPH - TEP comments 6-16-17.pdf\", \"Link\")","v":"Link"},24550,24551,2]
[null,"2017-06-21","Email from John Arvin to Jodie Sackett regarding RE: Northlake Public Comments Received thru 2017-06-20",{"$f":"HYPERLINK(\"H. Remainder/B-Emails/OCR-2017-06-21 Arvin RE_ NL Public Comments Recd thru 2017-06-20.pdf\", \"Link\")","v":"Link"},24552,24553,2]
[null,"2017-06-21","Email from Jodie Sackett to John Arvin regarding RE: Northlake Public Comments Received thru 2017-06-20",{"$f":"HYPERLINK(\"H. Remainder/B-Emails/OCR-2017-06-21 Sackett-A-RE_ NL Public Comments Recd thru 2017-06-20.pdf\", \"Link\")","v":"Link"},24554,24555,2]
[null,null,"Attachment: titled \"Single Story House in Northlake\"",{"$f":"HYPERLINK(\"H. Remainder/B-Emails/OCR-2017-06-21 Sackett-B-Single Story House in Northlake.pdf\", \"Link\")","v":"Link"},24556,24556,1]
[null,null,"Attachment: titled \"Smallwood comments on Northlake SEIR_061317.pdf\"",{"$f":"HYPERLINK(\"H. Remainder/B-Emails/OCR-2017-06-21 Sackett-C-Smallwood comments on Northlake SEIR_061317.pdf\", \"Link\")","v":"Link"},24556,24583,27]
[null,null,"Attachment: titled \"LACOFD_northlake DEIR ltr_5-25-17.pdf\"",{"$f":"HYPERLINK(\"H. Remainder/B-Emails/OCR-2017-06-21 Sackett-D-LACOFD_northlake DEIR ltr_5-25-17.pdf\", \"Link\")","v":"Link"},24584,24586,3]
[null,"2017-06-22","Email from Jodie Sackett to Jennifer Marks regarding Northlake DEIR comments",{"$f":"HYPERLINK(\"H. Remainder/B-Emails/OCR-2017-06-22 Sackett-A-Northlake DEIR comments1.pdf\", \"Link\")","v":"Link"},24587,24587,1]
[null,null,"Attachment: titled \"County Sanitation_6-14-17.pdf\"",{"$f":"HYPERLINK(\"H. Remainder/B-Emails/OCR-2017-06-22 Sackett-B-County Sanitation_6-14-17.pdf\", \"Link\")","v":"Link"},24588,24592,5]
[null,"2017-06-27","Email from Jodie Sackett to Karen Coch regarding RE: Northlake plan",{"$f":"HYPERLINK(\"H. Remainder/B-Emails/OCR-2017-06-27 Sackett-RE_ Northlake plan.pdf\", \"Link\")","v":"Link"},24593,24593,1]
[null,"2017-06-29","Email from Jodie Sackett to Matthew Dubiel and Jeff Pletyak regarding Caltrans meeting coordination for EIRs",{"$f":"HYPERLINK(\"H. Remainder/B-Emails/OCR-2017-06-29 Sackett Caltrans meeting coordination for EIRs.pdf\", \"Link\")","v":"Link"},24594,24594,1]
[null,"2017-06-29","Email from Jodie Sackett to Jennifer Marks and John Arvin regarding Northlake DEIR correspondence",{"$f":"HYPERLINK(\"H. Remainder/B-Emails/OCR-2017-06-29 Sackett Northlake-A-DEIR correspondence.pdf\", \"Link\")","v":"Link"},24595,24595,1]
[null,null,"Attachment: titled \"OPR-State Clearinghouse letter 6-15-17.pdf\"",{"$f":"HYPERLINK(\"H. Remainder/B-Emails/OCR-2017-06-29 Sackett Northlake-B-OPR-State Clearinghouse letter 6-15-17.pdf\", \"Link\")","v":"Link"},24596,24620,25]
[null,"2017-06-30","Email from John Arvin to Jodie Sackett, Samuel Dea and Jennifer Marks and John Arvin regarding Northlake Comments sent at 11:49 am ",{"$f":"HYPERLINK(\"H. Remainder/B-Emails/OCR-2017-06-30 Arvin-A-Northlake Comments.pdf\", \"Link\")","v":"Link"},24621,24621,1]
[null,null,"Attachment: titled \"Northlake Public Comments List of Comments Received 2017-06-30.pdf\"",{"$f":"HYPERLINK(\"H. Remainder/B-Emails/OCR-2017-06-30 Arvin-B-Northlake Public Comments List of Comments Received 2017-06-30.pdf\", \"Link\")","v":"Link"},24622,24622,1]
[null,"2017-06-30","Email from John Arvin to Jennifer Marks, Jodie Sackett, and Samuel Dea regarding Northlake Comments sent at 1:48 pm ",{"$f":"HYPERLINK(\"H. Remainder/B-Emails/OCR-2017-06-30 Arvin-pm-RE_ Northlake Comments.pdf\", \"Link\")","v":"Link"},24623,24624,2]
[null,"2017-07-10","Email from Kim Szalay to Jodie Sackett regarding FW: Notice of Intent to Preserve Interest",{"$f":"HYPERLINK(\"H. Remainder/B-Emails/OCR-2017-07-10 Szalay-A-FW_ Notice of Intent to Preserve Interest.pdf\", \"Link\")","v":"Link"},24625,24626,2]
[null,null,"Attachment: titled \"OFFSITE GRADING NOTICE OF INTENT TO PRESERVE INTEREST 2.pdf\"",{"$f":"HYPERLINK(\"H. Remainder/B-Emails/OCR-2017-07-10 Szalay-B-OFFSITE GRADING NOI TO PRESERVE INTEREST 2.pdf\", \"Link\")","v":"Link"},24627,24634,8]
[null,null,"Attachment: titled \"OFFSITE GRADING NOTICE OF INTENT TO PRESERVE INTEREST 1.pdf\"",{"$f":"HYPERLINK(\"H. Remainder/B-Emails/OCR-2017-07-10 Szalay-C-OFFSITE GRADING NOI TO PRESERVE INTEREST 1.pdf\", \"Link\")","v":"Link"},24635,24638,4]
[null,"2017-07-11","Email from Jeff Nolan to Fabrizio Pachano and Raman Gaur regarding RE: Notice of Intent to Preserve Interest",{"$f":"HYPERLINK(\"H. Remainder/B-Emails/OCR-2017-07-11 Nolan RE_ Notice of Intent to Preserve Interest.pdf\", \"Link\")","v":"Link"},24639,24640,2]
[null,"2017-08-07","Email from Joe Bourgeois to Jodie Sackett regarding Re: NorthLake Specific Plan Project",{"$f":"HYPERLINK(\"H. Remainder/B-Emails/OCR-2017-08-07 Bourgeois Re_ NorthLake Specific Plan Project.pdf\", \"Link\")","v":"Link"},24641,24644,4]
[null,"2017-08-31","Email from John Arvin to Jodie Sackett and Samuel Dea regarding RE: NorthLake EIR Approval Process",{"$f":"HYPERLINK(\"H. Remainder/B-Emails/OCR-2017-08-31 Arvin RE_ NorthLake EIR Approval Process.pdf\", \"Link\")","v":"Link"},24645,24646,2]
[null,"2017-09-05","Email from Jeanne Biehler to Steven Jones regarding DPH clearance 2-14-17 - TR 073336 - Northlake - map dated 9-28-16",{"$f":"HYPERLINK(\"H. Remainder/B-Emails/OCR-2017-09-05 Biehler-A-DPH clearance 2-14-17.pdf\", \"Link\")","v":"Link"},24647,24647,1]
[null,null,"Attachment: titled \"TR 073336 10242016 EH clearance of Tent TR 2-14-17.pdf\"",{"$f":"HYPERLINK(\"H. Remainder/B-Emails/OCR-2017-09-05 Biehler-B-EH clearance of Tent TR 2-14-17.pdf\", \"Link\")","v":"Link"},24648,24649,2]
[null,"2017-09-06","Email from Jodie Sackett to Steven Jones regarding RE: DPH cleared 2-14-17 map dated 9-28-16 Tract No. 73336 - Northlake",{"$f":"HYPERLINK(\"H. Remainder/B-Emails/OCR-2017-09-06 Sackett RE_DPH cleared map-Northlake.pdf\", \"Link\")","v":"Link"},24650,24652,3]
[null,"2017-09-07","Email from Jennifer Marks to Samuel Dea regarding RE: NorthLake Response to Comments",{"$f":"HYPERLINK(\"H. Remainder/B-Emails/OCR-2017-09-07 RE_ NorthLake Response to Comments.pdf\", \"Link\")","v":"Link"},24653,24654,2]
[null,"2017-09-12","Email from Jodie Sackett to Henry Wong regarding RE: PM 073335 Northlake Revisions",{"$f":"HYPERLINK(\"H. Remainder/B-Emails/OCR-2017-09-12 Sackett RE_ PM 073335 Northlake Revisions.pdf\", \"Link\")","v":"Link"},24655,24656,2]
[null,"2017-09-13","Email from John Arvin to Samuel Dea and Jodie Sackett regarding FW: NorthLake EIR Approval Process",{"$f":"HYPERLINK(\"H. Remainder/B-Emails/OCR-2017-09-13 Arvin-A-FW_ NorthLake EIR Approval Process.pdf\", \"Link\")","v":"Link"},24657,24657,1]
[null,null,"Attachment: titled \"NorthLake Schedule EIR Approval Process 2017-08-31.pdf\"",{"$f":"HYPERLINK(\"H. Remainder/B-Emails/OCR-2017-09-13 Arvin-B-NorthLake Schedule EIR Approval Process 2017-08-31.pdf\", \"Link\")","v":"Link"},24658,24658,1]
[null,"2017-10-04","Email from Raman Gaur to Jeanne Biehler regarding TPM 073335 (Northlake) OWTS guidelines document",{"$f":"HYPERLINK(\"H. Remainder/B-Emails/OCR-2017-10-04 Gaur-A-TPM 073335 Northlake OWTS guidelines document.pdf\", \"Link\")","v":"Link"},24659,24660,2]
[null,null,"Attachment: titled \"pm073335_ph-report_20160721.pdf\"",{"$f":"HYPERLINK(\"H. Remainder/B-Emails/OCR-2017-10-04 Gaur-B-pm073335_ph-report_20160721.pdf\", \"Link\")","v":"Link"},24661,24662,2]
[null,null,"Attachment: titled \"ep_lu_OWTS_procedures.pdf\"",{"$f":"HYPERLINK(\"H. Remainder/B-Emails/OCR-2017-10-04 Gaur-C-ep_lu_OWTS_procedures.pdf\", \"Link\")","v":"Link"},24663,24711,49]
[null,"2017-10-05","Email from Samuel Dea to Michelle Tsiebos regarding RE: TPM 073335 (Northlake) OWTS guidelines document",{"$f":"HYPERLINK(\"H. Remainder/B-Emails/OCR-2017-10-05 Dea RE_ TPM 073335 Northlake OWTS guidelines document.pdf\", \"Link\")","v":"Link"},24712,24714,3]
[null,"2017-10-05","Email from Raman Gaur to Michelle Tsiebos regarding RE: TPM 073335 (Northlake) OWTS guidelines document",{"$f":"HYPERLINK(\"H. Remainder/B-Emails/OCR-2017-10-05 Gaur RE_ TPM 073335 Northlake OWTS guidelines document.pdf\", \"Link\")","v":"Link"},24715,24717,3]
[null,"2017-10-05","Email from Sackett to Raman Gaur regarding Northlake PM073335 and TR073336 SCM resubmittal comments",{"$f":"HYPERLINK(\"H. Remainder/B-Emails/OCR-2017-10-05 Sackett Northlake PM073335 and TR073336 SCM resubmittal comments.pdf\", \"Link\")","v":"Link"},24718,24718,1]
[null,"2017-10-11","Email from Mari Prutz to Jodie Sackett regarding FW: Northlake PM073335 and TR073336 SCM resubmittal comments",{"$f":"HYPERLINK(\"H. Remainder/B-Emails/OCR-2017-10-11 Prutz-A-FW_ Northlake PM073335 and TR073336 SCM resubmittal comments.pdf\", \"Link\")","v":"Link"},24719,24720,2]
[null,null,"Attachment: Letter from NCWD titled \"2017_10_11_10_10_17.pdf\"",{"$f":"HYPERLINK(\"H. Remainder/B-Emails/OCR-2017-10-11 Prutz-B-2017_10_11_10_10_17.pdf\", \"Link\")","v":"Link"},24721,24721,1]
[null,"2017-10-12","Email from Jodie Sackett to Phoenix Khoury regarding PM073335 map sheets",{"$f":"HYPERLINK(\"H. Remainder/B-Emails/OCR-2017-10-12 sackett-A-PM073335 map sheets.pdf\", \"Link\")","v":"Link"},24722,24722,1]
[null,null,"Attachment: titled \"NorthLake TM 73335 Easement Map 800sc Sht 2-Phase II.pdf\"",{"$f":"HYPERLINK(\"H. Remainder/B-Emails/OCR-2017-10-12 sackett-B-NL TM 73335 Ease Map 800sc Sht 2-Ph II.pdf\", \"Link\")","v":"Link"},24723,24723,1]
[null,null,"Attachment: titled \"NorthLake TM 73335 Easement Map 800sc Sht 1-Phase II.pdf\"",{"$f":"HYPERLINK(\"H. Remainder/B-Emails/OCR-2017-10-12 sackett-C-NL TM 73335 Ease Map 800sc Sht 1-Ph II.pdf\", \"Link\")","v":"Link"},24724,24724,1]
[null,"2017-10-12","Email from Jodie Sackett to Raman Gaur regarding SCM reports for PM073335 and TR073336",{"$f":"HYPERLINK(\"H. Remainder/B-Emails/OCR-2017-10-12 Sackett-D1-SCM reports for PM073335 and TR073336.pdf\", \"Link\")","v":"Link"},24725,24725,1]
[null,null,"Attachment: titled \"Regional Planning report_PM073335.pdf\"",{"$f":"HYPERLINK(\"H. Remainder/B-Emails/OCR-2017-10-12 Sackett-D2-Regional Planning report_PM073335.pdf\", \"Link\")","v":"Link"},24726,24727,2]
[null,null,"Attachment: titled \"Fire Dept report_PM073335.pdf\"",{"$f":"HYPERLINK(\"H. Remainder/B-Emails/OCR-2017-10-12 Sackett-D3-Fire Dept report_PM073335.pdf\", \"Link\")","v":"Link"},24728,24728,1]
[null,null,"Attachment: titled \"Health report_PM073335.pdf\"",{"$f":"HYPERLINK(\"H. Remainder/B-Emails/OCR-2017-10-12 Sackett-D4-Health report_PM073335.pdf\", \"Link\")","v":"Link"},24729,24730,2]
[null,null,"Attachment: titled \"Parks & Rec report_PM073335.pdf\"",{"$f":"HYPERLINK(\"H. Remainder/B-Emails/OCR-2017-10-12 Sackett-D5-Parks-Rec report_PM073335.pdf\", \"Link\")","v":"Link"},24731,24732,2]
[null,null,"Attachment: titled \"Public Works report_PM073335.pdf\"",{"$f":"HYPERLINK(\"H. Remainder/B-Emails/OCR-2017-10-12 Sackett-D6-Public Works report_PM073335.pdf\", \"Link\")","v":"Link"},24733,24741,9]
[null,null,"Attachment: titled \"Public Works report_TR073336.pdf\"",{"$f":"HYPERLINK(\"H. Remainder/B-Emails/OCR-2017-10-12 Sackett-D7-Public Works report_TR073336.pdf\", \"Link\")","v":"Link"},24742,24759,18]
[null,null,"Attachment: titled \"Fire Dept report_TR073336.pdf\"",{"$f":"HYPERLINK(\"H. Remainder/B-Emails/OCR-2017-10-12 Sackett-D8-Fire Dept report_TR073336.pdf\", \"Link\")","v":"Link"},24760,24764,5]
[null,null,"Attachment: titled \"Health report_TR073336.pdf\"",{"$f":"HYPERLINK(\"H. Remainder/B-Emails/OCR-2017-10-12 Sackett-D9-Health report_TR073336.pdf\", \"Link\")","v":"Link"},24765,24766,2]
[null,null,"Attachment: titled \"Parks & Rec report_TR073336.pdf\"",{"$f":"HYPERLINK(\"H. Remainder/B-Emails/OCR-2017-10-12 Sackett-D10-Parks-Rec report_TR073336.pdf\", \"Link\")","v":"Link"},24767,24777,11]
[null,"2017-10-16","Email from Jodie Sackett to Raman Gaur regarding RE: Northlake PM073335 and TR073336 SCM resubmittal comments",{"$f":"HYPERLINK(\"H. Remainder/B-Emails/OCR-2017-10-16 Sackett RE_ Northlake PM073335 and TR073336 SCM resubmittal comments.pdf\", \"Link\")","v":"Link"},24778,24781,4]
[null,"2017-10-17","Email from Jodie Sackett to Karen Coch regarding RE: Northlake 3,000 nhomes",{"$f":"HYPERLINK(\"H. Remainder/B-Emails/OCR-2017-10-17 Sackett RE_ Northlake 3,000 nhomes.pdf\", \"Link\")","v":"Link"},24782,24782,1]
[null,"2017-10-17","Email from Jodie Sackett to John Arvin regarding RE: NorthLake Design Notebook",{"$f":"HYPERLINK(\"H. Remainder/B-Emails/OCR-2017-10-17 Sackett RE_ NorthLake Design Notebook.pdf\", \"Link\")","v":"Link"},24783,24785,3]
[null,"2017-10-17","Email from Jodie Sackett to Raman Gaur regarding RE: Northlake PM073335 and TR073336 SCM resubmittal comments",{"$f":"HYPERLINK(\"H. Remainder/B-Emails/OCR-2017-10-17 Sackett RE_ Northlake PM073335 and TR073336 SCM resubmittal comments.pdf\", \"Link\")","v":"Link"},24786,24790,5]
[null,"2017-10-18","Email from Raman Gaur to Jodie Sackett regarding Northlake - DRP comments",{"$f":"HYPERLINK(\"H. Remainder/B-Emails/OCR-2017-10-18 Gaur-A1-Northlake - DRP comments.pdf\", \"Link\")","v":"Link"},24791,24791,1]
[null,null,"Attachment: titled \"Regional Planning Report_TR073336.pdf",{"$f":"HYPERLINK(\"H. Remainder/B-Emails/OCR-2017-10-18 Gaur-A2-Regional Planning Report_TR073336.pdf\", \"Link\")","v":"Link"},24792,24795,4]
[null,"2017-10-24","Email from Jodie Sackett to Raman Gaur regarding FW: Northlake boundaries",{"$f":"HYPERLINK(\"H. Remainder/B-Emails/OCR-2017-10-24 Sackett-A1-FW_ Northlake boundaries.pdf\", \"Link\")","v":"Link"},24796,24796,1]
[null,null,"Attachment: titled \"Scanned from a Xerox Multifunction Printer.pdf\"",{"$f":"HYPERLINK(\"H. Remainder/B-Emails/OCR-2017-10-24 Sackett-A2-Scanned from a Xerox Multifunction Printer.pdf\", \"Link\")","v":"Link"},24797,24797,1]
[null,"2017-11-02","Email from Todd Zagurski to Nick Franchino regarding FW: Northlake project boundaries",{"$f":"HYPERLINK(\"H. Remainder/B-Emails/OCR-2017-11-02 Zagurski-A1-FW_ Northlake project boundaries.pdf\", \"Link\")","v":"Link"},24798,24798,1]
[null,null,"Attachment: titled \"Scanned from a Xerox Multifunction Printer.pdf\"",{"$f":"HYPERLINK(\"H. Remainder/B-Emails/OCR-2017-11-02 Zagurski-A2-Scanned from a Xerox Multifunction Printer.pdf\", \"Link\")","v":"Link"},24799,24799,1]
[null,"2017-11-09","Email from Jodie Sackett to Ashley Redmond regarding RE: Northlake Project",{"$f":"HYPERLINK(\"H. Remainder/B-Emails/OCR-2017-11-09 Sackett RE_ Northlake Project.pdf\", \"Link\")","v":"Link"},24800,24800,1]
[null,"2017-11-13","Email from Jodie Sackett to Samuel Dea regarding Northlake factual",{"$f":"HYPERLINK(\"H. Remainder/B-Emails/OCR-2017-11-13 Sackett-A1-Northlake factual.pdf\", \"Link\")","v":"Link"},24801,24801,1]
[null,null,"Attachment: titled \"Factual_Northlake draft.docx\"",{"$f":"HYPERLINK(\"H. Remainder/B-Emails/OCR-2017-11-13 Sackett-A2-Factual_Northlake draft.pdf\", \"Link\")","v":"Link"},24802,24802,1]
[null,"2017-11-14","Email from Linda Maravilla to cperry@bos.lacounty.gov et al. regarding SD 5 Project Meeting Agenda",{"$f":"HYPERLINK(\"H. Remainder/B-Emails/OCR-2017-11-14 Maravilla-A1-SD 5 Project Meeting Agenda .pdf\", \"Link\")","v":"Link"},24803,24803,1]
[null,null,"Attachment: titled \"111517_SD5_AGENDA_MEETING.pdf\"",{"$f":"HYPERLINK(\"H. Remainder/B-Emails/OCR-2017-11-14 Maravilla-A2-111517_SD5_AGENDA_MEETING.pdf\", \"Link\")","v":"Link"},24804,24804,1]
[null,null,"Attachment: titled \"NorthLake Board deputies pres_jsackett 11-14-17.pdf\"",{"$f":"HYPERLINK(\"H. Remainder/B-Emails/OCR-2017-11-14 Maravilla-A3-NorthLake Board deputies pres_jsackett.pdf\", \"Link\")","v":"Link"},24805,24808,4]
[null,"2017-11-20","Email from Jodie Sackett to Joan Kelly and Samuel Dea regarding RE: NorthLake",{"$f":"HYPERLINK(\"H. Remainder/B-Emails/OCR-2017-11-20 Sackett-A1-RE_ NorthLake.pdf\", \"Link\")","v":"Link"},24809,24809,1]
[null,null,"Attachment: titled \"Final SEIR_NorthLake-101217 (County Comments).docx\"",{"$f":"HYPERLINK(\"H. Remainder/B-Emails/OCR-2017-11-20 Sackett-A2-Final SEIR_NorthLake-101217 County Comments.pdf\", \"Link\")","v":"Link"},24810,25011,202]
[null,"2017-11-22","Email from Joan Kelly to Jodie Sackett and Jennifer Marks regarding RE: Northlake Project R2015-00408",{"$f":"HYPERLINK(\"H. Remainder/B-Emails/OCR-2017-11-22 Kelly RE_ Northlake Project R2015-00408.pdf\", \"Link\")","v":"Link"},25012,25013,2]
[null,"2017-11-27","Email from DRP Special Projects to Jodie Sackett regarding FW: Northlake Project R2015-00408",{"$f":"HYPERLINK(\"H. Remainder/B-Emails/OCR-2017-11-27 DRP Special Projects FW_ Northlake Project R2015-00408.pdf\", \"Link\")","v":"Link"},25014,25015,2]
[null,"2017-11-30","Email from Samuel Dea to Jodie Sackett regarding RE: Cases - Northlake",{"$f":"HYPERLINK(\"H. Remainder/B-Emails/OCR-2017-11-30 Dea RE_ Cases - Northlake.pdf\", \"Link\")","v":"Link"},25016,25017,2]
[null,"2017-12-13","Email from John Arvin to Jodie Sackett regarding RE: NorthLake field trip for the planning commission",{"$f":"HYPERLINK(\"H. Remainder/B-Emails/OCR-2017-12-13 Arvin RE_ NorthLake field trip for the planning commission.pdf\", \"Link\")","v":"Link"},25018,25018,1]
[null,"2017-12-13","Email from Jodie Sackett to Raman Gaur regarding FW: Northlake tentative maps status - TR073336",{"$f":"HYPERLINK(\"H. Remainder/B-Emails/OCR-2017-12-13 Sackett-A1-FW_ Northlake tentative maps status - TR073336.pdf\", \"Link\")","v":"Link"},25019,25019,1]
[null,null,"Attachment: titled \"Parks_Cleared Report_101917_73336.pdf\"",{"$f":"HYPERLINK(\"H. Remainder/B-Emails/OCR-2017-12-13 Sackett-A2-FParks_Cleared Report_101917_73336.pdf\", \"Link\")","v":"Link"},25020,25021,2]
[null,"2017-12-20","Email from Jodie Sackett to David Kaitz regarding RE: demographics for school districts",{"$f":"HYPERLINK(\"H. Remainder/B-Emails/OCR-2017-12-20 Sackett RE_ demographics for school districts .pdf\", \"Link\")","v":"Link"},25022,25023,2]
[null,"2017-12-21","Email from Alejandrina Baldwin to Jodie Sackett regarding Northlake Question",{"$f":"HYPERLINK(\"H. Remainder/B-Emails/OCR-2017-12-21 Baldwin Northlake Question.pdf\", \"Link\")","v":"Link"},25024,25024,1]
[null,"2018-01-04","Email from Jodie Sackett to Kim Szalay and Sorin Alexanian regarding RE: Request for Items - BOS Planning Deputies Meeting of January 11, 2018",{"$f":"HYPERLINK(\"H. Remainder/B-Emails/OCR-2018-01-04 Sackett-1-RE_Request for Items-BOS Planning Deputies Meeting.pdf\", \"Link\")","v":"Link"},25025,25028,4]
[null,null,"Attachment: titled \"NorthLake Board deputies pres_jsackett 11-14-17.pdf\"",{"$f":"HYPERLINK(\"H. Remainder/B-Emails/OCR-2018-01-04 Sackett-2-NL Board deputies pres_jsackett 11-14-17.pdf\", \"Link\")","v":"Link"},25029,25032,4]
[null,"2018-01-11","Email from John Arvin to Jodie Sackett regarding Northlake Cheat Sheet",{"$f":"HYPERLINK(\"H. Remainder/B-Emails/OCR-2018-01-11 Arvin-A1-Northlake Cheat Sheet.pdf\", \"Link\")","v":"Link"},25033,25033,1]
[null,null,"Attachment: titled \"Northlake Fact Sheet for Jodie 2018-01-11.docx\"",{"$f":"HYPERLINK(\"H. Remainder/B-Emails/OCR-2018-01-11 Arvin-A2-Northlake Fact Sheet for Jodie 2018-01-11.pdf\", \"Link\")","v":"Link"},25034,25035,2]
[null,"2018-01-11","Email from John Arvin to Jodie Sackett regarding Northlake Letters of Support",{"$f":"HYPERLINK(\"H. Remainder/B-Emails/OCR-2018-01-11 Arvin-B1-Northlake Letters of Support.pdf\", \"Link\")","v":"Link"},25036,25036,1]
[null,null,"Attachment: titled \"NorthLake Letter of Support Castaic Area Town Council 2016.pdf\"",{"$f":"HYPERLINK(\"H. Remainder/B-Emails/OCR-2018-01-11 Arvin-B2-NorthLake Letter of Support Castaic Area Town Council 2016.pdf\", \"Link\")","v":"Link"},25037,25038,2]
[null,null,"Attachment: titled \"NorthLake Letter of Support Sandia Ennis 2016.pdf\"",{"$f":"HYPERLINK(\"H. Remainder/B-Emails/OCR-2018-01-11 Arvin-B3-NorthLake Letter of Support Sandia Ennis 2016.pdf\", \"Link\")","v":"Link"},25039,25039,1]
[null,"2018-01-11","Email from John Arvin to Jodie Sackett regarding Northlake Support Letters",{"$f":"HYPERLINK(\"H. Remainder/B-Emails/OCR-2018-01-11 Arvin-C1-Northlake Support Letters.pdf\", \"Link\")","v":"Link"},250340,250340,1]
[null,null,"Attachment: titled \"NorthLake Letter of Support Brian Higgins 2014.pdf\"",{"$f":"HYPERLINK(\"H. Remainder/B-Emails/OCR-2018-01-11 Arvin-C2-NL LOS Brian Higgins 2014.pdf\", \"Link\")","v":"Link"},250341,250341,1]
[null,null,"Attachment: titled \"NorthLake Letter of Support Castaic Chamber of Commerce 2014.pdf\"",{"$f":"HYPERLINK(\"H. Remainder/B-Emails/OCR-2018-01-11 Arvin-C3-NL LOS Castaic Chamber of Commerce 2014.pdf\", \"Link\")","v":"Link"},250342,250342,1]
[null,null,"Attachment: titled \"NorthLake Letter of Support Castaic Chamber of Commerce 2015.pdf\"",{"$f":"HYPERLINK(\"H. Remainder/B-Emails/OCR-2018-01-11 Arvin-C4-NL LOS Castaic Chamber of Commerce 2015.pdf\", \"Link\")","v":"Link"},250343,250343,1]
[null,null,"Attachment: titled \"NorthLake Letter of Support Dawn Falconer 2014.pdf\"",{"$f":"HYPERLINK(\"H. Remainder/B-Emails/OCR-2018-01-11 Arvin-C5-NL LOS Dawn Falconer 2014.pdf\", \"Link\")","v":"Link"},250344,250344,1]
[null,null,"Attachment: titled \"NorthLake Letter of Support Dawn Falconer 2016.pdf\"",{"$f":"HYPERLINK(\"H. Remainder/B-Emails/OCR-2018-01-11 Arvin-C6-NL LOS Dawn Falconer 2016.pdf\", \"Link\")","v":"Link"},250345,250345,1]
[null,null,"Attachment: titled \"NorthLake Letter of Support Flo Lawrence 2016.pdf\"",{"$f":"HYPERLINK(\"H. Remainder/B-Emails/OCR-2018-01-11 Arvin-C7-NL LOS Flo Lawrence 2016.pdf\", \"Link\")","v":"Link"},250346,250346,1]
[null,null,"Attachment: titled \"NorthLake Letter of Support Friends of Castaic Lake 2016.pdf\"",{"$f":"HYPERLINK(\"H. Remainder/B-Emails/OCR-2018-01-11 Arvin-C8-NL LOS Friends of Castaic Lake 2016.pdf\", \"Link\")","v":"Link"},250347,250347,1]
[null,null,"Attachment: titled \"NorthLake Letter of Support Jeff Preach 2016.pdf\"",{"$f":"HYPERLINK(\"H. Remainder/B-Emails/OCR-2018-01-11 Arvin-C9-NL LOS Jeff Preach 2016.pdf\", \"Link\")","v":"Link"},250348,250348,1]
[null,null,"Attachment: titled \"NorthLake Letter of Support Lori Bennett 2014.pdf\"",{"$f":"HYPERLINK(\"H. Remainder/B-Emails/OCR-2018-01-11 Arvin-C10-NL LOS Lori Bennett 2014.pdf\", \"Link\")","v":"Link"},250349,250349,1]
[null,null,"Attachment: titled \"NorthLake Letter of Support SCV Chamber of Commerce 2016.pdf\"",{"$f":"HYPERLINK(\"H. Remainder/B-Emails/OCR-2018-01-11 Arvin-C11-NL LOS SCV Chamber of Commerce 2016.pdf\", \"Link\")","v":"Link"},250350,250350,1]
[null,null,"Attachment: titled \"NorthLake Letter of Support SCV EDC 2016.pdf\"",{"$f":"HYPERLINK(\"H. Remainder/B-Emails/OCR-2018-01-11 Arvin-C12-NL LOS SCV EDC 2016.pdf\", \"Link\")","v":"Link"},250351,250351,1]
[null,null,"Attachment: titled \"NorthLake Letter of Support SCV Latino Business Alliance 2017.pdf\"",{"$f":"HYPERLINK(\"H. Remainder/B-Emails/OCR-2018-01-11 Arvin-C13-NL LOS SCV Latino Business Alliance 2017.pdf\", \"Link\")","v":"Link"},250352,250352,1]
[null,null,"Attachment: titled \"NorthLake Letter of Support SCV Youth Baseball 2017.pdf\"",{"$f":"HYPERLINK(\"H. Remainder/B-Emails/OCR-2018-01-11 Arvin-C14-NL LOS SCV Youth Baseball 2017.pdf\", \"Link\")","v":"Link"},250353,250353,1]
[null,null,"Attachment: titled \"NorthLake Letter of Support VIA July 2017.pdf\"",{"$f":"HYPERLINK(\"H. Remainder/B-Emails/OCR-2018-01-11 Arvin-C15-NL LOS VIA July 2017.pdf\", \"Link\")","v":"Link"},250354,250354,1]
[null,null,"Attachment: titled \"NorthLake Letter of Support West Ranch Town Council.pdf\"",{"$f":"HYPERLINK(\"H. Remainder/B-Emails/OCR-2018-01-11 Arvin-C16-NL LOS West Ranch Town Council.pdf\", \"Link\")","v":"Link"},250355,250355,1]
[null,"2018-01-11","Email from Jodie Sackett to John Arvin regarding Northlake Cheat Sheet",{"$f":"HYPERLINK(\"H. Remainder/B-Emails/OCR-2018-01-11 Sackett RE_ Northlake Cheat Sheet.pdf\", \"Link\")","v":"Link"},250356,250356,1]
[null,"2018-01-16","Email from Jennifer Marks to Jodie Sackett regarding RE: Northlake hearing noticing for Feb. 21",{"$f":"HYPERLINK(\"H. Remainder/B-Emails/OCR-2018-01-16 Marks-1-RE_ Northlake hearing noticing for Feb. 21.pdf\", \"Link\")","v":"Link"},250357,250362,6]
[null,null,"Attachment: titled \"Northlake RPC Hearing Notice.doc\"",{"$f":"HYPERLINK(\"H. Remainder/B-Emails/OCR-2018-01-16 Marks-2-Northlake RPC Hearing Notice-converted.pdf\", \"Link\")","v":"Link"},250363,250365,3]
[null,null,"Attachment: titled \"Northlake RPC Hearing Notice.pdf\"",{"$f":"HYPERLINK(\"H. Remainder/B-Emails/OCR-2018-01-16 Marks-3-Northlake RPC Hearing Notice.pdf\", \"Link\")","v":"Link"},250366,250368,3]
[null,"2018-01-16","Email from Jodie Sackett to Aaron Clark regarding RE: Deputies briefing re Northlake tomorrow",{"$f":"HYPERLINK(\"H. Remainder/B-Emails/OCR-2018-01-16 Sackett RE_ Deputies briefing re Northlake tomorrow .pdf\", \"Link\")","v":"Link"},250369,250373,5]
[null,"2018-01-17","Email from Jennifer Marks to Jodie Sackett regarding NorthLake Findings",{"$f":"HYPERLINK(\"H. Remainder/B-Emails/OCR-2018-01-17 Marks-1-NorthLake Findings.pdf\", \"Link\")","v":"Link"},250374,250374,1]
[null,null,"Attachment: titled \"CEQA Findings and SOC-011718.docx\"",{"$f":"HYPERLINK(\"H. Remainder/B-Emails/OCR-2018-01-17 Marks-2-CEQA Findings and SOC-011718-converted.pdf\", \"Link\")","v":"Link"},250375,25288,214]
[null,null,"Attachment: titled \"CEQA Findings and SOC-011718.pdf\"",{"$f":"HYPERLINK(\"H. Remainder/B-Emails/OCR-2018-01-17 Marks-3-CEQA Findings and SOC-011718.pdf\", \"Link\")","v":"Link"},25289,25502,214]
[null,"2018-01-18","Email from Jennifer Marks to Jodie Sackett regarding RE: Library package materials for Northlake",{"$f":"HYPERLINK(\"H. Remainder/B-Emails/OCR-2018-01-18 Marks RE_ Library package materials for Northlake.pdf\", \"Link\")","v":"Link"},25503,25504,2]
[null,"2018-01-18","Email from Jodie Sackett to Jennifer Marks regarding Library package materials for Northlake",{"$f":"HYPERLINK(\"H. Remainder/B-Emails/OCR-2018-01-18 Sackett-1-Library package materials for Northlake.pdf\", \"Link\")","v":"Link"},25505,25505,1]
[null,null,"Attachment: titled \"Factual_Northlake_final.docx\"",{"$f":"HYPERLINK(\"H. Remainder/B-Emails/OCR-2018-01-18 Sackett-2-Factual_Northlake_final.pdf\", \"Link\")","v":"Link"},25506,25506,1]
[null,null,"Attachment: titled \"5090-033-35 - CUP Burden of Proof - On-site Grading - 10-11-2017.pdf\"",{"$f":"HYPERLINK(\"H. Remainder/B-Emails/OCR-2018-01-18 Sackett-3-5090-033-35_CUP BOP-On-site Grading.pdf\", \"Link\")","v":"Link"},25507,25507,1]
[null,null,"Attachment: titled \"5090-033-035 CUP Burden of Proof - Site Plan Review - 10-11-2017.pdf\"",{"$f":"HYPERLINK(\"H. Remainder/B-Emails/OCR-2018-01-18 Sackett-4-5090-033-35_CUP BOP-Site Plan Review.pdf\", \"Link\")","v":"Link"},25508,25508,1]
[null,null,"Attachment: titled \"5090-033-35 - CUP Burden of Proof - Off-site Grading - 10-11-2017.pdf\"",{"$f":"HYPERLINK(\"H. Remainder/B-Emails/OCR-2018-01-18 Sackett-5-5090-033-35_CUP BOP-Off-site Grading.pdf\", \"Link\")","v":"Link"},25509,25509,1]
[null,null,"Attachment: titled \"Library_cover_ltr.docx\"",{"$f":"HYPERLINK(\"H. Remainder/B-Emails/OCR-2018-01-18 Sackett-6-Library_cover_ltr.pdf\", \"Link\")","v":"Link"},25510,25510,1]
[null,"2018-01-22","Email from Jodie Sackett to Alexandra Cuadra, LA County Fire Department, regarding RE: Northlake Specific Plan Project  ",{"$f":"HYPERLINK(\"H. Remainder/B-Emails/OCR-2018-01-22 Sackett-1-RE_ NORTHLAKE SPECIFIC PLAN PROJECT3.pdf\", \"Link\")","v":"Link"},25511,25512,2]
[null,null,"Attachment: titled \"LACOFD_northlake DEIR ltr_5-25-17.pdf\"",{"$f":"HYPERLINK(\"H. Remainder/B-Emails/OCR-2018-01-22 Sackett-2-LACOFD_northlake DEIR ltr_5-25-17.pdf\", \"Link\")","v":"Link"},25513,25515,3]
[null,"2018-01-23","Email from Jodie Sackett to Jennifer Marks regarding Northlake CEQA Findings - DRP comments",{"$f":"HYPERLINK(\"H. Remainder/B-Emails/OCR-2018-01-23 Sackett-A1-Northlake CEQA Findings - DRP comments.pdf\", \"Link\")","v":"Link"},25516,25516,1]
[null,null,"Attachment: titled \"Northlake CEQA Findings and SOC 2017-12-04 KKS.DOCX\"",{"$f":"HYPERLINK(\"H. Remainder/B-Emails/OCR-2018-01-23 Sackett-A2-Northlake CEQA Findings and SOC 2017-12-04 KKS.pdf\", \"Link\")","v":"Link"},25517,25726,210]
[null,"2018-01-23","Email from Jodie Sackett to Jennifer Marks regarding RE: Northlake NOA",{"$f":"HYPERLINK(\"H. Remainder/B-Emails/OCR-2018-01-23 Sackett-B-RE_Northlake NOA.pdf\", \"Link\")","v":"Link"},25727,25727,1]
[null,"2018-02-01","Email from Jennifer Marks to Jodie Sackett regarding NorthLake Final EIR Questions ",{"$f":"HYPERLINK(\"H. Remainder/B-Emails/OCR-2018-02-01 Marks-1-NorthLake Final EIR Questions.pdf\", \"Link\")","v":"Link"},25728,25730,3]
[null,null,"Attachment: titled \"diane slauson_5-20-17.pdf\"",{"$f":"HYPERLINK(\"H. Remainder/B-Emails/OCR-2018-02-01 Marks-2-diane slauson_5-20-17.pdf\", \"Link\")","v":"Link"},25731,25731,1]
[null,"2018-02-05","Email from Jodie Sackett to Karen Coch regarding Northlake project hearing notice and EIR link",{"$f":"HYPERLINK(\"H. Remainder/B-Emails/OCR-2018-02-05 Sackett-1-Northlake project hearing notice and EIR link.pdf\", \"Link\")","v":"Link"},25732,25732,1]
[null,null,"Attachment: titled \"Northlake RPC Hearing Notice_final.pdf\"",{"$f":"HYPERLINK(\"H. Remainder/B-Emails/OCR-2018-02-05 Sackett-2-Northlake RPC Hearing Notice_final.pdf\", \"Link\")","v":"Link"},25733,25735,3]
[null,"2018-02-06","Email from Jennifer Marks to Jodie Sackett regarding RE: Northlake - changes in SEIR summary info.?",{"$f":"HYPERLINK(\"H. Remainder/B-Emails/OCR-2018-02-06 Marks RE_ Northlake - changes in SEIR summary info.pdf\", \"Link\")","v":"Link"},25736,25740,5]
[null,"2018-02-06","Email from Jennifer Marks to Jodie Sackett regarding RE: Northlake development proposal",{"$f":"HYPERLINK(\"H. Remainder/B-Emails/OCR-2018-02-06 Marks RE_ Northlake development proposal.pdf\", \"Link\")","v":"Link"},25741,25743,3]
[null,"2018-02-06","Email from Jodie Sackett to Jennifer Marks regarding FW: Northlake Specific Plan Project",{"$f":"HYPERLINK(\"H. Remainder/B-Emails/OCR-2018-02-06 Sackett FW_1- Northlake Specific Plan Project.pdf\", \"Link\")","v":"Link"},25744,25744,1]
[null,null,"Attachment: titled \"County Sanitation_6-14-17.pdf\"",{"$f":"HYPERLINK(\"H. Remainder/B-Emails/OCR-2018-02-06 Sackett FW_2-County Sanitation_6-14-17.pdf\", \"Link\")","v":"Link"},25745,25749,5]
[null,"2018-02-06","Email from Jodie Sackett to Mitch Glaser regarding RE: Northlake News",{"$f":"HYPERLINK(\"H. Remainder/B-Emails/OCR-2018-02-06 Sackett RE_ Northlake News.pdf\", \"Link\")","v":"Link"},25750,25750,1]
[null,"2018-02-06","Email from Kim Szalay to Jodie Sackett regarding RE: NorthLake Final EIR Questions",{"$f":"HYPERLINK(\"H. Remainder/B-Emails/OCR-2018-02-06 Szalay RE_ NorthLake Final EIR Questions.pdf\", \"Link\")","v":"Link"},25751,25757,7]
[null,"2018-02-07","Email from Jeanne Biehler to Jodie Sackett regarding READ first - Update on status of letter for Northlake parcel map",{"$f":"HYPERLINK(\"H. Remainder/B-Emails/OCR-2018-02-07 Biehler Update on status of letter for Northlake parcel map.pdf\", \"Link\")","v":"Link"},25758,25759,2]
[null,"2018-02-07","Email from Jodie Sackett to Jennifer Marks regarding RE: Northlake Specific Plan Project",{"$f":"HYPERLINK(\"H. Remainder/B-Emails/OCR-2018-02-07 Sackett RE_ Northlake Specific Plan Project2.pdf\", \"Link\")","v":"Link"},25760,25761,2]
[null,"2018-02-07","Email from Jodie Sackett to Joseph Decruyenaere regarding RE: Vernal pool - Northlake SEIR",{"$f":"HYPERLINK(\"H. Remainder/B-Emails/OCR-2018-02-07 Sackett RE_ Vernal pool - Northlake SEIR.pdf\", \"Link\")","v":"Link"},25762,25764,3]
[null,"2018-02-08","Email from John Arvin to Jodie Sackett regarding RE: community outreach summary list sent at 11:56 am",{"$f":"HYPERLINK(\"H. Remainder/B-Emails/OCR-2018-02-08 Arvin 1156-A1-RE_ community outreach summary list.pdf\", \"Link\")","v":"Link"},25765,25766,2]
[null,null,"Attachment: titled \"Northlake List of Community Meetings for Jodie 2018-02-08.pdf\"",{"$f":"HYPERLINK(\"H. Remainder/B-Emails/OCR-2018-02-08 Arvin 1156-A2-NL List of Comm Mtgs for Jodie.pdf\", \"Link\")","v":"Link"},25767,25767,1]
[null,"2018-02-08","Email from John Arvin to Jodie Sackett regarding FW: Northlake Specific Plan Project sent at 12:01 pm to include Tataviam Band of Mission Indians ",{"$f":"HYPERLINK(\"H. Remainder/B-Emails/OCR-2018-02-08 Arvin 1201-B1-RE_ community outreach summary list.pdf\", \"Link\")","v":"Link"},25768,25769,2]
[null,null,"Attachment: titled \"Northlake List of Community Meetings for Jodie 2018-02-08.pdf\"",{"$f":"HYPERLINK(\"H. Remainder/B-Emails/OCR-2018-02-08 Arvin 1201-B2-NL List of Comm Mtgs for Jodie.pdf\", \"Link\")","v":"Link"},25770,25770,1]
[null,"2018-02-08","Email from Raman Gaur to Jodie Sackett regarding RE: Northlake APNs",{"$f":"HYPERLINK(\"H. Remainder/B-Emails/OCR-2018-02-08 Gaur-1-RE_ Northlake APNs.pdf\", \"Link\")","v":"Link"},25771,25771,1]
[null,null,"Attachment: titled \"Land Div Application with school - Attachment A - 3-6-17.docx\"",{"$f":"HYPERLINK(\"H. Remainder/B-Emails/OCR-2018-02-08 Gaur-2-Land Div App with school - Att  A.pdf\", \"Link\")","v":"Link"},25772,25773,2]
[null,"2018-02-08","Email from Rosie Ruiz to David Louie regarding Northlake Field Trip",{"$f":"HYPERLINK(\"H. Remainder/B-Emails/OCR-2018-02-08 Ruiz-NLField Trip-A1.pdf\", \"Link\")","v":"Link"},25774,25774,1]
[null,null,"Attachment: titled \"IMG_1168.JPG;\"",{"$f":"HYPERLINK(\"H. Remainder/B-Emails/OCR-2018-02-08 Ruiz-NLField Trip-A2-IMG_1168.pdf\", \"Link\")","v":"Link"},25775,25775,1]
[null,null,"Attachment: titled \"IMG_1178.JPG\"",{"$f":"HYPERLINK(\"H. Remainder/B-Emails/OCR-2018-02-08 Ruiz-NLField Trip-A3-IMG_1178.pdf\", \"Link\")","v":"Link"},25776,25776,1]
[null,null,"Attachment: titled \"IMG_1179.JPG\"",{"$f":"HYPERLINK(\"H. Remainder/B-Emails/OCR-2018-02-08 Ruiz-NLField Trip-A4-IMG_1179.pdf\", \"Link\")","v":"Link"},25777,25777,1]
[null,"2018-02-08","Email from Rosie Ruiz to Natalie Torres regarding RPC Field Trip Photos - Northlake",{"$f":"HYPERLINK(\"H. Remainder/B-Emails/OCR-2018-02-08 Ruiz-RPC Field Trip Photos-A1.pdf\", \"Link\")","v":"Link"},25778,25778,1]
[null,null,"Attachment: titled \"IMG_1174.JPG;\"",{"$f":"HYPERLINK(\"H. Remainder/B-Emails/OCR-2018-02-08 Ruiz-RPC Field Trip Photos-A2-IMG_1174.pdf\", \"Link\")","v":"Link"},25779,25779,1]
[null,null,"Attachment: titled \"IMG_1176.JPG\"",{"$f":"HYPERLINK(\"H. Remainder/B-Emails/OCR-2018-02-08 Ruiz-RPC Field Trip Photos-A3-IMG_1176.pdf\", \"Link\")","v":"Link"},25780,25780,1]
[null,null,"Attachment: titled \"IMG_1177.JPG\"",{"$f":"HYPERLINK(\"H. Remainder/B-Emails/OCR-2018-02-08 Ruiz-RPC Field Trip Photos-A4-IMG_1177.pdf\", \"Link\")","v":"Link"},25781,25781,1]
[null,null,"Attachment: titled \"IMG_1178.JPG\"",{"$f":"HYPERLINK(\"H. Remainder/B-Emails/OCR-2018-02-08 Ruiz-RPC Field Trip Photos-A5-IMG_1178.pdf\", \"Link\")","v":"Link"},25782,25782,1]
[null,null,"Attachment: titled \"IMG_1179.JPG\"",{"$f":"HYPERLINK(\"H. Remainder/B-Emails/OCR-2018-02-08 Ruiz-RPC Field Trip Photos-A6-IMG_1179.pdf\", \"Link\")","v":"Link"},25783,25783,1]
[null,null,"Attachment: titled \"IMG_1180.JPG\"",{"$f":"HYPERLINK(\"H. Remainder/B-Emails/OCR-2018-02-08 Ruiz-RPC Field Trip Photos-A7-IMG_1180.pdf\", \"Link\")","v":"Link"},25784,25784,1]
[null,"2018-02-08","Email from Jodie Sackett to John Arvin regarding home EV chargers",{"$f":"HYPERLINK(\"H. Remainder/B-Emails/OCR-2018-02-08 Sackett-A-home EV chargers.pdf\", \"Link\")","v":"Link"},25785,25785,1]
[null,"2018-02-08","Email from Jodie Sackett to John Arvin regarding Northlake hearing package upload on DRP website",{"$f":"HYPERLINK(\"H. Remainder/B-Emails/OCR-2018-02-08 Sackett-B1-Northlake hearing package upload on DRP website.pdf\", \"Link\")","v":"Link"},25786,25786,1]
[null,null,"Attachment: titled \"Northlake draft benefits and amenities condition language.docx\"",{"$f":"HYPERLINK(\"H. Remainder/B-Emails/OCR-2018-02-08 Sackett-B2-NL draft benefits and amenities condition language.pdf\", \"Link\")","v":"Link"},25787,25787,1]
[null,"2018-02-08","Email from Kim Szalay to Jodie Sackett regarding RE: TR73335 Northlake PM FFs KKS",{"$f":"HYPERLINK(\"H. Remainder/B-Emails/OCR-2018-02-08 Szalay-A-RE_ TR73335 Northlake PM FFs KKS.pdf\", \"Link\")","v":"Link"},25788,25792,5]
[null,"2018-02-08","Email from Kim Szalay to Jodie Sackett regarding RE: TR73336 Northlake Conditions KKS",{"$f":"HYPERLINK(\"H. Remainder/B-Emails/OCR-2018-02-08 Szalay-B1-RE_ TR73336 Northlake Conditions KKS.pdf\", \"Link\")","v":"Link"},25793,25796,4]
[null,null,"Attachment: titled \"00-210 Entrada So. CUP Conds 4-07-15.doc\"",{"$f":"HYPERLINK(\"H. Remainder/B-Emails/OCR-2018-02-08 Szalay-B2-00-210 Entrada So. CUP Conds 4-07-15.pdf\", \"Link\")","v":"Link"},25797,25817,21]
[null,"2018-02-12","Email from John Arvin to Jodie Sackett regarding Northlake",{"$f":"HYPERLINK(\"H. Remainder/B-Emails/OCR-2018-02-12 Arvin Northlake.pdf\", \"Link\")","v":"Link"},25818,25818,1]
[null,"2018-02-12","Email from John Arvin to Jodie Sackett regarding Northlake Conditions",{"$f":"HYPERLINK(\"H. Remainder/B-Emails/OCR-2018-02-12 Arvin-A1-Northlake Conditions.pdf\", \"Link\")","v":"Link"},25819,25819,1]
[null,null,"Attachment: titled \"Northlake draft benefits and amenities condition language from Jodie with JA comments.docx\"",{"$f":"HYPERLINK(\"H. Remainder/B-Emails/OCR-2018-02-12 Arvin-A2-NL draft benefits and amenities with JA comments.pdf\", \"Link\")","v":"Link"},25820,25821,2]
[null,"2018-02-12","Email from Joseph Decruyenaere to Jodie Sackett regarding RE: Northlake web upload",{"$f":"HYPERLINK(\"H. Remainder/B-Emails/OCR-2018-02-12 Decruyenaere RE_ Northlake web upload.pdf\", \"Link\")","v":"Link"},25822,25824,3]
[null,"2018-02-12","Email from Jodie Sackett to Jennifer Marks regarding Northlake - County bio comments on FEIR -pt1",{"$f":"HYPERLINK(\"H. Remainder/B-Emails/OCR-2018-02-12 Sackett-A1-County bio comments on FEIR -pt1.pdf\", \"Link\")","v":"Link"},25825,25826,2]
[null,null,"Attachment: titled \"Pages from Final SEIR_NorthLake-011118_bio comments 2-12-18_pt 1.pdf\"",{"$f":"HYPERLINK(\"H. Remainder/B-Emails/OCR-2018-02-12 Sackett-A2-Pages from FSEIR_NL-011118_pt 1.pdf\", \"Link\")","v":"Link"},25827,25890,64]
[null,"2018-02-12","Email from Jodie Sackett to Jennifer Marks regarding Northlake final SEIR Bio comments pt. 2",{"$f":"HYPERLINK(\"H. Remainder/B-Emails/OCR-2018-02-12 Sackett-B1-NL FSEIR Bio comments pt. 2.pdf\", \"Link\")","v":"Link"},25891,25891,1]
[null,null,"Attachment: titled \"Pages from Final SEIR_NorthLake-011118_bio comments 2-12-18_pt 2.pdf\"",{"$f":"HYPERLINK(\"H. Remainder/B-Emails/OCR-2018-02-12 Sackett-B2-Pages from FSEIR_NL-011118_bio comments pt 2.pdf\", \"Link\")","v":"Link"},25892,25956,65]
[null,"2018-02-12","Email from Jodie Sackett to Jennifer Marks regarding Northlake County bio comments - pt. 3",{"$f":"HYPERLINK(\"H. Remainder/B-Emails/OCR-2018-02-12 Sackett-C1-Northlake County bio comments - pt. 3.pdf\", \"Link\")","v":"Link"},25957,25957,1]
[null,null,"Attachment: titled \"Pages from Final SEIR_NorthLake-011118_bio comments 2-12-18_pt 3.pdf\"",{"$f":"HYPERLINK(\"H. Remainder/B-Emails/OCR-2018-02-12 Sackett-C2-Pages from FSEIR_NL-011118_bio commentspt 3.pdf\", \"Link\")","v":"Link"},25958,26088,131]
[null,"2018-02-12","Email from Jodie Sackett to Kim Szalay regarding RE: 15% affordable without moderate confirmation",{"$f":"HYPERLINK(\"H. Remainder/B-Emails/OCR-2018-02-12 Sackett-D-RE_ 15 affordable without moderate confirmation.pdf\", \"Link\")","v":"Link"},26089,26090,2]
[null,"2018-02-13","Email from Mike Vovk to Jodie Sackett regarding The Northlake Specific Plan Project  ",{"$f":"HYPERLINK(\"H. Remainder/B-Emails/OCR-2018-02-13 Vovk THE NORTHLAKE SPECIFIC PLAN PROJECT.pdf\", \"Link\")","v":"Link"},26091,26091,1]
[null,"2018-02-14","Email from John Arvin to Jodie Sackett and Kim Szalay regarding Northlake Biology Comments",{"$f":"HYPERLINK(\"H. Remainder/B-Emails/OCR-2018-02-14 Arvin Northlake Biology Comments.pdf\", \"Link\")","v":"Link"},26092,26092,1]
[null,"2018-02-14","Email from John Arvin to Kim Szalay and Jodie Sackett regarding Northlake Biology ",{"$f":"HYPERLINK(\"H. Remainder/B-Emails/OCR-2018-02-14 Arvin Northlake Biology.pdf\", \"Link\")","v":"Link"},26093,26093,1]
[null,"2018-02-14","Email from Chris Perry to Dennis Slavin regarding Re: Northlake",{"$f":"HYPERLINK(\"H. Remainder/B-Emails/OCR-2018-02-14 Perry Re_ Northlake8.pdf\", \"Link\")","v":"Link"},26094,26095,2]
[null,"2018-02-14","Email from Jodie Sackett to Kim Szalay regarding Northlake CUP Conditions",{"$f":"HYPERLINK(\"H. Remainder/B-Emails/OCR-2018-02-14 Sackett Northlake CUP Conditions.pdf\", \"Link\")","v":"Link"},26096,26096,1]
[null,"2018-02-14","Email from Dennis Slavin to Kim Szalay, Sorin Alexanian, Jodie Sackett, Patricia Hachiya, Mark Child, and Amy Bodek regarding Northlake",{"$f":"HYPERLINK(\"H. Remainder/B-Emails/OCR-2018-02-14 Slavin Re_ Northlake7.pdf\", \"Link\")","v":"Link"},26097,26098,2]
[null,"2018-02-15","Email from Jennifer Marks to Jodie Sackett regarding RE: Northlake FSEIR response to late comments",{"$f":"HYPERLINK(\"H. Remainder/B-Emails/OCR-2018-02-15 Marks-A1-Northlake FSEIR response to late comments.pdf\", \"Link\")","v":"Link"},26099,26099,1]
[null,null,"Attachment: titled \"Final SEIR Response to Late Comments-021418.pdf\"",{"$f":"HYPERLINK(\"H. Remainder/B-Emails/OCR-2018-02-15 Marks-A2-FSEIR Res to Late Comments-021418.pdf\", \"Link\")","v":"Link"},26100,26105,6]
[null,"2018-02-15","Email from Jennifer Marks to Jodie Sackett regarding RE: Northlake Specific Plan Project",{"$f":"HYPERLINK(\"H. Remainder/B-Emails/OCR-2018-02-15 Marks-B1-Northlake Specific Plan Project.pdf\", \"Link\")","v":"Link"},26106,26108,3]
[null,null,"Attachment: titled \"LA San District Comment and Response.pdf\"",{"$f":"HYPERLINK(\"H. Remainder/B-Emails/OCR-2018-02-15 Marks-B2-LA San District Comment and Response.pdf\", \"Link\")","v":"Link"},26109,26116,8]
[null,"2018-02-15","Email from Jodie Sackett to John Arvin regarding Northlake Conditions",{"$f":"HYPERLINK(\"H. Remainder/B-Emails/OCR-2018-02-15 Sackett RE_ Northlake Conditions.pdf\", \"Link\")","v":"Link"},26117,26117,1]
[null,"2018-02-15","Email from Jodie Sackett to Kim Szalay regarding Northlake CUP Conditions",{"$f":"HYPERLINK(\"H. Remainder/B-Emails/OCR-2018-02-15 Sackett RE_ Northlake CUP Conditions.pdf\", \"Link\")","v":"Link"},26118,26120,3]
[null,"2018-02-15","Email from Jodie Sackett to John Arvin regarding Supplemental Staff Memo to the RPC - Northlake",{"$f":"HYPERLINK(\"H. Remainder/B-Emails/OCR-2018-02-15 Sackett Supplemental Staff Memo to the RPC - Northlake.pdf\", \"Link\")","v":"Link"},26121,26121,1]
[null,"2018-02-15","Email from Jennifer Marks to Jodie Sackett regarding RE: Northlake Specific Plan Project",{"$f":"HYPERLINK(\"H. Remainder/B-Emails/OCR-2018-02-15 Sackett-1-RE_ Northlake Specific Plan Project.pdf\", \"Link\")","v":"Link"},26122,26123,2]
[null,null,"Attachment: titled \"LA San District Comment and Response.pdf\"",{"$f":"HYPERLINK(\"H. Remainder/B-Emails/OCR-2018-02-15 Sackett-2-LA San District Comment and Response.pdf\", \"Link\")","v":"Link"},26124,26131,8]
[null,"2018-02-19","Email from Jennifer Kilpatrick to Jodie Sackett regarding Project No. R2015-00408-(5) / Vesting Tentative Tract Map 073336 / Northlake Project",{"$f":"HYPERLINK(\"H. Remainder/B-Emails/OCR-2018-02-19 Kilpatrick-A1-ProjectR2015-00408-5_VTTM_Northlake.pdf\", \"Link\")","v":"Link"},26132,26134,3]
[null,null,"Attachment: titled \"NorthlakeBCDCCease&DesistOrder2016.pdf\"",{"$f":"HYPERLINK(\"H. Remainder/B-Emails/OCR-2018-02-19 Kilpatrick-A2-NLBCDCCeaseAndDesistOrder2016.pdf\", \"Link\")","v":"Link"},26135,26162,28]
[null,null,"Attachment: titled \"NorthlakeForeignLLCFiling.pdf\"",{"$f":"HYPERLINK(\"H. Remainder/B-Emails/OCR-2018-02-19 Kilpatrick-A3.pdf\", \"Link\")","v":"Link"},26163,26164,2]
[null,null,"Attachment: titled \"NorthlakeCASecSteFiling.pdf\"",{"$f":"HYPERLINK(\"H. Remainder/B-Emails/OCR-2018-02-19 Kilpatrick-A4-NLCASecSteFiling.pdf\", \"Link\")","v":"Link"},26165,26165,1]
[null,null,"Attachment: titled \"NorthlakeForeignLLCFilingNLDP.pdf\"",{"$f":"HYPERLINK(\"H. Remainder/B-Emails/OCR-2018-02-19 Kilpatrick-A5-NLForeignLLCFilingNLDP.pdf\", \"Link\")","v":"Link"},26166,26167,2]
[null,null,"Attachment: titled \"NorthlakeCASecSteFilingNLDP.pdf\"",{"$f":"HYPERLINK(\"H. Remainder/B-Emails/OCR-2018-02-19 Kilpatrick-A6-NLCASecSteFilingNLDP.pdf\", \"Link\")","v":"Link"},26168,26168,1]
[null,"2018-02-20","Email from John Arvin to Jodie Sackett and Kim Szalay regarding Northlake RPC Package",{"$f":"HYPERLINK(\"H. Remainder/B-Emails/OCR-2018-02-20 Arvin Northlake RPC Package.pdf\", \"Link\")","v":"Link"},26169,26169,1]
[null,"2018-02-20","Email from Lynne Plambeck to Rosie Ruiz and Jodie Sackett regarding Comments of Northlake for Feb 21 hearing",{"$f":"HYPERLINK(\"H. Remainder/B-Emails/OCR-2018-02-20 Plambeck-A1-Comm of NL for Feb 21 hearing.pdf\", \"Link\")","v":"Link"},26170,26170,1]
[null,null,"Attachment: titled \"Comments on Northlake FEIR.pdf\"",{"$f":"HYPERLINK(\"H. Remainder/B-Emails/OCR-2018-02-20 Plambeck-A2-Comm of NL FEIR.pdf\", \"Link\")","v":"Link"},26171,26178,8]
[null,null,"Attachment: titled \"Exh-1 CLWA - Newhall Agreement 12-19--12.pdf\"",{"$f":"HYPERLINK(\"H. Remainder/B-Emails/OCR-2018-02-20 Plambeck-A3-Exh-1 CLWA-Newhall Agreement.pdf\", \"Link\")","v":"Link"},26179,26222,44]
[null,null,"Attachment: titled \"Exh-2 2015 Alluvial Aquifer Production Achievability Evaluation by GSI... (1).pdf\"",{"$f":"HYPERLINK(\"H. Remainder/B-Emails/OCR-2018-02-20 Plambeck-A4-Exh-2 2015 Alluvial Aquifer Prod Eval.pdf\", \"Link\")","v":"Link"},26223,26227,5]
[null,null,"Attachment: titled \"Exh-3 Water levels Whittaker_Q1 2016_OU7 Groundwater Monitoring and RCRA Area 317 Monitoring Report 110_52016.pdf\"",{"$f":"HYPERLINK(\"H. Remainder/B-Emails/OCR-2018-02-20 Plambeck-A5-Exh-3 Whittaker_Q1 2016_OU7 GW Monitor.pdf\", \"Link\")","v":"Link"},26228,26235,8]
[null,"2018-02-20","Email from Rosie Ruiz to Jodie Sackett regarding FW: Emailing: NorthLake SDEIR 2017 SMMC Comment letter, SMMC NorthLake SDEIR Comments Attached Map",{"$f":"HYPERLINK(\"H. Remainder/B-Emails/OCR-2018-02-20 Ruiz FW_A1-NL SDEIR 2017 SMMC Com ltr_ Att Map.pdf\", \"Link\")","v":"Link"},26236,26236,1]
[null,null,"Attachment: titled \"NorthLake SDEIR 2017 SMMC Comment letter.pdf\"",{"$f":"HYPERLINK(\"H. Remainder/B-Emails/OCR-2018-02-20 Ruiz FW_A2-NL SDEIR 2017 SMMC Comm ltr.pdf\", \"Link\")","v":"Link"},26237,26241,5]
[null,null,"Attachment: titled \"SMMC NorthLake SDEIR Comments Attached Map.pdf\"",{"$f":"HYPERLINK(\"H. Remainder/B-Emails/OCR-2018-02-20 Ruiz FW_A3-SMMC NLSDEIR Comm Att Map.pdf\", \"Link\")","v":"Link"},26242,26242,1]
[null,"2018-02-20","Email from Jodie Sackett to Joseph Decruyenaere regarding FW: Northlake - County bio comments on FEIR -pt1",{"$f":"HYPERLINK(\"H. Remainder/B-Emails/OCR-2018-02-20 Sackett FW_ Northlake-A1-County bio comments on FEIR -pt1.pdf\", \"Link\")","v":"Link"},26243,26244,2]
[null,null,"Attachment: titled \"NorthLake Biologist Comments Response Memo.pdf\"",{"$f":"HYPERLINK(\"H. Remainder/B-Emails/OCR-2018-02-20 Sackett FW_ Northlake-A2-NL Bio Comments Resp.pdf\", \"Link\")","v":"Link"},26245,26265,21]
[null,"2018-02-20","Email from Jodie Sackett to Kim Szalay regarding FW: Project No. R2015-00408-(5) / Vesting Tentative Tract Map 073336 / Northlake Project",{"$f":"HYPERLINK(\"H. Remainder/B-Emails/OCR-2018-02-20 Sackett FW_ Project-A1-R2015-00408-5_VTTM 073336.pdf\", \"Link\")","v":"Link"},26266,26268,3]
[null,null,"Attachment: titled \"NorthlakeBCDCCease&DesistOrder2016.pdf\"",{"$f":"HYPERLINK(\"H. Remainder/B-Emails/OCR-2018-02-20 Sackett FW_ Project-A2-NLBCDCCeaseAndDesistOrder.pdf\", \"Link\")","v":"Link"},26269,26296,28]
[null,null,"Attachment: titled \"NorthlakeForeignLLCFiling.pdf\"",{"$f":"HYPERLINK(\"H. Remainder/B-Emails/OCR-2018-02-20 Sackett FW_Project-A3-NLCASecSteFiling.pdf\", \"Link\")","v":"Link"},26297,26297,1]
[null,null,"Attachment: titled \"NorthlakeCASecSteFiling.pdf\"",{"$f":"HYPERLINK(\"H. Remainder/B-Emails/OCR-2018-02-20 Sackett FW_Project-A4-NLForeignLLCFiling.pdf\", \"Link\")","v":"Link"},26298,26299,2]
[null,null,"Attachment: titled \"NorthlakeForeignLLCFilingNLDP.pdf\"",{"$f":"HYPERLINK(\"H. Remainder/B-Emails/OCR-2018-02-20 Sackett FW_Project-A5-NLCASecSteFilingNLDP.pdf\", \"Link\")","v":"Link"},26300,26300,1]
[null,null,"Attachment: titled \"NorthlakeCASecSteFilingNLDP.pdf\"",{"$f":"HYPERLINK(\"H. Remainder/B-Emails/OCR-2018-02-20 Sackett FW_Project-A6-NLForeignLLCFilingNLDP.pdf\", \"Link\")","v":"Link"},26301,26302,2]
[null,"2018-02-20","Email from Jodie Sackett to Kim Szalay regarding RE: Northlake CEQA Findings and SOC",{"$f":"HYPERLINK(\"H. Remainder/B-Emails/OCR-2018-02-20 Sackett RE_ Northlake CEQA Findings and SOC.pdf\", \"Link\")","v":"Link"},26303,26304,2]
[null,"2018-02-20","Email from Jodie Sackett to John Arvin regarding Tomorrow's Northlake Hearing",{"$f":"HYPERLINK(\"H. Remainder/B-Emails/OCR-2018-02-20 Sackett Tomorrows-1-Northlake Hearing.pdf\", \"Link\")","v":"Link"},26305,26305,1]
[null,null,"Attachment: titled \"NorthLake Findings\"",{"$f":"HYPERLINK(\"H. Remainder/B-Emails/OCR-2018-02-20 Sackett Tomorrows-2-NorthLake Findings.pdf\", \"Link\")","v":"Link"},26306,26306,1]
[null,null,"   Attachment: titled \"CEQA Findings and SOC-011718.docx\"",{"$f":"HYPERLINK(\"H. Remainder/B-Emails/OCR-2018-02-20 Sackett Tomorrows-3-CEQA Findings and SOC-converted.pdf\", \"Link\")","v":"Link"},26307,26520,214]
[null,null,"   Attachment: titled \"CEQA Findings and SOC-011718.pdf\"",{"$f":"HYPERLINK(\"H. Remainder/B-Emails/OCR-2018-02-20 Sackett Tomorrows-4-CEQA Findings and SOC.pdf\", \"Link\")","v":"Link"},26521,26734,214]
[null,"2018-02-20","Email from Jodie Sackett to Mitch Glaser regarding Two late comments on Northlake",{"$f":"HYPERLINK(\"H. Remainder/B-Emails/OCR-2018-02-20 Sackett Two late-A1-comments on Northlake.pdf\", \"Link\")","v":"Link"},26735,26735,1]
[null,null,"Attachment: Email from Dan Silver to Rosie Ruiz titled \"Planning Commission, February 21, 2018, Item 5, NortLake Specific Plan project\"",{"$f":"HYPERLINK(\"H. Remainder/B-Emails/OCR-2018-02-20 Sackett Two late-A2-Silver letter.pdf\", \"Link\")","v":"Link"},26736,26737,2]
[null,null,"Attachment: Email from Jennifer Kilpatrick to Jody Sackett titled \"Project No. R2015-00408-(5) / Vesting Tentative Tract Map 073336 / Northlake Project\"",{"$f":"HYPERLINK(\"H. Remainder/B-Emails/OCR-2018-02-20 Sackett Two late-A3-1-Project R2015-00408-5.pdf\", \"Link\")","v":"Link"},26738,26740,3]
[null,null,"   Attachment: titled \"NorthlakeBCDCCease&DesistOrder2016.pdf\"",{"$f":"HYPERLINK(\"H. Remainder/B-Emails/OCR-2018-02-20 Sackett Two late-A3-2-NL_BCDCCeaseAndDesist.pdf\", \"Link\")","v":"Link"},26741,26768,28]
[null,null,"   Attachment: titled \"NorthlakeForeignLLCFiling.pdf\"",{"$f":"HYPERLINK(\"H. Remainder/B-Emails/OCR-2018-02-20 Sackett Two late-A3-3-NL_ForeignLLCFiling.pdf\", \"Link\")","v":"Link"},26769,26770,2]
[null,null,"   Attachment: titled \"NorthlakeCASecSteFiling.pdf\"",{"$f":"HYPERLINK(\"H. Remainder/B-Emails/OCR-2018-02-20 Sackett Two late-A3-4-NL_CASecSteFiling.pdf\", \"Link\")","v":"Link"},26771,26771,1]
[null,null,"   Attachment: titled \"NorthlakeForeignLLCFilingNLDP.pdf\"",{"$f":"HYPERLINK(\"H. Remainder/B-Emails/OCR-2018-02-20 Sackett Two late-A3-5-NL_ForeignLLCFilingNLDP.pdf\", \"Link\")","v":"Link"},26772,26773,2]
[null,null,"   Attachment: titled \"NorthlakeCASecSteFilingNLDP.pdf\"",{"$f":"HYPERLINK(\"H. Remainder/B-Emails/OCR-2018-02-20 Sackett Two late-A3-6-NL_CASecSteFilingNLDP.pdf\", \"Link\")","v":"Link"},26774,26774,1]
[null,"2018-02-20","Email from Jodie Sackett to Rosie Ruiz regarding 1993 Northlake DA",{"$f":"HYPERLINK(\"H. Remainder/B-Emails/OCR-2018-02-20 Sackett-1-1993 NL DA.pdf\", \"Link\")","v":"Link"},26775,26775,1]
[null,null,"Attachment: titled \"1993 Northlake DA Findings.pdf\"",{"$f":"HYPERLINK(\"H. Remainder/B-Emails/OCR-2018-02-20 Sackett-2-1993 NL DA Findings.pdf\", \"Link\")","v":"Link"},26776,26781,6]
[null,"2018-02-20","Email from Dan Silver to Jodie Sackett regarding Re: Planning Commission, February 21, 2018, Item 5, NortLake Specific Plan project",{"$f":"HYPERLINK(\"H. Remainder/B-Emails/OCR-2018-02-20 Silver Re_ PC_2-21-18_Item 5-NLSP project.pdf\", \"Link\")","v":"Link"},26782,26783,2]
[null,"2018-02-20","Email from Kim Szalay to Jodie Sackett regarding Northlake CEQA Findings and SOC",{"$f":"HYPERLINK(\"H. Remainder/B-Emails/OCR-2018-02-20 Szalay RE_ NL CEQA-A1-Findings and SOC1.pdf\", \"Link\")","v":"Link"},26784,26785,2]
[null,null,"Attachment: titled \"TR073336-PM073335 CEQA Findings and SOC-011718 KKS 2-20-18.docx\"",{"$f":"HYPERLINK(\"H. Remainder/B-Emails/OCR-2018-02-20 Szalay RE_ NL CEQA-A2-TR073336-PM073335 CEQA Findings.pdf\", \"Link\")","v":"Link"},26786,26999,214]
[null,"2018-02-20","Email from Kim Szalay to John Arvin regarding Northlake RPC Package",{"$f":"HYPERLINK(\"H. Remainder/B-Emails/OCR-2018-02-20 Szalay RE_ NL RPC Package.pdf\", \"Link\")","v":"Link"},27000,27001,2]
[null,"2018-02-20","Email from Kim Szalay to Jodie Sackett regarding RE: SCOPE comment - Project No. R2015-00408-(5) / Vesting Tentative Tract Map 073336 / Northlake Project",{"$f":"HYPERLINK(\"H. Remainder/B-Emails/OCR-2018-02-20 Szalay RE_ SCOPE comment _VTTM 073336 _ NL.pdf\", \"Link\")","v":"Link"},27002,27006,5]
[null,"2018-02-21","Email from Amy Bodek to Chris Perry regarding Northlake to RPC this morning",{"$f":"HYPERLINK(\"H. Remainder/B-Emails/OCR-2018-02-21 Bodek Northlake to RPC this morning.pdf\", \"Link\")","v":"Link"},27007,27007,1]
[null,"2018-02-21","Email from Wan-Che Chuang to Jodie Sackett regarding The Northlake Specific Plan Project Comment Letter",{"$f":"HYPERLINK(\"H. Remainder/B-Emails/OCR-2018-02-21 Chuang-1-The Northlake Specific Plan Project Comment Letter.pdf\", \"Link\")","v":"Link"},27008,27008,1]
[null,null,"Attachment: titled \"LAC Northlake Specific Plan Project 02212018.pdf\"",{"$f":"HYPERLINK(\"H. Remainder/B-Emails/OCR-2018-02-21 Chuang-2-LAC Northlake Specific Plan Project 02212018.pdf\", \"Link\")","v":"Link"},27009,27009,1]
[null,"2018-02-21","Email from Rosie Ruiz to Lynne Plambeck regarding SCOPE comments for this morning",{"$f":"HYPERLINK(\"H. Remainder/B-Emails/OCR-2018-02-21 Ruiz RE_ SCOPE comments for this morning.pdf\", \"Link\")","v":"Link"},27010,27010,1]
[null,"2018-02-21","Email from Jodie Sackett to Rosie Ruiz regarding Script",{"$f":"HYPERLINK(\"H. Remainder/B-Emails/OCR-2018-02-21 Sackett-1-RE_ Script.pdf\", \"Link\")","v":"Link"},27011,27011,1]
[null,null,"Attachment: titled \"RPC PP Pres_northlake_2-21-18.pptx\"",{"$f":"HYPERLINK(\"H. Remainder/B-Emails/OCR-2018-02-21 Sackett-2-RPC PP Pres_northlake_2-21-18.pdf\", \"Link\")","v":"Link"},27012,27027,16]
[null,"2018-02-22","Email from Sorin Alexanian to Amy Bodek and Lorraine Gonzales regarding RE: Phone Message: John Arvin",{"$f":"HYPERLINK(\"H. Remainder/B-Emails/OCR-2018-02-22 Alexanian RE_ Phone Message_  John Arvin.pdf\", \"Link\")","v":"Link"},27028,27029,2]
[null,"2018-02-22","Email from John Arvin to Jodie Sackett and Kim Szalay regarding Northlake",{"$f":"HYPERLINK(\"H. Remainder/B-Emails/OCR-2018-02-22 Arvin Northlake4.pdf\", \"Link\")","v":"Link"},27030,27030,1]
[null,"2018-02-22","Email from Jodie Sackett to Amy Bodek regarding Re: Northlake presentation at RPC today",{"$f":"HYPERLINK(\"H. Remainder/B-Emails/OCR-2018-02-22 Sackett Re_ NL pres at RPC.pdf\", \"Link\")","v":"Link"},27031,27031,1]
[null,"2018-02-22","Email from Jodie Sackett to John Arvin regarding Northlake ",{"$f":"HYPERLINK(\"H. Remainder/B-Emails/OCR-2018-02-22 Sackett Re_ NL.pdf\", \"Link\")","v":"Link"},27032,27032,1]
[null,"2018-03-01","Email from Jodie Sackett to Kim Szalay, Sorin Alexanian, and Mitch Glaser regarding RE: Meeting re: Northlake TR073336",{"$f":"HYPERLINK(\"H. Remainder/B-Emails/OCR-2018-03-01 Sackett RE_ Meeting re_ Northlake TR073336.pdf\", \"Link\")","v":"Link"},27033,27037,5]
[null,"2018-03-05","Email from Jodie Sackett to John Arvin regarding FW: The Northlake Specific Plan Project Comment Letter",{"$f":"HYPERLINK(\"H. Remainder/B-Emails/OCR-2018-03-05 Sackett FW_1-The NLSP Project Comment.pdf\", \"Link\")","v":"Link"},27038,27038,1]
[null,null,"Attachment: titled \"LAC Northlake Specific Plan Project 02212018.pdf\"",{"$f":"HYPERLINK(\"H. Remainder/B-Emails/OCR-2018-03-05 Sackett FW_2-LAC NLSP Project 02212018.pdf\", \"Link\")","v":"Link"},27039,27039,1]
[null,"2018-03-05","Email from Jodie Sackett to Clement Lau regarding RE: Northlake",{"$f":"HYPERLINK(\"H. Remainder/B-Emails/OCR-2018-03-05 Sackett RE_ NL 704 AM.pdf\", \"Link\")","v":"Link"},27040,27043,3]
[null,"2018-03-05","Email from Jodie Sackett to Larry Newnam and Mitch Glaser regarding RE: Northlake",{"$f":"HYPERLINK(\"H. Remainder/B-Emails/OCR-2018-03-05 Sackett RE_ NL 1225 PM-1.pdf\", \"Link\")","v":"Link"},27044,27045,2]
[null,null,"Attachment: titled \"Northlake SP_LU Plan exhibits.pdf\"",{"$f":"HYPERLINK(\"H. Remainder/B-Emails/OCR-2018-03-05 Sackett RE_ NL 1225 PM-2-NLSP_LU Plan exhibits.pdf\", \"Link\")","v":"Link"},27046,27047,2]
[null,"2018-03-08","Email from Mitch Glaser to Jodie Sackett regarding Re: zoning & land use",{"$f":"HYPERLINK(\"H. Remainder/B-Emails/OCR-2018-03-08 Glaser Re_ zoning and land use.pdf\", \"Link\")","v":"Link"},27048,27050,3]
[null,"2018-03-08","Email from Jodie Sackett to Mitch Glaser regarding FW: Centennial- REVISED NOTICE",{"$f":"HYPERLINK(\"H. Remainder/B-Emails/OCR-2018-03-08 Sackett-1-FW_ Centennial- REVISED NOTICE.pdf\", \"Link\")","v":"Link"},27051,27053,3]
[null,null,"Attachment: titled \"Centennial Hearing Notice_RPC_final_REV_030718.docx\"",{"$f":"HYPERLINK(\"H. Remainder/B-Emails/OCR-2018-03-08 Sackett-2-Centennial Hearing Notice_RPC_final_REV_030718.pdf\", \"Link\")","v":"Link"},27054,27057,4]
[null,"2018-03-12","Email from Joseph Decruyenaere to Marc Blain regarding FW: SMMC exhibit from 2-21-18 Northlake RPC hearing",{"$f":"HYPERLINK(\"H. Remainder/B-Emails/OCR-2018-03-12 Decruyenaere-1-FW_ SMMC exhibit from 2-21-18 Northlake RPC hearing.pdf\", \"Link\")","v":"Link"},27058,27058,1]
[null,null,"Attachment: titled \"img-312141616-0001.pdf\"",{"$f":"HYPERLINK(\"H. Remainder/B-Emails/OCR-2018-03-12 Decruyenaere-2-img-312141616.pdf\", \"Link\")","v":"Link"},27059,27059,1]
[null,"2018-03-12","Email from Jodie Sackett to John Arvin regarding RE: Northlake Additional Submittal",{"$f":"HYPERLINK(\"H. Remainder/B-Emails/OCR-2018-03-12 Sackett-1-RE_ Northlake Additional Submittal.pdf\", \"Link\")","v":"Link"},27060,27060,1]
[null,null,"Attachment: titled \"Shawn Smallwood ltr 2-20-18_rpc 2-21-18.pdf\"",{"$f":"HYPERLINK(\"H. Remainder/B-Emails/OCR-2018-03-12 Sackett-2-Shawn Smallwood ltr 2-20-18.pdf\", \"Link\")","v":"Link"},27061,27098,38]
[null,null,"Attachment: titled \"Blum Collins ltr_6-16-17_rpc 2-21-18.pdf\"",{"$f":"HYPERLINK(\"H. Remainder/B-Emails/OCR-2018-03-12 Sackett-3-Blum Collins ltr_6-16-17.pdf\", \"Link\")","v":"Link"},27099,27107,9]
[null,"2018-03-13","Email from Marc Blain to Jodie Sackett and Joseph Decruyenaere regarding RE: SMMC exhibit from 2-21-18 Northlake RPC hearing",{"$f":"HYPERLINK(\"H. Remainder/B-Emails/OCR-2018-03-13 Blain RE_ SMMC exhibit from 2-21-18 Northlake RPC hearing.pdf\", \"Link\")","v":"Link"},27108,27112,5]
[null,"2018-03-13","Email from Jodie Sackett to Larry Newnam regarding RE: Northlake",{"$f":"HYPERLINK(\"H. Remainder/B-Emails/OCR-2018-03-13 Sackett RE_ Northlake3.pdf\", \"Link\")","v":"Link"},27113,27114,2]
[null,"2018-03-14","Email from Jodie Sackett to Mitch Glaser regarding Northlake conditions",{"$f":"HYPERLINK(\"H. Remainder/B-Emails/OCR-2018-03-14 Sackett NL conditions.pdf\", \"Link\")","v":"Link"},27115,27115,1]
[null,"2018-03-14","Email from Jodie Sackett to Larry Newnam regarding RE: Northlake",{"$f":"HYPERLINK(\"H. Remainder/B-Emails/OCR-2018-03-14 Sackett RE_NL-1.pdf\", \"Link\")","v":"Link"},27116,27117,2]
[null,null,"Attachment: titled \"Northlake LU Plan & Site Rendering.pdf\"",{"$f":"HYPERLINK(\"H. Remainder/B-Emails/OCR-2018-03-14 Sackett RE_NL-2-NL LU Plan and Site Rendering.pdf\", \"Link\")","v":"Link"},27118,27119,2]
[null,"2018-03-15","Email from Jodie Sackett to Rosie Ruiz regarding RE: Draft Minutes - February 21st - Northlake",{"$f":"HYPERLINK(\"H. Remainder/B-Emails/OCR-2018-03-15 Sackett RE_ Draft Minutes - February 21st - Northlake.pdf\", \"Link\")","v":"Link"},27120,27125,6]
[null,"2018-03-21","Email from John Arvin to Jodie Sackett regarding NLK Summary of Changes Made for Affordable Housing with Exhibit 2018-03-20.pdf",{"$f":"HYPERLINK(\"H. Remainder/B-Emails/OCR-2018-03-21 Arvin NLK-A1-Sum of Changes Made for Aff Housing.pdf\", \"Link\")","v":"Link"},27126,27126,1]
[null,null,"Attachment: titled \"NLK Summary of Changes Made for Affordable Housing with Exhibit 2018-03-20.pdf\"",{"$f":"HYPERLINK(\"H. Remainder/B-Emails/OCR-2018-03-21 Arvin NLK-A2-NLK Sum of Changes attachment.pdf\", \"Link\")","v":"Link"},27127,27128,2]
[null,"2018-03-21","Email from John Arvin to Jodie Sackett regarding RE: NLK Summary of Changes Made for Affordable Housing with Exhibit 2018-03-20.pdf",{"$f":"HYPERLINK(\"H. Remainder/B-Emails/OCR-2018-03-21 Arvin RE_ NLK Sum of Changes Made for Affordable Housing.pdf\", \"Link\")","v":"Link"},27129,27129,1]
[null,"2018-03-21","Email from Paul Edelman to Shirley Imsand regarding FW: Northlake Specific Plan CBD letter",{"$f":"HYPERLINK(\"H. Remainder/B-Emails/OCR-2018-03-21 Edelman FW_ NLSP CBD ltr-1.pdf\", \"Link\")","v":"Link"},27130,27130,1]
[null,null,"Attachment: Letter from J.P. Rose, Center for Biological Diversity, titled \"Northlake_CBR_Letter_and_Response.pdf\"",{"$f":"HYPERLINK(\"H. Remainder/B-Emails/OCR-2018-03-21 Edelman FW_ NLSP CBD ltr-2-NL_CBD_Ltr.pdf\", \"Link\")","v":"Link"},27131,27195,65]
[null,"2018-03-21","Email from Paul Edelman to Shirley Imsand regarding FW: Northlake Specific Plan CDFW letter",{"$f":"HYPERLINK(\"H. Remainder/B-Emails/OCR-2018-03-21 Edelman FW_ NLSP CDFW ltr-1.pdf\", \"Link\")","v":"Link"},27196,27196,1]
[null,null,"Attachment: Letter from Betty J. Courtney, CA Department of Fish and Wildlife, titled \"Northlake_CDFW_Letter_and_Response.pdf\"",{"$f":"HYPERLINK(\"H. Remainder/B-Emails/OCR-2018-03-21 Edelman FW_ NLSP CDFW ltr-2-NL_CDFW_Ltr.pdf\", \"Link\")","v":"Link"},27197,27227,31]
[null,"2018-03-21","Email from Jodie Sackett to Mitch Glaser regarding RE: Northlake chat",{"$f":"HYPERLINK(\"H. Remainder/B-Emails/OCR-2018-03-21 Sackett RE_ Northlake chat.pdf\", \"Link\")","v":"Link"},27228,27228,1]
[null,"2018-03-22","Email from Jodie Sackett to john (john@woodridgecapital.com) regarding Northlake village concept design comments",{"$f":"HYPERLINK(\"H. Remainder/B-Emails/OCR-2018-03-22 Sackett-1-Northlake village concept design comments.pdf\", \"Link\")","v":"Link"},27229,27230,2]
[null,null,"Attachment: titled \"Habersham live-work.jpg\"",{"$f":"HYPERLINK(\"H. Remainder/B-Emails/OCR-2018-03-22 Sackett-2-Habersham live-work.pdf\", \"Link\")","v":"Link"},27231,27231,1]
[null,null,"Attachment: titled \"LiveWorkUnit.jpg\"",{"$f":"HYPERLINK(\"H. Remainder/B-Emails/OCR-2018-03-22 Sackett-3-LiveWorkUnit.pdf\", \"Link\")","v":"Link"},27232,27232,1]
[null,null,"Attachment: titled \"mixed-use-dev_joint-live-work-units_ord.pdf\"",{"$f":"HYPERLINK(\"H. Remainder/B-Emails/OCR-2018-03-22 Sackett-4-mixed-use-dev_joint-live-work-units_ord.pdf\", \"Link\")","v":"Link"},27233,27234,2]
[null,null,"Attachment: titled \"Title 22_allowed uses in joint live-work units.docx\"",{"$f":"HYPERLINK(\"H. Remainder/B-Emails/OCR-2018-03-22 Sackett-5-Title 22_allowed uses in joint live-work units.pdf\", \"Link\")","v":"Link"},27235,27235,1]
[null,null,"Attachment: titled \"Northlake_village plan concept drawings_3-13-18_jodie.pdf\"",{"$f":"HYPERLINK(\"H. Remainder/B-Emails/OCR-2018-03-22 Sackett-6-Northlake_village plan concept drawings_3-13-18_jodie.pdf\", \"Link\")","v":"Link"},27236,27238,3]
[null,"2018-03-27","Email from Shirley Imsand to Paul Edelman regarding RE: Northlake Specific Plan CBD letter",{"$f":"HYPERLINK(\"H. Remainder/B-Emails/OCR-2018-03-27 Imsand RE_ Northlake Specific Plan CBD letter.pdf\", \"Link\")","v":"Link"},27239,27239,1]
[null,"2018-03-27","Email from Jodie Sackett to John Arvin regarding RE: Northlake village concept design comments",{"$f":"HYPERLINK(\"H. Remainder/B-Emails/OCR-2018-03-27 Sackett RE_ Northlake village concept design comments.pdf\", \"Link\")","v":"Link"},272340,272341,2]
[null,"2018-03-29","Email from John Arvin to Jodie Sackett regarding Northlake Response Letter to RPC",{"$f":"HYPERLINK(\"H. Remainder/B-Emails/OCR-2018-03-29 Arvin-A1-NL Response Letter to RPC.pdf\", \"Link\")","v":"Link"},272342,272342,1]
[null,null,"Attachment: titled \"NLK Letter to RPC 2018-03-29 Draft for Jodie.docx\"",{"$f":"HYPERLINK(\"H. Remainder/B-Emails/OCR-2018-03-29 Arvin-A2-NLK Ltr to RPC 2018-03-29 Draft.pdf\", \"Link\")","v":"Link"},272343,27247,5]
[null,"2018-03-29","Email from John Arvin to Jodie Sackett regarding NLK Revised Northlake Tram Route Exhibit 2018-03-29 for Jodie.pdf",{"$f":"HYPERLINK(\"H. Remainder/B-Emails/OCR-2018-03-29 Arvin-B1-NLK Rev NL Tram Rte Ex for Jodie.pdf\", \"Link\")","v":"Link"},27248,27248,1]
[null,null,"Attachment: titled \"NLK Revised Northlake Tram Route Exhibit 2018-03-29 for Jodie.pdf\"",{"$f":"HYPERLINK(\"H. Remainder/B-Emails/OCR-2018-03-29 Arvin-B2-NLK Rev NL Tram Rte Ex for Jodie.pdf\", \"Link\")","v":"Link"},27249,27249,1]
[null,"2018-03-29","Email from John Arvin to Jodie Sackett regarding Northlake Revised Land Use Table",{"$f":"HYPERLINK(\"H. Remainder/B-Emails/OCR-2018-03-29 Arvin-C1-NL Revised Land Use Table.pdf\", \"Link\")","v":"Link"},27250,27250,1]
[null,null,"Attachment: titled \"NLK Revised Land Use Table 2018-03-29 for Jodie.pdf\"",{"$f":"HYPERLINK(\"H. Remainder/B-Emails/OCR-2018-03-29 Arvin-C2-NLK Revised Land Use Table 2018-03-29 for Jodie.pdf\", \"Link\")","v":"Link"},27251,27251,1]
[null,"2018-03-29","Email from John Arvin to Jodie Sackett regarding Northlake Site Plan",{"$f":"HYPERLINK(\"H. Remainder/B-Emails/OCR-2018-03-29 Arvin-D1-NL Site Plan.pdf\", \"Link\")","v":"Link"},27252,27252,1]
[null,null,"Attachment: titled \"NLK Plotting for Affordable MU and LW 2018-03-29 Draft for Jodie.pdf\"",{"$f":"HYPERLINK(\"H. Remainder/B-Emails/OCR-2018-03-29 Arvin-D2-NLK Plotting for Affordable MU-LW Draft.pdf\", \"Link\")","v":"Link"},27253,27254,2]
[null,"2018-03-29","Email from John Arvin to Jodie Sackett regarding Northlake Wildlife Connectivity",{"$f":"HYPERLINK(\"H. Remainder/B-Emails/OCR-2018-03-29 Arvin-E1-NL Wildlife Connectivity.pdf\", \"Link\")","v":"Link"},27255,27255,1]
[null,null,"Attachment: titled \"NLK Wildlife Connectivity Exhibit 2018-03-19.pdf\"",{"$f":"HYPERLINK(\"H. Remainder/B-Emails/OCR-2018-03-29 Arvin-E2-NLK Wildlife Connectivity Exhibit 2018-03-19.pdf\", \"Link\")","v":"Link"},27256,27256,1]
[null,"2018-04-02","Email from Scott Ashlock to Jodie Sackett regarding Updated NorthLake materials package",{"$f":"HYPERLINK(\"H. Remainder/B-Emails/OCR-2018-04-02 Ashlock-1-Updated NL materials package.pdf\", \"Link\")","v":"Link"},27257,27257,1]
[null,null,"Attachment: titled \"2018-04-02_Northlake Village_Site Plan-rev.pdf\"",{"$f":"HYPERLINK(\"H. Remainder/B-Emails/OCR-2018-04-02 Ashlock-2-2018-04-02_NL Village_Site Plan-rev.pdf\", \"Link\")","v":"Link"},27258,27259,2]
[null,null,"Attachment: titled \"20180402 Design Guidebook-draft.pdf\"",{"$f":"HYPERLINK(\"H. Remainder/B-Emails/OCR-2018-04-02 Ashlock-3-20180402 Design Guidebook-draft.pdf\", \"Link\")","v":"Link"},27260,27335,76]
[null,null,"Attachment: titled \"Land Use Table.pdf\"",{"$f":"HYPERLINK(\"H. Remainder/B-Emails/OCR-2018-04-02 Ashlock-4-Land Use Table.pdf\", \"Link\")","v":"Link"},27336,27336,1]
[null,"2018-04-02","Email from Joseph Decruyenaere to joedecruyenaere@gmail.com regarding Fwd: Northlake Wildlife Connectivity",{"$f":"HYPERLINK(\"H. Remainder/B-Emails/OCR-2018-04-02 Decruyenaere-1-Fwd_ Northlake Wildlife Connectivity1.pdf\", \"Link\")","v":"Link"},27337,27338,2]
[null,null,"Attachment: titled \"NLK Wildlife Connectivity Exhibit 2018-03-19.pdf\"",{"$f":"HYPERLINK(\"H. Remainder/B-Emails/OCR-2018-04-02 Decruyenaere-2-NLK Wildlife Connectivity Exhibit 2018-03-19.pdf\", \"Link\")","v":"Link"},27339,27339,1]
[null,"2018-04-02","Email from Steven Jones to Jodie Sackett regarding NLK Letter to RPC 2018-03-29 Draft for Jodie",{"$f":"HYPERLINK(\"H. Remainder/B-Emails/OCR-2018-04-02 Jones-1-NLK Letter to RPC 2018-03-29 Draft for Jodie.pdf\", \"Link\")","v":"Link"},27340,27340,1]
[null,null,"Attachment: titled \"NLK Letter to RPC 2018-03-29 Draft for Jodie.docx\"",{"$f":"HYPERLINK(\"H. Remainder/B-Emails/OCR-2018-04-02 Jones-2-NLK Letter to RPC 2018-03-29 Draft for Jodie.pdf\", \"Link\")","v":"Link"},27341,27345,5]
[null,"2018-04-02","Email from Jodie Sackett to John Arvin regarding Northlake Errata doc and mitigation measure for noise",{"$f":"HYPERLINK(\"H. Remainder/B-Emails/OCR-2018-04-02 Sackett Northlake Errata doc and mitigation measure for noise.pdf\", \"Link\")","v":"Link"},27346,27346,1]
[null,"2018-04-02","Email from Jodie Sackett to John Arvin regarding RE: Northlake Affordable Alternative",{"$f":"HYPERLINK(\"H. Remainder/B-Emails/OCR-2018-04-02 Sackett-A1-RE_ NLAffordable Alt1.pdf\", \"Link\")","v":"Link"},27347,27348,2]
[null,null,"Attachment: titled \"NLK Letter to RPC 2018-03-29_DRP edits 4-2-18.docx\"",{"$f":"HYPERLINK(\"H. Remainder/B-Emails/OCR-2018-04-02 Sackett-A2-NLK Letter to RPC 2018-03-29_DRP edits 4-2-18.pdf\", \"Link\")","v":"Link"},27349,27353,5]
[null,"2018-04-02","Email from Jodie Sackett to John Arvin regarding RE: Northlake Affordable Alternative",{"$f":"HYPERLINK(\"H. Remainder/B-Emails/OCR-2018-04-02 Sackett-B1-RE_ NL Affordable Alt2.pdf\", \"Link\")","v":"Link"},27354,27355,2]
[null,"2018-04-03","Email from Joseph Decruyenaere to Jodie Sackett regarding Fwd: Northlake Wildlife Connectivity",{"$f":"HYPERLINK(\"H. Remainder/B-Emails/OCR-2018-04-03 Decruyenaere Fwd_ Northlake Wildlife Connectivity.pdf\", \"Link\")","v":"Link"},27356,27358,3]
[null,"2018-04-03","Email from Jodie Sackett to John Arvin regarding RE: Northlake CEQA Findings, SOC, MMRP",{"$f":"HYPERLINK(\"H. Remainder/B-Emails/OCR-2018-04-03 Sackett RE_ NL CEQA Findings-SOC-MMRP.pdf\", \"Link\")","v":"Link"},27359,27360,2]
[null,"2018-04-03","Email from Jodie Sackett to John Arvin regarding RE: Northlake Wildlife Connectivity",{"$f":"HYPERLINK(\"H. Remainder/B-Emails/OCR-2018-04-03 Sackett RE_ NL Wildlife Connectivity.pdf\", \"Link\")","v":"Link"},27361,27361,1]
[null,"2018-04-03","Email from Jodie Sackett to John Arvin regarding RE: NLK Revised Northlake Tram Route Exhibit 2018-03-29 for Jodie.pdf",{"$f":"HYPERLINK(\"H. Remainder/B-Emails/OCR-2018-04-03 Sackett RE_ NLK Revised Northlake Tram Route Exh for Jodie.pdf\", \"Link\")","v":"Link"},27362,27363,2]
[null,"2018-04-03","Email from Jodie Sackett to Scott Ashlock regarding RE: Updated NorthLake materials package",{"$f":"HYPERLINK(\"H. Remainder/B-Emails/OCR-2018-04-03 Sackett RE_ Updated-1-NL materials package.pdf\", \"Link\")","v":"Link"},27364,27368,5]
[null,null,"Attachment: titled \"village sign 1.jpg\"",{"$f":"HYPERLINK(\"H. Remainder/B-Emails/OCR-2018-04-03 Sackett RE_ Updated-2-village sign 1.pdf\", \"Link\")","v":"Link"},27369,27369,1]
[null,null,"Attachment: titled \"Broadmead-Village-9.jpg\"",{"$f":"HYPERLINK(\"H. Remainder/B-Emails/OCR-2018-04-03 Sackett RE_ Updated-3-Broadmead-Village-9.pdf\", \"Link\")","v":"Link"},27370,27370,1]
[null,null,"Attachment: titled \"Vestry Highland.jpg\"",{"$f":"HYPERLINK(\"H. Remainder/B-Emails/OCR-2018-04-03 Sackett RE_ Updated-4-Vestry Highland.pdf\", \"Link\")","v":"Link"},27371,27371,1]
[null,"2018-04-04","Email from John Arvin to Jodie Sackett regarding Northlake Response Letter to RPC Final",{"$f":"HYPERLINK(\"H. Remainder/B-Emails/OCR-2018-04-04 Arvin NL-1-Response Letter to RPC Final.pdf\", \"Link\")","v":"Link"},27372,27372,1]
[null,null,"Attachment: titled \"NLK Letter to RPC 2018-04-03 Final.pdf\"",{"$f":"HYPERLINK(\"H. Remainder/B-Emails/OCR-2018-04-04 Arvin NL-2-NLK Ltr to RPC 2018-04-03 Final.pdf\", \"Link\")","v":"Link"},27373,27377,5]
[null,"2018-04-04","Email from John Arvin to Jodie Sackett regarding Pages from 20180404 Design Guidebook for Jodie 4-4-18.pdf",{"$f":"HYPERLINK(\"H. Remainder/B-Emails/OCR-2018-04-04 Arvin Pages-A1-from Design Guidebook for Jodie.pdf\", \"Link\")","v":"Link"},27378,27378,1]
[null,null,"Attachment: titled \"Pages from 20180404 Design Guidebook for Jodie 4-4-18.pdf\"",{"$f":"HYPERLINK(\"H. Remainder/B-Emails/OCR-2018-04-04 Arvin Pages-A2-Pages from Design Guidebook for Jodie.pdf\", \"Link\")","v":"Link"},27379,27379,1]
[null,"2018-04-04","Email from John Arvin to Jodie Sackett regarding RE: Northlake Affordable Alternative",{"$f":"HYPERLINK(\"H. Remainder/B-Emails/OCR-2018-04-04 Arvin RE-Northlake Affordable Alternative.pdf\", \"Link\")","v":"Link"},27380,27381,2]
[null,"2018-04-04","Email from Scott Ashlock to Jodie Sackett regarding Updated Design Guidebook",{"$f":"HYPERLINK(\"H. Remainder/B-Emails/OCR-2018-04-04 Ashlock_1-Updated Design Guidebook.pdf\", \"Link\")","v":"Link"},27382,27382,1]
[null,null,"Attachment: titled \"NLK Summary of Changes Made for Affordable Housing 2018-04-04 with Exhibit.pdf\"",{"$f":"HYPERLINK(\"H. Remainder/B-Emails/OCR-2018-04-04 Ashlock_2-NLK Sum of Changes for Aff Housing with Exh.pdf\", \"Link\")","v":"Link"},27383,27384,2]
[null,null,"Attachment: titled \"20180404 Design Guidebook-draft.pdf\"",{"$f":"HYPERLINK(\"H. Remainder/B-Emails/OCR-2018-04-04 Ashlock_3-Design Guidebook-draft.pdf\", \"Link\")","v":"Link"},27385,27460,76]
[null,"2018-04-04","Email from Joan Kelly to Jodie Sackett to regarding NorthLake Errata",{"$f":"HYPERLINK(\"H. Remainder/B-Emails/OCR-2018-04-04 Kelly NL Errata-1.pdf\", \"Link\")","v":"Link"},27461,27461,1]
[null,null,"Attachment: titled \"Errata No. 2.docx\"",{"$f":"HYPERLINK(\"H. Remainder/B-Emails/OCR-2018-04-04 Kelly NL Errata-2-Errata No. 2.pdf\", \"Link\")","v":"Link"},27462,27474,13]
[null,null,"Attachment: titled \"Revised Site Plan Exhibit for Errata.pdf\"",{"$f":"HYPERLINK(\"H. Remainder/B-Emails/OCR-2018-04-04 Kelly NL Errata-3-Rev Site Plan Exh for Errata.pdf\", \"Link\")","v":"Link"},27475,27476,2]
[null,null,"Attachment: titled \"Attachment A - Sikand Memo.pdf\"",{"$f":"HYPERLINK(\"H. Remainder/B-Emails/OCR-2018-04-04 Kelly NL Errata-4-Att A - Sikand Memo.pdf\", \"Link\")","v":"Link"},27477,27477,1]
[null,null,"Attachment: titled \"Attachment B1- Wall Locations.pdf\"",{"$f":"HYPERLINK(\"H. Remainder/B-Emails/OCR-2018-04-04 Kelly NL Errata-5-Att B1- Wall Locations.pdf\", \"Link\")","v":"Link"},27478,27478,1]
[null,null,"Attachment: titled \"Attachment B2 - School Noise Calculations.pdf\"",{"$f":"HYPERLINK(\"H. Remainder/B-Emails/OCR-2018-04-04 Kelly NL Errata-6-Att B2 - School Noise Calc.pdf\", \"Link\")","v":"Link"},27479,27479,1]
[null,null,"Attachment: titled \"Attachment C - Supplemental Traffic Analysis.pdf\"",{"$f":"HYPERLINK(\"H. Remainder/B-Emails/OCR-2018-04-04 Kelly NL Errata-7-Att C - Supp Traffic Analysis.pdf\", \"Link\")","v":"Link"},27480,27489,10]
[null,"2018-04-04","Email from Joan Kelly to Jodie Sackett regarding NorthLake Findings and SOC",{"$f":"HYPERLINK(\"H. Remainder/B-Emails/OCR-2018-04-04 Kelly NL Findings and SOC-1.pdf\", \"Link\")","v":"Link"},27490,27490,1]
[null,null,"Attachment: titled \"CEQA Findings and SOC-4-4-18.docx\"",{"$f":"HYPERLINK(\"H. Remainder/B-Emails/OCR-2018-04-04 Kelly NL Findings and SOC-2-CEQA Findings.pdf\", \"Link\")","v":"Link"},27491,27705,215]
[null,"2018-04-04","Email from Joan Kelly to Jodie Sackett regarding NorthLake MMRP",{"$f":"HYPERLINK(\"H. Remainder/B-Emails/OCR-2018-04-04 Kelly NL MMRP-1.pdf\", \"Link\")","v":"Link"},27706,27706,1]
[null,null,"Attachment: titled \"Draft MMRP-040418.docx\"",{"$f":"HYPERLINK(\"H. Remainder/B-Emails/OCR-2018-04-04 Kelly NL MMRP-2-Draft MMRP.pdf\", \"Link\")","v":"Link"},27707,27744,38]
[null,"2018-04-04","Email from Joan Kelly to Jodie Sackett regarding NorthLake - Smallwood letter Response",{"$f":"HYPERLINK(\"H. Remainder/B-Emails/OCR-2018-04-04 Kelly NL Smallwood-1-ltr Response.pdf\", \"Link\")","v":"Link"},27745,27745,1]
[null,null,"Attachment: titled \"Northlake Smallwood Response to plannng comment letter 040318 Clean.docx\"",{"$f":"HYPERLINK(\"H. Remainder/B-Emails/OCR-2018-04-04 Kelly NL Smallwood-2-Response to plannng ltr-CLEAN.pdf\", \"Link\")","v":"Link"},27746,27769,24]
[null,"2018-04-04","Email from Jodie Sackett to Steven Jones regarding Northlake draft CUP conditions - revised for review",{"$f":"HYPERLINK(\"H. Remainder/B-Emails/OCR-2018-04-04 Sackett-1-Northlake draft CUP conditions - revised FOR REVIEW.pdf\", \"Link\")","v":"Link"},27770,27770,1]
[null,null,"Attachment: titled \"Northlake_CUP Conditions revised jodie_ 4-3-18.docx\"",{"$f":"HYPERLINK(\"H. Remainder/B-Emails/OCR-2018-04-04 Sackett-2-Northlake_CUP Conditions revised jodie_ 4-3-18.pdf\", \"Link\")","v":"Link"},27771,27783,13]
[null,"2018-04-05","Email from John Arvin to Jodie Sackett regarding RE: Northlake Response Letter to RPC Final",{"$f":"HYPERLINK(\"H. Remainder/B-Emails/OCR-2018-04-05 Arvin RE_ Northlake Response Letter to RPC Final.pdf\", \"Link\")","v":"Link"},27784,27785,2]
[null,"2018-04-05","Email from Scott Ashlock to Jodie Sackett regarding RE: Revised figure",{"$f":"HYPERLINK(\"H. Remainder/B-Emails/OCR-2018-04-05 Ashlock RE_1-Revised figure.pdf\", \"Link\")","v":"Link"},27786,27787,2]
[null,null,"Attachment: titled \"20180405 Design Guidebook-draft.pdf\"",{"$f":"HYPERLINK(\"H. Remainder/B-Emails/OCR-2018-04-05 Ashlock RE_2-20180405 Design Guidebook-draft.pdf\", \"Link\")","v":"Link"},27788,27863,76]
[null,null,"Attachment: titled \"NLK Summary of Changes Made for Affordable Housing 2018-04-05 with Exhib.pdf\"",{"$f":"HYPERLINK(\"H. Remainder/B-Emails/OCR-2018-04-05 Ashlock RE_3-NLK Sum of Changes for Aff Housing with Exh.pdf\", \"Link\")","v":"Link"},27864,27865,2]
[null,"2018-04-05","Email from Jodie Sackett to john (john@woodridgecapital.com) regarding Northlake documents delivered & uploaded",{"$f":"HYPERLINK(\"H. Remainder/B-Emails/OCR-2018-04-05 Sackett NL docs delivered and uploaded.pdf\", \"Link\")","v":"Link"},27866,27866,1]
[null,"2018-04-05","Email from Jodie Sackett to Steven Jones regarding Northlake revised draft findings for REVIEW",{"$f":"HYPERLINK(\"H. Remainder/B-Emails/OCR-2018-04-05 Sackett NL rev-1-draft findings for REVIEW.pdf\", \"Link\")","v":"Link"},27867,27867,1]
[null,null,"Attachment: titled \"Northlake CUP Findings_revised.docx\"",{"$f":"HYPERLINK(\"H. Remainder/B-Emails/OCR-2018-04-05 Sackett NL rev-2-Northlake CUP Findings_revised.pdf\", \"Link\")","v":"Link"},27868,27874,7]
[null,null,"Attachment: titled \"Northlake TR Findings_revised.docx\"",{"$f":"HYPERLINK(\"H. Remainder/B-Emails/OCR-2018-04-05 Sackett NL rev-3-Northlake TR Findings_revised.pdf\", \"Link\")","v":"Link"},27875,27883,9]
[null,null,"Attachment: titled \"Northlake PM Findings_revised.docx\"",{"$f":"HYPERLINK(\"H. Remainder/B-Emails/OCR-2018-04-05 Sackett NL rev-4-Northlake PM Findings_revised.pdf\", \"Link\")","v":"Link"},27884,27890,7]
[null,"2018-04-05","Email from Jodie Sackett to John Arvin regarding RE: NorthLake Errata",{"$f":"HYPERLINK(\"H. Remainder/B-Emails/OCR-2018-04-05 Sackett RE_ NL Errata.pdf\", \"Link\")","v":"Link"},27891,27893,3]
[null,"2018-04-05","Email from Jodie Sackett to Joseph Decruyenaere regarding RE: Northlake wildlife movement/connectivity",{"$f":"HYPERLINK(\"H. Remainder/B-Emails/OCR-2018-04-05 Sackett RE_ NL wildlife movement_connectivity.pdf\", \"Link\")","v":"Link"},27894,27894,1]
[null,"2018-04-05","Email from Jodie Sackett to Steven Jones regarding Rest of NorthLake conditions for your check",{"$f":"HYPERLINK(\"H. Remainder/B-Emails/OCR-2018-04-05 Sackett Rest of NL conditions-1.pdf\", \"Link\")","v":"Link"},27895,27895,1]
[null,null,"Attachment: titled \"Northlake_PM Conditions_revised.docx\"",{"$f":"HYPERLINK(\"H. Remainder/B-Emails/OCR-2018-04-05 Sackett Rest of NL conditions-2-NL_PM.pdf\", \"Link\")","v":"Link"},27896,27898,3]
[null,null,"Attachment: titled \"Northlake_TR Conditions_revised jodie.docx\"",{"$f":"HYPERLINK(\"H. Remainder/B-Emails/OCR-2018-04-05 Sackett Rest of NL conditions-3-NL_ TR.pdf\", \"Link\")","v":"Link"},27899,27908,10]
[null,"2018-04-12","Email from John Arvin to Jodie Sackett regarding Re: Responses to Comments - Post-Hearing (link)",{"$f":"HYPERLINK(\"H. Remainder/B-Emails/OCR-2018-04-12 Arvin Re_ Responses to Comments - Post-Hearing link.pdf\", \"Link\")","v":"Link"},27909,27910,2]
[null,"2018-04-12","Email from Joan Kelly to Jodie Sackett regarding Response to Comment Letter for NorthLake",{"$f":"HYPERLINK(\"H. Remainder/B-Emails/OCR-2018-04-12 Kelly Response to Comment Letter for NorthLake.pdf\", \"Link\")","v":"Link"},27911,27911,1]
[null,"2018-04-16","Email from Colyn Kilmer to Jodie Sackett regarding Comments on FSEIR for NorthLake Specific Plan",{"$f":"HYPERLINK(\"H. Remainder/B-Emails/OCR-2018-04-16 Kilmer-A1-Comments on FSEIR for NorthLake Specific Plan.pdf\", \"Link\")","v":"Link"},27912,27912,1]
[null,null,"Attachment: titled \"4-16-18 CBD & FSCR Comments Northlake FSEIR.PDF\"",{"$f":"HYPERLINK(\"H. Remainder/B-Emails/OCR-2018-04-16 Kilmer-A2-4-16-18 CBD and FSCR Comments NL FSEIR.pdf\", \"Link\")","v":"Link"},27913,27956,44]
[null,"2018-04-16","Email from kristeen@scwildlands.org to Jodie Sackett regarding Proposed Northlake Project",{"$f":"HYPERLINK(\"H. Remainder/B-Emails/OCR-2018-04-16 Penrod-1-Proposed Northlake Project.pdf\", \"Link\")","v":"Link"},27957,27957,1]
[null,null,"Attachment: titled \"NorthLake_SCWildlands.pdf\"",{"$f":"HYPERLINK(\"H. Remainder/B-Emails/OCR-2018-04-16 Penrod-2-NorthLake_SCWildlands.pdf\", \"Link\")","v":"Link"},27958,27962,5]
[null,"2018-04-17","Email from Rosie Ruiz to Jodie Sackett regarding Fwd: Comment letter from SMMC for Commission Tomorrow on North Lake plus five attachments",{"$f":"HYPERLINK(\"H. Remainder/B-Emails/OCR-2018-04-17 Ruiz-1-Fwd_Ltr from SMMC for Commission on NL plus five att.pdf\", \"Link\")","v":"Link"},27963,27963,1]
[null,null,"Attachment: titled \"Northlake SMMC attachment A 4-17-18.pdf\"",{"$f":"HYPERLINK(\"H. Remainder/B-Emails/OCR-2018-04-17 Ruiz-2-NL SMMC att A  4-17-18.pdf\", \"Link\")","v":"Link"},27964,27964,1]
[null,null,"Attachment: titled \"Northlake SMMC attachment B 4-17-18.pdf\"",{"$f":"HYPERLINK(\"H. Remainder/B-Emails/OCR-2018-04-17 Ruiz-3-NL SMMC att B 4-17-18.pdf\", \"Link\")","v":"Link"},27965,27965,1]
[null,null,"Attachment: titled \"Northlake SMMC attachment C 4-17-18.pdf\"",{"$f":"HYPERLINK(\"H. Remainder/B-Emails/OCR-2018-04-17 Ruiz-4-NL SMMC att C 4-17-18.pdf\", \"Link\")","v":"Link"},27966,27966,1]
[null,null,"Attachment: titled \"Northlake SMMC attachment D 4-17-18.pdf\"",{"$f":"HYPERLINK(\"H. Remainder/B-Emails/OCR-2018-04-17 Ruiz-5-NL SMMC att D 4-17-18.pdf\", \"Link\")","v":"Link"},27967,27967,1]
[null,null,"Attachment: titled \"Northlake SMMC attachment E 4-17-18.pdf\"",{"$f":"HYPERLINK(\"H. Remainder/B-Emails/OCR-2018-04-17 Ruiz-6-NL SMMC att E  4-17-18.pdf\", \"Link\")","v":"Link"},27968,27968,1]
[null,null,"Attachment: titled \"Northlake SMMC comment letter 4-17-18.pdf\"",{"$f":"HYPERLINK(\"H. Remainder/B-Emails/OCR-2018-04-17 Ruiz-7-NL SMMC comment ltr 4-17-18.pdf\", \"Link\")","v":"Link"},27969,27972,4]
[null,"2018-04-17","Email from Jodie Sackett to Mitch Glaser regarding FW: Comments on FSEIR for NorthLake Specific Plan",{"$f":"HYPERLINK(\"H. Remainder/B-Emails/OCR-2018-04-17 Sackett FW_1-Comments on FSEIR for NorthLake Specific Plan.pdf\", \"Link\")","v":"Link"},27973,27973,1]
[null,null,"Attachment: Letter from J.P. Rose and Tiffany Yap,Center for Biological Diversity and Friends of the Santa Clara Rivertitled \"4-16-18 CBD & FSCR Comments Northlake FSEIR.PDF\"",{"$f":"HYPERLINK(\"H. Remainder/B-Emails/OCR-2018-04-17 Sackett FW_2-4-16-18 CBD and FSCR Comments Northlake FSEIR.pdf\", \"Link\")","v":"Link"},27974,28017,44]
[null,"2018-04-17","Email from Jodie Sackett to Jennifer Marks regarding Northlake 2nd comment letter",{"$f":"HYPERLINK(\"H. Remainder/B-Emails/OCR-2018-04-17 Sackett Northlake-1-2nd comment letter.pdf\", \"Link\")","v":"Link"},28018,28018,1]
[null,null,"Attachment: titled \"NorthLake_SCWildlands.pdf\"",{"$f":"HYPERLINK(\"H. Remainder/B-Emails/OCR-2018-04-17 Sackett Northlake-2-NorthLake_SCWildlands.pdf\", \"Link\")","v":"Link"},28019,28023,5]
[null,"2018-04-17","Email from Jodie Sackett to Colyn Kilmer regarding RE: Comments on FSEIR for NorthLake Specific Plan",{"$f":"HYPERLINK(\"H. Remainder/B-Emails/OCR-2018-04-17 Sackett RE_Comments on FSEIR for NorthLake Specific Plan.pdf\", \"Link\")","v":"Link"},28024,28025,2]
[null,"2018-04-17","Email from Jodie Sackett to Jennifer Marks regarding Northlake comment letter",{"$f":"HYPERLINK(\"H. Remainder/B-Emails/OCR-2018-04-17 Sackett-1-Northlake comment letter.pdf\", \"Link\")","v":"Link"},28026,28026,1]
[null,null,"Attachment: titled \"4-16-18 CBD & FSCR Comments Northlake FSEIR.PDF\"",{"$f":"HYPERLINK(\"H. Remainder/B-Emails/OCR-2018-04-17 Sackett-2-2018-04-17 Sackett_2-4-16-18 CBD and FSCR Comments NL FSEIR.pdf\", \"Link\")","v":"Link"},28027,28070,44]
[null,"2018-04-18","Email from Jennifer Marks to Jodie Sackett regarding Notice of Determination",{"$f":"HYPERLINK(\"H. Remainder/B-Emails/OCR-2018-04-18 Marks-1-Notice of Determination.pdf\", \"Link\")","v":"Link"},28071,28071,1]
[null,null,"Attachment: titled \"NOD.pdf\"",{"$f":"HYPERLINK(\"H. Remainder/B-Emails/OCR-2018-04-18 Marks-2-NOD.pdf\", \"Link\")","v":"Link"},28072,28072,1]
[null,"2018-04-18","Email from Chris Perry to Amy Bodek regarding RE: Northlake at RPC",{"$f":"HYPERLINK(\"H. Remainder/B-Emails/OCR-2018-04-18 Perry RE_ Northlake at RPC.pdf\", \"Link\")","v":"Link"},28073,28073,1]
[null,"2018-04-19","Email from Steven Jones to Jodie Sackett regarding Northlake_Approval_Letter_4-19-18",{"$f":"HYPERLINK(\"H. Remainder/B-Emails/OCR-2018-04-19 Jones-1-Northlake_Approval_Letter_4-19-18.pdf\", \"Link\")","v":"Link"},28074,28074,1]
[null,null,"Attachment: titled \"Northlake_Approval_Letter_4-19-18.docx\"",{"$f":"HYPERLINK(\"H. Remainder/B-Emails/OCR-2018-04-19 Jones-2-Northlake_Approval_Letter_4-19-18.pdf\", \"Link\")","v":"Link"},28075,28076,2]
[null,"2018-04-19","Email from Jodie Sackett to john (john@woodridgecapital.com) regarding Northlake approval package",{"$f":"HYPERLINK(\"H. Remainder/B-Emails/OCR-2018-04-19 Sackett NL-1-approval package.pdf\", \"Link\")","v":"Link"},28077,28077,1]
[null,null,"Attachment: titled\"Northlake RPC Approval Package_4-19-18.pdf\"",{"$f":"HYPERLINK(\"H. Remainder/B-Emails/OCR-2018-04-19 Sackett NL-2-NL RPC Approval Package_4-19-18.pdf\", \"Link\")","v":"Link"},28078,28219,142]
[null,"2018-04-19","Email from Jodie Sackett to Steven Jones regarding RE: Findings review for yesterday's RPC - Approval package going out today sent at 1:54 pm",{"$f":"HYPERLINK(\"H. Remainder/B-Emails/OCR-2018-04-19 Sackett-A1-RE_ Findings rev for yest RPC 154 .pdf\", \"Link\")","v":"Link"},28220,28221,2]
[null,null,"Attachment: titled \"Northlake_Approval_Letter_4-19-18.docx\"",{"$f":"HYPERLINK(\"H. Remainder/B-Emails/OCR-2018-04-19 Sackett-A2-Northlake_Approval_Letter_4-19-18.pdf\", \"Link\")","v":"Link"},28222,28223,2]
[null,"2018-04-19","Email from Jodie Sackett to Steven Jones regarding RE: Findings review for yesterday's RPC - Approval package going out today sent at 3:31 pm",{"$f":"HYPERLINK(\"H. Remainder/B-Emails/OCR-2018-04-19 Sackett-B1-RE_ Findings rev for yest RPC 331.pdf\", \"Link\")","v":"Link"},28224,28225,2]
[null,null,"Attachment: titled \"Northlake NOD_final 4-19-18.pdf\"",{"$f":"HYPERLINK(\"H. Remainder/B-Emails/OCR-2018-04-19 Sackett-B2-Northlake NOD_final.pdf\", \"Link\")","v":"Link"},28226,28226,1]
[null,"2018-04-23","Email from John Arvin to Mitch Glaser regarding RE: Northlake Appeal Period",{"$f":"HYPERLINK(\"H. Remainder/B-Emails/OCR-2018-04-23 Arvin RE_ Northlake Appeal Period1.pdf\", \"Link\")","v":"Link"},28227,28228,2]
[null,"2018-04-23","Email from Amy Bodek to Dennis Slavin, Sorin Alexanian, and Mitch Glaser regarding Northlake",{"$f":"HYPERLINK(\"H. Remainder/B-Emails/OCR-2018-04-23 Bodek Northlake3.pdf\", \"Link\")","v":"Link"},28229,28229,1]
[null,"2018-04-23","Email from Rosie Ruiz to John Rose regarding RE: Appeal Procedure to Board of Supervisors",{"$f":"HYPERLINK(\"H. Remainder/B-Emails/OCR-2018-04-23 Ruiz RE_ Appeal Procedure to Board of Supervisors.pdf\", \"Link\")","v":"Link"},28230,28231,2]
[null,"2018-04-25","Email from Mitch Glaser to John Arvin regarding FW: Appeal filed for Project No. R2015-00408-(5)",{"$f":"HYPERLINK(\"H. Remainder/B-Emails/OCR-2018-04-25 Glaser FW_ A1-Appeal filed for Project No. R2015-00408-5.pdf\", \"Link\")","v":"Link"},28232,28233,2]
[null,null,"Attachment: Appeal application from Craig M. Collins, Golden State Environmental Justice Allicance (GSEJA), titled  \"Appeal R2015-00408-(5).pdf\"",{"$f":"HYPERLINK(\"H. Remainder/B-Emails/OCR-2018-04-25 Glaser FW_ A2-Appeal R2015-00408-50.pdf\", \"Link\")","v":"Link"},28234,28309,76]
[null,null,"Attachment: titled \"Appeal R2015-00408-(5) project approval.pdf\"",{"$f":"HYPERLINK(\"H. Remainder/B-Emails/OCR-2018-04-25 Glaser FW_ A3-Appeal R2015-00408-5 project approval.pdf\", \"Link\")","v":"Link"},28310,28311,2]
[null,"2018-04-27","Email from Mitch Glaser to John Arvin regarding FW: Additional Appeal filed for Project No. R2015-00408-(5)",{"$f":"HYPERLINK(\"H. Remainder/B-Emails/OCR-2018-04-27 Glaser FW_ B1-Addl Appeal filed for Project No. R2015-00408-5.pdf\", \"Link\")","v":"Link"},28312,28313,2]
[null,null,"Attachment: Appeal application from Paul Edelman, Santa Monica Mountains Conservancy (SMMC), titled  \"4-27-18 Appeal R2015-00408-(5).pdf\"",{"$f":"HYPERLINK(\"H. Remainder/B-Emails/OCR-2018-04-27 Glaser FW_ B2-Appeal R2015-00408-5.pdf\", \"Link\")","v":"Link"},28314,28370,57]
[null,null,"Attachment: titled \"Appeal R2015-00408-(5) project approval.pdf\"",{"$f":"HYPERLINK(\"H. Remainder/B-Emails/OCR-2018-04-27 Glaser FW_ B3-Appeal R2015-00408-5 project approval.pdf\", \"Link\")","v":"Link"},28371,28372,2]
[null,"2018-04-30","Email from John Arvin to Jodie Sackett regarding Re: Northlake Appeal Period",{"$f":"HYPERLINK(\"H. Remainder/B-Emails/OCR-2018-04-30 Arvin Re_ Northlake Appeal Period.pdf\", \"Link\")","v":"Link"},28373,28373,1]
[18,"2018-04-30","Email from Francisco Garibay to Katrina Peraza et al. regarding 3rd Appeal filed for Project No. R2015-00408-(5) Northlake Associates",{"$f":"HYPERLINK(\"H. Remainder/B-Emails/OCR-2018-04-30 Garibay 3rd Appeal filed for Project No. R2015-00408-5 NL Associates.pdf\", \"Link\")","v":"Link"},28374,28374,1]
[null,"2018-05-01","Email from Patricia Hachiya to Iris Chi regarding Re: 3rd Appeal filed for Project No. R2015-00408-(5) Northlake Associates sent at 7:55 am",{"$f":"HYPERLINK(\"H. Remainder/B-Emails/OCR-2018-05-01-A-Hachiya Re_ 3rd Appeal filed-NL.pdf\", \"Link\")","v":"Link"},28375,28377,3]
[null,"2018-05-01","Email from Joseph Decruyenaere to Patricia Hachiya regarding Re: 3rd Appeal filed for Project No. R2015-00408-(5) Northlake Associates sent at 5:55 pm",{"$f":"HYPERLINK(\"H. Remainder/B-Emails/OCR-2018-05-01-B-Decruyenaere Re_ 3rd Appeal filed-NL.pdf\", \"Link\")","v":"Link"},28378,28380,3]
[null,"2018-05-02","Email from Jodie Sackett to Laura Shell regarding RE: northlake project grading",{"$f":"HYPERLINK(\"H. Remainder/B-Emails/OCR-2018-05-02 Sackett RE_ northlake project grading.pdf\", \"Link\")","v":"Link"},28381,28381,1]
[null,"2018-05-03","Email from Jodie Sackett to Jennifer Marks regarding FW: Northlake appeal letters",{"$f":"HYPERLINK(\"H. Remainder/B-Emails/OCR-2018-05-03 Sackett FW_A1-pt 1-NL appeal letters.pdf\", \"Link\")","v":"Link"},28382,28382,1]
[null,null,"Attachment: titled \"4-30-18 Appeal_CBD_no attachments PT 1.pdf\"",{"$f":"HYPERLINK(\"H. Remainder/B-Emails/OCR-2018-05-03 Sackett FW_A2-Appeal_CBD_no attach PT 1.pdf\", \"Link\")","v":"Link"},28383,28398,16]
[null,"2018-05-03","Email from Jodie Sackett to Jennifer Marks regarding FW: Northlake appeal letters",{"$f":"HYPERLINK(\"H. Remainder/B-Emails/OCR-2018-05-03 Sackett FW_B1-pt 2-NL appeal letters.pdf\", \"Link\")","v":"Link"},28399,28399,1]
[null,null,"Attachment: titled \"4-30-18 Appeal_CBD_no attachments PT 2.pdf\"",{"$f":"HYPERLINK(\"H. Remainder/B-Emails/OCR-2018-05-03 Sackett FW_B2-4-30-18 Appeal_CBD_no att PT 2.pdf\", \"Link\")","v":"Link"},28400,28416,17]
[null,"2018-05-03","Email from Jodie Sackett to Jennifer Marks regarding FW: Northlake appeal letters",{"$f":"HYPERLINK(\"H. Remainder/B-Emails/OCR-2018-05-03 Sackett FW_C1-pt 3-FW_ NL appeal letters.pdf\", \"Link\")","v":"Link"},28417,28417,1]
[null,null,"Attachment: titled \"Northlake 4-30-18 CBD appeal - letter attchments.pdf\"",{"$f":"HYPERLINK(\"H. Remainder/B-Emails/OCR-2018-05-03 Sackett FW_C2-Nl 4-30-18 CBD appeal-attchments.pdf\", \"Link\")","v":"Link"},28418,28453,36]
[null,"2018-05-03","Email from Jodie Sackett to Jennifer Marks regarding Northlake appeal letters",{"$f":"HYPERLINK(\"H. Remainder/B-Emails/OCR-2018-05-03 Sackett NL-D1-appeal letters.pdf\", \"Link\")","v":"Link"},28454,28454,1]
[null,null,"Attachment: Appeal application from Paul Edelman, Santa Monica Mountains Conservancy, titled  \"4-23-18 Appeal R2015-00408-(5)_GSEJA.pdf\"",{"$f":"HYPERLINK(\"H. Remainder/B-Emails/OCR-2018-05-03 Sackett NL-D2-Appeal R2015-00408-5_GSEJA.pdf\", \"Link\")","v":"Link"},28455,28530,76]
[null,null,"Attachment: titled \"4-27-18 Appeal R2015-00408-(5)_SMMC.pdf\"",{"$f":"HYPERLINK(\"H. Remainder/B-Emails/OCR-2018-05-03 Sackett NL-D3-Appeal R2015-00408-5_SMMC.pdf\", \"Link\")","v":"Link"},28531,28542,12]
[null,"2018-05-17","Email from Francisco Garibay to Jodie Sackett regarding Appeals of Project No. R2015-00408-(5) Northlake Associates",{"$f":"HYPERLINK(\"H. Remainder/B-Emails/OCR-2018-05-17 Garibay-A1-Appeals of Project No. R2015-00408-5 Northlake Associates.pdf\", \"Link\")","v":"Link"},28543,28543,1]
[null,null,"Attachment: titled \"BOS_Project_Information_Form_Appeals 2017.docx\"",{"$f":"HYPERLINK(\"H. Remainder/B-Emails/OCR-2018-05-17 Garibay-A2-BOS_Project_Info_Form_Appeals 2017.pdf\", \"Link\")","v":"Link"},28544,28544,1]
[null,"2018-05-29","Email from Marie A. Pavlovic to Jodie Sackett regarding RE: NorthLake SOC",{"$f":"HYPERLINK(\"H. Remainder/B-Emails/OCR-2018-05-29 Pavlovic RE_ NorthLake SOC.pdf\", \"Link\")","v":"Link"},28545,28545,1]
[null,"2018-06-18","Email from Jodie Sackett to Larry Newnam regarding RE: Northlake",{"$f":"HYPERLINK(\"H. Remainder/B-Emails/OCR-2018-06-18 Sackett RE_ Northlake1.pdf\", \"Link\")","v":"Link"},28546,28547,2]
[null,"2018-06-18","Email from Jodie Sackett to Andrew Hampton regarding RE: Question on Northlake Development",{"$f":"HYPERLINK(\"H. Remainder/B-Emails/OCR-2018-06-18 Sackett RE_ Question on Northlake Development.pdf\", \"Link\")","v":"Link"},28548,28548,1]
[null,"2018-07-30","Email from Jodie Sackett to Sorin Alexanian and Lorraine Gonzales regarding RE: Request for Items - BOS Planning Deputies Meeting of August 9, 2018",{"$f":"HYPERLINK(\"H. Remainder/B-Emails/OCR-2018-07-30 Sackett-A1-RE_Request for Items-BOS Planning Deputies Meeting.pdf\", \"Link\")","v":"Link"},28549,28551,3]
[null,null,"Attachment: titled \"NorthLake Board deputies pres proj summary_jsackett 11-14-17.pdf\"",{"$f":"HYPERLINK(\"H. Remainder/B-Emails/OCR-2018-07-30 Sackett-A2-NL Board deputies pres proj summary_jsackett 11-14-17.pdf\", \"Link\")","v":"Link"},28552,28555,4]
[null,"2018-07-31","Email from Katrina Peraza to Jodie Sackett regarding Filed Appeals for Project No. R2015-00408-(5)",{"$f":"HYPERLINK(\"H. Remainder/B-Emails/OCR-2018-07-31 Peraza-A1-Filed Appeals for Project No. R2015-00408-5.pdf\", \"Link\")","v":"Link"},28556,28556,1]
[null,null,"Attachment: titled \"BOS_Project_Information_Form_Appeals 2017.docx\"",{"$f":"HYPERLINK(\"H. Remainder/B-Emails/OCR-2018-07-31 Peraza-A2-BOS_Project_Information_Form_Appeals 2017.pdf\", \"Link\")","v":"Link"},28557,28557,1]
[null,"2018-08-08","Email from Jodie Sackett to Katrina Peraza regarding RE: Filed Appeals for Project No. R2015-00408-(5)",{"$f":"HYPERLINK(\"H. Remainder/B-Emails/OCR-2018-08-08 Sackett RE_A1-Filed Appeals for Project No. R2015-00408-5.pdf\", \"Link\")","v":"Link"},28558,28559,2]
[null,null,"Attachment: titled \"BOS_Project_Information_Form_Appeals 2017_js completed.docx\"",{"$f":"HYPERLINK(\"H. Remainder/B-Emails/OCR-2018-08-08 Sackett RE_A2-BOS_Project_Information_Form_Appeals 2017_js completed.pdf\", \"Link\")","v":"Link"},28560,28560,1]
[null,null,"Attachment: titled \"Pages from 4-27-18 Appeal R2015-00408-(5)_SMMC.pdf\"",{"$f":"HYPERLINK(\"H. Remainder/B-Emails/OCR-2018-08-08 Sackett RE_A3-Pages from 4-27-18 Appeal R2015-00408-5_SMMC.pdf\", \"Link\")","v":"Link"},28561,28562,2]
[null,null,"Attachment: titled \"Pages from 4-30-18 Appeal_R2015-00408-(5)_CBD.pdf\"",{"$f":"HYPERLINK(\"H. Remainder/B-Emails/OCR-2018-08-08 Sackett RE_A4-Pages from 4-30-18 Appeal_R2015-00408-5_CBD.pdf\", \"Link\")","v":"Link"},28563,28564,2]
[null,null,"Attachment: titled \"Pages from 4-23-18 Appeal R2015-00408-(5)_GSEJA.pdf\"",{"$f":"HYPERLINK(\"H. Remainder/B-Emails/OCR-2018-08-08 Sackett RE_A5-Pages from 4-23-18 Appeal R2015-00408-5_GSEJA.pdf\", \"Link\")","v":"Link"},28565,28566,2]
[null,"2018-08-09","Email from Jodie Sackett to Katrina Peraza regarding RE: Filed Appeals for Project No. R2015-00408-(5)",{"$f":"HYPERLINK(\"H. Remainder/B-Emails/OCR-2018-08-09 Sackett RE_ Filed Appeals for Project No. R2015-00408-5.pdf\", \"Link\")","v":"Link"},28567,28570,4]
[null,"2018-08-23","Email from John Arvin to Jodie Sackett regarding Re: Northlake Appeal",{"$f":"HYPERLINK(\"H. Remainder/B-Emails/OCR-2018-08-23 Arvin Re_ Northlake Appeal .pdf\", \"Link\")","v":"Link"},28571,28572,2]
[null,"2018-08-24","Email from John Arvin to Katrina Peraza and aaron@agd-landuse.com regardingRE: Appeals for Project No. R2015-00408-(5) 9/25/18 (update)",{"$f":"HYPERLINK(\"H. Remainder/B-Emails/OCR-2018-08-24 Arvin-A1-RE_ Appeals for Project No. R2015-00408-5 9_25_18-update2.pdf\", \"Link\")","v":"Link"},28573,28574,2]
[null,null,"Attachment: titled \"Northlake BOS Hearing Notice Certification.pdf\"",{"$f":"HYPERLINK(\"H. Remainder/B-Emails/OCR-2018-08-24 Arvin-A2-Northlake BOS Hearing Notice Certification.pdf\", \"Link\")","v":"Link"},28575,28579,5]
[null,"2018-08-24","Email from Francisco Garibay to John Arvin and aaron@agd-landuse.com regarding RE: Appeals for Project No. R2015-00408-(5) 9/25/18 (update) sent at 3:41 pm",{"$f":"HYPERLINK(\"H. Remainder/B-Emails/OCR-2018-08-24 Garibay-A1-RE_ Appeals for Project No. R2015-00408-5 341pm.pdf\", \"Link\")","v":"Link"},28580,28582,3]
[null,null,"Attachment: titled \"Affidavit of Posting (Applicant).pdf\"",{"$f":"HYPERLINK(\"H. Remainder/B-Emails/OCR-2018-08-24 Garibay-A2-AFFIDAVIT OF POSTING Applicant.pdf\", \"Link\")","v":"Link"},28583,28583,1]
[null,"2018-08-24","Email from Francisco Garibay to John Arvin and aaron@agd-landuse.com regarding RE: Appeals for Project No. R2015-00408-(5) 9/25/18 (update) sent at 4:06 pm",{"$f":"HYPERLINK(\"H. Remainder/B-Emails/OCR-2018-08-24 Garibay-B1-RE_ Appeals for Project No. R2015-00408-5 406pm.pdf\", \"Link\")","v":"Link"},28584,28586,3]
[null,"2018-08-24","Email from Steven Jones to Jodie Sackett regarding BOS appeal letter_Northlake 8-29-18",{"$f":"HYPERLINK(\"H. Remainder/B-Emails/OCR-2018-08-26 Jones-A1-BOS appeal letter_Northlake 8-29-18.pdf\", \"Link\")","v":"Link"},28587,28587,1]
[null,null,"Attachment: titled \"BOS appeal letter_Northlake 8-29-18.docx\"",{"$f":"HYPERLINK(\"H. Remainder/B-Emails/OCR-2018-08-26 Jones-A2-BOS appeal letter_NL 8-29-18.pdf\", \"Link\")","v":"Link"},28588,28595,8]
[null,"2018-08-26","Email from Jodie Sackett to Steven Jones regarding Draft BOS appeal letter - Northlake",{"$f":"HYPERLINK(\"H. Remainder/B-Emails/OCR-2018-08-26 Sackett Draft_A1-BOS appeal letter-NL.pdf\", \"Link\")","v":"Link"},28596,28596,1]
[null,null,"Attachment: titled \"BOS appeal letter_Northlake 8-29-18.docx\"",{"$f":"HYPERLINK(\"H. Remainder/B-Emails/OCR-2018-08-26 Sackett Draft_A2-BOS appeal letter_NL 8-29-18.pdf\", \"Link\")","v":"Link"},28597,28604,8]
[null,"2018-08-26","Email from Jodie Sackett to Elaine Sainz and Linda Maravilla regarding Northlake BOS appeal letter draft - package due Aug 29",{"$f":"HYPERLINK(\"H. Remainder/B-Emails/OCR-2018-08-26 Sackett NL_A1-BOS appeal ltr draft-pkg.pdf\", \"Link\")","v":"Link"},28605,28605,1]
[null,null,"Attachment: titled \"BOS appeal letter_Northlake 8-29-18_sdj.docx\"",{"$f":"HYPERLINK(\"H. Remainder/B-Emails/OCR-2018-08-26 Sackett NL_A2-BOS appeal ltr_NL 8-29-18_sdj.pdf\", \"Link\")","v":"Link"},28606,28613,8]
[null,"2018-08-26","Email from Jodie Sackett to Steven Jones regarding Re: BOS appeal letter_Northlake 8-29-18",{"$f":"HYPERLINK(\"H. Remainder/B-Emails/OCR-2018-08-26 Sackett Re_ BOS appeal letter_Northlake 8-29-18.pdf\", \"Link\")","v":"Link"},28614,28614,1]
[null,"2018-08-27","Email from John Arvin to Jodie Sackett regarding Northlake Appeal Staff Report sent 6:12 pm",{"$f":"HYPERLINK(\"H. Remainder/B-Emails/OCR-2018-08-27 Arvin NL-A1-Appeal Staff Report-612pm.pdf\", \"Link\")","v":"Link"},28615,28615,1]
[null,null,"Attachment: titled \"Northlake - Appeal Responses 8-25-18.docx\"",{"$f":"HYPERLINK(\"H. Remainder/B-Emails/OCR-2018-08-27 Arvin NL-A2-NL-Appeal Responses 8-25-18.pdf\", \"Link\")","v":"Link"},28616,28628,13]
[null,"2018-08-27","Email from John Arvin to Jodie Sackett regarding Northlake Appeal Staff Report sent 6:13 pm",{"$f":"HYPERLINK(\"H. Remainder/B-Emails/OCR-2018-08-27 Arvin NL-B1-Appeal Staff Report-613pm.pdf\", \"Link\")","v":"Link"},28629,28629,1]
[null,null,"Attachment: titled \"SMMC Comments.pdf\"",{"$f":"HYPERLINK(\"H. Remainder/B-Emails/OCR-2018-08-27 Arvin NL-B2-SMMC Comments.pdf\", \"Link\")","v":"Link"},28630,28636,7]
[null,"2018-08-27","Email from Sarah Fleury to Jodie Sackett regarding RE: Northlake Project Appeals",{"$f":"HYPERLINK(\"H. Remainder/B-Emails/OCR-2018-08-27 Fleury RE_ Northlake Project Appeals.pdf\", \"Link\")","v":"Link"},28637,28638,2]
[null,"2018-08-29","Email from Mike Marshall to Jodie Sackett regarding RE: Northlake SP Appeal",{"$f":"HYPERLINK(\"H. Remainder/B-Emails/OCR-2018-08-29 Marshall RE_ Northlake SP Appeal.pdf\", \"Link\")","v":"Link"},28639,28640,2]
[null,"2018-08-29","Email from Jodie Sackett to Steven Jones regarding FW: NorthLake hearing on 8/29",{"$f":"HYPERLINK(\"H. Remainder/B-Emails/OCR-2018-08-29 Sackett-A1-FW_ NorthLake hearing on 8_29.pdf\", \"Link\")","v":"Link"},28641,28642,2]
[null,null,"Attachment: titled \"NorthlakeNotice20180925.pdf\"",{"$f":"HYPERLINK(\"H. Remainder/B-Emails/OCR-2018-08-29 Sackett-A2-NorthlakeNotice20180925.pdf\", \"Link\")","v":"Link"},28643,28644,2]
[null,"2018-08-30","Email from Jodie Sackett to john regarding Northlake - environmental consultant",{"$f":"HYPERLINK(\"H. Remainder/B-Emails/OCR-2018-08-30 Sackett Northlake - environmental consultant.pdf\", \"Link\")","v":"Link"},28645,28645,1]
[null,"2018-09-04","Email from Jodie Sackett to Elaine Sainz regarding RE: Board Letter - Most Updated Version",{"$f":"HYPERLINK(\"H. Remainder/B-Emails/OCR-2018-09-04 Sackett-A1-RE_ Board Letter - Most Updated Version.pdf\", \"Link\")","v":"Link"},28646,28646,1]
[null,null,"Attachment: titled \"S_CP_092518_BHL_NORTHLAKE1_revised js.docx\"",{"$f":"HYPERLINK(\"H. Remainder/B-Emails/OCR-2018-09-04 Sackett-A2-S_CP_092518_BHL_NORTHLAKE1_revised js.pdf\", \"Link\")","v":"Link"},28647,28654,8]
[null,"2018-09-11","Email from Dan Silver to Patricia Hachiya, Iris Chi and Jennifer Mongolo regarding Fwd: Project No. R2015-00408-(5); Board hearing date Sept 25, 2018; NorthLake Specific Plan project",{"$f":"HYPERLINK(\"H. Remainder/B-Emails/OCR-2018-09-11 Silver Fwd_ Project R2015-00408-5_Board hearing-NLSP project.pdf\", \"Link\")","v":"Link"},28655,28656,2]
[null,"2018-09-12","Email from John Arvin to Jodie Sackett regarding Northlake ",{"$f":"HYPERLINK(\"H. Remainder/B-Emails/OCR-2018-09-12 Arvin-A1-Northlake .pdf\", \"Link\")","v":"Link"},28657,28657,1]
[null,null,"Attachment: titled \"Pages from NLK RPC 2 PowerPoint 2018-04-17 Draft 2 for Jody.pdf\"",{"$f":"HYPERLINK(\"H. Remainder/B-Emails/OCR-2018-09-12 Arvin-A2-Pages from NLK RPC 2 PowerPoint 2018-04-17 Draft 2 for Jody.pdf\", \"Link\")","v":"Link"},28658,28658,1]
[null,null,"Attachment: titled \"NLK Exhibit Showing Violin Canyon for Jody.pdf\"",{"$f":"HYPERLINK(\"H. Remainder/B-Emails/OCR-2018-09-12 Arvin-A3-NLK Exhibit Showing Violin Canyon for Jody.pdf\", \"Link\")","v":"Link"},28659,28659,1]
[null,"2018-09-12","Email from John Arvin to Jodie Sackett regarding Northlake ",{"$f":"HYPERLINK(\"H. Remainder/B-Emails/OCR-2018-09-12 Arvin-B1-RE_ Northlake .pdf\", \"Link\")","v":"Link"},28660,28661,2]
[null,"2018-09-17","Email from John Arvin to Jodie Sackett regarding Northlake ",{"$f":"HYPERLINK(\"H. Remainder/B-Emails/OCR-2018-09-17 Arvin Northlake.pdf\", \"Link\")","v":"Link"},28662,28662,1]
[null,"2018-09-17","Email from Jodie Sackett to Katrina Peraza regarding Fw: Board Letter Dated September 25, 2018 - Applicant: NorthLake Associates LLC (John Arvin)",{"$f":"HYPERLINK(\"H. Remainder/B-Emails/OCR-2018-09-17 Sacket Fw_A1-Board Ltr 9 25 18-App_ NL Associates LLC.pdf\", \"Link\")","v":"Link"},28663,28665,3]
[null,null,"Attachment: titled \"S_CP_092518_BHL_NORTHLAKE1.docx\"",{"$f":"HYPERLINK(\"H. Remainder/B-Emails/OCR-2018-09-17 Sacket Fw_A2-S_CP_092518_BHL_NL-converted.pdf\", \"Link\")","v":"Link"},28666,28673,8]
[null,null,"Attachment: titled \"S_CP_092518_BHL_NORTHLAKE.pdf\"",{"$f":"HYPERLINK(\"H. Remainder/B-Emails/OCR-2018-09-17 Sacket Fw_A3-S_CP_092518_BHL_NL.pdf\", \"Link\")","v":"Link"},28674,28681,8]
[null,"2018-09-20","Email from Jodie Sackett to John Arvin regarding RE: BOS Hearing Format",{"$f":"HYPERLINK(\"H. Remainder/B-Emails/OCR-2018-09-20 Sackett RE_ BOS Hearing Format.pdf\", \"Link\")","v":"Link"},28682,28682,1]
[null,"2018-09-24","Email from Sorin Alexanian to Steven Jones regarding Re: Appeal presentation 9/25/18",{"$f":"HYPERLINK(\"H. Remainder/B-Emails/OCR-2018-09-24 Alexanian Re_ Appeal presentation 9_25_18.pdf\", \"Link\")","v":"Link"},28683,28684,2]
[null,"2018-09-24","Email from Francisco Garibay to Adela Guzman et al. regarding Correspondence Received Re: Project No. R2015-00408-(5) Northlake sent at 3:42 pm",{"$f":"HYPERLINK(\"H. Remainder/B-Emails/OCR-2018-09-24 Garibay Corres Recd 342 pm-A1.pdf\", \"Link\")","v":"Link"},28685,28685,1]
[null,null,"Attachment: titled \"RE: Appellant Correspondence.msg\"",{"$f":"HYPERLINK(\"H. Remainder/B-Emails/OCR-2018-09-24 Garibay Corres Recd 342 pm-A2-RE Appellant Corres.pdf\", \"Link\")","v":"Link"},28686,28686,1]
[null,null,"   Attachment: titled \"Northlake- ltr to BOS Re Response to SMMC\"",{"$f":"HYPERLINK(\"H. Remainder/B-Emails/OCR-2018-09-24 Garibay Corres Recd 342 pm-A3-NL- ltr to BOS Re Res to SMMC.pdf\", \"Link\")","v":"Link"},28687,28688,2]
[null,"2018-09-24","Email from Francisco Garibay to Adela Guzman et al. regarding Additional Correspondence Received Re: Project No. R2015-00408-(5) Northlake sent at 5:23 pm",{"$f":"HYPERLINK(\"H. Remainder/B-Emails/OCR-2018-09-24 Garibay Corres Recd 523 pm-B1.pdf\", \"Link\")","v":"Link"},28689,28689,1]
[null,null,"Attachment: Email from Damon Mamalakis to Public Hearing and Francisco Garibay titled \"RE: Project No. R2015-00408-(5) - BOS Agenda Item No. 11, 9/25/18 msg\"",{"$f":"HYPERLINK(\"H. Remainder/B-Emails/OCR-2018-09-24 Garibay Corres Recd 523 pm-B2-email.pdf\", \"Link\")","v":"Link"},28690,28691,2]
[null,null,"   Attachment: titled \"Northlake Response to SCOPE comment letter 9 24 18.pdf\"",{"$f":"HYPERLINK(\"H. Remainder/B-Emails/OCR-2018-09-24 Garibay Corres Recd 523 pm-B3-NL Res to SCOPE com ltr.pdf\", \"Link\")","v":"Link"},28692,28694,3]
[null,"2018-09-24","Email from Jodie Sackett to John Arvin regarding Fw: 3,150 unit North Lake Project hearing at the Los Angeles County Board of Supervisors this Tuesday, Sept. 25th",{"$f":"HYPERLINK(\"H. Remainder/B-Emails/OCR-2018-09-24 Sackett Fw_A-3150 unit NL Project hearing at the LACounty BOS.pdf\", \"Link\")","v":"Link"},28695,28695,1]
[null,"2018-09-24","Email from Jodie Sackett to John Arvin regarding Fw: Correspondence Received Re: Project No. R2015-00408-(5) Northlake sent at 2:33 pm",{"$f":"HYPERLINK(\"H. Remainder/B-Emails/OCR-2018-09-24 Sackett Fw_B1-Corres Recd Re_Northlake 233.pdf\", \"Link\")","v":"Link"},28696,28697,2]
[null,null,"Attachment: Email from ExecutiveOffice <ExecutiveOffice@bos.lacounty.gov> to PublicHearing <PublicHearing@bos.lacounty.gov> titled \"FW: Letter for 9/25/18 BOS Meeting Agenda Item #11.msg\"",{"$f":"HYPERLINK(\"H. Remainder/B-Emails/OCR-2018-09-24 Sackett Fw_B2-FW Letter for BOS Mtg Agenda.pdf\", \"Link\")","v":"Link"},28698,28698,1]
[null,null,"   Attachment: Letter from Dean Wallraff, Attorney for Advocates for the Environment, titled \"AEnv NorthLake Opposition Letter 2018-09-21\"",{"$f":"HYPERLINK(\"H. Remainder/B-Emails/OCR-2018-09-24 Sackett Fw_B23-AEnv NorthLake Opposition Letter 2018-09-21.pdf\", \"Link\")","v":"Link"},28699,28699,1]
[null,"2018-09-24","Email from Jodie Sackett to John Arvin regarding Fw: Correspondence Received Re: Project No. R2015-00408-(5) Northlake sent at 2:34 pm",{"$f":"HYPERLINK(\"H. Remainder/B-Emails/OCR-2018-09-24 Sackett Fw-C1-Corres Recd Re_Northlake 234.pdf\", \"Link\")","v":"Link"},28700,28701,2]
[null,null,"Attachment: Email from Damon Mamalakis to Francisco Garibay titled \"RE: Appellant Correspondence.msg\"",{"$f":"HYPERLINK(\"H. Remainder/B-Emails/OCR-2018-09-24 Sackett Fw-C2-RE Appellant Correspondence.pdf\", \"Link\")","v":"Link"},28702,28702,1]
[null,null,"   Attachment: Letter from Tony Bomkamp,Glenn Lukos Associates, titled \"1115-6_SMMC    092418 Letter_GLA Bio Responses.pdf\"",{"$f":"HYPERLINK(\"H. Remainder/B-Emails/OCR-2018-09-24 Sackett Fw-C3-1115-6_SMMC 092418 Ltr_GLA Bio.pdf\", \"Link\")","v":"Link"},28703,28705,3]
[null,"2018-09-24","Email from Jodie Sackett to Steven Jones regarding Re: NorthLake hearing script for your review",{"$f":"HYPERLINK(\"H. Remainder/B-Emails/OCR-2018-09-24 Sackett Re_ NorthLake hearing script for your review.pdf\", \"Link\")","v":"Link"},28706,28706,1]
[null,"2018-09-25","Email from Amy Bodek to Jodie Sackett regarding Northlake and local hiring",{"$f":"HYPERLINK(\"H. Remainder/B-Emails/OCR-2018-09-25 Bodek Northlake and local hiring.pdf\", \"Link\")","v":"Link"},28707,28707,1]
[null,"2018-09-25","Email from Jennifer Marks to Jodie Sackett regarding Re: NorthLake - FEMA letter",{"$f":"HYPERLINK(\"H. Remainder/B-Emails/OCR-2018-09-25 Marks Re_ NorthLake - FEMA letter.pdf\", \"Link\")","v":"Link"},28708,28708,1]
[null,"2018-09-25","Email from Jodie Sackett to Jennifer Marks regarding NorthLake - FEMA letter",{"$f":"HYPERLINK(\"H. Remainder/B-Emails/OCR-2018-09-25 Sackett-A1-NorthLake - FEMA letter.pdf\", \"Link\")","v":"Link"},28709,28709,1]
[null,null,"Attachment: titled \"FEMA ltr_8-28-18.pdf\"",{"$f":"HYPERLINK(\"H. Remainder/B-Emails/OCR-2018-09-25 Sackett-A2-FEMA ltr_8-28-18.pdf\", \"Link\")","v":"Link"},28710,28711,2]
[null,"2018-09-26","Email from Lorraine Gonzales to Amy Bodek regarding Message: John Arvin",{"$f":"HYPERLINK(\"H. Remainder/B-Emails/OCR-2018-09-26 Gonzales Message_  John Arvin.pdf\", \"Link\")","v":"Link"},28712,28712,1]
[null,"2018-09-26","Email from Loretta Quach to Jodie Sackett regarding RE: Northlake Question",{"$f":"HYPERLINK(\"H. Remainder/B-Emails/OCR-2018-09-26 Quach RE_ Northlake Question.pdf\", \"Link\")","v":"Link"},28713,28714,2]
[null,"2018-09-26","Email from Jodie Sackett to Amy Bodek regarding RE: Northlake Appeal",{"$f":"HYPERLINK(\"H. Remainder/B-Emails/OCR-2018-09-26 Sackett RE_ Northlake Appeal.pdf\", \"Link\")","v":"Link"},28715,28715,1]
[null,"2018-09-28","Email from Steven Jones to Amy Bodek and Jodie Sackett regarding RE: Northlake and local hiring sent at 9:23 pm",{"$f":"HYPERLINK(\"H. Remainder/B-Emails/OCR-2018-09-28 Jones RE_ NL and local hiring-923 pm.pdf\", \"Link\")","v":"Link"},28716,28719,4]
[null,"2018-09-28","Email from Steven Jones to Amy Bodek and Jodie Sackett regarding RE: Northlake and local hiring sent at 9:25 pm",{"$f":"HYPERLINK(\"H. Remainder/B-Emails/OCR-2018-09-28 Jones RE_ NL and local hiring-925 pm.pdf\", \"Link\")","v":"Link"},28720,28721,2]
[null,"2018-10-01","Email from Steven Jones to Manuel Ruiz and WIOAOPS@wdacs.lacounty.gov regarding Local hire and the County of Los Angeles",{"$f":"HYPERLINK(\"H. Remainder/B-Emails/OCR-2018-10-01 Jones Local hire and the County of Los Angeles.pdf\", \"Link\")","v":"Link"},28722,28722,1]
[null,"2018-10-02","Email from Amy Bodek to Jodie Sackett regarding RE: Northlake and local hiring",{"$f":"HYPERLINK(\"H. Remainder/B-Emails/OCR-2018-10-02 Bodek RE_ Northlake and local hiring2.pdf\", \"Link\")","v":"Link"},28723,28725,3]
[null,"2018-10-02","Email from Francisco Garibay to Jodie Sackett regarding RE: Additional Correspondence Received Re: Project No. R2015-00408-(5) Northlake",{"$f":"HYPERLINK(\"H. Remainder/B-Emails/OCR-2018-10-02 Garibay RE_ Addtl Corres Recd Re_NL.pdf\", \"Link\")","v":"Link"},28726,28727,2]
[null,"2018-10-02","Email from Jodie Sackett to Jennifer Marks regarding FW: Additional Correspondence Received Re: Project No. R2015-00408-(5) Northlake sent at 5:11 pm",{"$f":"HYPERLINK(\"H. Remainder/B-Emails/OCR-2018-10-02 Sackett 511-A1-FW_ Addtl Corres Recd Re_ Project NL.pdf\", \"Link\")","v":"Link"},28728,28728,1]
[null,null,"Attachment: Email from Hannah Bentley to Francisco Garibay, Friendly Hernandez and Katrina Peraza titled \"Re: 9/25/18 Appeal on Project No. R2015-00408-(5) (Item #11) msg\"",{"$f":"HYPERLINK(\"H. Remainder/B-Emails/OCR-2018-10-02 Sackett 511-A2-email.pdf\", \"Link\")","v":"Link"},28729,28732,4]
[null,null,"   Attachment: titled \"L2018-09-25 Comment Letter.pdf\"",{"$f":"HYPERLINK(\"H. Remainder/B-Emails/OCR-2018-10-02 Sackett 511-A3-L 2018-09-25 Comment Letter.pdf\", \"Link\")","v":"Link"},28733,28740,8]
[null,null,"   Attachment: titled \"Smallwood on\"",{"$f":"HYPERLINK(\"H. Remainder/B-Emails/OCR-2018-10-02 Sackett 511-A4-Smallwood.pdf\", \"Link\")","v":"Link"},28741,28749,9]
[null,null,"   Attachment: titled \"VernalPoolAssessmentPreliminaryReport.pdf\"",{"$f":"HYPERLINK(\"H. Remainder/B-Emails/OCR-2018-10-02 Sackett 511-A5-VernalPoolAssessPrelim.pdf\", \"Link\")","v":"Link"},28750,28910,161]
[null,"2018-10-02","Email from Jodie Sackett to Jennifer Marks regarding FW: Additional Correspondence Received Re: Project No. R2015-00408-(5) Northlake sent at 5:46 pm",{"$f":"HYPERLINK(\"H. Remainder/B-Emails/OCR-2018-10-02 Sackett 546-B1-FW_ Addtl Corres Recd Re_ Project NL.pdf\", \"Link\")","v":"Link"},28911,28911,1]
[null,"2018-10-03","Email from Amy Bodek to Mitch Glaser, Jodie Sackett, Samuel Dea, and Steven Jones regarding Northlake - John Arvin conversation",{"$f":"HYPERLINK(\"H. Remainder/B-Emails/OCR-2018-10-03 Bodek Northlake - John Arvin conversation.pdf\", \"Link\")","v":"Link"},28912,28912,1]
[null,"2018-10-04","Email from Lynda Hikichi to Diane Sacks regarding RE: North Lake Project (SCH No. 2015031080) Comment Letter",{"$f":"HYPERLINK(\"H. Remainder/B-Emails/OCR-2018-10-04 Hikichi RE_ NL Project Comment Ltr.pdf\", \"Link\")","v":"Link"},28913,28913,1]
[null,"2018-10-04","Email from Jodie Sackett to Jennifer Marks regarding FW: North Lake Project (SCH No. 2015031080) Comment Letter",{"$f":"HYPERLINK(\"H. Remainder/B-Emails/OCR-2018-10-04 Sackett FW_A1-NL Project Comment Ltr.pdf\", \"Link\")","v":"Link"},28914,28914,1]
[null,null,"Attachment: titled \"NorthLake SMMC Appeal comment letter 9-24-18.pdf\"",{"$f":"HYPERLINK(\"H. Remainder/B-Emails/OCR-2018-10-04 Sackett FW_A2-NL SMMC Appeal comment ltr.pdf\", \"Link\")","v":"Link"},28915,28919,5]
[null,"2018-10-09","Email from Jodie Sackett to Amy Bodek regarding FW: Northlake and local hiring",{"$f":"HYPERLINK(\"H. Remainder/B-Emails/OCR-2018-10-09 Sackett-A1-FW_NL and local hiring.pdf\", \"Link\")","v":"Link"},28920,28921,2]
[null,null,"Attachment: titled \"Northlake Local Hiring Program Centennial Version with JA Comments Redline.pdf\"",{"$f":"HYPERLINK(\"H. Remainder/B-Emails/OCR-2018-10-09 Sackett-A2-NL L Hiring Cent_JA Comm Redline.pdf\", \"Link\")","v":"Link"},28922,28922,1]
[null,null,"Attachment: titled \"Northlake Local Hiring Program Centennial Version with JA Comments Clean.pdf\"",{"$f":"HYPERLINK(\"H. Remainder/B-Emails/OCR-2018-10-09 Sackett-A3-NL L Hiring Cent_JA Comm Clean.pdf\", \"Link\")","v":"Link"},28923,28923,1]
[null,null,"Attachment: titled \"Northlake Local Hiring Program Centennial Version with JA Comments.docx\"",{"$f":"HYPERLINK(\"H. Remainder/B-Emails/OCR-2018-10-09 Sackett-A4-NL L Hiring Cent_JA Comm.pdf\", \"Link\")","v":"Link"},28924,28924,1]
[null,"2018-10-24","Email from John Arvin to Jodie Sackett regarding Northlake and local hiring. ",{"$f":"HYPERLINK(\"H. Remainder/B-Emails/OCR-2018-10-24 Arvin RE_ Northlake and local hiring(1).pdf\", \"Link\")","v":"Link"},28925,28926,2]
[null,"2018-10-25","Email from Jodie Sackett to Brandon Towner regarding RE: NorthLake project",{"$f":"HYPERLINK(\"H. Remainder/B-Emails/OCR-2018-10-25 Sackett RE_ NorthLake project.pdf\", \"Link\")","v":"Link"},28927,28928,2]
[null,"2018-10-26","Email from Michael Barnes to Jodie Sackett regarding Re: Northlake Project Status?",{"$f":"HYPERLINK(\"H. Remainder/B-Emails/OCR-2018-10-26 Barnes Re_ Northlake Project Status_.pdf\", \"Link\")","v":"Link"},28929,28929,1]
[null,"2018-10-31","Email from John Arvin to Jodie Sackett regarding Northlake",{"$f":"HYPERLINK(\"H. Remainder/B-Emails/OCR-2018-10-31 Arvin Northlake1.pdf\", \"Link\")","v":"Link"},28930,28930,1]
[null,"2018-11-04","Email from Jodie Sackett to john (john@woodridgecapital.com) regarding FW: Project R2015-00408 (5) - NorthLake F&C's - 9-25-18 BOS appeal hearing",{"$f":"HYPERLINK(\"H. Remainder/B-Emails/OCR-2018-11-04 Sackett FW_A1-Project NL FandCs-9-25-18 BOS appeal hearing.pdf\", \"Link\")","v":"Link"},28931,28931,1]
[null,null,"Attachment: titled \"Northlake Local Hiring Program_new condition_clean.docx\"",{"$f":"HYPERLINK(\"H. Remainder/B-Emails/OCR-2018-11-04 Sackett FW_A2-NL Local Hiring Program_new_clean.pdf\", \"Link\")","v":"Link"},28932,28932,1]
[null,"2018-11-06","Email from Jodie Sackett to Amy Bodek regarding FW: Northlake and local hiring",{"$f":"HYPERLINK(\"H. Remainder/B-Emails/OCR-2018-11-06 Sackett FW_A1-Northlake and local hiring.pdf\", \"Link\")","v":"Link"},28933,28934,2]
[null,null,"Attachment: titled \"Northlake Local Hiring Program Centennial Version with JA Comments Redline.pdf\"",{"$f":"HYPERLINK(\"H. Remainder/B-Emails/OCR-2018-11-06 Sackett FW_A2-NL L Hiring Cent_JA Comm Red.pdf\", \"Link\")","v":"Link"},28935,28935,1]
[null,null,"Attachment: titled \"Northlake Local Hiring Program Centennial Version with JA Comments.docx\"",{"$f":"HYPERLINK(\"H. Remainder/B-Emails/OCR-2018-11-06 Sackett FW_A3-NL L Hiring Cent _JA Comm.pdf\", \"Link\")","v":"Link"},28936,28936,1]
[null,null,"Attachment: titled \"Northlake Local Hiring Program_new condition_clean.docx\"",{"$f":"HYPERLINK(\"H. Remainder/B-Emails/OCR-2018-11-06 Sackett FW_A4-NL L Hiring Cent _JA Comm Clean.pdf\", \"Link\")","v":"Link"},28937,28937,1]
[null,"2018-11-06","Email from Jodie Sackett to John Arvin regarding RE: Northlake",{"$f":"HYPERLINK(\"H. Remainder/B-Emails/OCR-2018-11-06 Sackett RE_ Northlake.pdf\", \"Link\")","v":"Link"},28938,28938,1]
[null,"2018-11-13","Email from Amy Bodek to Jodie Sackett regarding RE: Northlake and local hiring",{"$f":"HYPERLINK(\"H. Remainder/B-Emails/OCR-2018-11-13 Bodek RE_ Northlake and local hiring.pdf\", \"Link\")","v":"Link"},28939,28940,2]
[null,"2018-11-14","Email from John Arvin to Jodie Sackett regarding RE: Project R2015-00408 (5) - NorthLake F&C's - 9-25-18 BOS appeal hearing",{"$f":"HYPERLINK(\"H. Remainder/B-Emails/OCR-2018-11-14 Arvin RE_ Project NL FandC 9-25-18 BOS appeal hearing.pdf\", \"Link\")","v":"Link"},28941,28941,1]
[null,"2018-11-14","Email from John Arvin to Jodie Sackett regarding Re: quick question - local hire condition",{"$f":"HYPERLINK(\"H. Remainder/B-Emails/OCR-2018-11-14 Arvin Re_ quick question - local hire condition.pdf\", \"Link\")","v":"Link"},28942,28942,1]
[null,"2018-11-27","Email from Matthew Benveniste to Jodie Sackett regarding Northlake",{"$f":"HYPERLINK(\"H. Remainder/B-Emails/OCR-2018-11-27 Benveniste Northlake.pdf\", \"Link\")","v":"Link"},28943,28943,1]
[null,"2018-12-04","Email from Jodie Sackett to Joshua Huntington regarding Northlake timeframe - BOS consent calendar",{"$f":"HYPERLINK(\"H. Remainder/B-Emails/OCR-2018-12-04 Sackett Northlake timeframe - BOS consent calendar.pdf\", \"Link\")","v":"Link"},28944,28944,1]
[null,"2018-12-06","Email from John Arvin to Jodie Sackett regarding Re: Northlake BOS Agenda",{"$f":"HYPERLINK(\"H. Remainder/B-Emails/OCR-2018-12-06 Arvin Re_ Northlake BOS Agenda.pdf\", \"Link\")","v":"Link"},28945,28945,1]
[null,"2019-01-08","Email from Jodie Sackett to David Kaitz regarding RE: Update on Northlake Hills",{"$f":"HYPERLINK(\"H. Remainder/B-Emails/OCR-2019-01-08 Sackett RE_ Update on NL Hills.pdf\", \"Link\")","v":"Link"},28946,28948,3]
[null,"2019-01-09","Email from Jodie Sackett to john (john@woodridgecapital.com) regarding NorthLake - Fact-check housing numbers for the final approval",{"$f":"HYPERLINK(\"H. Remainder/B-Emails/OCR-2019-01-09 Sackett NL -Fact-check housing numbers.pdf\", \"Link\")","v":"Link"},28949,28949,1]
[null,"2019-01-09","Email from Jodie Sackett to Raman Gaur regarding NorthLake - Phase 1 updated lot & unit count",{"$f":"HYPERLINK(\"H. Remainder/B-Emails/OCR-2019-01-09 Sackett NL- Phase 1 updated lot and unit count.pdf\", \"Link\")","v":"Link"},28950,28950,1]
[null,"2019-01-22","Email from Jodie Sackett to john (john@woodridgecapital.com) regarding NorthLake - unit count",{"$f":"HYPERLINK(\"H. Remainder/B-Emails/OCR-2019-01-22 Sackett NorthLake - unit count.pdf\", \"Link\")","v":"Link"},28951,28951,1]
[null,"2019-03-21","Email from Kevin Knowles to Jodie Sackett regarding Re: NorthLake Project - Habitat Mitigation",{"$f":"HYPERLINK(\"H. Remainder/B-Emails/OCR-2019-03-21 Knowles Re_ NLProject - Habitat Mitigation.pdf\", \"Link\")","v":"Link"},28952,28953,2]
[null,"2019-03-21","Email from Jodie Sackett to Winnie Siauw regarding RE: Northlake Specific Plan Project",{"$f":"HYPERLINK(\"H. Remainder/B-Emails/OCR-2019-03-21 Sackett RE_ Northlake Specific Plan Project.pdf\", \"Link\")","v":"Link"},28954,28954,1]
[null,"2019-03-26","Email from Jodie Sackett to Michelle Pine Rappoport regarding RE: Hi Is the North Lakes Project in Lake Castaic still going forward ? ASAP",{"$f":"HYPERLINK(\"H. Remainder/B-Emails/OCR-2019-03-26 Sackett RE_ NL Project in Lake Castaic.pdf\", \"Link\")","v":"Link"},28955,28957,3]
[null,"2019-03-27","Email from Amy Bodek to Lorraine Gonzales regarding FW: Findings of Approval for Project No. R2015-00408-(5) Northlake Specific Plan",{"$f":"HYPERLINK(\"H. Remainder/B-Emails/OCR-2019-03-27 Bodek FW_ Findings of Approval for NLSP.pdf\", \"Link\")","v":"Link"},28958,28958,1]
[null,"2019-03-27","Email from Francisco Garibay to Francisco Garibay regarding Findings for Project No. R2015-00408-(5) Northlake Specific Plan (4/2/19 Agenda)",{"$f":"HYPERLINK(\"H. Remainder/B-Emails/OCR-2019-03-27 Garibay Findings for NLSP-4_2_19 Agenda.pdf\", \"Link\")","v":"Link"},28959,28959,1]
[null,"2018-04-01","Email from J.P. Rose to executiveoffice@bos.lacounty.gov regarding Comments from the Center for Biological Diversity on the Northlake Specific Plan",{"$f":"HYPERLINK(\"H. Remainder/B-Emails/OCR-2019-04-01 Rose-A1-Center for Biological Diversity on the NLSP.pdf\", \"Link\")","v":"Link"},28960,28960,1]
[null,null,"Attachment: titled \"Northlake Comment Letter 4-1-19 with exhibits.pdf\"",{"$f":"HYPERLINK(\"H. Remainder/B-Emails/OCR-2019-04-01 Rose-A2-NL Comment Ltr 4-1-19 with exs.pdf\", \"Link\")","v":"Link"},28961,29010,50]
[null,"2019-04-02","Email from Jodie Sackett to Raman Gaur regarding RE: Northlake New Contact - Tom DiPrima",{"$f":"HYPERLINK(\"H. Remainder/B-Emails/OCR-2019-04-02 Sackett RE_ Northlake New Contact - Tom DiPrima.pdf\", \"Link\")","v":"Link"},29011,29011,1]
[null,"2019-04-03","Email from Jodie Sackett to Joshua Huntington regarding NorthLake draft NOD",{"$f":"HYPERLINK(\"H. Remainder/B-Emails/OCR-2019-04-03 Sackett NL-A1-draft NOD.pdf\", \"Link\")","v":"Link"},29012,29012,1]
[null,null,"Attachment: titled \"NOD_NorthLake_4-3-19.pdf\"",{"$f":"HYPERLINK(\"H. Remainder/B-Emails/OCR-2019-04-03 Sackett NL-A2-DRAFT NOD_NL.pdf\", \"Link\")","v":"Link"},29013,29013,1]
[null,"2019-04-04","Email from Jodie Sackett to J.P. Rose and Francisco Garibay regarding RE: Findings for Project No. R2015-00408-(5) Northlake Specific Plan (4/2/19 Agenda)",{"$f":"HYPERLINK(\"H. Remainder/B-Emails/OCR-2019-04-04 Sackett RE_ Findings NLSP.pdf\", \"Link\")","v":"Link"},29014,29015,2]
[null,"2019-04-04","Email from Jodie Sackett to Andy Narag regarding RE: Northlake TR 73336",{"$f":"HYPERLINK(\"H. Remainder/B-Emails/OCR-2019-04-04 Sackett RE_ Northlake TR 73336.pdf\", \"Link\")","v":"Link"},29016,29016,1]
[null,"2019-04-04","Email from Jodie Sackett to Joshua Huntington, Lynda Hikichi, Steven Jones, Marie A. Pavlovic, and Peter Chou regarding Yes, check recorded documents here",{"$f":"HYPERLINK(\"H. Remainder/B-Emails/OCR-2019-04-04 Sackett Yes check recorded documents here.pdf\", \"Link\")","v":"Link"},29017,29017,1]
[null,"2019-04-29","Email from Jodie Sackett to Hannah Bentley regarding RE: URL link to technical reports - Northlake Project",{"$f":"HYPERLINK(\"H. Remainder/B-Emails/OCR-2019-04-29 Sackett RE_ URL link to tech reports - NL Project.pdf\", \"Link\")","v":"Link"},29018,29019,2]
[null,"2019-05-01","Email from Jennifer Marks to Jodie Sackett regarding NorthLake Notice of Determination",{"$f":"HYPERLINK(\"H. Remainder/B-Emails/OCR-2019-05-01 Marks NorthLake Notice of Determination.pdf\", \"Link\")","v":"Link"},29020,29020,1]
[null,"2019-05-02","Email from Samuel Dea to Mitch Glaser regarding Northlake",{"$f":"HYPERLINK(\"H. Remainder/B-Emails/OCR-2019-05-02 Dea RE_ Northlake.pdf\", \"Link\")","v":"Link"},29021,29021,1]
[null,"2019-05-02","Email from Rosie Ruiz to ewmoon@ewmooninc.net and pat@hiltonfoundation.org regarding Writ of Mandate to Vacate Decision on - Northlake Specific Plan",{"$f":"HYPERLINK(\"H. Remainder/B-Emails/OCR-2019-05-02 Ruiz-A1-Writ of Mandate to Vacate Decision-NLSP.pdf\", \"Link\")","v":"Link"},29022,29022,1]
[null,null,"Attachment: titled \"Scanned from a Xerox Multifunction Printer.pdf\"",{"$f":"HYPERLINK(\"H. Remainder/B-Emails/OCR-2019-05-02 Ruiz-A2-Scan from a Printer.pdf\", \"Link\")","v":"Link"},29023,29056,34]
[null,"2019-05-02","Email from Rosie Ruiz to dsmith@publiccounsel.org and David Louie regarding Writ of Mandate to Vacate Decision on - Northlake Specific Plan",{"$f":"HYPERLINK(\"H. Remainder/B-Emails/OCR-2019-05-02 Ruiz-B1-Writ of Mandate to Vacate Decision-NLSP.pdf\", \"Link\")","v":"Link"},29057,29057,1]
[null,null,"Attachment: titled \"Scanned from a Xerox Multifunction Printer.pdf\"",{"$f":"HYPERLINK(\"H. Remainder/B-Emails/OCR-2019-05-02 Ruiz-B2-Scan from a Printer.pdf\", \"Link\")","v":"Link"},29058,29091,34]
[null,"2019-05-02","Email from Rosie Ruiz to laura_shell1@yahoo.com regarding Writ of Mandate to Vacate Decision on - Northlake Specific Plan",{"$f":"HYPERLINK(\"H. Remainder/B-Emails/OCR-2019-05-02 Ruiz-C1-Writ of Mandate to Vacate Decision-NLSP.pdf\", \"Link\")","v":"Link"},29092,29092,1]
[null,null,"Attachment: titled \"Scanned from a Xerox Multifunction Printer.pdf\"",{"$f":"HYPERLINK(\"H. Remainder/B-Emails/OCR-2019-05-02 Ruiz-C2-Scan from a Printer.pdf\", \"Link\")","v":"Link"},29093,29126,34]
[null,"2019-05-02","Email from Jodie Sackett to Joshua Jennifer Marks regarding RE: NorthLake Notice of Determination",{"$f":"HYPERLINK(\"H. Remainder/B-Emails/OCR-2019-05-02 Sackett-A1-RE_ NL NOD.pdf\", \"Link\")","v":"Link"},29127,29127,1]
[null,null,"Attachment: titled \"NorthLake NOD_recorded 4-4-19.pdf\"",{"$f":"HYPERLINK(\"H. Remainder/B-Emails/OCR-2019-05-02 Sackett-A2-NL NOD_recorded 4-4-19.pdf\", \"Link\")","v":"Link"},29128,29132,5]
[null,"2019-05-06","Email from Tiffany Caldwell to Amir Bashar regarding Northlake Development",{"$f":"HYPERLINK(\"H. Remainder/B-Emails/OCR-2019-05-06 Caldwell-A1-Northlake Development.pdf\", \"Link\")","v":"Link"},29133,29133,1]
[null,null,"Attachment: titled \"https://signalscv.com/2017/05/housing-plans-unveiled-development-northlake\"",{"$f":"HYPERLINK(\"H. Remainder/B-Emails/OCR-2019-05-06 Caldwell-A2-A map of NL project in Castaic.pdf\", \"Link\")","v":"Link"},29134,29136,3]
[]
[]
[]
[]
[]
[]
[]
[]
[]
[]
[]
[]
[]
[]
[]
[]
[]
[]
[]
[]
[]
[]
[]
[]
[]
[]
[]
[]
[]
[]
[]
[]
[]
[]
[]
[]
[]
[]
[]
[]
[]
[]
[]
[]
[]
[]
[]
[]
[]
[]
[]
[]
[]
[]
[]
[]
[]
[]
[]
[]
[]
[]
[]
[]
[]
[]
[]
[]
[]
[]
[]
[]
[]
[]
[]
[]
[]
[]
[]
[]
[]
[]
[]
[]
[]
[]
[]
[]
[]
[]
[]
[]
[]
[]
[]
[]
[]
[]
[]
[]
[]
[]
[]
[]
[]
[]
[]
[]
[]
[]
[]
[]
[]
[]
[]
[]
[]
[]
[]
[]
[]
[]
[]
[]
[]
[]
[]
[]
[]
[]
[]
[]
[]
[]
[]
[]
[]
[]
[]
[]
[]
[]
[]
[]
[]
[]
[]
[]
[]
[]
[]
[]
[]
[]
[]
[]
[]
[]
[]
[]
[]
[]
[]
[]
[]
[]
[]
[]
[]
[]
[]
[]
[]
[]
[]
[]
[]
[]
[]
[]
[]
[]
[]
[]
[]
[]
[]
[]
[]
[]
[]
[]
[]
[]
[]
[]
[]
[]
[]
[]
[]
[]
[]
[]
[]
[]
[]
[]
[]
[]
[]
[]
[]
[]
[]
[]
[]
[]
[]
[]
[]
[]
[]
[]
[]
[]
[]
[]
[]
[]
[]
[]
[]
[]
[]
[]
[]
[]
[]
[]
[]
[]
[]
[]
[]
[]
[]
[]
[]
[]
[]
[]
[]
[]
[]
[]
[]
[]
[]
[]
[]
[]
[]
[]
[]
[]
[]
[]
[]
[]
[]
[]
[]
[]
[]
[]
[]
[]
[]
[]
[]
[]
[]
[]
[]
[]
[]
[]
[]
[]
[]
[]
[]
[]
[]
[]
[]
[]
[]
[]
[]
[]
[]
[]
[]
[]
[]
[]
[]
[]
[]
[]
[]
[]
[]
[]
[]
[]
[]
[]
[]
[]
[]
[]
[]
[]
[]
[]
[]
[]
[]
[]
[]
[]
[]
[]
[]
[]
[]
[]
[]
[]
[]
[]
[]
[]
[]
[]
[]
[]
[]
[]
[]
[]
[]
[]
[]
[]
[]
[]
[]
[]
[]
[]
[]
[]
[]
[]
[]
[]
[]
[]
[]
[]
[]
[]
[]
[]
[]
[]
[]
[]
[]
[]
[]
[]
[]
[]
[]
[]
[]
[]
[]
[]
[]
[]
[]
[]
[]
[]
[]
[]
[]
[]
[]
[]
[]
[]
[]
[]
[]
[]
[]
[]
[]
[]
[]
[]
[]
[]
[]
[]
[]
[]
[]
[]
[]
[]
[]
[]
[]
[]
[]
[]
[]
[]
[]
[]
[]
[]
[]
[]
[]
[]
[]
[]
[]
[]
[]
[]
[]
[]
[]
[]
[]
[]
[]
[]
[]
[]
[]
[]
[]
[]
[]
[]
[]
[]
[]
[]
[]
[]
[]
[]
[]
[]
[]
[]
[]
[]
[]
[]
[]
[]
[]
[]
[]
[]
[]
[]
[]
[]
[]
[]
[]
[]
[]
[]
[]
[]
[]
[]
[]
[]
[]
[]
[]
[]
[]
[]
[]
[]
[]
[]
[]
[]
[]
[]
[]
[]
[]
[]
[]
[]
[]
[]
[]
[]
[]
[]
[]
[]
[]
[]
[]
[]
[]
[]
[]
[]
[]
[]
[]
[]
[]
[]
[]
[]
[]
[]
[]
[]
[]
[]
[]
[]
[]
[]
[]
[]
[]
[]
[]
[]
[]
[]
[]
[]
[]
[]
[]
[]
[]
[]
[]
[]
[]
[]
[]
[]
[]
[]
[]
[]
[]
[]
[]
[]
[]
[]
[]
[]
[]
[]
[]
[]
[]
[]
[]
[]
[]
[]
[]
[]
[]
[]
[]
[]
[]
[]
[]
[]
[]
[]
[]
[]
[]
[]
[]
[]
[]
[]
[]
[]
[]
[]
[]
[]
[]
[]
[]
[]
[]
[]
[]
[]
[]
[]
[]
[]
[]
[]
[]
[]
[]
[]
[]
[]
[]
[]
[]
[]
[]
[]
[]
[]
[]
[]
[]
[]
[]
[]
[]
[]
[]
[]
[]
[]
[]
[]
[]
[]
[]
[]
[]
[]
[]
[]
[]
[]
[]
[]
[]
[]
[]
[]
[]
[]
[]
[]
[]
[]
[]
[]
[]
[]
[]
[]
[]
[]
[]
[]
[]
[]
[]
[]
[]
[]
[]
[]
[]
[]
[]
[]
[]
[]
[]
[]
[]
[]
[]
[]
[]
[]
[]
[]
[]
[]
[]
[]
[]
[]
[]
[]
[]
[]
[]
[]
[]
[]
[]
[]
[]
[]
[]
[]
[]
[]
[]
[]
[]
[]
[]
[]
[]
[]
[]
[]
[]
[]
[]
[]
[]
[]
[]
[]
[]
[]
[]
[]
[]
[]
[]
[]
[]
[]
[]
[]
[]
[]
[]
[]
[]
[]
[]
[]
[]
[]
[]
[]
[]
[]
[]
[]
[]
[]
[]
[]
[]
[]
[]
[]
[]
[]
[]
[]
[]
[]
[]
[]
[]
[]
[]
[]
[]
[]
[]
[]
[]
[]
[]
[]
[]
[]
[]
[]
[]
[]
[]
[]
[]
[]
[]
[]
[]
[]
[]
[]
[]
[]
[]
[]
[]
[]
[]
[]
[]
[]
[]
[]
[]
[]
[]
[]
[]
[]
[]
[]
[]
[]
[]
[]
[]
[]
[]
[]
[]
["2011-12-15"]
[]
[]
[]
[]
[]
[]
[]
[]
[]
[]
[]
[]
[]
[]
[]
[]
[]
[]
[]
[]
[]
[]
[]
[]
[]
[]
[]
[]
[]
[]
[]
[]
[]
[]
[]
[]
[]
[]
[]
[]
[]
[]
[]
[]
[]
[]
[]
[]
[]
[]
[]
[]
[]
[]
[]
[]
[]
[]
[]
[]
[]
[]
[]
[]
[]
[]
[]
[]
[]
[]
[]
[]
[]
[]
[]
[]
[]
[]
[]
[]
[]
[]
[]
[]
[]
[]
[]
[]
[]
[]
[]
[]
[]
[]
[]
[]
[]
[]
[]
[]
[]
[]
[]
[]
[]
[]
[]
[]
[]
[]
[]
[]
[]
[]
[]
[]
[]
[]
[]
[]
[]
[]
[]
[]
[]
[]
[]
[]
[]
[]
[]
[]
[]
[]
[]
[]
[]
[]
[]
[]
[]
[]
[]
[]
[]
[]
[]
[]
[]
[]
[]
[]
[]
[]
[]
[]
[]
[]
[]
[]
[]
[]
[]
[]
[]
[]
[]
[]
[]
[]
[]
[]
[]
[]
[]
[]
[]
[]
[]
[]
[]
[]
[]
[]
[]
[]
[]
[]
[]
[]
[]
[]
[]
[]
[]
[]
[]
[]
[]
[]
[]
[]
[]
[]
[]
[]
[]
[]
[]
[]
[]
[]
[]
[]
[]
[]
[]
[]
[]
[]
[]
[]
[]
[]
[]
[]
[]
[]
[]
[]
[]
["A"]
[]
[]
[]
[]
[]
[]
[]
[]
[]
[]
[]
[]
[]
[]
[]
[]
[]
[]
[]
[]
[]
[]
[]
[]
[]
[]
[]
[]
[]
[]
[]
[]
[]
[]
[]
[]
[]
[]
[]
[]
[]
[]
[]
[]
[]
[]
[]
[]
[]
[]
[]
[]
[]
[]
[]
[]
[]
[]
[]
[]
[]
[]
[]
[]
[]
[]
[]
[]
[]
[]
[]
[]
[]
[]
[]
[]
[]
[]
[]
[]
[]
[]
[]
[]
[]
[]
[]
[]
[]
[]
[]
[]
[]
[]
[]
[]
[]
[]
[]
[]
[]
[]
[]
[]
[]
[]
[]
[]
[]
[]
[]
[]
[]
[]
[]
[]
[]
[]
[]
[]
[]
[]
[]
[]
[]
[]
[]
[]
[]
[]
[]
[]
[]
[]
[]
[]
[]
[]
[]
[]
[]
[]
[]
[]
[]
[]
[]
[]
[]
[]
[]
[]
[]
[]
[]
[]
[]
[]
[]
[]
[]
[]
[]
[]
[]
[]
[]
[]
[]
[]
[]
[]
[]
[]
[]
[]
[]
[]
[]
[]
[]
[]
[]
[]
[]
[]
[]
[]
[]
[]
[]
[]
[]
[]
[]
[]
[]
[]
[]
[]
[]
[]
[]
[]
[]
[]
[]
[]
[]
[]
[]
[]
[]
[]
[]
[]
[]
[]
[]
[]
[]
[]
[]
[]
[]
[]
[]
[]
[]
[]
[]
[]
[]
[]
[]
[]
[]
[]
[]
[]
[]
[]
[]
[]
[]
[]
[]
[]
[]
[]
[]
[]
[]
[]
[]
[]
[]
[]
[]
[]
[]
[]
[]
[]
[]
[]
[]
[]
[]
[]
[]
[]
[]
[]
[]
[]
[]
[]
[]
[]
[]
[]
[]
[]
[]
[]
[]
[]
[]
[]
[]
[]
[]
[]
[]
[]
[]
[]
[]
[]
[]
[]
[]
[]
[]
[]
[]
[]
[]
[]
[]
[]
[]
[]
[]
[]
[]
[]
[]
[]
[]
[]
[]
[]
[]
[]
[]
[]
[]
[]
[]
[]
[]
[]
[]
[]
[]
[]
[]
[]
[]
[]
[]
[]
[]
[]
[]
[]
[]
[]
[]
[]
[]
[]
[]
[]
[]
[]
[]
[]
[]
[]
[]
[]
[]
[]
[]
[]
[]
[]
[]
[]
[]
[]
[]
[]
[]
[]
[]
[]
[]
[]
[]
[]
[]
[]
[]
[]
[]
[]
[]
[]
[]
[]
[]
[]
[]
[]
[]
[]
[]
[]
[]
[]
[]
[]
[]
[]
[]
[]
[]
[]
[]
[]
[]
[]
[]
[]
[]
[]
[]
[]
[]
[]
[]
[]
[]
[]
[]
[]
[]
[]
[]
[]
[]
[]
[]
[]
[]
[]
[]
[]
[]
[]
[]
[]
[]
[]
[]
[]
[]
[]
[]
[]
[]
[]
[]
[]
[]
[]
[]
[]
[]
[]
[]
[]
[]
[]
[]
[]
[]
[]
[]
[]
[]
[]
[]
[]
[]
[]
[]
[]
[]
[]
[]
[]
[]
[]
[]
[]
[]
[]
[]
[]
[]
[]
[]
[]
[]
[]
[]
[]
[]
[]
[]
[]
[]
[]
[]
[]
[]
[]
[]
[]
[]
[]
[]
[]
[]
[]
[]
[]
[]
[]
[]
[]
[]
[]
[]
[]
[]
[]
[]
[]
[]
[]
[]
[]
[]
[]
[]
[]
[]
[]
[]
[]
[]
[]
[]
[]
[]
[]
[]
[]
[]
[]
[]
[]
[]
[]
[]
[]
[]
[]
[]
[]
[]
[]
[]
[]
[]
[]
[]
[]
[]
[]
[]
[]
[]
[]
[]
[]
[]
[]
[]
[]
[]
[]
[]
[]
[]
[]
[]
[]
[]
[]
[]
[]
[]
[]
[]
[]
[]
[]
[]
[]
[]
[]
[]
[]
[]
[]
[]
[]
[]
[]
[]
[]
[]
[]
[]
[]
[]
[]
[]
[]
[]
[]
[]
[]
[]
[]
[]
[]
[]
[]
[]
[]
[]
[]
[]
[]
[]
[]
[]
[]
[]
[]
[]
[]
[]
[]
[]
[]
[]
[]
[]
[]
[]
[]
[]
[]
[]
[]
[]
[]
[]
[]
[]
[]
["2012-01-31"]
[]
[]
[]
[]
[]
[]
[]
[]
[]
[]
[]
[]
[]
[]
[]
[]
[]
[]
[]
[]
[]
[]
[]
[]
[]
[]
[]
[]
[]
[]
[]
[]
[]
[]
[]
[]
[]
[]
[]
[]
[]
[]
[]
[]
[]
[]
[]
[]
[]
[]
[]
[]
[]
[]
[]
[]
[]
[]
[]
[]
[]
[]
[]
[]
[]
[]
[]
[]
[]
[]
[]
[]
[]
[]
[]
[]
[]
[]
[]
[]
[]
[]
[]
[]
[]
[]
[]
[]
[]
[]
[]
[]
[]
[]
[]
[]
[]
[]
[]
[]
[]
[]
[]
[]
[]
[]
[]
[]
[]
[]
[]
[]
[]
[]
[]
[]
[]
[]
[]
[]
[]
[]
[]
[]
[]
[]
[]
[]
[]
[]
[]
[]
[]
[]
[]
[]
[]
[]
[]
[]
[]
[]
[]
[]
[]
[]
[]
[]
[]
[]
[]
[]
[]
[]
[]
[]
[]
[]
[]
[]
[]
[]
[]
[]
[]
[]
[]
[]
[]
[]
[]
[]
[]
[]
[]
[]
[]
[]
[]
[]
[]
[]
[]
[]
[]
[]
[]
[]
[]
[]
[]
[]
[]
[]
[]
[]
[]
[]
[]
[]
[]
[]
[]
[]
[]
[]
[]
[]
[]
[]
[]
[]
[]
[]
[]
[]
[]
[]
[]
[]
[]
[]
[]
[]
[]
[]
[]
[]
[]
[]
[]
[]
[]
[]
[]
[]
[]
[]
[]
[]
[]
[]
[]
[]
[]
[]
[]
[]
[]
[]
[]
[]
[]
[]
[]
[]
[]
[]
[]
[]
[]
[]
[]
[]
[]
[]
[]
[]
[]
[]
[]
[]
[]
[]
[]
[]
[]
[]
[]
[]
[]
[]
[]
[]
[]
[]
[]
[]
[]
[]
[]
[]
[]
[]
[]
[]
[]
[]
[]
[]
[]
[]
[]
[]
[]
[]
[]
[]
["A"]
[]
[]
[]
[]
[]
[]
[]
[]
[]
[]
[]
[]
[]
[]
[]
[]
[]
[]
[]
[]
[]
[]
[]
[]
[]
[]
[]
[]
[]
[]
[]
[]
[]
[]
[]
[]
[]
[]
[]
[]
[]
[]
[]
[]
[]
[]
[]
[]
[]
[]
[]
[]
[]
[]
[]
[]
[]
[]
[]
[]
[]
[]
[]
[]
[]
[]
[]
[]
[]
[]
[]
[]
[]
[]
[]
[]
[]
[]
[]
[]
[]
[]
[]
[]
[]
[]
[]
[]
[]
[]
[]
[]
[]
[]
[]
[]
[]
[]
[]
[]
[]
[]
[]
[]
[]
[]
[]
[]
[]
[]
[]
[]
[]
[]
[]
[]
[]
[]
[]
[]
[]
[]
[]
[]
[]
[]
[]
[]
[]
[]
[]
[]
[]
[]
[]
[]
[]
[]
[]
[]
[]
[]
[]
[]
[]
[]
[]
[]
[]
[]
[]
[]
[]
[]
[]
[]
[]
[]
[]
[]
[]
[]
[]
[]
[]
[]
[]
[]
[]
[]
[]
[]
[]
[]
[]
[]
[]
[]
[]
[]
[]
[]
[]
[]
[]
[]
[]
[]
[]
[]
[]
[]
[]
[]
[]
[]
[]
[]
[]
[]
[]
[]
[]
[]
[]
[]
[]
[]
[]
[]
[]
[]
[]
[]
[]
[]
[]
[]
[]
[]
[]
[]
[]
[]
[]
[]
[]
[]
[]
[]
[]
[]
[]
[]
[]
[]
[]
[]
[]
[]
[]
[]
[]
[]
[]
[]
[]
[]
[]
[]
[]
[]
[]
[]
[]
[]
[]
[]
[]
[]
[]
[]
[]
[]
[]
[]
[]
[]
[]
[]
[]
[]
[]
[]
[]
[]
[]
[]
[]
[]
[]
[]
[]
[]
[]
[]
[]
[]
[]
[]
[]
[]
[]
["2011-01-21"]
[]
[]
[]
["2011-01-25"]